Workbook

Sheet Löneuppräkning (hidden)
B1: Årsfaktor för löneupräkning
B3: Årsfaktorn tar hänsyn till så att angiven löneuppräkning slår ut även de 3 sista månaderna på året.
B5: Projektår | D5: Årsfaktor
B6: År 1 | C6: a | D6: 0.252325 | E6: =a*2.5 -> 0.6308125
B7: År 2 | C7: b | D7: =a+1 -> 1.252325 | E7: =b*2.5 -> 3.1308125
B8: År 3 | C8: c | D8: =b+1 -> 2.252325 | E8: =c_*2.5 -> 5.6308125
B9: År 4 | C9: d | D9: =c_+1 -> 3.252325
B10: År 5 | C10: e | D10: =d+1 -> 4.252325
B11: År 6 | C11: f | D11: =e+1 -> 5.252325
B12: År 7 | C12: g | D12: =f+1 -> 6.252325
B13: År 8 | C13: h | D13: =g+1 -> 7.252325
B14: År 9 | C14: i | D14: =h+1 -> 8.252325
B15: År 10 | C15: j | D15: =i+1 -> 9.252325 | L15: 2.5
K16: 1.025
K17: =K16^1.252325 -> 1.031406264 | L17: =2.5*3/12 -> 0.625
K18: =K16^b -> 1.031406264
K19: =K16^3.252325 -> 1.083621206 | L19: =1.025*1.025*1.025*1.00625 -> 1.083621191
B21: LKP inkl löneökning (används vis beräkning av timkostnad i resursallokerinmgen)
B22: År 1 | C22: 1.5421 | D22: =LönePåläggUppräkningÅr1*(1.025)^a -> 1.551738146
B23: År 2 | C23: =LönePåläggUppräkningÅr1 -> 1.5421 | D23: =LönePåläggUppräkningÅr2*(1.025)^b -> 1.5905316
B24: År 3 | C24: 1.5421 | D24: =LönePåläggUppräkningÅr3*(1.025)^c_ -> 1.63029489
B25: År 4 | C25: 1.5421 | D25: =LönePåläggUppräkningÅr4*(1.025)^d -> 1.671052262
B26: År 5 | C26: 1.5421 | D26: =LönePåläggUppräkningÅr5*(1.025)^e -> 1.712828569
B27: År 6 | C27: 1.5421 | D27: =LönePåläggUppräkningÅr6*(1.025)^f -> 1.755649283
B28: År 7 | C28: 1.5421 | D28: =LönePåläggUppräkningÅr7*(1.025)^g -> 1.799540515
B29: År 8 | C29: 1.5421 | D29: =LönePåläggUppräkningÅr8*(1.025)^h -> 1.844529028
B30: År 9 | C30: 1.5421 | D30: =LönePåläggUppräkningÅr9*(1.025)^i -> 1.890642254
B31: År 10 | C31: 1.5421 | D31: =LönePåläggUppräkningÅr10*(1.025)^j -> 1.93790831

Sheet Lön exkl lkp (hidden)
A1: Namn | B1: LKP | C1: =Projektbudget!O11 -> 2021 | D1: =Projektbudget!P11 -> 2022 | E1: =Projektbudget!Q11 -> 2023 | F1: =Projektbudget!R11 -> 2024 | G1: =Projektbudget!S11 -> 2025 | H1: =Projektbudget!T11 -> 2026 | I1: =Projektbudget!U11 -> 2027 | J1: =Projektbudget!V11 -> 2028 | K1: =Projektbudget!W11 -> 2029 | L1: =Projektbudget!X11 -> 2030
A2: =Projektbudget!A12 -> Professor | B2: =Projektbudget!C12 -> 1.5415 | C2: =IFERROR(Projektbudget!O12/'Lön exkl lkp'!$B2,0) -> 0 | D2: =IFERROR(Projektbudget!P12/'Lön exkl lkp'!$B2,0) -> 0 | E2: =IFERROR(Projektbudget!Q12/'Lön exkl lkp'!$B2,0) -> 0 | F2: =IFERROR(Projektbudget!R12/'Lön exkl lkp'!$B2,0) -> 0 | G2: =IFERROR(Projektbudget!S12/'Lön exkl lkp'!$B2,0) -> 0 | H2: =IFERROR(Projektbudget!T12/'Lön exkl lkp'!$B2,0) -> 0 | I2: =IFERROR(Projektbudget!U12/'Lön exkl lkp'!$B2,0) -> 0 | J2: =IFERROR(Projektbudget!V12/'Lön exkl lkp'!$B2,0) -> 0 | K2: =IFERROR(Projektbudget!W12/'Lön exkl lkp'!$B2,0) -> 0 | L2: =IFERROR(Projektbudget!X12/'Lön exkl lkp'!$B2,0) -> 0 | M2: =SUM(C2:L2) -> 0
A3: =Projektbudget!A13 -> Docent | B3: =Projektbudget!C13 -> 1.5415 | C3: =IFERROR(Projektbudget!O13/'Lön exkl lkp'!$B3,0) -> 0 | D3: =IFERROR(Projektbudget!P13/'Lön exkl lkp'!$B3,0) -> 0 | E3: =IFERROR(Projektbudget!Q13/'Lön exkl lkp'!$B3,0) -> 0 | F3: =IFERROR(Projektbudget!R13/'Lön exkl lkp'!$B3,0) -> 0 | G3: =IFERROR(Projektbudget!S13/'Lön exkl lkp'!$B3,0) -> 0 | H3: =IFERROR(Projektbudget!T13/'Lön exkl lkp'!$B3,0) -> 0 | I3: =IFERROR(Projektbudget!U13/'Lön exkl lkp'!$B3,0) -> 0 | J3: =IFERROR(Projektbudget!V13/'Lön exkl lkp'!$B3,0) -> 0 | K3: =IFERROR(Projektbudget!W13/'Lön exkl lkp'!$B3,0) -> 0 | L3: =IFERROR(Projektbudget!X13/'Lön exkl lkp'!$B3,0) -> 0 | M3: =SUM(C3:L3) -> 0
A4: =Projektbudget!A14 -> Lektor | B4: =Projektbudget!C14 -> 1.5415 | C4: =IFERROR(Projektbudget!O14/'Lön exkl lkp'!$B4,0) -> 0 | D4: =IFERROR(Projektbudget!P14/'Lön exkl lkp'!$B4,0) -> 0 | E4: =IFERROR(Projektbudget!Q14/'Lön exkl lkp'!$B4,0) -> 0 | F4: =IFERROR(Projektbudget!R14/'Lön exkl lkp'!$B4,0) -> 0 | G4: =IFERROR(Projektbudget!S14/'Lön exkl lkp'!$B4,0) -> 0 | H4: =IFERROR(Projektbudget!T14/'Lön exkl lkp'!$B4,0) -> 0 | I4: =IFERROR(Projektbudget!U14/'Lön exkl lkp'!$B4,0) -> 0 | J4: =IFERROR(Projektbudget!V14/'Lön exkl lkp'!$B4,0) -> 0 | K4: =IFERROR(Projektbudget!W14/'Lön exkl lkp'!$B4,0) -> 0 | L4: =IFERROR(Projektbudget!X14/'Lön exkl lkp'!$B4,0) -> 0 | M4: 0
A5: =Projektbudget!A15 -> Adjunkt | B5: =Projektbudget!C15 -> 1.5415 | C5: =IFERROR(Projektbudget!O15/'Lön exkl lkp'!$B5,0) -> 0 | D5: =IFERROR(Projektbudget!P15/'Lön exkl lkp'!$B5,0) -> 0 | E5: =IFERROR(Projektbudget!Q15/'Lön exkl lkp'!$B5,0) -> 0 | F5: =IFERROR(Projektbudget!R15/'Lön exkl lkp'!$B5,0) -> 0 | G5: =IFERROR(Projektbudget!S15/'Lön exkl lkp'!$B5,0) -> 0 | H5: =IFERROR(Projektbudget!T15/'Lön exkl lkp'!$B5,0) -> 0 | I5: =IFERROR(Projektbudget!U15/'Lön exkl lkp'!$B5,0) -> 0 | J5: =IFERROR(Projektbudget!V15/'Lön exkl lkp'!$B5,0) -> 0 | K5: =IFERROR(Projektbudget!W15/'Lön exkl lkp'!$B5,0) -> 0 | L5: =IFERROR(Projektbudget!X15/'Lön exkl lkp'!$B5,0) -> 0 | M5: 0
A6: =Projektbudget!A16 -> Post dok | B6: =Projektbudget!C16 -> 1.5415 | C6: =IFERROR(Projektbudget!O16/'Lön exkl lkp'!$B6,0) -> 0 | D6: =IFERROR(Projektbudget!P16/'Lön exkl lkp'!$B6,0) -> 0 | E6: =IFERROR(Projektbudget!Q16/'Lön exkl lkp'!$B6,0) -> 0 | F6: =IFERROR(Projektbudget!R16/'Lön exkl lkp'!$B6,0) -> 0 | G6: =IFERROR(Projektbudget!S16/'Lön exkl lkp'!$B6,0) -> 0 | H6: =IFERROR(Projektbudget!T16/'Lön exkl lkp'!$B6,0) -> 0 | I6: =IFERROR(Projektbudget!U16/'Lön exkl lkp'!$B6,0) -> 0 | J6: =IFERROR(Projektbudget!V16/'Lön exkl lkp'!$B6,0) -> 0 | K6: =IFERROR(Projektbudget!W16/'Lön exkl lkp'!$B6,0) -> 0 | L6: =IFERROR(Projektbudget!X16/'Lön exkl lkp'!$B6,0) -> 0 | M6: 0
A7: =Projektbudget!A17 -> Doktorand (Snittlön) | B7: =Projektbudget!C17 -> 1.5415 | C7: =IFERROR(Projektbudget!O17/'Lön exkl lkp'!$B7,0) -> 0 | D7: =IFERROR(Projektbudget!P17/'Lön exkl lkp'!$B7,0) -> 0 | E7: =IFERROR(Projektbudget!Q17/'Lön exkl lkp'!$B7,0) -> 0 | F7: =IFERROR(Projektbudget!R17/'Lön exkl lkp'!$B7,0) -> 0 | G7: =IFERROR(Projektbudget!S17/'Lön exkl lkp'!$B7,0) -> 0 | H7: =IFERROR(Projektbudget!T17/'Lön exkl lkp'!$B7,0) -> 0 | I7: =IFERROR(Projektbudget!U17/'Lön exkl lkp'!$B7,0) -> 0 | J7: =IFERROR(Projektbudget!V17/'Lön exkl lkp'!$B7,0) -> 0 | K7: =IFERROR(Projektbudget!W17/'Lön exkl lkp'!$B7,0) -> 0 | L7: =IFERROR(Projektbudget!X17/'Lön exkl lkp'!$B7,0) -> 0 | M7: 0
A8: =Projektbudget!A18 -> Administratör | B8: =Projektbudget!C18 -> 1.5415 | C8: =IFERROR(Projektbudget!O18/'Lön exkl lkp'!$B8,0) -> 0 | D8: =IFERROR(Projektbudget!P18/'Lön exkl lkp'!$B8,0) -> 0 | E8: =IFERROR(Projektbudget!Q18/'Lön exkl lkp'!$B8,0) -> 0 | F8: =IFERROR(Projektbudget!R18/'Lön exkl lkp'!$B8,0) -> 0 | G8: =IFERROR(Projektbudget!S18/'Lön exkl lkp'!$B8,0) -> 0 | H8: =IFERROR(Projektbudget!T18/'Lön exkl lkp'!$B8,0) -> 0 | I8: =IFERROR(Projektbudget!U18/'Lön exkl lkp'!$B8,0) -> 0 | J8: =IFERROR(Projektbudget!V18/'Lön exkl lkp'!$B8,0) -> 0 | K8: =IFERROR(Projektbudget!W18/'Lön exkl lkp'!$B8,0) -> 0 | L8: =IFERROR(Projektbudget!X18/'Lön exkl lkp'!$B8,0) -> 0 | M8: 0
A9: =Projektbudget!A19 -> Labbtekniker | B9: =Projektbudget!C19 -> 1.5415 | C9: =IFERROR(Projektbudget!O19/'Lön exkl lkp'!$B9,0) -> 0 | D9: =IFERROR(Projektbudget!P19/'Lön exkl lkp'!$B9,0) -> 0 | E9: =IFERROR(Projektbudget!Q19/'Lön exkl lkp'!$B9,0) -> 0 | F9: =IFERROR(Projektbudget!R19/'Lön exkl lkp'!$B9,0) -> 0 | G9: =IFERROR(Projektbudget!S19/'Lön exkl lkp'!$B9,0) -> 0 | H9: =IFERROR(Projektbudget!T19/'Lön exkl lkp'!$B9,0) -> 0 | I9: =IFERROR(Projektbudget!U19/'Lön exkl lkp'!$B9,0) -> 0 | J9: =IFERROR(Projektbudget!V19/'Lön exkl lkp'!$B9,0) -> 0 | K9: =IFERROR(Projektbudget!W19/'Lön exkl lkp'!$B9,0) -> 0 | L9: =IFERROR(Projektbudget!X19/'Lön exkl lkp'!$B9,0) -> 0 | M9: 0
A10: =Projektbudget!A20 -> Forskningsassistent | B10: =Projektbudget!C20 -> 1.5415 | C10: =IFERROR(Projektbudget!O20/'Lön exkl lkp'!$B10,0) -> 0 | D10: =IFERROR(Projektbudget!P20/'Lön exkl lkp'!$B10,0) -> 0 | E10: =IFERROR(Projektbudget!Q20/'Lön exkl lkp'!$B10,0) -> 0 | F10: =IFERROR(Projektbudget!R20/'Lön exkl lkp'!$B10,0) -> 0 | G10: =IFERROR(Projektbudget!S20/'Lön exkl lkp'!$B10,0) -> 0 | H10: =IFERROR(Projektbudget!T20/'Lön exkl lkp'!$B10,0) -> 0 | I10: =IFERROR(Projektbudget!U20/'Lön exkl lkp'!$B10,0) -> 0 | J10: =IFERROR(Projektbudget!V20/'Lön exkl lkp'!$B10,0) -> 0 | K10: =IFERROR(Projektbudget!W20/'Lön exkl lkp'!$B10,0) -> 0 | L10: =IFERROR(Projektbudget!X20/'Lön exkl lkp'!$B10,0) -> 0 | M10: 0
A11: =Projektbudget!A21 -> Forskare/biträdande forskare | B11: =Projektbudget!C21 -> 1.5415 | C11: =IFERROR(Projektbudget!O21/'Lön exkl lkp'!$B11,0) -> 0 | D11: =IFERROR(Projektbudget!P21/'Lön exkl lkp'!$B11,0) -> 0 | E11: =IFERROR(Projektbudget!Q21/'Lön exkl lkp'!$B11,0) -> 0 | F11: =IFERROR(Projektbudget!R21/'Lön exkl lkp'!$B11,0) -> 0 | G11: =IFERROR(Projektbudget!S21/'Lön exkl lkp'!$B11,0) -> 0 | H11: =IFERROR(Projektbudget!T21/'Lön exkl lkp'!$B11,0) -> 0 | I11: =IFERROR(Projektbudget!U21/'Lön exkl lkp'!$B11,0) -> 0 | J11: =IFERROR(Projektbudget!V21/'Lön exkl lkp'!$B11,0) -> 0 | K11: =IFERROR(Projektbudget!W21/'Lön exkl lkp'!$B11,0) -> 0 | L11: =IFERROR(Projektbudget!X21/'Lön exkl lkp'!$B11,0) -> 0 | M11: 0
A12: =Projektbudget!A22 -> 0 | B12: =Projektbudget!C22 -> 0 | C12: =IFERROR(Projektbudget!O22/'Lön exkl lkp'!$B12,0) -> 0 | D12: =IFERROR(Projektbudget!P22/'Lön exkl lkp'!$B12,0) -> 0 | E12: =IFERROR(Projektbudget!Q22/'Lön exkl lkp'!$B12,0) -> 0 | F12: =IFERROR(Projektbudget!R22/'Lön exkl lkp'!$B12,0) -> 0 | G12: =IFERROR(Projektbudget!S22/'Lön exkl lkp'!$B12,0) -> 0 | H12: =IFERROR(Projektbudget!T22/'Lön exkl lkp'!$B12,0) -> 0 | I12: =IFERROR(Projektbudget!U22/'Lön exkl lkp'!$B12,0) -> 0 | J12: =IFERROR(Projektbudget!V22/'Lön exkl lkp'!$B12,0) -> 0 | K12: =IFERROR(Projektbudget!W22/'Lön exkl lkp'!$B12,0) -> 0 | L12: =IFERROR(Projektbudget!X22/'Lön exkl lkp'!$B12,0) -> 0 | M12: 0
A13: =Projektbudget!A23 -> 0 | B13: =Projektbudget!C23 -> 0 | C13: =IFERROR(Projektbudget!O23/'Lön exkl lkp'!$B13,0) -> 0 | D13: =IFERROR(Projektbudget!P23/'Lön exkl lkp'!$B13,0) -> 0 | E13: =IFERROR(Projektbudget!Q23/'Lön exkl lkp'!$B13,0) -> 0 | F13: =IFERROR(Projektbudget!R23/'Lön exkl lkp'!$B13,0) -> 0 | G13: =IFERROR(Projektbudget!S23/'Lön exkl lkp'!$B13,0) -> 0 | H13: =IFERROR(Projektbudget!T23/'Lön exkl lkp'!$B13,0) -> 0 | I13: =IFERROR(Projektbudget!U23/'Lön exkl lkp'!$B13,0) -> 0 | J13: =IFERROR(Projektbudget!V23/'Lön exkl lkp'!$B13,0) -> 0 | K13: =IFERROR(Projektbudget!W23/'Lön exkl lkp'!$B13,0) -> 0 | L13: =IFERROR(Projektbudget!X23/'Lön exkl lkp'!$B13,0) -> 0 | M13: 0
A14: =Projektbudget!A24 -> 0 | B14: =Projektbudget!C24 -> 0 | C14: =IFERROR(Projektbudget!O24/'Lön exkl lkp'!$B14,0) -> 0 | D14: =IFERROR(Projektbudget!P24/'Lön exkl lkp'!$B14,0) -> 0 | E14: =IFERROR(Projektbudget!Q24/'Lön exkl lkp'!$B14,0) -> 0 | F14: =IFERROR(Projektbudget!R24/'Lön exkl lkp'!$B14,0) -> 0 | G14: =IFERROR(Projektbudget!S24/'Lön exkl lkp'!$B14,0) -> 0 | H14: =IFERROR(Projektbudget!T24/'Lön exkl lkp'!$B14,0) -> 0 | I14: =IFERROR(Projektbudget!U24/'Lön exkl lkp'!$B14,0) -> 0 | J14: =IFERROR(Projektbudget!V24/'Lön exkl lkp'!$B14,0) -> 0 | K14: =IFERROR(Projektbudget!W24/'Lön exkl lkp'!$B14,0) -> 0 | L14: =IFERROR(Projektbudget!X24/'Lön exkl lkp'!$B14,0) -> 0 | M14: 0
A15: =Projektbudget!A25 -> 0 | B15: =Projektbudget!C25 -> 0 | C15: =IFERROR(Projektbudget!O25/'Lön exkl lkp'!$B15,0) -> 0 | D15: =IFERROR(Projektbudget!P25/'Lön exkl lkp'!$B15,0) -> 0 | E15: =IFERROR(Projektbudget!Q25/'Lön exkl lkp'!$B15,0) -> 0 | F15: =IFERROR(Projektbudget!R25/'Lön exkl lkp'!$B15,0) -> 0 | G15: =IFERROR(Projektbudget!S25/'Lön exkl lkp'!$B15,0) -> 0 | H15: =IFERROR(Projektbudget!T25/'Lön exkl lkp'!$B15,0) -> 0 | I15: =IFERROR(Projektbudget!U25/'Lön exkl lkp'!$B15,0) -> 0 | J15: =IFERROR(Projektbudget!V25/'Lön exkl lkp'!$B15,0) -> 0 | K15: =IFERROR(Projektbudget!W25/'Lön exkl lkp'!$B15,0) -> 0 | L15: =IFERROR(Projektbudget!X25/'Lön exkl lkp'!$B15,0) -> 0 | M15: 0
A16: =Projektbudget!A26 -> 0 | B16: =Projektbudget!C26 -> 0 | C16: =IFERROR(Projektbudget!O26/'Lön exkl lkp'!$B16,0) -> 0 | D16: =IFERROR(Projektbudget!P26/'Lön exkl lkp'!$B16,0) -> 0 | E16: =IFERROR(Projektbudget!Q26/'Lön exkl lkp'!$B16,0) -> 0 | F16: =IFERROR(Projektbudget!R26/'Lön exkl lkp'!$B16,0) -> 0 | G16: =IFERROR(Projektbudget!S26/'Lön exkl lkp'!$B16,0) -> 0 | H16: =IFERROR(Projektbudget!T26/'Lön exkl lkp'!$B16,0) -> 0 | I16: =IFERROR(Projektbudget!U26/'Lön exkl lkp'!$B16,0) -> 0 | J16: =IFERROR(Projektbudget!V26/'Lön exkl lkp'!$B16,0) -> 0 | K16: =IFERROR(Projektbudget!W26/'Lön exkl lkp'!$B16,0) -> 0 | L16: =IFERROR(Projektbudget!X26/'Lön exkl lkp'!$B16,0) -> 0 | M16: 0
A17: =Projektbudget!A27 -> 0 | B17: =Projektbudget!C27 -> 0 | C17: =IFERROR(Projektbudget!O27/'Lön exkl lkp'!$B17,0) -> 0 | D17: =IFERROR(Projektbudget!P27/'Lön exkl lkp'!$B17,0) -> 0 | E17: =IFERROR(Projektbudget!Q27/'Lön exkl lkp'!$B17,0) -> 0 | F17: =IFERROR(Projektbudget!R27/'Lön exkl lkp'!$B17,0) -> 0 | G17: =IFERROR(Projektbudget!S27/'Lön exkl lkp'!$B17,0) -> 0 | H17: =IFERROR(Projektbudget!T27/'Lön exkl lkp'!$B17,0) -> 0 | I17: =IFERROR(Projektbudget!U27/'Lön exkl lkp'!$B17,0) -> 0 | J17: =IFERROR(Projektbudget!V27/'Lön exkl lkp'!$B17,0) -> 0 | K17: =IFERROR(Projektbudget!W27/'Lön exkl lkp'!$B17,0) -> 0 | L17: =IFERROR(Projektbudget!X27/'Lön exkl lkp'!$B17,0) -> 0 | M17: 0
A18: =Projektbudget!A28 -> 0 | B18: =Projektbudget!C28 -> 0 | C18: =IFERROR(Projektbudget!O28/'Lön exkl lkp'!$B18,0) -> 0 | D18: =IFERROR(Projektbudget!P28/'Lön exkl lkp'!$B18,0) -> 0 | E18: =IFERROR(Projektbudget!Q28/'Lön exkl lkp'!$B18,0) -> 0 | F18: =IFERROR(Projektbudget!R28/'Lön exkl lkp'!$B18,0) -> 0 | G18: =IFERROR(Projektbudget!S28/'Lön exkl lkp'!$B18,0) -> 0 | H18: =IFERROR(Projektbudget!T28/'Lön exkl lkp'!$B18,0) -> 0 | I18: =IFERROR(Projektbudget!U28/'Lön exkl lkp'!$B18,0) -> 0 | J18: =IFERROR(Projektbudget!V28/'Lön exkl lkp'!$B18,0) -> 0 | K18: =IFERROR(Projektbudget!W28/'Lön exkl lkp'!$B18,0) -> 0 | L18: =IFERROR(Projektbudget!X28/'Lön exkl lkp'!$B18,0) -> 0 | M18: 0
A19: =Projektbudget!A29 -> 0 | B19: =Projektbudget!C29 -> 0 | C19: =IFERROR(Projektbudget!O29/'Lön exkl lkp'!$B19,0) -> 0 | D19: =IFERROR(Projektbudget!P29/'Lön exkl lkp'!$B19,0) -> 0 | E19: =IFERROR(Projektbudget!Q29/'Lön exkl lkp'!$B19,0) -> 0 | F19: =IFERROR(Projektbudget!R29/'Lön exkl lkp'!$B19,0) -> 0 | G19: =IFERROR(Projektbudget!S29/'Lön exkl lkp'!$B19,0) -> 0 | H19: =IFERROR(Projektbudget!T29/'Lön exkl lkp'!$B19,0) -> 0 | I19: =IFERROR(Projektbudget!U29/'Lön exkl lkp'!$B19,0) -> 0 | J19: =IFERROR(Projektbudget!V29/'Lön exkl lkp'!$B19,0) -> 0 | K19: =IFERROR(Projektbudget!W29/'Lön exkl lkp'!$B19,0) -> 0 | L19: =IFERROR(Projektbudget!X29/'Lön exkl lkp'!$B19,0) -> 0 | M19: 0
A20: =Projektbudget!A30 -> 0 | B20: =Projektbudget!C30 -> 0 | C20: =IFERROR(Projektbudget!O30/'Lön exkl lkp'!$B20,0) -> 0 | D20: =IFERROR(Projektbudget!P30/'Lön exkl lkp'!$B20,0) -> 0 | E20: =IFERROR(Projektbudget!Q30/'Lön exkl lkp'!$B20,0) -> 0 | F20: =IFERROR(Projektbudget!R30/'Lön exkl lkp'!$B20,0) -> 0 | G20: =IFERROR(Projektbudget!S30/'Lön exkl lkp'!$B20,0) -> 0 | H20: =IFERROR(Projektbudget!T30/'Lön exkl lkp'!$B20,0) -> 0 | I20: =IFERROR(Projektbudget!U30/'Lön exkl lkp'!$B20,0) -> 0 | J20: =IFERROR(Projektbudget!V30/'Lön exkl lkp'!$B20,0) -> 0 | K20: =IFERROR(Projektbudget!W30/'Lön exkl lkp'!$B20,0) -> 0 | L20: =IFERROR(Projektbudget!X30/'Lön exkl lkp'!$B20,0) -> 0 | M20: 0
A21: =Projektbudget!A31 -> 0 | B21: =Projektbudget!C31 -> 0 | C21: =IFERROR(Projektbudget!O31/'Lön exkl lkp'!$B21,0) -> 0 | D21: =IFERROR(Projektbudget!P31/'Lön exkl lkp'!$B21,0) -> 0 | E21: =IFERROR(Projektbudget!Q31/'Lön exkl lkp'!$B21,0) -> 0 | F21: =IFERROR(Projektbudget!R31/'Lön exkl lkp'!$B21,0) -> 0 | G21: =IFERROR(Projektbudget!S31/'Lön exkl lkp'!$B21,0) -> 0 | H21: =IFERROR(Projektbudget!T31/'Lön exkl lkp'!$B21,0) -> 0 | I21: =IFERROR(Projektbudget!U31/'Lön exkl lkp'!$B21,0) -> 0 | J21: =IFERROR(Projektbudget!V31/'Lön exkl lkp'!$B21,0) -> 0 | K21: =IFERROR(Projektbudget!W31/'Lön exkl lkp'!$B21,0) -> 0 | L21: =IFERROR(Projektbudget!X31/'Lön exkl lkp'!$B21,0) -> 0 | M21: 0
A22: =Projektbudget!A32 -> 0 | B22: =Projektbudget!C32 -> 0 | C22: =IFERROR(Projektbudget!O32/'Lön exkl lkp'!$B22,0) -> 0 | D22: =IFERROR(Projektbudget!P32/'Lön exkl lkp'!$B22,0) -> 0 | E22: =IFERROR(Projektbudget!Q32/'Lön exkl lkp'!$B22,0) -> 0 | F22: =IFERROR(Projektbudget!R32/'Lön exkl lkp'!$B22,0) -> 0 | G22: =IFERROR(Projektbudget!S32/'Lön exkl lkp'!$B22,0) -> 0 | H22: =IFERROR(Projektbudget!T32/'Lön exkl lkp'!$B22,0) -> 0 | I22: =IFERROR(Projektbudget!U32/'Lön exkl lkp'!$B22,0) -> 0 | J22: =IFERROR(Projektbudget!V32/'Lön exkl lkp'!$B22,0) -> 0 | K22: =IFERROR(Projektbudget!W32/'Lön exkl lkp'!$B22,0) -> 0 | L22: =IFERROR(Projektbudget!X32/'Lön exkl lkp'!$B22,0) -> 0 | M22: 0
A23: =Projektbudget!A33 -> 0 | B23: =Projektbudget!C33 -> 0 | C23: =IFERROR(Projektbudget!O33/'Lön exkl lkp'!$B23,0) -> 0 | D23: =IFERROR(Projektbudget!P33/'Lön exkl lkp'!$B23,0) -> 0 | E23: =IFERROR(Projektbudget!Q33/'Lön exkl lkp'!$B23,0) -> 0 | F23: =IFERROR(Projektbudget!R33/'Lön exkl lkp'!$B23,0) -> 0 | G23: =IFERROR(Projektbudget!S33/'Lön exkl lkp'!$B23,0) -> 0 | H23: =IFERROR(Projektbudget!T33/'Lön exkl lkp'!$B23,0) -> 0 | I23: =IFERROR(Projektbudget!U33/'Lön exkl lkp'!$B23,0) -> 0 | J23: =IFERROR(Projektbudget!V33/'Lön exkl lkp'!$B23,0) -> 0 | K23: =IFERROR(Projektbudget!W33/'Lön exkl lkp'!$B23,0) -> 0 | L23: =IFERROR(Projektbudget!X33/'Lön exkl lkp'!$B23,0) -> 0 | M23: 0
A24: =Projektbudget!A34 -> 0 | B24: =Projektbudget!C34 -> 0 | C24: =IFERROR(Projektbudget!O34/'Lön exkl lkp'!$B24,0) -> 0 | D24: =IFERROR(Projektbudget!P34/'Lön exkl lkp'!$B24,0) -> 0 | E24: =IFERROR(Projektbudget!Q34/'Lön exkl lkp'!$B24,0) -> 0 | F24: =IFERROR(Projektbudget!R34/'Lön exkl lkp'!$B24,0) -> 0 | G24: =IFERROR(Projektbudget!S34/'Lön exkl lkp'!$B24,0) -> 0 | H24: =IFERROR(Projektbudget!T34/'Lön exkl lkp'!$B24,0) -> 0 | I24: =IFERROR(Projektbudget!U34/'Lön exkl lkp'!$B24,0) -> 0 | J24: =IFERROR(Projektbudget!V34/'Lön exkl lkp'!$B24,0) -> 0 | K24: =IFERROR(Projektbudget!W34/'Lön exkl lkp'!$B24,0) -> 0 | L24: =IFERROR(Projektbudget!X34/'Lön exkl lkp'!$B24,0) -> 0 | M24: 0
A25: =Projektbudget!A35 -> 0 | B25: =Projektbudget!C35 -> 0 | C25: =IFERROR(Projektbudget!O35/'Lön exkl lkp'!$B25,0) -> 0 | D25: =IFERROR(Projektbudget!P35/'Lön exkl lkp'!$B25,0) -> 0 | E25: =IFERROR(Projektbudget!Q35/'Lön exkl lkp'!$B25,0) -> 0 | F25: =IFERROR(Projektbudget!R35/'Lön exkl lkp'!$B25,0) -> 0 | G25: =IFERROR(Projektbudget!S35/'Lön exkl lkp'!$B25,0) -> 0 | H25: =IFERROR(Projektbudget!T35/'Lön exkl lkp'!$B25,0) -> 0 | I25: =IFERROR(Projektbudget!U35/'Lön exkl lkp'!$B25,0) -> 0 | J25: =IFERROR(Projektbudget!V35/'Lön exkl lkp'!$B25,0) -> 0 | K25: =IFERROR(Projektbudget!W35/'Lön exkl lkp'!$B25,0) -> 0 | L25: =IFERROR(Projektbudget!X35/'Lön exkl lkp'!$B25,0) -> 0 | M25: 0
A26: =Projektbudget!A36 -> 0 | B26: =Projektbudget!C36 -> 0 | C26: =IFERROR(Projektbudget!O36/'Lön exkl lkp'!$B26,0) -> 0 | D26: =IFERROR(Projektbudget!P36/'Lön exkl lkp'!$B26,0) -> 0 | E26: =IFERROR(Projektbudget!Q36/'Lön exkl lkp'!$B26,0) -> 0 | F26: =IFERROR(Projektbudget!R36/'Lön exkl lkp'!$B26,0) -> 0 | G26: =IFERROR(Projektbudget!S36/'Lön exkl lkp'!$B26,0) -> 0 | H26: =IFERROR(Projektbudget!T36/'Lön exkl lkp'!$B26,0) -> 0 | I26: =IFERROR(Projektbudget!U36/'Lön exkl lkp'!$B26,0) -> 0 | J26: =IFERROR(Projektbudget!V36/'Lön exkl lkp'!$B26,0) -> 0 | K26: =IFERROR(Projektbudget!W36/'Lön exkl lkp'!$B26,0) -> 0 | L26: =IFERROR(Projektbudget!X36/'Lön exkl lkp'!$B26,0) -> 0 | M26: 0
A27: =Projektbudget!A37 -> 0 | B27: =Projektbudget!C37 -> 0 | C27: =IFERROR(Projektbudget!O37/'Lön exkl lkp'!$B27,0) -> 0 | D27: =IFERROR(Projektbudget!P37/'Lön exkl lkp'!$B27,0) -> 0 | E27: =IFERROR(Projektbudget!Q37/'Lön exkl lkp'!$B27,0) -> 0 | F27: =IFERROR(Projektbudget!R37/'Lön exkl lkp'!$B27,0) -> 0 | G27: =IFERROR(Projektbudget!S37/'Lön exkl lkp'!$B27,0) -> 0 | H27: =IFERROR(Projektbudget!T37/'Lön exkl lkp'!$B27,0) -> 0 | I27: =IFERROR(Projektbudget!U37/'Lön exkl lkp'!$B27,0) -> 0 | J27: =IFERROR(Projektbudget!V37/'Lön exkl lkp'!$B27,0) -> 0 | K27: =IFERROR(Projektbudget!W37/'Lön exkl lkp'!$B27,0) -> 0 | L27: =IFERROR(Projektbudget!X37/'Lön exkl lkp'!$B27,0) -> 0 | M27: 0
A28: =Projektbudget!A38 -> 0 | B28: =Projektbudget!C38 -> 0 | C28: =IFERROR(Projektbudget!O38/'Lön exkl lkp'!$B28,0) -> 0 | D28: =IFERROR(Projektbudget!P38/'Lön exkl lkp'!$B28,0) -> 0 | E28: =IFERROR(Projektbudget!Q38/'Lön exkl lkp'!$B28,0) -> 0 | F28: =IFERROR(Projektbudget!R38/'Lön exkl lkp'!$B28,0) -> 0 | G28: =IFERROR(Projektbudget!S38/'Lön exkl lkp'!$B28,0) -> 0 | H28: =IFERROR(Projektbudget!T38/'Lön exkl lkp'!$B28,0) -> 0 | I28: =IFERROR(Projektbudget!U38/'Lön exkl lkp'!$B28,0) -> 0 | J28: =IFERROR(Projektbudget!V38/'Lön exkl lkp'!$B28,0) -> 0 | K28: =IFERROR(Projektbudget!W38/'Lön exkl lkp'!$B28,0) -> 0 | L28: =IFERROR(Projektbudget!X38/'Lön exkl lkp'!$B28,0) -> 0 | M28: 0
A29: =Projektbudget!A39 -> 0 | B29: =Projektbudget!C39 -> 0 | C29: =IFERROR(Projektbudget!O39/'Lön exkl lkp'!$B29,0) -> 0 | D29: =IFERROR(Projektbudget!P39/'Lön exkl lkp'!$B29,0) -> 0 | E29: =IFERROR(Projektbudget!Q39/'Lön exkl lkp'!$B29,0) -> 0 | F29: =IFERROR(Projektbudget!R39/'Lön exkl lkp'!$B29,0) -> 0 | G29: =IFERROR(Projektbudget!S39/'Lön exkl lkp'!$B29,0) -> 0 | H29: =IFERROR(Projektbudget!T39/'Lön exkl lkp'!$B29,0) -> 0 | I29: =IFERROR(Projektbudget!U39/'Lön exkl lkp'!$B29,0) -> 0 | J29: =IFERROR(Projektbudget!V39/'Lön exkl lkp'!$B29,0) -> 0 | K29: =IFERROR(Projektbudget!W39/'Lön exkl lkp'!$B29,0) -> 0 | L29: =IFERROR(Projektbudget!X39/'Lön exkl lkp'!$B29,0) -> 0 | M29: 0
A30: =Projektbudget!A40 -> 0 | B30: =Projektbudget!C40 -> 0 | C30: =IFERROR(Projektbudget!O40/'Lön exkl lkp'!$B30,0) -> 0 | D30: =IFERROR(Projektbudget!P40/'Lön exkl lkp'!$B30,0) -> 0 | E30: =IFERROR(Projektbudget!Q40/'Lön exkl lkp'!$B30,0) -> 0 | F30: =IFERROR(Projektbudget!R40/'Lön exkl lkp'!$B30,0) -> 0 | G30: =IFERROR(Projektbudget!S40/'Lön exkl lkp'!$B30,0) -> 0 | H30: =IFERROR(Projektbudget!T40/'Lön exkl lkp'!$B30,0) -> 0 | I30: =IFERROR(Projektbudget!U40/'Lön exkl lkp'!$B30,0) -> 0 | J30: =IFERROR(Projektbudget!V40/'Lön exkl lkp'!$B30,0) -> 0 | K30: =IFERROR(Projektbudget!W40/'Lön exkl lkp'!$B30,0) -> 0 | L30: =IFERROR(Projektbudget!X40/'Lön exkl lkp'!$B30,0) -> 0 | M30: 0
A31: =Projektbudget!A41 -> 0 | B31: =Projektbudget!C41 -> 0 | C31: =IFERROR(Projektbudget!O41/'Lön exkl lkp'!$B31,0) -> 0 | D31: =IFERROR(Projektbudget!P41/'Lön exkl lkp'!$B31,0) -> 0 | E31: =IFERROR(Projektbudget!Q41/'Lön exkl lkp'!$B31,0) -> 0 | F31: =IFERROR(Projektbudget!R41/'Lön exkl lkp'!$B31,0) -> 0 | G31: =IFERROR(Projektbudget!S41/'Lön exkl lkp'!$B31,0) -> 0 | H31: =IFERROR(Projektbudget!T41/'Lön exkl lkp'!$B31,0) -> 0 | I31: =IFERROR(Projektbudget!U41/'Lön exkl lkp'!$B31,0) -> 0 | J31: =IFERROR(Projektbudget!V41/'Lön exkl lkp'!$B31,0) -> 0 | K31: =IFERROR(Projektbudget!W41/'Lön exkl lkp'!$B31,0) -> 0 | L31: =IFERROR(Projektbudget!X41/'Lön exkl lkp'!$B31,0) -> 0 | M31: 0
A32: =Projektbudget!A42 -> 0 | B32: =Projektbudget!C42 -> 0 | C32: =IFERROR(Projektbudget!O42/'Lön exkl lkp'!$B32,0) -> 0 | D32: =IFERROR(Projektbudget!P42/'Lön exkl lkp'!$B32,0) -> 0 | E32: =IFERROR(Projektbudget!Q42/'Lön exkl lkp'!$B32,0) -> 0 | F32: =IFERROR(Projektbudget!R42/'Lön exkl lkp'!$B32,0) -> 0 | G32: =IFERROR(Projektbudget!S42/'Lön exkl lkp'!$B32,0) -> 0 | H32: =IFERROR(Projektbudget!T42/'Lön exkl lkp'!$B32,0) -> 0 | I32: =IFERROR(Projektbudget!U42/'Lön exkl lkp'!$B32,0) -> 0 | J32: =IFERROR(Projektbudget!V42/'Lön exkl lkp'!$B32,0) -> 0 | K32: =IFERROR(Projektbudget!W42/'Lön exkl lkp'!$B32,0) -> 0 | L32: =IFERROR(Projektbudget!X42/'Lön exkl lkp'!$B32,0) -> 0 | M32: 0
A33: =Projektbudget!A43 -> 0 | B33: =Projektbudget!C43 -> 0 | C33: =IFERROR(Projektbudget!O43/'Lön exkl lkp'!$B33,0) -> 0 | D33: =IFERROR(Projektbudget!P43/'Lön exkl lkp'!$B33,0) -> 0 | E33: =IFERROR(Projektbudget!Q43/'Lön exkl lkp'!$B33,0) -> 0 | F33: =IFERROR(Projektbudget!R43/'Lön exkl lkp'!$B33,0) -> 0 | G33: =IFERROR(Projektbudget!S43/'Lön exkl lkp'!$B33,0) -> 0 | H33: =IFERROR(Projektbudget!T43/'Lön exkl lkp'!$B33,0) -> 0 | I33: =IFERROR(Projektbudget!U43/'Lön exkl lkp'!$B33,0) -> 0 | J33: =IFERROR(Projektbudget!V43/'Lön exkl lkp'!$B33,0) -> 0 | K33: =IFERROR(Projektbudget!W43/'Lön exkl lkp'!$B33,0) -> 0 | L33: =IFERROR(Projektbudget!X43/'Lön exkl lkp'!$B33,0) -> 0 | M33: 0
A34: =Projektbudget!A44 -> 0 | B34: =Projektbudget!C44 -> 0 | C34: =IFERROR(Projektbudget!O44/'Lön exkl lkp'!$B34,0) -> 0 | D34: =IFERROR(Projektbudget!P44/'Lön exkl lkp'!$B34,0) -> 0 | E34: =IFERROR(Projektbudget!Q44/'Lön exkl lkp'!$B34,0) -> 0 | F34: =IFERROR(Projektbudget!R44/'Lön exkl lkp'!$B34,0) -> 0 | G34: =IFERROR(Projektbudget!S44/'Lön exkl lkp'!$B34,0) -> 0 | H34: =IFERROR(Projektbudget!T44/'Lön exkl lkp'!$B34,0) -> 0 | I34: =IFERROR(Projektbudget!U44/'Lön exkl lkp'!$B34,0) -> 0 | J34: =IFERROR(Projektbudget!V44/'Lön exkl lkp'!$B34,0) -> 0 | K34: =IFERROR(Projektbudget!W44/'Lön exkl lkp'!$B34,0) -> 0 | L34: =IFERROR(Projektbudget!X44/'Lön exkl lkp'!$B34,0) -> 0 | M34: 0
A35: =Projektbudget!A45 -> 0 | B35: =Projektbudget!C45 -> 0 | C35: =IFERROR(Projektbudget!O45/'Lön exkl lkp'!$B35,0) -> 0 | D35: =IFERROR(Projektbudget!P45/'Lön exkl lkp'!$B35,0) -> 0 | E35: =IFERROR(Projektbudget!Q45/'Lön exkl lkp'!$B35,0) -> 0 | F35: =IFERROR(Projektbudget!R45/'Lön exkl lkp'!$B35,0) -> 0 | G35: =IFERROR(Projektbudget!S45/'Lön exkl lkp'!$B35,0) -> 0 | H35: =IFERROR(Projektbudget!T45/'Lön exkl lkp'!$B35,0) -> 0 | I35: =IFERROR(Projektbudget!U45/'Lön exkl lkp'!$B35,0) -> 0 | J35: =IFERROR(Projektbudget!V45/'Lön exkl lkp'!$B35,0) -> 0 | K35: =IFERROR(Projektbudget!W45/'Lön exkl lkp'!$B35,0) -> 0 | L35: =IFERROR(Projektbudget!X45/'Lön exkl lkp'!$B35,0) -> 0 | M35: 0
A36: =Projektbudget!A46 -> 0 | B36: =Projektbudget!C46 -> 0 | C36: =IFERROR(Projektbudget!O46/'Lön exkl lkp'!$B36,0) -> 0 | D36: =IFERROR(Projektbudget!P46/'Lön exkl lkp'!$B36,0) -> 0 | E36: =IFERROR(Projektbudget!Q46/'Lön exkl lkp'!$B36,0) -> 0 | F36: =IFERROR(Projektbudget!R46/'Lön exkl lkp'!$B36,0) -> 0 | G36: =IFERROR(Projektbudget!S46/'Lön exkl lkp'!$B36,0) -> 0 | H36: =IFERROR(Projektbudget!T46/'Lön exkl lkp'!$B36,0) -> 0 | I36: =IFERROR(Projektbudget!U46/'Lön exkl lkp'!$B36,0) -> 0 | J36: =IFERROR(Projektbudget!V46/'Lön exkl lkp'!$B36,0) -> 0 | K36: =IFERROR(Projektbudget!W46/'Lön exkl lkp'!$B36,0) -> 0 | L36: =IFERROR(Projektbudget!X46/'Lön exkl lkp'!$B36,0) -> 0 | M36: 0
C37: =SUM(C2:C36) -> 0 | D37: =SUM(D2:D36) -> 0 | E37: 0 | F37: 0 | G37: 0 | H37: 0 | I37: 0 | J37: 0 | K37: 0 | L37: 0

Sheet Projektbudget
A2: Projektkalkyl | K2: Anteckningar
A4: Projekt:
A5: Projektledare:
A6: Projekttid:
A8: Personalbudget
A10: Lönekostnader inkl. LKP | B10: Årlig löneökn: | C10: 0.025 | D10: Omfattning % | O10: Kostnad
A11: Person / kompetens / roll | B11: Månadslön | C11: LKP | D11: 2021 | E11: =D11+1 -> 2022 | F11: =E11+1 -> 2023 | G11: 2024 | H11: 2025 | I11: 2026 | J11: 2027 | K11: 2028 | L11: 2029 | M11: 2030 | O11: =D11 -> 2021 | P11: 2022 | Q11: 2023 | R11: 2024 | S11: 2025 | T11: 2026 | U11: 2027 | V11: 2028 | W11: 2029 | X11: 2030 | Y11: TOTALT | Z11: Budget | AA11: Diff
A12: Professor | B12: 67000 | C12: 1.5415 | N12: =SUM(D12:M12) -> 0 | O12: =$B12*(1+Löneuppräkning)^a*12*D12*$C12 -> 0 | P12: =$B12*(1+Löneuppräkning)^b*12*E12*$C12 -> 0 | Q12: =$B12*(1+Löneuppräkning)^c_*12*F12*$C12 -> 0 | R12: =$B12*(1+Löneuppräkning)^d*12*G12*$C12 -> 0 | S12: =$B12*(1+Löneuppräkning)^e*12*H12*$C12 -> 0 | T12: =$B12*(1+Löneuppräkning)^f*12*I12*$C12 -> 0 | U12: =$B12*(1+Löneuppräkning)^g*12*J12*$C12 -> 0 | V12: =$B12*(1+Löneuppräkning)^h*12*K12*$C12 -> 0 | W12: =$B12*(1+Löneuppräkning)^i*12*L12*$C12 -> 0 | X12: =$B12*(1+Löneuppräkning)^j*12*M12*$C12 -> 0 | Y12: =O12+P12+Q12+R12+S12+T12+U12+V12+W12+X12 -> 0 | AA12: =Y12-Z12 -> 0
A13: Docent | B13: 51200 | C13: 1.5415 | N13: =SUM(D13:M13) -> 0 | O13: 0 | P13: 0 | Q13: 0 | R13: 0 | S13: 0 | T13: 0 | U13: 0 | V13: 0 | W13: 0 | X13: 0 | Y13: =O13+P13+Q13+R13+S13+T13+U13+V13+W13+X13 -> 0 | AA13: =Y13-Z13 -> 0
A14: Lektor | B14: 46600 | C14: 1.5415 | N14: 0 | O14: 0 | P14: 0 | Q14: 0 | R14: 0 | S14: 0 | T14: 0 | U14: 0 | V14: 0 | W14: 0 | X14: 0 | Y14: =O14+P14+Q14+R14+S14+T14+U14+V14+W14+X14 -> 0 | AA14: 0
A15: Adjunkt | B15: 39900 | C15: 1.5415 | N15: 0 | O15: 0 | P15: 0 | Q15: 0 | R15: 0 | S15: 0 | T15: 0 | U15: 0 | V15: 0 | W15: 0 | X15: 0 | Y15: 0 | AA15: 0
A16: Post dok | B16: 34900 | C16: 1.5415 | N16: 0 | O16: 0 | P16: 0 | Q16: 0 | R16: 0 | S16: 0 | T16: 0 | U16: 0 | V16: 0 | W16: 0 | X16: 0 | Y16: 0 | AA16: 0
A17: Doktorand (Snittlön) | B17: 28525 | C17: 1.5415 | N17: 0 | O17: 0 | P17: 0 | Q17: 0 | R17: 0 | S17: 0 | T17: 0 | U17: 0 | V17: 0 | W17: 0 | X17: 0 | Y17: 0 | AA17: 0
A18: Administratör | B18: 35900 | C18: 1.5415 | N18: 0 | O18: 0 | P18: 0 | Q18: 0 | R18: 0 | S18: 0 | T18: 0 | U18: 0 | V18: 0 | W18: 0 | X18: 0 | Y18: 0 | AA18: 0
A19: Labbtekniker | B19: 33000 | C19: 1.5415 | N19: 0 | O19: 0 | P19: 0 | Q19: 0 | R19: 0 | S19: 0 | T19: 0 | U19: 0 | V19: 0 | W19: 0 | X19: 0 | Y19: 0 | AA19: 0
A20: Forskningsassistent | B20: 24900 | C20: 1.5415 | N20: 0 | O20: 0 | P20: 0 | Q20: 0 | R20: 0 | S20: 0 | T20: 0 | U20: 0 | V20: 0 | W20: 0 | X20: 0 | Y20: 0 | AA20: 0
A21: Forskare/biträdande forskare | B21: 37200 | C21: 1.5415 | N21: =SUM(D21:M21) -> 0 | O21: 0 | P21: 0 | Q21: 0 | R21: 0 | S21: 0 | T21: 0 | U21: 0 | V21: 0 | W21: 0 | X21: 0 | Y21: 0 | AA21: 0
N22: 0 | O22: 0 | P22: 0 | Q22: 0 | R22: 0 | S22: 0 | T22: 0 | U22: 0 | V22: 0 | W22: 0 | X22: 0 | Y22: 0 | AA22: 0
N23: 0 | O23: 0 | P23: 0 | Q23: 0 | R23: 0 | S23: 0 | T23: 0 | U23: 0 | V23: 0 | W23: 0 | X23: 0 | Y23: 0 | AA23: 0
N24: 0 | O24: 0 | P24: 0 | Q24: 0 | R24: 0 | S24: 0 | T24: 0 | U24: 0 | V24: 0 | W24: 0 | X24: 0 | Y24: 0 | AA24: 0
N25: 0 | O25: 0 | P25: 0 | Q25: 0 | R25: 0 | S25: 0 | T25: 0 | U25: 0 | V25: 0 | W25: 0 | X25: 0 | Y25: 0 | AA25: 0
N26: 0 | O26: 0 | P26: 0 | Q26: 0 | R26: 0 | S26: 0 | T26: 0 | U26: 0 | V26: 0 | W26: 0 | X26: 0 | Y26: 0 | AA26: 0
N27: 0 | O27: 0 | P27: 0 | Q27: 0 | R27: 0 | S27: 0 | T27: 0 | U27: 0 | V27: 0 | W27: 0 | X27: 0 | Y27: 0 | AA27: 0
N28: 0 | O28: 0 | P28: 0 | Q28: 0 | R28: 0 | S28: 0 | T28: 0 | U28: 0 | V28: 0 | W28: 0 | X28: 0 | Y28: 0 | AA28: 0
N29: 0 | O29: 0 | P29: 0 | Q29: 0 | R29: 0 | S29: 0 | T29: 0 | U29: 0 | V29: 0 | W29: 0 | X29: 0 | Y29: 0 | AA29: 0
N30: 0 | O30: 0 | P30: 0 | Q30: 0 | R30: 0 | S30: 0 | T30: 0 | U30: 0 | V30: 0 | W30: 0 | X30: 0 | Y30: 0 | AA30: 0
N31: 0 | O31: 0 | P31: 0 | Q31: 0 | R31: 0 | S31: 0 | T31: 0 | U31: 0 | V31: 0 | W31: 0 | X31: 0 | Y31: 0 | AA31: 0
N32: 0 | O32: 0 | P32: 0 | Q32: 0 | R32: 0 | S32: 0 | T32: 0 | U32: 0 | V32: 0 | W32: 0 | X32: 0 | Y32: 0 | AA32: 0
N33: 0 | O33: 0 | P33: 0 | Q33: 0 | R33: 0 | S33: 0 | T33: 0 | U33: 0 | V33: 0 | W33: 0 | X33: 0 | Y33: 0 | AA33: 0
N34: 0 | O34: 0 | P34: 0 | Q34: 0 | R34: 0 | S34: 0 | T34: 0 | U34: 0 | V34: 0 | W34: 0 | X34: 0 | Y34: 0 | AA34: 0
N35: 0 | O35: 0 | P35: 0 | Q35: 0 | R35: 0 | S35: 0 | T35: 0 | U35: 0 | V35: 0 | W35: 0 | X35: 0 | Y35: 0 | AA35: 0
N36: 0 | O36: 0 | P36: 0 | Q36: 0 | R36: 0 | S36: 0 | T36: 0 | U36: 0 | V36: 0 | W36: 0 | X36: 0 | Y36: 0 | AA36: 0
N37: 0 | O37: 0 | P37: 0 | Q37: 0 | R37: 0 | S37: 0 | T37: 0 | U37: 0 | V37: 0 | W37: 0 | X37: 0 | Y37: 0 | AA37: 0
N38: 0 | O38: 0 | P38: 0 | Q38: 0 | R38: 0 | S38: 0 | T38: 0 | U38: 0 | V38: 0 | W38: 0 | X38: 0 | Y38: 0 | AA38: 0
N39: 0 | O39: 0 | P39: 0 | Q39: 0 | R39: 0 | S39: 0 | T39: 0 | U39: 0 | V39: 0 | W39: 0 | X39: 0 | Y39: 0 | AA39: 0
N40: 0 | O40: 0 | P40: 0 | Q40: 0 | R40: 0 | S40: 0 | T40: 0 | U40: 0 | V40: 0 | W40: 0 | X40: 0 | Y40: 0 | AA40: 0
N41: 0 | O41: 0 | P41: 0 | Q41: 0 | R41: 0 | S41: 0 | T41: 0 | U41: 0 | V41: 0 | W41: 0 | X41: 0 | Y41: 0 | AA41: 0
N42: 0 | O42: 0 | P42: 0 | Q42: 0 | R42: 0 | S42: 0 | T42: 0 | U42: 0 | V42: 0 | W42: 0 | X42: 0 | Y42: 0 | AA42: 0
N43: 0 | O43: 0 | P43: 0 | Q43: 0 | R43: 0 | S43: 0 | T43: 0 | U43: 0 | V43: 0 | W43: 0 | X43: 0 | Y43: 0 | AA43: 0
N44: 0 | O44: 0 | P44: 0 | Q44: 0 | R44: 0 | S44: 0 | T44: 0 | U44: 0 | V44: 0 | W44: 0 | X44: 0 | Y44: 0 | AA44: 0
N45: 0 | O45: 0 | P45: 0 | Q45: 0 | R45: 0 | S45: 0 | T45: 0 | U45: 0 | V45: 0 | W45: 0 | X45: 0 | Y45: 0 | AA45: 0
N46: 0 | O46: 0 | P46: 0 | Q46: 0 | R46: 0 | S46: 0 | T46: 0 | U46: 0 | V46: 0 | W46: 0 | X46: 0 | Y46: 0 | AA46: 0
A47: Summa lönekostnader | O47: =SUM(O12:O46) -> 0 | P47: =SUM(P12:P46) -> 0 | Q47: 0 | R47: 0 | S47: 0 | T47: 0 | U47: 0 | V47: 0 | W47: 0 | X47: 0 | Y47: 0 | Z47: =SUM(Z12:Z46) -> 0 | AA47: =SUM(AA12:AA46) -> 0
A48: (Fler rader för personal finns dolda men kan tas fram) | Y48: (Kolumner med kostnad/år finns dolda men kan tas fram)
A50: Högskolans faktiska kostnader för projektet
A52: Kostnader | D52: =D11 -> 2021 | E52: =E11 -> 2022 | F52: 2023 | G52: 2024 | H52: 2025 | I52: 2026 | J52: 2027 | K52: 2028 | L52: 2029 | M52: 2030 | Y52: Totalt | Z52: Budget | AA52: Diff
A53: Lön | D53: =O47 -> 0 | E53: =P47 -> 0 | F53: 0 | G53: 0 | H53: 0 | I53: 0 | J53: 0 | K53: 0 | L53: 0 | M53: 0 | Y53: =SUM(D53:M53) -> 0 | AA53: =Y53-Z53 -> 0
A55: Påslag HB | B55: 0.6424 | C55: (påslag %) | D55: =$B$55*D53 -> 0 | E55: =$B$55*E53 -> 0 | F55: 0 | G55: 0 | H55: 0 | I55: 0 | J55: 0 | K55: 0 | L55: 0 | M55: 0 | Y55: =SUM(D55:M55) -> 0 | AA55: 0
A57: Resor och konferenser | D57: =SUM(D58:D62) -> 0 | E57: =SUM(E58:E62) -> 0 | F57: 0 | G57: 0 | H57: 0 | I57: 0 | J57: 0 | K57: 0 | L57: 0 | M57: 0 | Y57: =SUM(D57:M57) -> 0 | AA57: 0
A58: Tex Resor
A59: Tex Bilersättningar
A60: Tex Traktamenten
A61: Tex Konferenser
A62: etc
A64: Utrustning (avskrivningar) | D64: =SUM(D65:D69) -> 0 | E64: =SUM(E65:E69) -> 0 | F64: 0 | G64: 0 | H64: 0 | I64: 0 | J64: 0 | K64: 0 | L64: 0 | M64: 0 | Y64: =SUM(D64:M64) -> 0 | AA64: =Y64-Z64 -> 0
A65: Tex Maskin
A66: Tex Dator
A71: Information, kommunikation och marknadsföring | D71: =SUM(D72:D76) -> 0 | E71: =SUM(E72:E76) -> 0 | F71: =SUM(F72:F76) -> 0 | G71: =SUM(G72:G76) -> 0 | H71: =SUM(H72:H76) -> 0 | I71: =SUM(I72:I76) -> 0 | J71: =SUM(J72:J76) -> 0 | K71: =SUM(K72:K76) -> 0 | L71: =SUM(L72:L76) -> 0 | M71: =SUM(M72:M76) -> 0 | Y71: =SUM(D71:M71) -> 0 | AA71: =Y71-Z71 -> 0
A72: Tex Resultatspridning
A73: Tex Marknadsföringsmaterial
A74: Tex Tryckning rapport
A78: Konsulttjänster | D78: =SUM(D79:D83) -> 0 | E78: =SUM(E79:E83) -> 0 | F78: =SUM(F79:F83) -> 0 | G78: =SUM(G79:G83) -> 0 | H78: =SUM(H79:H83) -> 0 | I78: =SUM(I79:I83) -> 0 | J78: =SUM(J79:J83) -> 0 | K78: =SUM(K79:K83) -> 0 | L78: =SUM(L79:L83) -> 0 | M78: =SUM(M79:M83) -> 0 | Y78: =SUM(D78:M78) -> 0 | AA78: =Y78-Z78 -> 0
A79: Tex Översättning
A80: Tex Språkgranskning
A81: Tex Konsult
A85: Extern representation | D85: =SUM(D86:D90) -> 0 | E85: =SUM(E86:E90) -> 0 | F85: =SUM(F86:F90) -> 0 | G85: =SUM(G86:G90) -> 0 | H85: =SUM(H86:H90) -> 0 | I85: =SUM(I86:I90) -> 0 | J85: =SUM(J86:J90) -> 0 | K85: =SUM(K86:K90) -> 0 | L85: =SUM(L86:L90) -> 0 | M85: =SUM(M86:M90) -> 0 | Y85: =SUM(D85:M85) -> 0 | AA85: =Y85-Z85 -> 0
A86: Tex Möten
A87: Tex Workshops och seminarier
A92: Lokaler | D92: =SUM(D93:D97) -> 0 | E92: =SUM(E93:E97) -> 0 | F92: =SUM(F93:F97) -> 0 | G92: =SUM(G93:G97) -> 0 | H92: =SUM(H93:H97) -> 0 | I92: =SUM(I93:I97) -> 0 | J92: =SUM(J93:J97) -> 0 | K92: =SUM(K93:K97) -> 0 | L92: =SUM(L93:L97) -> 0 | M92: =SUM(M93:M97) -> 0 | Y92: =SUM(D92:M92) -> 0 | AA92: =Y92-Z92 -> 0
A93: Tex lab och verkstäder
A94: Tex tjänsterum
A95: Tex möteslokaler
A99: Övriga kostnader | D99: =SUM(D100:D104) -> 0 | E99: =SUM(E100:E104) -> 0 | F99: =SUM(F100:F104) -> 0 | G99: =SUM(G100:G104) -> 0 | H99: =SUM(H100:H104) -> 0 | I99: =SUM(I100:I104) -> 0 | J99: =SUM(J100:J104) -> 0 | K99: =SUM(K100:K104) -> 0 | L99: =SUM(L100:L104) -> 0 | M99: =SUM(M100:M104) -> 0 | Y99: =SUM(D99:M99) -> 0 | AA99: =Y99-Z99 -> 0
A100: Tex Materialinköp
A101: Tex Interna möten
A102: Tex Licenskostnader
A106: Summa Kostnader | D106: =D53+D55+D57+D64+D71+D78+D85+D92+D99 -> 0 | E106: =E53+E55+E57+E64+E71+E78+E85+E92+E99 -> 0 | F106: 0 | G106: 0 | H106: 0 | I106: 0 | J106: 0 | K106: 0 | L106: 0 | M106: 0 | Y106: =SUM(Y53:Y99) -> 0 | Z106: =SUM(Z53:Z99) -> 0 | AA106: =SUM(AA53:AA104) -> 0
D109: =D49/(SUM(LKP_FINANSIÄR_per_individ)/COUNT(LKP_FINANSIÄR_per_individ))*(1+$B$113) -> 0
A110: Projektbudget gentemot finansiär
A112: Kostnader | D112: År 1 | E112: År 2 | F112: År 3 | G112: År 4 | H112: År 5 | I112: År 6 | J112: År 7 | K112: År 8 | L112: År 9 | M112: År 10 | Y112: Totalt | Z112: Budget | AA112: Diff
A113: Lön | B113: 0.5415 | C113: (Lkp finansiär %) | D113: ='Lön exkl lkp'!C37*(1+$B$113) -> 0 | E113: ='Lön exkl lkp'!D37*(1+$B$113) -> 0 | F113: ='Lön exkl lkp'!E37*(1+$B$113) -> 0 | G113: ='Lön exkl lkp'!F37*(1+$B$113) -> 0 | H113: ='Lön exkl lkp'!G37*(1+$B$113) -> 0 | I113: ='Lön exkl lkp'!H37*(1+$B$113) -> 0 | J113: ='Lön exkl lkp'!I37*(1+$B$113) -> 0 | K113: ='Lön exkl lkp'!J37*(1+$B$113) -> 0 | L113: ='Lön exkl lkp'!K37*(1+$B$113) -> 0 | M113: ='Lön exkl lkp'!L37*(1+$B$113) -> 0 | Y113: =SUM(D113:M113) -> 0 | AA113: =Y113-Z113 -> 0
A114: Resor och konferenser | D114: =D57 -> 0 | E114: 0 | F114: 0 | G114: 0 | H114: 0 | I114: 0 | J114: 0 | K114: 0 | L114: 0 | M114: 0 | Y114: 0 | AA114: 0
A115: Utrustning (avskrivningar) | D115: =D64 -> 0 | E115: 0 | F115: 0 | G115: 0 | H115: 0 | I115: 0 | J115: 0 | K115: 0 | L115: 0 | M115: 0 | Y115: 0 | AA115: 0
A116: Information, kommunikation och marknadsföring | D116: =D71 -> 0 | E116: 0 | F116: 0 | G116: 0 | H116: 0 | I116: 0 | J116: 0 | K116: 0 | L116: 0 | M116: 0 | Y116: 0 | AA116: 0
A117: Konsulttjänster | D117: =D78 -> 0 | E117: 0 | F117: 0 | G117: 0 | H117: 0 | I117: 0 | J117: 0 | K117: 0 | L117: 0 | M117: 0 | Y117: 0 | AA117: 0
A118: Extern representation | D118: =D85 -> 0 | E118: 0 | F118: 0 | G118: 0 | H118: 0 | I118: 0 | J118: 0 | K118: 0 | L118: 0 | M118: 0 | Y118: 0 | AA118: 0
A119: Lokaler | D119: =D92 -> 0 | E119: 0 | F119: 0 | G119: 0 | H119: 0 | I119: 0 | J119: 0 | K119: 0 | L119: 0 | M119: 0 | Y119: 0 | AA119: 0
A120: Övriga kostnader | D120: =D99 -> 0 | E120: 0 | F120: 0 | G120: 0 | H120: 0 | I120: 0 | J120: 0 | K120: 0 | L120: 0 | M120: 0 | Y120: 0 | AA120: 0
A121: Summa direkta kostnader | D121: =SUM(D113:D120) -> 0 | E121: =SUM(E113:E120) -> 0 | F121: 0 | G121: 0 | H121: 0 | I121: 0 | J121: 0 | K121: 0 | L121: 0 | M121: =SUM(M113:M120) -> 0 | Y121: 0 | AA121: =Y121-Z121 -> 0
A122: Finansiären medger påslag för indirekta kostnader för:
A123: Påslag Finansiär | B123: 0.6431 | C123: (OH finansiär %)
A124: Lönekostnader | B124: Ja | C124: (Välj Ja/Nej)
A125: Driftskostnader | B125: Nej | C125: (Välj Ja/Nej)
A126: Lokaler | B126: Nej | C126: (Välj Ja/Nej)
A127: Utrustning och avskrivningar | B127: Nej | C127: (Välj Ja/Nej)
B128: Lönekostnader | D128: =$B$123*(IF($B$124="Ja",D113,0)) -> 0 | E128: 0 | F128: 0 | G128: 0 | H128: 0 | I128: 0 | J128: 0 | K128: 0 | L128: 0 | M128: 0
B129: Driftskostnader | D129: =$B$123*(IF($B$125="Ja",(D114+D116+D117+D118+D120),0)) -> 0 | E129: 0 | F129: 0 | G129: 0 | H129: 0 | I129: 0 | J129: 0 | K129: 0 | L129: 0 | M129: 0
B130: Utrustning | D130: =$B$123*(IF($B$127="Ja",D115,0)) -> 0 | E130: 0 | F130: 0 | G130: 0 | H130: 0 | I130: 0 | J130: 0 | K130: 0 | L130: 0 | M130: 0 | N130: =$B$123*(IF($B$127="Ja",N116,0)) -> 0 | O130: 0 | P130: 0 | Q130: 0 | R130: 0 | S130: 0 | T130: 0 | U130: 0 | V130: 0 | W130: 0 | X130: 0
B131: Lokaler | D131: =$B$123*(IF($B$126="Ja",D119,0)) -> 0 | E131: 0 | F131: 0 | G131: 0 | H131: 0 | I131: 0 | J131: 0 | K131: 0 | L131: 0 | M131: 0
A132: Om Fast belopp ange belopp | Y132: =SUM(D132:M132) -> 0
A133: Summa indirekta kostnader | D133: =SUM(D128:D132) -> 0 | E133: =SUM(E128:E132) -> 0 | F133: 0 | G133: 0 | H133: 0 | I133: 0 | J133: 0 | K133: 0 | L133: 0 | M133: 0 | Y133: =SUM(D133:M133) -> 0 | AA133: =Y133-Z133 -> 0
A134: Summa Kostnader | D134: =D121+D133 -> 0 | E134: 0 | F134: 0 | G134: 0 | H134: 0 | I134: 0 | J134: 0 | K134: 0 | L134: 0 | M134: 0 | Y134: =Y121+Y133 -> 0 | Z134: =SUM(Z113:Z121) -> 0 | AA134: =AA121+AA133 -> 0
A136: Finansiering | D136: År 1 | E136: År 2 | F136: År 3 | G136: År 4 | H136: År 5 | I136: År 6 | J136: År 7 | K136: År 8 | L136: År 9 | M136: År 10 | Y136: Totalt | Z136: Budget | AA136: Diff
A137: Belopp som söks från finansiär | B137: 1 | C137: (stödandel %) | D137: =D134*$B$137 -> 0 | E137: =E134*$B$137 -> 0 | F137: 0 | G137: 0 | H137: 0 | I137: 0 | J137: 0 | K137: 0 | L137: 0 | M137: 0 | Y137: =SUM(D137:M137) -> 0 | AA137: =Y137-Z137 -> 0
A138: Belopp som kräver samfinansiering av HB | D138: =D106-D137 -> 0 | E138: 0 | F138: 0 | G138: 0 | H138: 0 | I138: 0 | J138: 0 | K138: 0 | L138: 0 | M138: 0 | Y138: =SUM(D138:M138) -> 0 | AA138: =Y138-Z138 -> 0
A139: Total finansiering | D139: =SUM(D137:D138) -> 0 | E139: =SUM(E137:E138) -> 0 | F139: 0 | G139: 0 | H139: 0 | I139: 0 | J139: 0 | K139: 0 | L139: 0 | M139: 0 | Y139: =SUM(Y137:Y138) -> 0 | Z139: =SUM(Z137:Z138) -> 0 | AA139: 0
A144: Finansieringsandel Finansiär / HB | D144: Enl. finansiärens villkor | F144: Enligt HBs villkor
A145: Andel extern finansiering från finansiär | D145: =IFERROR(Y137/Y134,0) -> 0 | F145: =(IFERROR(Y137/Y106,0)) -> 0
A146: Andel egen finansiering från institution/akademi | D146: =IFERROR(100%-D145,0) -> 1 | F146: =(IFERROR(100%-F145,0)) -> 1
D147: =SUM(D145:D146) -> 1 | F147: =SUM(F145:F146) -> 1

Sheet PÅSLAG_JA_NEJ (hidden)
A1: Ja
A2: Nej

Sheet Resursallokering - översikt
B1: ="Projekt: "&Projektbudget!$B$4 -> Projekt:
C3: Aktuell budget timmar (inkl. sparade ändringar och utfall) | O3: Urspr. | P3: Diff | Q3: Godkännande | U3: Manmånader
D4: =Projektbudget!D52 -> 2021 | E4: =Projektbudget!E52 -> 2022 | F4: =Projektbudget!F52 -> 2023 | G4: =Projektbudget!G52 -> 2024 | H4: =Projektbudget!H52 -> 2025 | I4: =Projektbudget!I52 -> 2026 | J4: =Projektbudget!J52 -> 2027 | K4: =Projektbudget!K52 -> 2028 | L4: =Projektbudget!L52 -> 2029 | M4: =Projektbudget!M52 -> 2030 | N4: Totalt | O4: budget | P4: Tot-B | Q4: prefekt/SR | U4: ='[1]Lönekostnad FINANSIÄR'!$D$5 -> År 1 | V4: ='[1]Lönekostnad FINANSIÄR'!$E$5 -> År 2 | W4: ='[1]Lönekostnad FINANSIÄR'!$F$5 -> År 3 | X4: ='[1]Lönekostnad FINANSIÄR'!$G$5 -> År 4 | Y4: ='[1]Lönekostnad FINANSIÄR'!$H$5 -> År 5 | Z4: ='[1]Lönekostnad FINANSIÄR'!$I$5 -> År 6 | AA4: ='[1]Lönekostnad FINANSIÄR'!$J$5 -> År 7 | AB4: ='[1]Lönekostnad FINANSIÄR'!$K$5 -> År 8 | AC4: ='[1]Lönekostnad FINANSIÄR'!$L$5 -> År 9 | AD4: ='[1]Lönekostnad FINANSIÄR'!$M$5 -> År 10 | AE4: Totalt
B5: ='Resursallokering budget (låst)'!B5 -> Professor | D5: ='År 10'!D5 -> 0 | E5: ='År 10'!E5 -> 0 | F5: ='År 10'!F5 -> 0 | G5: ='År 10'!G5 -> 0 | H5: ='År 10'!H5 -> 0 | I5: ='År 10'!I5 -> 0 | J5: ='År 10'!J5 -> 0 | K5: ='År 10'!K5 -> 0 | L5: ='År 10'!L5 -> 0 | M5: ='År 10'!M5 -> 0 | N5: ='År 10'!N5 -> 0 | O5: ='Resursallokering budget (låst)'!N5 -> 0 | P5: =N5-O5 -> 0 | S5: =B5 -> Professor | U5: ='År 10'!S5 -> 0 | V5: ='År 10'!T5 -> 0 | W5: ='År 10'!U5 -> 0 | X5: ='År 10'!V5 -> 0 | Y5: ='År 10'!W5 -> 0 | Z5: ='År 10'!X5 -> 0 | AA5: ='År 10'!Y5 -> 0 | AB5: ='År 10'!Z5 -> 0 | AC5: ='År 10'!AA5 -> 0 | AD5: ='År 10'!AB5 -> 0 | AE5: =SUM(U5:Y5) -> 0
B6: ='Resursallokering budget (låst)'!B6 -> Docent | D6: ='År 10'!D6 -> 0 | E6: ='År 10'!E6 -> 0 | F6: ='År 10'!F6 -> 0 | G6: ='År 10'!G6 -> 0 | H6: ='År 10'!H6 -> 0 | I6: ='År 10'!I6 -> 0 | J6: ='År 10'!J6 -> 0 | K6: ='År 10'!K6 -> 0 | L6: ='År 10'!L6 -> 0 | M6: ='År 10'!M6 -> 0 | N6: ='År 10'!N6 -> 0 | O6: ='Resursallokering budget (låst)'!N6 -> 0 | P6: =N6-O6 -> 0 | S6: =B6 -> Docent | U6: ='År 10'!S6 -> 0 | V6: ='År 10'!T6 -> 0 | W6: ='År 10'!U6 -> 0 | X6: ='År 10'!V6 -> 0 | Y6: ='År 10'!W6 -> 0 | Z6: ='År 10'!X6 -> 0 | AA6: ='År 10'!Y6 -> 0 | AB6: ='År 10'!Z6 -> 0 | AC6: ='År 10'!AA6 -> 0 | AD6: ='År 10'!AB6 -> 0 | AE6: =SUM(U6:Y6) -> 0
B7: ='Resursallokering budget (låst)'!B7 -> Lektor | D7: ='År 10'!D7 -> 0 | E7: ='År 10'!E7 -> 0 | F7: ='År 10'!F7 -> 0 | G7: ='År 10'!G7 -> 0 | H7: ='År 10'!H7 -> 0 | I7: ='År 10'!I7 -> 0 | J7: ='År 10'!J7 -> 0 | K7: ='År 10'!K7 -> 0 | L7: ='År 10'!L7 -> 0 | M7: ='År 10'!M7 -> 0 | N7: ='År 10'!N7 -> 0 | O7: ='Resursallokering budget (låst)'!N7 -> 0 | P7: 0 | S7: Lektor | U7: ='År 10'!S7 -> 0 | V7: ='År 10'!T7 -> 0 | W7: ='År 10'!U7 -> 0 | X7: ='År 10'!V7 -> 0 | Y7: ='År 10'!W7 -> 0 | Z7: ='År 10'!X7 -> 0 | AA7: ='År 10'!Y7 -> 0 | AB7: ='År 10'!Z7 -> 0 | AC7: ='År 10'!AA7 -> 0 | AD7: ='År 10'!AB7 -> 0 | AE7: 0
B8: ='Resursallokering budget (låst)'!B8 -> Adjunkt | D8: ='År 10'!D8 -> 0 | E8: ='År 10'!E8 -> 0 | F8: ='År 10'!F8 -> 0 | G8: ='År 10'!G8 -> 0 | H8: ='År 10'!H8 -> 0 | I8: ='År 10'!I8 -> 0 | J8: ='År 10'!J8 -> 0 | K8: ='År 10'!K8 -> 0 | L8: ='År 10'!L8 -> 0 | M8: ='År 10'!M8 -> 0 | N8: ='År 10'!N8 -> 0 | O8: ='Resursallokering budget (låst)'!N8 -> 0 | P8: 0 | S8: Adjunkt | U8: ='År 10'!S8 -> 0 | V8: ='År 10'!T8 -> 0 | W8: ='År 10'!U8 -> 0 | X8: ='År 10'!V8 -> 0 | Y8: ='År 10'!W8 -> 0 | Z8: ='År 10'!X8 -> 0 | AA8: ='År 10'!Y8 -> 0 | AB8: ='År 10'!Z8 -> 0 | AC8: ='År 10'!AA8 -> 0 | AD8: ='År 10'!AB8 -> 0 | AE8: 0
B9: ='Resursallokering budget (låst)'!B9 -> Post dok | D9: ='År 10'!D9 -> 0 | E9: ='År 10'!E9 -> 0 | F9: ='År 10'!F9 -> 0 | G9: ='År 10'!G9 -> 0 | H9: ='År 10'!H9 -> 0 | I9: ='År 10'!I9 -> 0 | J9: ='År 10'!J9 -> 0 | K9: ='År 10'!K9 -> 0 | L9: ='År 10'!L9 -> 0 | M9: ='År 10'!M9 -> 0 | N9: ='År 10'!N9 -> 0 | O9: ='Resursallokering budget (låst)'!N9 -> 0 | P9: 0 | S9: Post dok | U9: ='År 10'!S9 -> 0 | V9: ='År 10'!T9 -> 0 | W9: ='År 10'!U9 -> 0 | X9: ='År 10'!V9 -> 0 | Y9: ='År 10'!W9 -> 0 | Z9: ='År 10'!X9 -> 0 | AA9: ='År 10'!Y9 -> 0 | AB9: ='År 10'!Z9 -> 0 | AC9: ='År 10'!AA9 -> 0 | AD9: ='År 10'!AB9 -> 0 | AE9: 0
B10: ='Resursallokering budget (låst)'!B10 -> Doktorand (Snittlön) | D10: ='År 10'!D10 -> 0 | E10: ='År 10'!E10 -> 0 | F10: ='År 10'!F10 -> 0 | G10: ='År 10'!G10 -> 0 | H10: ='År 10'!H10 -> 0 | I10: ='År 10'!I10 -> 0 | J10: ='År 10'!J10 -> 0 | K10: ='År 10'!K10 -> 0 | L10: ='År 10'!L10 -> 0 | M10: ='År 10'!M10 -> 0 | N10: ='År 10'!N10 -> 0 | O10: ='Resursallokering budget (låst)'!N10 -> 0 | P10: 0 | S10: Doktorand (Snittlön) | U10: ='År 10'!S10 -> 0 | V10: ='År 10'!T10 -> 0 | W10: ='År 10'!U10 -> 0 | X10: ='År 10'!V10 -> 0 | Y10: ='År 10'!W10 -> 0 | Z10: ='År 10'!X10 -> 0 | AA10: ='År 10'!Y10 -> 0 | AB10: ='År 10'!Z10 -> 0 | AC10: ='År 10'!AA10 -> 0 | AD10: ='År 10'!AB10 -> 0 | AE10: 0
B11: ='Resursallokering budget (låst)'!B11 -> Administratör | D11: ='År 10'!D11 -> 0 | E11: ='År 10'!E11 -> 0 | F11: ='År 10'!F11 -> 0 | G11: ='År 10'!G11 -> 0 | H11: ='År 10'!H11 -> 0 | I11: ='År 10'!I11 -> 0 | J11: ='År 10'!J11 -> 0 | K11: ='År 10'!K11 -> 0 | L11: ='År 10'!L11 -> 0 | M11: ='År 10'!M11 -> 0 | N11: ='År 10'!N11 -> 0 | O11: ='Resursallokering budget (låst)'!N11 -> 0 | P11: 0 | S11: Administratör | U11: ='År 10'!S11 -> 0 | V11: ='År 10'!T11 -> 0 | W11: ='År 10'!U11 -> 0 | X11: ='År 10'!V11 -> 0 | Y11: ='År 10'!W11 -> 0 | Z11: ='År 10'!X11 -> 0 | AA11: ='År 10'!Y11 -> 0 | AB11: ='År 10'!Z11 -> 0 | AC11: ='År 10'!AA11 -> 0 | AD11: ='År 10'!AB11 -> 0 | AE11: 0
B12: ='Resursallokering budget (låst)'!B12 -> Labbtekniker | D12: ='År 10'!D12 -> 0 | E12: ='År 10'!E12 -> 0 | F12: ='År 10'!F12 -> 0 | G12: ='År 10'!G12 -> 0 | H12: ='År 10'!H12 -> 0 | I12: ='År 10'!I12 -> 0 | J12: ='År 10'!J12 -> 0 | K12: ='År 10'!K12 -> 0 | L12: ='År 10'!L12 -> 0 | M12: ='År 10'!M12 -> 0 | N12: ='År 10'!N12 -> 0 | O12: ='Resursallokering budget (låst)'!N12 -> 0 | P12: 0 | S12: Labbtekniker | U12: ='År 10'!S12 -> 0 | V12: ='År 10'!T12 -> 0 | W12: ='År 10'!U12 -> 0 | X12: ='År 10'!V12 -> 0 | Y12: ='År 10'!W12 -> 0 | Z12: ='År 10'!X12 -> 0 | AA12: ='År 10'!Y12 -> 0 | AB12: ='År 10'!Z12 -> 0 | AC12: ='År 10'!AA12 -> 0 | AD12: ='År 10'!AB12 -> 0 | AE12: 0
B13: ='Resursallokering budget (låst)'!B13 -> Forskningsassistent | D13: ='År 10'!D13 -> 0 | E13: ='År 10'!E13 -> 0 | F13: ='År 10'!F13 -> 0 | G13: ='År 10'!G13 -> 0 | H13: ='År 10'!H13 -> 0 | I13: ='År 10'!I13 -> 0 | J13: ='År 10'!J13 -> 0 | K13: ='År 10'!K13 -> 0 | L13: ='År 10'!L13 -> 0 | M13: ='År 10'!M13 -> 0 | N13: ='År 10'!N13 -> 0 | O13: ='Resursallokering budget (låst)'!N13 -> 0 | P13: 0 | S13: Forskningsassistent | U13: ='År 10'!S13 -> 0 | V13: ='År 10'!T13 -> 0 | W13: ='År 10'!U13 -> 0 | X13: ='År 10'!V13 -> 0 | Y13: ='År 10'!W13 -> 0 | Z13: ='År 10'!X13 -> 0 | AA13: ='År 10'!Y13 -> 0 | AB13: ='År 10'!Z13 -> 0 | AC13: ='År 10'!AA13 -> 0 | AD13: ='År 10'!AB13 -> 0 | AE13: 0
B14: ='Resursallokering budget (låst)'!B14 -> Forskare/biträdande forskare | D14: ='År 10'!D14 -> 0 | E14: ='År 10'!E14 -> 0 | F14: ='År 10'!F14 -> 0 | G14: ='År 10'!G14 -> 0 | H14: ='År 10'!H14 -> 0 | I14: ='År 10'!I14 -> 0 | J14: ='År 10'!J14 -> 0 | K14: ='År 10'!K14 -> 0 | L14: ='År 10'!L14 -> 0 | M14: ='År 10'!M14 -> 0 | N14: ='År 10'!N14 -> 0 | O14: ='Resursallokering budget (låst)'!N14 -> 0 | P14: 0 | S14: Forskare/biträdande forskare | U14: ='År 10'!S14 -> 0 | V14: ='År 10'!T14 -> 0 | W14: ='År 10'!U14 -> 0 | X14: ='År 10'!V14 -> 0 | Y14: ='År 10'!W14 -> 0 | Z14: ='År 10'!X14 -> 0 | AA14: ='År 10'!Y14 -> 0 | AB14: ='År 10'!Z14 -> 0 | AC14: ='År 10'!AA14 -> 0 | AD14: ='År 10'!AB14 -> 0 | AE14: 0
B15: ='Resursallokering budget (låst)'!B15 -> 0 | D15: ='År 10'!D15 -> 0 | E15: ='År 10'!E15 -> 0 | F15: ='År 10'!F15 -> 0 | G15: ='År 10'!G15 -> 0 | H15: ='År 10'!H15 -> 0 | I15: ='År 10'!I15 -> 0 | J15: ='År 10'!J15 -> 0 | K15: ='År 10'!K15 -> 0 | L15: ='År 10'!L15 -> 0 | M15: ='År 10'!M15 -> 0 | N15: ='År 10'!N15 -> 0 | O15: ='Resursallokering budget (låst)'!N15 -> 0 | P15: 0 | S15: 0 | U15: ='År 10'!S15 -> 0 | V15: ='År 10'!T15 -> 0 | W15: ='År 10'!U15 -> 0 | X15: ='År 10'!V15 -> 0 | Y15: ='År 10'!W15 -> 0 | Z15: ='År 10'!X15 -> 0 | AA15: ='År 10'!Y15 -> 0 | AB15: ='År 10'!Z15 -> 0 | AC15: ='År 10'!AA15 -> 0 | AD15: ='År 10'!AB15 -> 0 | AE15: 0
B16: ='Resursallokering budget (låst)'!B16 -> 0 | D16: ='År 10'!D16 -> 0 | E16: ='År 10'!E16 -> 0 | F16: ='År 10'!F16 -> 0 | G16: ='År 10'!G16 -> 0 | H16: ='År 10'!H16 -> 0 | I16: ='År 10'!I16 -> 0 | J16: ='År 10'!J16 -> 0 | K16: ='År 10'!K16 -> 0 | L16: ='År 10'!L16 -> 0 | M16: ='År 10'!M16 -> 0 | N16: ='År 10'!N16 -> 0 | O16: ='Resursallokering budget (låst)'!N16 -> 0 | P16: 0 | S16: 0 | U16: ='År 10'!S16 -> 0 | V16: ='År 10'!T16 -> 0 | W16: ='År 10'!U16 -> 0 | X16: ='År 10'!V16 -> 0 | Y16: ='År 10'!W16 -> 0 | Z16: ='År 10'!X16 -> 0 | AA16: ='År 10'!Y16 -> 0 | AB16: ='År 10'!Z16 -> 0 | AC16: ='År 10'!AA16 -> 0 | AD16: ='År 10'!AB16 -> 0 | AE16: 0
B17: ='Resursallokering budget (låst)'!B17 -> 0 | D17: ='År 10'!D17 -> 0 | E17: ='År 10'!E17 -> 0 | F17: ='År 10'!F17 -> 0 | G17: ='År 10'!G17 -> 0 | H17: ='År 10'!H17 -> 0 | I17: ='År 10'!I17 -> 0 | J17: ='År 10'!J17 -> 0 | K17: ='År 10'!K17 -> 0 | L17: ='År 10'!L17 -> 0 | M17: ='År 10'!M17 -> 0 | N17: ='År 10'!N17 -> 0 | O17: ='Resursallokering budget (låst)'!N17 -> 0 | P17: 0 | S17: 0 | U17: ='År 10'!S17 -> 0 | V17: ='År 10'!T17 -> 0 | W17: ='År 10'!U17 -> 0 | X17: ='År 10'!V17 -> 0 | Y17: ='År 10'!W17 -> 0 | Z17: ='År 10'!X17 -> 0 | AA17: ='År 10'!Y17 -> 0 | AB17: ='År 10'!Z17 -> 0 | AC17: ='År 10'!AA17 -> 0 | AD17: ='År 10'!AB17 -> 0 | AE17: 0
B18: ='Resursallokering budget (låst)'!B18 -> 0 | D18: ='År 10'!D18 -> 0 | E18: ='År 10'!E18 -> 0 | F18: ='År 10'!F18 -> 0 | G18: ='År 10'!G18 -> 0 | H18: ='År 10'!H18 -> 0 | I18: ='År 10'!I18 -> 0 | J18: ='År 10'!J18 -> 0 | K18: ='År 10'!K18 -> 0 | L18: ='År 10'!L18 -> 0 | M18: ='År 10'!M18 -> 0 | N18: ='År 10'!N18 -> 0 | O18: ='Resursallokering budget (låst)'!N18 -> 0 | P18: 0 | S18: 0 | U18: ='År 10'!S18 -> 0 | V18: ='År 10'!T18 -> 0 | W18: ='År 10'!U18 -> 0 | X18: ='År 10'!V18 -> 0 | Y18: ='År 10'!W18 -> 0 | Z18: ='År 10'!X18 -> 0 | AA18: ='År 10'!Y18 -> 0 | AB18: ='År 10'!Z18 -> 0 | AC18: ='År 10'!AA18 -> 0 | AD18: ='År 10'!AB18 -> 0 | AE18: 0
B19: ='Resursallokering budget (låst)'!B19 -> 0 | D19: ='År 10'!D19 -> 0 | E19: ='År 10'!E19 -> 0 | F19: ='År 10'!F19 -> 0 | G19: ='År 10'!G19 -> 0 | H19: ='År 10'!H19 -> 0 | I19: ='År 10'!I19 -> 0 | J19: ='År 10'!J19 -> 0 | K19: ='År 10'!K19 -> 0 | L19: ='År 10'!L19 -> 0 | M19: ='År 10'!M19 -> 0 | N19: ='År 10'!N19 -> 0 | O19: ='Resursallokering budget (låst)'!N19 -> 0 | P19: 0 | S19: 0 | U19: ='År 10'!S19 -> 0 | V19: ='År 10'!T19 -> 0 | W19: ='År 10'!U19 -> 0 | X19: ='År 10'!V19 -> 0 | Y19: ='År 10'!W19 -> 0 | Z19: ='År 10'!X19 -> 0 | AA19: ='År 10'!Y19 -> 0 | AB19: ='År 10'!Z19 -> 0 | AC19: ='År 10'!AA19 -> 0 | AD19: ='År 10'!AB19 -> 0 | AE19: 0
B20: ='Resursallokering budget (låst)'!B20 -> 0 | D20: ='År 10'!D20 -> 0 | E20: ='År 10'!E20 -> 0 | F20: ='År 10'!F20 -> 0 | G20: ='År 10'!G20 -> 0 | H20: ='År 10'!H20 -> 0 | I20: ='År 10'!I20 -> 0 | J20: ='År 10'!J20 -> 0 | K20: ='År 10'!K20 -> 0 | L20: ='År 10'!L20 -> 0 | M20: ='År 10'!M20 -> 0 | N20: ='År 10'!N20 -> 0 | O20: ='Resursallokering budget (låst)'!N20 -> 0 | P20: 0 | S20: 0 | U20: ='År 10'!S20 -> 0 | V20: ='År 10'!T20 -> 0 | W20: ='År 10'!U20 -> 0 | X20: ='År 10'!V20 -> 0 | Y20: ='År 10'!W20 -> 0 | Z20: ='År 10'!X20 -> 0 | AA20: ='År 10'!Y20 -> 0 | AB20: ='År 10'!Z20 -> 0 | AC20: ='År 10'!AA20 -> 0 | AD20: ='År 10'!AB20 -> 0 | AE20: 0
B21: ='Resursallokering budget (låst)'!B21 -> 0 | D21: ='År 10'!D21 -> 0 | E21: ='År 10'!E21 -> 0 | F21: ='År 10'!F21 -> 0 | G21: ='År 10'!G21 -> 0 | H21: ='År 10'!H21 -> 0 | I21: ='År 10'!I21 -> 0 | J21: ='År 10'!J21 -> 0 | K21: ='År 10'!K21 -> 0 | L21: ='År 10'!L21 -> 0 | M21: ='År 10'!M21 -> 0 | N21: ='År 10'!N21 -> 0 | O21: ='Resursallokering budget (låst)'!N21 -> 0 | P21: 0 | S21: 0 | U21: ='År 10'!S21 -> 0 | V21: ='År 10'!T21 -> 0 | W21: ='År 10'!U21 -> 0 | X21: ='År 10'!V21 -> 0 | Y21: ='År 10'!W21 -> 0 | Z21: ='År 10'!X21 -> 0 | AA21: ='År 10'!Y21 -> 0 | AB21: ='År 10'!Z21 -> 0 | AC21: ='År 10'!AA21 -> 0 | AD21: ='År 10'!AB21 -> 0 | AE21: 0
B22: ='Resursallokering budget (låst)'!B22 -> 0 | D22: ='År 10'!D22 -> 0 | E22: ='År 10'!E22 -> 0 | F22: ='År 10'!F22 -> 0 | G22: ='År 10'!G22 -> 0 | H22: ='År 10'!H22 -> 0 | I22: ='År 10'!I22 -> 0 | J22: ='År 10'!J22 -> 0 | K22: ='År 10'!K22 -> 0 | L22: ='År 10'!L22 -> 0 | M22: ='År 10'!M22 -> 0 | N22: ='År 10'!N22 -> 0 | O22: ='Resursallokering budget (låst)'!N22 -> 0 | P22: 0 | S22: 0 | U22: ='År 10'!S22 -> 0 | V22: ='År 10'!T22 -> 0 | W22: ='År 10'!U22 -> 0 | X22: ='År 10'!V22 -> 0 | Y22: ='År 10'!W22 -> 0 | Z22: ='År 10'!X22 -> 0 | AA22: ='År 10'!Y22 -> 0 | AB22: ='År 10'!Z22 -> 0 | AC22: ='År 10'!AA22 -> 0 | AD22: ='År 10'!AB22 -> 0 | AE22: 0
B23: ='Resursallokering budget (låst)'!B23 -> 0 | D23: ='År 10'!D23 -> 0 | E23: ='År 10'!E23 -> 0 | F23: ='År 10'!F23 -> 0 | G23: ='År 10'!G23 -> 0 | H23: ='År 10'!H23 -> 0 | I23: ='År 10'!I23 -> 0 | J23: ='År 10'!J23 -> 0 | K23: ='År 10'!K23 -> 0 | L23: ='År 10'!L23 -> 0 | M23: ='År 10'!M23 -> 0 | N23: ='År 10'!N23 -> 0 | O23: ='Resursallokering budget (låst)'!N23 -> 0 | P23: 0 | S23: 0 | U23: ='År 10'!S23 -> 0 | V23: ='År 10'!T23 -> 0 | W23: ='År 10'!U23 -> 0 | X23: ='År 10'!V23 -> 0 | Y23: ='År 10'!W23 -> 0 | Z23: ='År 10'!X23 -> 0 | AA23: ='År 10'!Y23 -> 0 | AB23: ='År 10'!Z23 -> 0 | AC23: ='År 10'!AA23 -> 0 | AD23: ='År 10'!AB23 -> 0 | AE23: 0
B24: ='Resursallokering budget (låst)'!B24 -> 0 | D24: ='År 10'!D24 -> 0 | E24: ='År 10'!E24 -> 0 | F24: ='År 10'!F24 -> 0 | G24: ='År 10'!G24 -> 0 | H24: ='År 10'!H24 -> 0 | I24: ='År 10'!I24 -> 0 | J24: ='År 10'!J24 -> 0 | K24: ='År 10'!K24 -> 0 | L24: ='År 10'!L24 -> 0 | M24: ='År 10'!M24 -> 0 | N24: ='År 10'!N24 -> 0 | O24: ='Resursallokering budget (låst)'!N24 -> 0 | P24: 0 | S24: 0 | U24: ='År 10'!S24 -> 0 | V24: ='År 10'!T24 -> 0 | W24: ='År 10'!U24 -> 0 | X24: ='År 10'!V24 -> 0 | Y24: ='År 10'!W24 -> 0 | Z24: ='År 10'!X24 -> 0 | AA24: ='År 10'!Y24 -> 0 | AB24: ='År 10'!Z24 -> 0 | AC24: ='År 10'!AA24 -> 0 | AD24: ='År 10'!AB24 -> 0 | AE24: 0
B25: ='Resursallokering budget (låst)'!B25 -> 0 | D25: ='År 10'!D25 -> 0 | E25: ='År 10'!E25 -> 0 | F25: ='År 10'!F25 -> 0 | G25: ='År 10'!G25 -> 0 | H25: ='År 10'!H25 -> 0 | I25: ='År 10'!I25 -> 0 | J25: ='År 10'!J25 -> 0 | K25: ='År 10'!K25 -> 0 | L25: ='År 10'!L25 -> 0 | M25: ='År 10'!M25 -> 0 | N25: ='År 10'!N25 -> 0 | O25: ='Resursallokering budget (låst)'!N25 -> 0 | P25: 0 | S25: 0 | U25: ='År 10'!S25 -> 0 | V25: ='År 10'!T25 -> 0 | W25: ='År 10'!U25 -> 0 | X25: ='År 10'!V25 -> 0 | Y25: ='År 10'!W25 -> 0 | Z25: ='År 10'!X25 -> 0 | AA25: ='År 10'!Y25 -> 0 | AB25: ='År 10'!Z25 -> 0 | AC25: ='År 10'!AA25 -> 0 | AD25: ='År 10'!AB25 -> 0 | AE25: 0
B26: ='Resursallokering budget (låst)'!B26 -> 0 | D26: ='År 10'!D26 -> 0 | E26: ='År 10'!E26 -> 0 | F26: ='År 10'!F26 -> 0 | G26: ='År 10'!G26 -> 0 | H26: ='År 10'!H26 -> 0 | I26: ='År 10'!I26 -> 0 | J26: ='År 10'!J26 -> 0 | K26: ='År 10'!K26 -> 0 | L26: ='År 10'!L26 -> 0 | M26: ='År 10'!M26 -> 0 | N26: ='År 10'!N26 -> 0 | O26: ='Resursallokering budget (låst)'!N26 -> 0 | P26: 0 | S26: 0 | U26: ='År 10'!S26 -> 0 | V26: ='År 10'!T26 -> 0 | W26: ='År 10'!U26 -> 0 | X26: ='År 10'!V26 -> 0 | Y26: ='År 10'!W26 -> 0 | Z26: ='År 10'!X26 -> 0 | AA26: ='År 10'!Y26 -> 0 | AB26: ='År 10'!Z26 -> 0 | AC26: ='År 10'!AA26 -> 0 | AD26: ='År 10'!AB26 -> 0 | AE26: 0
B27: ='Resursallokering budget (låst)'!B27 -> 0 | D27: ='År 10'!D27 -> 0 | E27: ='År 10'!E27 -> 0 | F27: ='År 10'!F27 -> 0 | G27: ='År 10'!G27 -> 0 | H27: ='År 10'!H27 -> 0 | I27: ='År 10'!I27 -> 0 | J27: ='År 10'!J27 -> 0 | K27: ='År 10'!K27 -> 0 | L27: ='År 10'!L27 -> 0 | M27: ='År 10'!M27 -> 0 | N27: ='År 10'!N27 -> 0 | O27: ='Resursallokering budget (låst)'!N27 -> 0 | P27: 0 | S27: 0 | U27: ='År 10'!S27 -> 0 | V27: ='År 10'!T27 -> 0 | W27: ='År 10'!U27 -> 0 | X27: ='År 10'!V27 -> 0 | Y27: ='År 10'!W27 -> 0 | Z27: ='År 10'!X27 -> 0 | AA27: ='År 10'!Y27 -> 0 | AB27: ='År 10'!Z27 -> 0 | AC27: ='År 10'!AA27 -> 0 | AD27: ='År 10'!AB27 -> 0 | AE27: 0
B28: ='Resursallokering budget (låst)'!B28 -> 0 | D28: ='År 10'!D28 -> 0 | E28: ='År 10'!E28 -> 0 | F28: ='År 10'!F28 -> 0 | G28: ='År 10'!G28 -> 0 | H28: ='År 10'!H28 -> 0 | I28: ='År 10'!I28 -> 0 | J28: ='År 10'!J28 -> 0 | K28: ='År 10'!K28 -> 0 | L28: ='År 10'!L28 -> 0 | M28: ='År 10'!M28 -> 0 | N28: ='År 10'!N28 -> 0 | O28: ='Resursallokering budget (låst)'!N28 -> 0 | P28: 0 | S28: 0 | U28: ='År 10'!S28 -> 0 | V28: ='År 10'!T28 -> 0 | W28: ='År 10'!U28 -> 0 | X28: ='År 10'!V28 -> 0 | Y28: ='År 10'!W28 -> 0 | Z28: ='År 10'!X28 -> 0 | AA28: ='År 10'!Y28 -> 0 | AB28: ='År 10'!Z28 -> 0 | AC28: ='År 10'!AA28 -> 0 | AD28: ='År 10'!AB28 -> 0 | AE28: 0
B29: ='Resursallokering budget (låst)'!B29 -> 0 | D29: ='År 10'!D29 -> 0 | E29: ='År 10'!E29 -> 0 | F29: ='År 10'!F29 -> 0 | G29: ='År 10'!G29 -> 0 | H29: ='År 10'!H29 -> 0 | I29: ='År 10'!I29 -> 0 | J29: ='År 10'!J29 -> 0 | K29: ='År 10'!K29 -> 0 | L29: ='År 10'!L29 -> 0 | M29: ='År 10'!M29 -> 0 | N29: ='År 10'!N29 -> 0 | O29: ='Resursallokering budget (låst)'!N29 -> 0 | P29: 0 | S29: 0 | U29: ='År 10'!S29 -> 0 | V29: ='År 10'!T29 -> 0 | W29: ='År 10'!U29 -> 0 | X29: ='År 10'!V29 -> 0 | Y29: ='År 10'!W29 -> 0 | Z29: ='År 10'!X29 -> 0 | AA29: ='År 10'!Y29 -> 0 | AB29: ='År 10'!Z29 -> 0 | AC29: ='År 10'!AA29 -> 0 | AD29: ='År 10'!AB29 -> 0 | AE29: 0
B30: ='Resursallokering budget (låst)'!B30 -> 0 | D30: ='År 10'!D30 -> 0 | E30: ='År 10'!E30 -> 0 | F30: ='År 10'!F30 -> 0 | G30: ='År 10'!G30 -> 0 | H30: ='År 10'!H30 -> 0 | I30: ='År 10'!I30 -> 0 | J30: ='År 10'!J30 -> 0 | K30: ='År 10'!K30 -> 0 | L30: ='År 10'!L30 -> 0 | M30: ='År 10'!M30 -> 0 | N30: ='År 10'!N30 -> 0 | O30: ='Resursallokering budget (låst)'!N30 -> 0 | P30: 0 | S30: 0 | U30: ='År 10'!S30 -> 0 | V30: ='År 10'!T30 -> 0 | W30: ='År 10'!U30 -> 0 | X30: ='År 10'!V30 -> 0 | Y30: ='År 10'!W30 -> 0 | Z30: ='År 10'!X30 -> 0 | AA30: ='År 10'!Y30 -> 0 | AB30: ='År 10'!Z30 -> 0 | AC30: ='År 10'!AA30 -> 0 | AD30: ='År 10'!AB30 -> 0 | AE30: 0
B31: ='Resursallokering budget (låst)'!B31 -> 0 | D31: ='År 10'!D31 -> 0 | E31: ='År 10'!E31 -> 0 | F31: ='År 10'!F31 -> 0 | G31: ='År 10'!G31 -> 0 | H31: ='År 10'!H31 -> 0 | I31: ='År 10'!I31 -> 0 | J31: ='År 10'!J31 -> 0 | K31: ='År 10'!K31 -> 0 | L31: ='År 10'!L31 -> 0 | M31: ='År 10'!M31 -> 0 | N31: ='År 10'!N31 -> 0 | O31: ='Resursallokering budget (låst)'!N31 -> 0 | P31: 0 | S31: 0 | U31: ='År 10'!S31 -> 0 | V31: ='År 10'!T31 -> 0 | W31: ='År 10'!U31 -> 0 | X31: ='År 10'!V31 -> 0 | Y31: ='År 10'!W31 -> 0 | Z31: ='År 10'!X31 -> 0 | AA31: ='År 10'!Y31 -> 0 | AB31: ='År 10'!Z31 -> 0 | AC31: ='År 10'!AA31 -> 0 | AD31: ='År 10'!AB31 -> 0 | AE31: 0
B32: ='Resursallokering budget (låst)'!B32 -> 0 | D32: ='År 10'!D32 -> 0 | E32: ='År 10'!E32 -> 0 | F32: ='År 10'!F32 -> 0 | G32: ='År 10'!G32 -> 0 | H32: ='År 10'!H32 -> 0 | I32: ='År 10'!I32 -> 0 | J32: ='År 10'!J32 -> 0 | K32: ='År 10'!K32 -> 0 | L32: ='År 10'!L32 -> 0 | M32: ='År 10'!M32 -> 0 | N32: ='År 10'!N32 -> 0 | O32: ='Resursallokering budget (låst)'!N32 -> 0 | P32: 0 | S32: 0 | U32: ='År 10'!S32 -> 0 | V32: ='År 10'!T32 -> 0 | W32: ='År 10'!U32 -> 0 | X32: ='År 10'!V32 -> 0 | Y32: ='År 10'!W32 -> 0 | Z32: ='År 10'!X32 -> 0 | AA32: ='År 10'!Y32 -> 0 | AB32: ='År 10'!Z32 -> 0 | AC32: ='År 10'!AA32 -> 0 | AD32: ='År 10'!AB32 -> 0 | AE32: 0
B33: ='Resursallokering budget (låst)'!B33 -> 0 | D33: ='År 10'!D33 -> 0 | E33: ='År 10'!E33 -> 0 | F33: ='År 10'!F33 -> 0 | G33: ='År 10'!G33 -> 0 | H33: ='År 10'!H33 -> 0 | I33: ='År 10'!I33 -> 0 | J33: ='År 10'!J33 -> 0 | K33: ='År 10'!K33 -> 0 | L33: ='År 10'!L33 -> 0 | M33: ='År 10'!M33 -> 0 | N33: ='År 10'!N33 -> 0 | O33: ='Resursallokering budget (låst)'!N33 -> 0 | P33: 0 | S33: 0 | U33: ='År 10'!S33 -> 0 | V33: ='År 10'!T33 -> 0 | W33: ='År 10'!U33 -> 0 | X33: ='År 10'!V33 -> 0 | Y33: ='År 10'!W33 -> 0 | Z33: ='År 10'!X33 -> 0 | AA33: ='År 10'!Y33 -> 0 | AB33: ='År 10'!Z33 -> 0 | AC33: ='År 10'!AA33 -> 0 | AD33: ='År 10'!AB33 -> 0 | AE33: 0
B34: ='Resursallokering budget (låst)'!B34 -> 0 | D34: ='År 10'!D34 -> 0 | E34: ='År 10'!E34 -> 0 | F34: ='År 10'!F34 -> 0 | G34: ='År 10'!G34 -> 0 | H34: ='År 10'!H34 -> 0 | I34: ='År 10'!I34 -> 0 | J34: ='År 10'!J34 -> 0 | K34: ='År 10'!K34 -> 0 | L34: ='År 10'!L34 -> 0 | M34: ='År 10'!M34 -> 0 | N34: ='År 10'!N34 -> 0 | O34: ='Resursallokering budget (låst)'!N34 -> 0 | P34: 0 | S34: 0 | U34: ='År 10'!S34 -> 0 | V34: ='År 10'!T34 -> 0 | W34: ='År 10'!U34 -> 0 | X34: ='År 10'!V34 -> 0 | Y34: ='År 10'!W34 -> 0 | Z34: ='År 10'!X34 -> 0 | AA34: ='År 10'!Y34 -> 0 | AB34: ='År 10'!Z34 -> 0 | AC34: ='År 10'!AA34 -> 0 | AD34: ='År 10'!AB34 -> 0 | AE34: 0
B35: ='Resursallokering budget (låst)'!B35 -> 0 | D35: ='År 10'!D35 -> 0 | E35: ='År 10'!E35 -> 0 | F35: ='År 10'!F35 -> 0 | G35: ='År 10'!G35 -> 0 | H35: ='År 10'!H35 -> 0 | I35: ='År 10'!I35 -> 0 | J35: ='År 10'!J35 -> 0 | K35: ='År 10'!K35 -> 0 | L35: ='År 10'!L35 -> 0 | M35: ='År 10'!M35 -> 0 | N35: ='År 10'!N35 -> 0 | O35: ='Resursallokering budget (låst)'!N35 -> 0 | P35: 0 | S35: 0 | U35: ='År 10'!S35 -> 0 | V35: ='År 10'!T35 -> 0 | W35: ='År 10'!U35 -> 0 | X35: ='År 10'!V35 -> 0 | Y35: ='År 10'!W35 -> 0 | Z35: ='År 10'!X35 -> 0 | AA35: ='År 10'!Y35 -> 0 | AB35: ='År 10'!Z35 -> 0 | AC35: ='År 10'!AA35 -> 0 | AD35: ='År 10'!AB35 -> 0 | AE35: 0
B36: ='Resursallokering budget (låst)'!B36 -> 0 | D36: ='År 10'!D36 -> 0 | E36: ='År 10'!E36 -> 0 | F36: ='År 10'!F36 -> 0 | G36: ='År 10'!G36 -> 0 | H36: ='År 10'!H36 -> 0 | I36: ='År 10'!I36 -> 0 | J36: ='År 10'!J36 -> 0 | K36: ='År 10'!K36 -> 0 | L36: ='År 10'!L36 -> 0 | M36: ='År 10'!M36 -> 0 | N36: ='År 10'!N36 -> 0 | O36: ='Resursallokering budget (låst)'!N36 -> 0 | P36: 0 | S36: 0 | U36: ='År 10'!S36 -> 0 | V36: ='År 10'!T36 -> 0 | W36: ='År 10'!U36 -> 0 | X36: ='År 10'!V36 -> 0 | Y36: ='År 10'!W36 -> 0 | Z36: ='År 10'!X36 -> 0 | AA36: ='År 10'!Y36 -> 0 | AB36: ='År 10'!Z36 -> 0 | AC36: ='År 10'!AA36 -> 0 | AD36: ='År 10'!AB36 -> 0 | AE36: 0
B37: ='Resursallokering budget (låst)'!B37 -> 0 | D37: ='År 10'!D37 -> 0 | E37: ='År 10'!E37 -> 0 | F37: ='År 10'!F37 -> 0 | G37: ='År 10'!G37 -> 0 | H37: ='År 10'!H37 -> 0 | I37: ='År 10'!I37 -> 0 | J37: ='År 10'!J37 -> 0 | K37: ='År 10'!K37 -> 0 | L37: ='År 10'!L37 -> 0 | M37: ='År 10'!M37 -> 0 | N37: ='År 10'!N37 -> 0 | O37: ='Resursallokering budget (låst)'!N37 -> 0 | P37: 0 | S37: 0 | U37: ='År 10'!S37 -> 0 | V37: ='År 10'!T37 -> 0 | W37: ='År 10'!U37 -> 0 | X37: ='År 10'!V37 -> 0 | Y37: ='År 10'!W37 -> 0 | Z37: ='År 10'!X37 -> 0 | AA37: ='År 10'!Y37 -> 0 | AB37: ='År 10'!Z37 -> 0 | AC37: ='År 10'!AA37 -> 0 | AD37: ='År 10'!AB37 -> 0 | AE37: 0
B38: ='Resursallokering budget (låst)'!B38 -> 0 | D38: ='År 10'!D38 -> 0 | E38: ='År 10'!E38 -> 0 | F38: ='År 10'!F38 -> 0 | G38: ='År 10'!G38 -> 0 | H38: ='År 10'!H38 -> 0 | I38: ='År 10'!I38 -> 0 | J38: ='År 10'!J38 -> 0 | K38: ='År 10'!K38 -> 0 | L38: ='År 10'!L38 -> 0 | M38: ='År 10'!M38 -> 0 | N38: ='År 10'!N38 -> 0 | O38: ='Resursallokering budget (låst)'!N38 -> 0 | P38: 0 | S38: 0 | U38: ='År 10'!S38 -> 0 | V38: ='År 10'!T38 -> 0 | W38: ='År 10'!U38 -> 0 | X38: ='År 10'!V38 -> 0 | Y38: ='År 10'!W38 -> 0 | Z38: ='År 10'!X38 -> 0 | AA38: ='År 10'!Y38 -> 0 | AB38: ='År 10'!Z38 -> 0 | AC38: ='År 10'!AA38 -> 0 | AD38: ='År 10'!AB38 -> 0 | AE38: 0
B39: ='Resursallokering budget (låst)'!B39 -> 0 | D39: ='År 10'!D39 -> 0 | E39: ='År 10'!E39 -> 0 | F39: ='År 10'!F39 -> 0 | G39: ='År 10'!G39 -> 0 | H39: ='År 10'!H39 -> 0 | I39: ='År 10'!I39 -> 0 | J39: ='År 10'!J39 -> 0 | K39: ='År 10'!K39 -> 0 | L39: ='År 10'!L39 -> 0 | M39: ='År 10'!M39 -> 0 | N39: ='År 10'!N39 -> 0 | O39: ='Resursallokering budget (låst)'!N39 -> 0 | P39: 0 | S39: 0 | U39: ='År 10'!S39 -> 0 | V39: ='År 10'!T39 -> 0 | W39: ='År 10'!U39 -> 0 | X39: ='År 10'!V39 -> 0 | Y39: ='År 10'!W39 -> 0 | Z39: ='År 10'!X39 -> 0 | AA39: ='År 10'!Y39 -> 0 | AB39: ='År 10'!Z39 -> 0 | AC39: ='År 10'!AA39 -> 0 | AD39: ='År 10'!AB39 -> 0 | AE39: 0
B40: Totalt | C40: ='År 10'!C40 -> 0 | D40: ='År 10'!D40 -> 0 | E40: ='År 10'!E40 -> 0 | F40: ='År 10'!F40 -> 0 | G40: ='År 10'!G40 -> 0 | H40: ='År 10'!H40 -> 0 | I40: ='År 10'!I40 -> 0 | J40: ='År 10'!J40 -> 0 | K40: ='År 10'!K40 -> 0 | L40: ='År 10'!L40 -> 0 | M40: ='År 10'!M40 -> 0 | N40: ='År 10'!N40 -> 0 | O40: =SUM(O5:O39) -> 0 | P40: =SUM(P5:P39) -> 0 | S40: Totalt | T40: =AE40 -> 0 | U40: =SUM(U5:U39) -> 0 | V40: 0 | W40: 0 | X40: 0 | Y40: 0 | Z40: 0 | AA40: 0 | AB40: 0 | AC40: 0 | AD40: 0 | AE40: 0

Sheet ÖPPNA_STÄNG RESURSALLOKERINGEN
B8: Resursallokeringen är lösenordsskyddad för att förhindra att obehöriga användare ändrar dessa uppgifter.

Sheet Resursallokering FORMLER (hidden)
B1: Projekt:
C3: Budget timmar | O3: Godkännande | S3: Manmånader
C4: Åarb | D4: =Projektbudget!D52 -> 2021 | E4: =Projektbudget!E52 -> 2022 | F4: =Projektbudget!F52 -> 2023 | G4: =Projektbudget!G52 -> 2024 | H4: =Projektbudget!H52 -> 2025 | I4: =Projektbudget!I52 -> 2026 | J4: =Projektbudget!J52 -> 2027 | K4: =Projektbudget!K52 -> 2028 | L4: =Projektbudget!L52 -> 2029 | M4: =Projektbudget!M52 -> 2030 | N4: Totalt | O4: SC/SR | S4: =D4 -> 2021 | T4: =E4 -> 2022 | U4: 2023 | V4: 2024 | W4: 2025 | X4: 2026 | Y4: 2027 | Z4: 2028 | AA4: 2029 | AB4: 2030 | AC4: Totalt
B5: =Projektbudget!A12 -> Professor | C5: ='Resursallokering budget (låst)'!C5 -> 1700 | D5: =Projektbudget!D12*$C5 -> 0 | E5: =Projektbudget!E12*$C5 -> 0 | F5: =Projektbudget!F12*$C5 -> 0 | G5: =Projektbudget!G12*$C5 -> 0 | H5: =Projektbudget!H12*$C5 -> 0 | I5: =Projektbudget!I12*$C5 -> 0 | J5: =Projektbudget!J12*$C5 -> 0 | K5: =Projektbudget!K12*$C5 -> 0 | L5: =Projektbudget!L12*$C5 -> 0 | M5: =Projektbudget!M12*$C5 -> 0 | N5: =SUM(D5:M5) -> 0 | Q5: =B5 -> Professor | S5: =IFERROR(D5/($C5/12),0) -> 0 | T5: =IFERROR(E5/($C5/12),0) -> 0 | U5: =IFERROR(F5/($C5/12),0) -> 0 | V5: =IFERROR(G5/($C5/12),0) -> 0 | W5: =IFERROR(H5/($C5/12),0) -> 0 | X5: =IFERROR(I5/($C5/12),0) -> 0 | Y5: 0 | Z5: 0 | AA5: 0 | AB5: 0 | AC5: =SUM(S5:AB5) -> 0
B6: =Projektbudget!A13 -> Docent | C6: ='Resursallokering budget (låst)'!C6 -> 1700 | D6: =Projektbudget!D13*$C6 -> 0 | E6: =Projektbudget!E13*$C6 -> 0 | F6: =Projektbudget!F13*$C6 -> 0 | G6: =Projektbudget!G13*$C6 -> 0 | H6: =Projektbudget!H13*$C6 -> 0 | I6: =Projektbudget!I13*$C6 -> 0 | J6: =Projektbudget!J13*$C6 -> 0 | K6: =Projektbudget!K13*$C6 -> 0 | L6: =Projektbudget!L13*$C6 -> 0 | M6: =Projektbudget!M13*$C6 -> 0 | N6: =SUM(D6:M6) -> 0 | Q6: =B6 -> Docent | S6: =IFERROR(G6/($C6/12),0) -> 0 | T6: =IFERROR(H6/($C6/12),0) -> 0 | U6: =IFERROR(F6/($C6/12),0) -> 0 | V6: =IFERROR(G6/($C6/12),0) -> 0 | W6: =IFERROR(H6/($C6/12),0) -> 0 | X6: 0 | Y6: 0 | Z6: 0 | AA6: 0 | AB6: 0 | AC6: =SUM(S6:AB6) -> 0
B7: =Projektbudget!A14 -> Lektor | C7: ='Resursallokering budget (låst)'!C7 -> 1700 | D7: =Projektbudget!D14*$C7 -> 0 | E7: =Projektbudget!E14*$C7 -> 0 | F7: =Projektbudget!F14*$C7 -> 0 | G7: =Projektbudget!G14*$C7 -> 0 | H7: =Projektbudget!H14*$C7 -> 0 | I7: =Projektbudget!I14*$C7 -> 0 | J7: =Projektbudget!J14*$C7 -> 0 | K7: =Projektbudget!K14*$C7 -> 0 | L7: =Projektbudget!L14*$C7 -> 0 | M7: =Projektbudget!M14*$C7 -> 0 | N7: 0 | Q7: Lektor | S7: =IFERROR(G7/($C7/12),0) -> 0 | T7: 0 | U7: =IFERROR(F7/($C7/12),0) -> 0 | V7: 0 | W7: 0 | X7: 0 | Y7: 0 | Z7: 0 | AA7: 0 | AB7: 0 | AC7: =SUM(S7:AB7) -> 0
B8: =Projektbudget!A15 -> Adjunkt | C8: ='Resursallokering budget (låst)'!C8 -> 1700 | D8: =Projektbudget!D15*$C8 -> 0 | E8: =Projektbudget!E15*$C8 -> 0 | F8: =Projektbudget!F15*$C8 -> 0 | G8: =Projektbudget!G15*$C8 -> 0 | H8: =Projektbudget!H15*$C8 -> 0 | I8: =Projektbudget!I15*$C8 -> 0 | J8: =Projektbudget!J15*$C8 -> 0 | K8: =Projektbudget!K15*$C8 -> 0 | L8: =Projektbudget!L15*$C8 -> 0 | M8: =Projektbudget!M15*$C8 -> 0 | N8: 0 | Q8: Adjunkt | S8: 0 | T8: 0 | U8: 0 | V8: 0 | W8: 0 | X8: 0 | Y8: 0 | Z8: 0 | AA8: 0 | AB8: 0 | AC8: 0
B9: =Projektbudget!A16 -> Post dok | C9: ='Resursallokering budget (låst)'!C9 -> 1700 | D9: =Projektbudget!D16*$C9 -> 0 | E9: =Projektbudget!E16*$C9 -> 0 | F9: =Projektbudget!F16*$C9 -> 0 | G9: =Projektbudget!G16*$C9 -> 0 | H9: =Projektbudget!H16*$C9 -> 0 | I9: =Projektbudget!I16*$C9 -> 0 | J9: =Projektbudget!J16*$C9 -> 0 | K9: =Projektbudget!K16*$C9 -> 0 | L9: =Projektbudget!L16*$C9 -> 0 | M9: =Projektbudget!M16*$C9 -> 0 | N9: 0 | Q9: Post dok | S9: 0 | T9: 0 | U9: 0 | V9: 0 | W9: 0 | X9: 0 | Y9: 0 | Z9: 0 | AA9: 0 | AB9: 0 | AC9: 0
B10: =Projektbudget!A17 -> Doktorand (Snittlön) | C10: ='Resursallokering budget (låst)'!C10 -> 1700 | D10: =Projektbudget!D17*$C10 -> 0 | E10: =Projektbudget!E17*$C10 -> 0 | F10: =Projektbudget!F17*$C10 -> 0 | G10: =Projektbudget!G17*$C10 -> 0 | H10: =Projektbudget!H17*$C10 -> 0 | I10: =Projektbudget!I17*$C10 -> 0 | J10: =Projektbudget!J17*$C10 -> 0 | K10: =Projektbudget!K17*$C10 -> 0 | L10: =Projektbudget!L17*$C10 -> 0 | M10: =Projektbudget!M17*$C10 -> 0 | N10: 0 | Q10: Doktorand (Snittlön) | S10: 0 | T10: 0 | U10: 0 | V10: 0 | W10: 0 | X10: 0 | Y10: 0 | Z10: 0 | AA10: 0 | AB10: 0 | AC10: 0
B11: =Projektbudget!A18 -> Administratör | C11: ='Resursallokering budget (låst)'!C11 -> 1700 | D11: =Projektbudget!D18*$C11 -> 0 | E11: =Projektbudget!E18*$C11 -> 0 | F11: =Projektbudget!F18*$C11 -> 0 | G11: =Projektbudget!G18*$C11 -> 0 | H11: =Projektbudget!H18*$C11 -> 0 | I11: =Projektbudget!I18*$C11 -> 0 | J11: =Projektbudget!J18*$C11 -> 0 | K11: =Projektbudget!K18*$C11 -> 0 | L11: =Projektbudget!L18*$C11 -> 0 | M11: =Projektbudget!M18*$C11 -> 0 | N11: 0 | Q11: Administratör | S11: 0 | T11: 0 | U11: 0 | V11: 0 | W11: 0 | X11: 0 | Y11: 0 | Z11: 0 | AA11: 0 | AB11: 0 | AC11: 0
B12: =Projektbudget!A19 -> Labbtekniker | C12: ='Resursallokering budget (låst)'!C12 -> 1700 | D12: =Projektbudget!D19*$C12 -> 0 | E12: =Projektbudget!E19*$C12 -> 0 | F12: =Projektbudget!F19*$C12 -> 0 | G12: =Projektbudget!G19*$C12 -> 0 | H12: =Projektbudget!H19*$C12 -> 0 | I12: =Projektbudget!I19*$C12 -> 0 | J12: =Projektbudget!J19*$C12 -> 0 | K12: =Projektbudget!K19*$C12 -> 0 | L12: =Projektbudget!L19*$C12 -> 0 | M12: =Projektbudget!M19*$C12 -> 0 | N12: 0 | Q12: Labbtekniker | S12: 0 | T12: 0 | U12: 0 | V12: 0 | W12: 0 | X12: 0 | Y12: 0 | Z12: 0 | AA12: 0 | AB12: 0 | AC12: 0
B13: =Projektbudget!A20 -> Forskningsassistent | C13: ='Resursallokering budget (låst)'!C13 -> 1700 | D13: =Projektbudget!D20*$C13 -> 0 | E13: =Projektbudget!E20*$C13 -> 0 | F13: =Projektbudget!F20*$C13 -> 0 | G13: =Projektbudget!G20*$C13 -> 0 | H13: =Projektbudget!H20*$C13 -> 0 | I13: =Projektbudget!I20*$C13 -> 0 | J13: =Projektbudget!J20*$C13 -> 0 | K13: =Projektbudget!K20*$C13 -> 0 | L13: =Projektbudget!L20*$C13 -> 0 | M13: =Projektbudget!M20*$C13 -> 0 | N13: 0 | Q13: Forskningsassistent | S13: 0 | T13: 0 | U13: 0 | V13: 0 | W13: 0 | X13: 0 | Y13: 0 | Z13: 0 | AA13: 0 | AB13: 0 | AC13: 0
B14: =Projektbudget!A21 -> Forskare/biträdande forskare | C14: ='Resursallokering budget (låst)'!C14 -> 1700 | D14: =Projektbudget!D21*$C14 -> 0 | E14: =Projektbudget!E21*$C14 -> 0 | F14: =Projektbudget!F21*$C14 -> 0 | G14: =Projektbudget!G21*$C14 -> 0 | H14: =Projektbudget!H21*$C14 -> 0 | I14: =Projektbudget!I21*$C14 -> 0 | J14: =Projektbudget!J21*$C14 -> 0 | K14: =Projektbudget!K21*$C14 -> 0 | L14: =Projektbudget!L21*$C14 -> 0 | M14: =Projektbudget!M21*$C14 -> 0 | N14: 0 | Q14: Forskare/biträdande forskare | S14: 0 | T14: 0 | U14: 0 | V14: 0 | W14: 0 | X14: 0 | Y14: 0 | Z14: 0 | AA14: 0 | AB14: 0 | AC14: 0
B15: =Projektbudget!A22 -> 0 | C15: ='Resursallokering budget (låst)'!C15 -> 1700 | D15: =Projektbudget!D22*$C15 -> 0 | E15: =Projektbudget!E22*$C15 -> 0 | F15: =Projektbudget!F22*$C15 -> 0 | G15: =Projektbudget!G22*$C15 -> 0 | H15: =Projektbudget!H22*$C15 -> 0 | I15: =Projektbudget!I22*$C15 -> 0 | J15: =Projektbudget!J22*$C15 -> 0 | K15: =Projektbudget!K22*$C15 -> 0 | L15: =Projektbudget!L22*$C15 -> 0 | M15: =Projektbudget!M22*$C15 -> 0 | N15: 0 | Q15: 0 | S15: 0 | T15: 0 | U15: 0 | V15: 0 | W15: 0 | X15: 0 | Y15: 0 | Z15: 0 | AA15: 0 | AB15: 0 | AC15: 0
B16: =Projektbudget!A23 -> 0 | C16: ='Resursallokering budget (låst)'!C16 -> 1700 | D16: =Projektbudget!D23*$C16 -> 0 | E16: =Projektbudget!E23*$C16 -> 0 | F16: =Projektbudget!F23*$C16 -> 0 | G16: =Projektbudget!G23*$C16 -> 0 | H16: =Projektbudget!H23*$C16 -> 0 | I16: =Projektbudget!I23*$C16 -> 0 | J16: =Projektbudget!J23*$C16 -> 0 | K16: =Projektbudget!K23*$C16 -> 0 | L16: =Projektbudget!L23*$C16 -> 0 | M16: =Projektbudget!M23*$C16 -> 0 | N16: 0 | Q16: 0 | S16: 0 | T16: 0 | U16: 0 | V16: 0 | W16: 0 | X16: 0 | Y16: 0 | Z16: 0 | AA16: 0 | AB16: 0 | AC16: 0
B17: =Projektbudget!A24 -> 0 | C17: ='Resursallokering budget (låst)'!C17 -> 1700 | D17: =Projektbudget!D24*$C17 -> 0 | E17: =Projektbudget!E24*$C17 -> 0 | F17: =Projektbudget!F24*$C17 -> 0 | G17: =Projektbudget!G24*$C17 -> 0 | H17: =Projektbudget!H24*$C17 -> 0 | I17: =Projektbudget!I24*$C17 -> 0 | J17: =Projektbudget!J24*$C17 -> 0 | K17: =Projektbudget!K24*$C17 -> 0 | L17: =Projektbudget!L24*$C17 -> 0 | M17: =Projektbudget!M24*$C17 -> 0 | N17: 0 | Q17: 0 | S17: 0 | T17: 0 | U17: 0 | V17: 0 | W17: 0 | X17: 0 | Y17: 0 | Z17: 0 | AA17: 0 | AB17: 0 | AC17: 0
B18: =Projektbudget!A25 -> 0 | C18: ='Resursallokering budget (låst)'!C18 -> 1700 | D18: =Projektbudget!D25*$C18 -> 0 | E18: =Projektbudget!E25*$C18 -> 0 | F18: =Projektbudget!F25*$C18 -> 0 | G18: =Projektbudget!G25*$C18 -> 0 | H18: =Projektbudget!H25*$C18 -> 0 | I18: =Projektbudget!I25*$C18 -> 0 | J18: =Projektbudget!J25*$C18 -> 0 | K18: =Projektbudget!K25*$C18 -> 0 | L18: =Projektbudget!L25*$C18 -> 0 | M18: =Projektbudget!M25*$C18 -> 0 | N18: 0 | Q18: 0 | S18: 0 | T18: 0 | U18: 0 | V18: 0 | W18: 0 | X18: 0 | Y18: 0 | Z18: 0 | AA18: 0 | AB18: 0 | AC18: 0
B19: =Projektbudget!A26 -> 0 | C19: ='Resursallokering budget (låst)'!C19 -> 1700 | D19: =Projektbudget!D26*$C19 -> 0 | E19: =Projektbudget!E26*$C19 -> 0 | F19: =Projektbudget!F26*$C19 -> 0 | G19: =Projektbudget!G26*$C19 -> 0 | H19: =Projektbudget!H26*$C19 -> 0 | I19: =Projektbudget!I26*$C19 -> 0 | J19: =Projektbudget!J26*$C19 -> 0 | K19: =Projektbudget!K26*$C19 -> 0 | L19: =Projektbudget!L26*$C19 -> 0 | M19: =Projektbudget!M26*$C19 -> 0 | N19: 0 | Q19: 0 | S19: 0 | T19: 0 | U19: 0 | V19: 0 | W19: 0 | X19: 0 | Y19: 0 | Z19: 0 | AA19: 0 | AB19: 0 | AC19: 0
B20: =Projektbudget!A27 -> 0 | C20: ='Resursallokering budget (låst)'!C20 -> 1700 | D20: =Projektbudget!D27*$C20 -> 0 | E20: =Projektbudget!E27*$C20 -> 0 | F20: =Projektbudget!F27*$C20 -> 0 | G20: =Projektbudget!G27*$C20 -> 0 | H20: =Projektbudget!H27*$C20 -> 0 | I20: =Projektbudget!I27*$C20 -> 0 | J20: =Projektbudget!J27*$C20 -> 0 | K20: =Projektbudget!K27*$C20 -> 0 | L20: =Projektbudget!L27*$C20 -> 0 | M20: =Projektbudget!M27*$C20 -> 0 | N20: 0 | Q20: 0 | S20: 0 | T20: 0 | U20: 0 | V20: 0 | W20: 0 | X20: 0 | Y20: 0 | Z20: 0 | AA20: 0 | AB20: 0 | AC20: 0
B21: =Projektbudget!A28 -> 0 | C21: ='Resursallokering budget (låst)'!C21 -> 1700 | D21: =Projektbudget!D28*$C21 -> 0 | E21: =Projektbudget!E28*$C21 -> 0 | F21: =Projektbudget!F28*$C21 -> 0 | G21: =Projektbudget!G28*$C21 -> 0 | H21: =Projektbudget!H28*$C21 -> 0 | I21: =Projektbudget!I28*$C21 -> 0 | J21: =Projektbudget!J28*$C21 -> 0 | K21: =Projektbudget!K28*$C21 -> 0 | L21: =Projektbudget!L28*$C21 -> 0 | M21: =Projektbudget!M28*$C21 -> 0 | N21: 0 | Q21: 0 | S21: 0 | T21: 0 | U21: 0 | V21: 0 | W21: 0 | X21: 0 | Y21: 0 | Z21: 0 | AA21: 0 | AB21: 0 | AC21: 0
B22: =Projektbudget!A29 -> 0 | C22: ='Resursallokering budget (låst)'!C22 -> 1700 | D22: =Projektbudget!D29*$C22 -> 0 | E22: =Projektbudget!E29*$C22 -> 0 | F22: =Projektbudget!F29*$C22 -> 0 | G22: =Projektbudget!G29*$C22 -> 0 | H22: =Projektbudget!H29*$C22 -> 0 | I22: =Projektbudget!I29*$C22 -> 0 | J22: =Projektbudget!J29*$C22 -> 0 | K22: =Projektbudget!K29*$C22 -> 0 | L22: =Projektbudget!L29*$C22 -> 0 | M22: =Projektbudget!M29*$C22 -> 0 | N22: 0 | Q22: 0 | S22: 0 | T22: 0 | U22: 0 | V22: 0 | W22: 0 | X22: 0 | Y22: 0 | Z22: 0 | AA22: 0 | AB22: 0 | AC22: 0
B23: =Projektbudget!A30 -> 0 | C23: ='Resursallokering budget (låst)'!C23 -> 1700 | D23: =Projektbudget!D30*$C23 -> 0 | E23: =Projektbudget!E30*$C23 -> 0 | F23: =Projektbudget!F30*$C23 -> 0 | G23: =Projektbudget!G30*$C23 -> 0 | H23: =Projektbudget!H30*$C23 -> 0 | I23: =Projektbudget!I30*$C23 -> 0 | J23: =Projektbudget!J30*$C23 -> 0 | K23: =Projektbudget!K30*$C23 -> 0 | L23: =Projektbudget!L30*$C23 -> 0 | M23: =Projektbudget!M30*$C23 -> 0 | N23: 0 | Q23: 0 | S23: 0 | T23: 0 | U23: 0 | V23: 0 | W23: 0 | X23: 0 | Y23: 0 | Z23: 0 | AA23: 0 | AB23: 0 | AC23: 0
B24: =Projektbudget!A31 -> 0 | C24: ='Resursallokering budget (låst)'!C24 -> 1700 | D24: =Projektbudget!D31*$C24 -> 0 | E24: =Projektbudget!E31*$C24 -> 0 | F24: =Projektbudget!F31*$C24 -> 0 | G24: =Projektbudget!G31*$C24 -> 0 | H24: =Projektbudget!H31*$C24 -> 0 | I24: =Projektbudget!I31*$C24 -> 0 | J24: =Projektbudget!J31*$C24 -> 0 | K24: =Projektbudget!K31*$C24 -> 0 | L24: =Projektbudget!L31*$C24 -> 0 | M24: =Projektbudget!M31*$C24 -> 0 | N24: 0 | Q24: 0 | S24: 0 | T24: 0 | U24: 0 | V24: 0 | W24: 0 | X24: 0 | Y24: 0 | Z24: 0 | AA24: 0 | AB24: 0 | AC24: 0
B25: =Projektbudget!A32 -> 0 | C25: ='Resursallokering budget (låst)'!C25 -> 1700 | D25: =Projektbudget!D32*$C25 -> 0 | E25: =Projektbudget!E32*$C25 -> 0 | F25: =Projektbudget!F32*$C25 -> 0 | G25: =Projektbudget!G32*$C25 -> 0 | H25: =Projektbudget!H32*$C25 -> 0 | I25: =Projektbudget!I32*$C25 -> 0 | J25: =Projektbudget!J32*$C25 -> 0 | K25: =Projektbudget!K32*$C25 -> 0 | L25: =Projektbudget!L32*$C25 -> 0 | M25: =Projektbudget!M32*$C25 -> 0 | N25: 0 | Q25: 0 | S25: 0 | T25: 0 | U25: 0 | V25: 0 | W25: 0 | X25: 0 | Y25: 0 | Z25: 0 | AA25: 0 | AB25: 0 | AC25: 0
B26: =Projektbudget!A33 -> 0 | C26: ='Resursallokering budget (låst)'!C26 -> 1700 | D26: =Projektbudget!D33*$C26 -> 0 | E26: =Projektbudget!E33*$C26 -> 0 | F26: =Projektbudget!F33*$C26 -> 0 | G26: =Projektbudget!G33*$C26 -> 0 | H26: =Projektbudget!H33*$C26 -> 0 | I26: =Projektbudget!I33*$C26 -> 0 | J26: =Projektbudget!J33*$C26 -> 0 | K26: =Projektbudget!K33*$C26 -> 0 | L26: =Projektbudget!L33*$C26 -> 0 | M26: =Projektbudget!M33*$C26 -> 0 | N26: 0 | Q26: 0 | S26: 0 | T26: 0 | U26: 0 | V26: 0 | W26: 0 | X26: 0 | Y26: 0 | Z26: 0 | AA26: 0 | AB26: 0 | AC26: 0
B27: =Projektbudget!A34 -> 0 | C27: ='Resursallokering budget (låst)'!C27 -> 1700 | D27: =Projektbudget!D34*$C27 -> 0 | E27: =Projektbudget!E34*$C27 -> 0 | F27: =Projektbudget!F34*$C27 -> 0 | G27: =Projektbudget!G34*$C27 -> 0 | H27: =Projektbudget!H34*$C27 -> 0 | I27: =Projektbudget!I34*$C27 -> 0 | J27: =Projektbudget!J34*$C27 -> 0 | K27: =Projektbudget!K34*$C27 -> 0 | L27: =Projektbudget!L34*$C27 -> 0 | M27: =Projektbudget!M34*$C27 -> 0 | N27: 0 | Q27: 0 | S27: 0 | T27: 0 | U27: 0 | V27: 0 | W27: 0 | X27: 0 | Y27: 0 | Z27: 0 | AA27: 0 | AB27: 0 | AC27: 0
B28: =Projektbudget!A35 -> 0 | C28: ='Resursallokering budget (låst)'!C28 -> 1700 | D28: =Projektbudget!D35*$C28 -> 0 | E28: =Projektbudget!E35*$C28 -> 0 | F28: =Projektbudget!F35*$C28 -> 0 | G28: =Projektbudget!G35*$C28 -> 0 | H28: =Projektbudget!H35*$C28 -> 0 | I28: =Projektbudget!I35*$C28 -> 0 | J28: =Projektbudget!J35*$C28 -> 0 | K28: =Projektbudget!K35*$C28 -> 0 | L28: =Projektbudget!L35*$C28 -> 0 | M28: =Projektbudget!M35*$C28 -> 0 | N28: 0 | Q28: 0 | S28: 0 | T28: 0 | U28: 0 | V28: 0 | W28: 0 | X28: 0 | Y28: 0 | Z28: 0 | AA28: 0 | AB28: 0 | AC28: 0
B29: =Projektbudget!A36 -> 0 | C29: ='Resursallokering budget (låst)'!C29 -> 1700 | D29: =Projektbudget!D36*$C29 -> 0 | E29: =Projektbudget!E36*$C29 -> 0 | F29: =Projektbudget!F36*$C29 -> 0 | G29: =Projektbudget!G36*$C29 -> 0 | H29: =Projektbudget!H36*$C29 -> 0 | I29: =Projektbudget!I36*$C29 -> 0 | J29: =Projektbudget!J36*$C29 -> 0 | K29: =Projektbudget!K36*$C29 -> 0 | L29: =Projektbudget!L36*$C29 -> 0 | M29: =Projektbudget!M36*$C29 -> 0 | N29: 0 | Q29: 0 | S29: 0 | T29: 0 | U29: 0 | V29: 0 | W29: 0 | X29: 0 | Y29: 0 | Z29: 0 | AA29: 0 | AB29: 0 | AC29: 0
B30: =Projektbudget!A37 -> 0 | C30: ='Resursallokering budget (låst)'!C30 -> 1700 | D30: =Projektbudget!D37*$C30 -> 0 | E30: =Projektbudget!E37*$C30 -> 0 | F30: =Projektbudget!F37*$C30 -> 0 | G30: =Projektbudget!G37*$C30 -> 0 | H30: =Projektbudget!H37*$C30 -> 0 | I30: =Projektbudget!I37*$C30 -> 0 | J30: =Projektbudget!J37*$C30 -> 0 | K30: =Projektbudget!K37*$C30 -> 0 | L30: =Projektbudget!L37*$C30 -> 0 | M30: =Projektbudget!M37*$C30 -> 0 | N30: 0 | Q30: 0 | S30: 0 | T30: 0 | U30: 0 | V30: 0 | W30: 0 | X30: 0 | Y30: 0 | Z30: 0 | AA30: 0 | AB30: 0 | AC30: 0
B31: =Projektbudget!A38 -> 0 | C31: ='Resursallokering budget (låst)'!C31 -> 1700 | D31: =Projektbudget!D38*$C31 -> 0 | E31: =Projektbudget!E38*$C31 -> 0 | F31: =Projektbudget!F38*$C31 -> 0 | G31: =Projektbudget!G38*$C31 -> 0 | H31: =Projektbudget!H38*$C31 -> 0 | I31: =Projektbudget!I38*$C31 -> 0 | J31: =Projektbudget!J38*$C31 -> 0 | K31: =Projektbudget!K38*$C31 -> 0 | L31: =Projektbudget!L38*$C31 -> 0 | M31: =Projektbudget!M38*$C31 -> 0 | N31: 0 | Q31: 0 | S31: 0 | T31: 0 | U31: 0 | V31: 0 | W31: 0 | X31: 0 | Y31: 0 | Z31: 0 | AA31: 0 | AB31: 0 | AC31: 0
B32: =Projektbudget!A39 -> 0 | C32: ='Resursallokering budget (låst)'!C32 -> 1700 | D32: =Projektbudget!D39*$C32 -> 0 | E32: =Projektbudget!E39*$C32 -> 0 | F32: =Projektbudget!F39*$C32 -> 0 | G32: =Projektbudget!G39*$C32 -> 0 | H32: =Projektbudget!H39*$C32 -> 0 | I32: =Projektbudget!I39*$C32 -> 0 | J32: =Projektbudget!J39*$C32 -> 0 | K32: =Projektbudget!K39*$C32 -> 0 | L32: =Projektbudget!L39*$C32 -> 0 | M32: =Projektbudget!M39*$C32 -> 0 | N32: 0 | Q32: 0 | S32: 0 | T32: 0 | U32: 0 | V32: 0 | W32: 0 | X32: 0 | Y32: 0 | Z32: 0 | AA32: 0 | AB32: 0 | AC32: 0
B33: =Projektbudget!A40 -> 0 | C33: ='Resursallokering budget (låst)'!C33 -> 1700 | D33: =Projektbudget!D40*$C33 -> 0 | E33: =Projektbudget!E40*$C33 -> 0 | F33: =Projektbudget!F40*$C33 -> 0 | G33: =Projektbudget!G40*$C33 -> 0 | H33: =Projektbudget!H40*$C33 -> 0 | I33: =Projektbudget!I40*$C33 -> 0 | J33: =Projektbudget!J40*$C33 -> 0 | K33: =Projektbudget!K40*$C33 -> 0 | L33: =Projektbudget!L40*$C33 -> 0 | M33: =Projektbudget!M40*$C33 -> 0 | N33: 0 | Q33: 0 | S33: 0 | T33: 0 | U33: 0 | V33: 0 | W33: 0 | X33: 0 | Y33: 0 | Z33: 0 | AA33: 0 | AB33: 0 | AC33: 0
B34: =Projektbudget!A41 -> 0 | C34: ='Resursallokering budget (låst)'!C34 -> 1700 | D34: =Projektbudget!D41*$C34 -> 0 | E34: =Projektbudget!E41*$C34 -> 0 | F34: =Projektbudget!F41*$C34 -> 0 | G34: =Projektbudget!G41*$C34 -> 0 | H34: =Projektbudget!H41*$C34 -> 0 | I34: =Projektbudget!I41*$C34 -> 0 | J34: =Projektbudget!J41*$C34 -> 0 | K34: =Projektbudget!K41*$C34 -> 0 | L34: =Projektbudget!L41*$C34 -> 0 | M34: =Projektbudget!M41*$C34 -> 0 | N34: 0 | Q34: 0 | S34: 0 | T34: 0 | U34: 0 | V34: 0 | W34: 0 | X34: 0 | Y34: 0 | Z34: 0 | AA34: 0 | AB34: 0 | AC34: 0
B35: =Projektbudget!A42 -> 0 | C35: ='Resursallokering budget (låst)'!C35 -> 1700 | D35: =Projektbudget!D42*$C35 -> 0 | E35: =Projektbudget!E42*$C35 -> 0 | F35: =Projektbudget!F42*$C35 -> 0 | G35: =Projektbudget!G42*$C35 -> 0 | H35: =Projektbudget!H42*$C35 -> 0 | I35: =Projektbudget!I42*$C35 -> 0 | J35: =Projektbudget!J42*$C35 -> 0 | K35: =Projektbudget!K42*$C35 -> 0 | L35: =Projektbudget!L42*$C35 -> 0 | M35: =Projektbudget!M42*$C35 -> 0 | N35: 0 | Q35: 0 | S35: 0 | T35: 0 | U35: 0 | V35: 0 | W35: 0 | X35: 0 | Y35: 0 | Z35: 0 | AA35: 0 | AB35: 0 | AC35: 0
B36: =Projektbudget!A43 -> 0 | C36: ='Resursallokering budget (låst)'!C36 -> 1700 | D36: =Projektbudget!D43*$C36 -> 0 | E36: =Projektbudget!E43*$C36 -> 0 | F36: =Projektbudget!F43*$C36 -> 0 | G36: =Projektbudget!G43*$C36 -> 0 | H36: =Projektbudget!H43*$C36 -> 0 | I36: =Projektbudget!I43*$C36 -> 0 | J36: =Projektbudget!J43*$C36 -> 0 | K36: =Projektbudget!K43*$C36 -> 0 | L36: =Projektbudget!L43*$C36 -> 0 | M36: =Projektbudget!M43*$C36 -> 0 | N36: 0 | Q36: 0 | S36: 0 | T36: 0 | U36: 0 | V36: 0 | W36: 0 | X36: 0 | Y36: 0 | Z36: 0 | AA36: 0 | AB36: 0 | AC36: 0
B37: =Projektbudget!A44 -> 0 | C37: ='Resursallokering budget (låst)'!C37 -> 1700 | D37: =Projektbudget!D44*$C37 -> 0 | E37: =Projektbudget!E44*$C37 -> 0 | F37: =Projektbudget!F44*$C37 -> 0 | G37: =Projektbudget!G44*$C37 -> 0 | H37: =Projektbudget!H44*$C37 -> 0 | I37: =Projektbudget!I44*$C37 -> 0 | J37: =Projektbudget!J44*$C37 -> 0 | K37: =Projektbudget!K44*$C37 -> 0 | L37: =Projektbudget!L44*$C37 -> 0 | M37: =Projektbudget!M44*$C37 -> 0 | N37: 0 | Q37: 0 | S37: 0 | T37: 0 | U37: 0 | V37: 0 | W37: 0 | X37: 0 | Y37: 0 | Z37: 0 | AA37: 0 | AB37: 0 | AC37: 0
B38: =Projektbudget!A45 -> 0 | C38: ='Resursallokering budget (låst)'!C38 -> 1700 | D38: =Projektbudget!D45*$C38 -> 0 | E38: =Projektbudget!E45*$C38 -> 0 | F38: =Projektbudget!F45*$C38 -> 0 | G38: =Projektbudget!G45*$C38 -> 0 | H38: =Projektbudget!H45*$C38 -> 0 | I38: =Projektbudget!I45*$C38 -> 0 | J38: =Projektbudget!J45*$C38 -> 0 | K38: =Projektbudget!K45*$C38 -> 0 | L38: =Projektbudget!L45*$C38 -> 0 | M38: =Projektbudget!M45*$C38 -> 0 | N38: 0 | Q38: 0 | S38: 0 | T38: 0 | U38: 0 | V38: 0 | W38: 0 | X38: 0 | Y38: 0 | Z38: 0 | AA38: 0 | AB38: 0 | AC38: 0
B39: =Projektbudget!A46 -> 0 | C39: ='Resursallokering budget (låst)'!C39 -> 1700 | D39: =Projektbudget!D46*$C39 -> 0 | E39: =Projektbudget!E46*$C39 -> 0 | F39: =Projektbudget!F46*$C39 -> 0 | G39: =Projektbudget!G46*$C39 -> 0 | H39: =Projektbudget!H46*$C39 -> 0 | I39: =Projektbudget!I46*$C39 -> 0 | J39: =Projektbudget!J46*$C39 -> 0 | K39: =Projektbudget!K46*$C39 -> 0 | L39: =Projektbudget!L46*$C39 -> 0 | M39: =Projektbudget!M46*$C39 -> 0 | N39: 0 | Q39: 0 | S39: 0 | T39: 0 | U39: 0 | V39: 0 | W39: 0 | X39: 0 | Y39: 0 | Z39: 0 | AA39: 0 | AB39: 0 | AC39: 0
B40: Totalt | C40: =SUM(D40:M40) -> 0 | D40: =SUM(D5:D39) -> 0 | E40: 0 | F40: 0 | G40: 0 | H40: 0 | I40: 0 | J40: 0 | K40: 0 | L40: 0 | M40: 0 | N40: 0 | Q40: Totalt | R40: =AC40 -> 0 | S40: =SUM(S5:S39) -> 0 | T40: 0 | U40: 0 | V40: 0 | W40: 0 | X40: 0 | Y40: 0 | Z40: 0 | AA40: 0 | AB40: 0 | AC40: 0

Sheet Resursallokering budget (låst) (hidden)
B1: ="Projekt: "&Projektbudget!$B$4 -> Projekt:
C3: Budget timmar | O3: Godkännande | S3: Manmånader
C4: Åarb | D4: =Projektbudget!D52 -> 2021 | E4: =Projektbudget!E52 -> 2022 | F4: =Projektbudget!F52 -> 2023 | G4: =Projektbudget!G52 -> 2024 | H4: =Projektbudget!H52 -> 2025 | I4: =Projektbudget!I52 -> 2026 | J4: =Projektbudget!J52 -> 2027 | K4: =Projektbudget!K52 -> 2028 | L4: =Projektbudget!L52 -> 2029 | M4: =Projektbudget!M52 -> 2030 | N4: Totalt | O4: prefekt /SR | S4: =D4 -> 2021 | T4: =E4 -> 2022 | U4: 2023 | V4: 2024 | W4: 2025 | X4: 2026 | Y4: 2027 | Z4: 2028 | AA4: 2029 | AB4: 2030 | AC4: Totalt
B5: =Projektbudget!A12 -> Professor | C5: 1700 | D5: =Projektbudget!D12*$C5 -> 0 | E5: =Projektbudget!E12*$C5 -> 0 | F5: =Projektbudget!F12*$C5 -> 0 | G5: =Projektbudget!G12*$C5 -> 0 | H5: =Projektbudget!H12*$C5 -> 0 | I5: =Projektbudget!I12*$C5 -> 0 | J5: =Projektbudget!J12*$C5 -> 0 | K5: =Projektbudget!K12*$C5 -> 0 | L5: =Projektbudget!L12*$C5 -> 0 | M5: =Projektbudget!M12*$C5 -> 0 | N5: =SUM(D5:M5) -> 0 | Q5: =B5 -> Professor | S5: =IFERROR(D5/($C5/12),0) -> 0 | T5: =IFERROR(E5/($C5/12),0) -> 0 | U5: =IFERROR(F5/($C5/12),0) -> 0 | V5: =IFERROR(G5/($C5/12),0) -> 0 | W5: =IFERROR(H5/($C5/12),0) -> 0 | X5: =IFERROR(I5/($C5/12),0) -> 0 | Y5: 0 | Z5: 0 | AA5: 0 | AB5: 0 | AC5: =SUM(S5:AB5) -> 0
B6: =Projektbudget!A13 -> Docent | C6: 1700 | D6: =Projektbudget!D13*$C6 -> 0 | E6: =Projektbudget!E13*$C6 -> 0 | F6: =Projektbudget!F13*$C6 -> 0 | G6: =Projektbudget!G13*$C6 -> 0 | H6: =Projektbudget!H13*$C6 -> 0 | I6: =Projektbudget!I13*$C6 -> 0 | J6: =Projektbudget!J13*$C6 -> 0 | K6: =Projektbudget!K13*$C6 -> 0 | L6: =Projektbudget!L13*$C6 -> 0 | M6: =Projektbudget!M13*$C6 -> 0 | N6: =SUM(D6:M6) -> 0 | Q6: =B6 -> Docent | S6: =IFERROR(G6/($C6/12),0) -> 0 | T6: =IFERROR(H6/($C6/12),0) -> 0 | U6: =IFERROR(F6/($C6/12),0) -> 0 | V6: =IFERROR(G6/($C6/12),0) -> 0 | W6: =IFERROR(H6/($C6/12),0) -> 0 | X6: 0 | Y6: 0 | Z6: 0 | AA6: 0 | AB6: 0 | AC6: =SUM(S6:AB6) -> 0
B7: =Projektbudget!A14 -> Lektor | C7: 1700 | D7: =Projektbudget!D14*$C7 -> 0 | E7: =Projektbudget!E14*$C7 -> 0 | F7: =Projektbudget!F14*$C7 -> 0 | G7: =Projektbudget!G14*$C7 -> 0 | H7: =Projektbudget!H14*$C7 -> 0 | I7: =Projektbudget!I14*$C7 -> 0 | J7: =Projektbudget!J14*$C7 -> 0 | K7: =Projektbudget!K14*$C7 -> 0 | L7: =Projektbudget!L14*$C7 -> 0 | M7: =Projektbudget!M14*$C7 -> 0 | N7: 0 | Q7: Lektor | S7: =IFERROR(G7/($C7/12),0) -> 0 | T7: 0 | U7: =IFERROR(F7/($C7/12),0) -> 0 | V7: 0 | W7: 0 | X7: 0 | Y7: 0 | Z7: 0 | AA7: 0 | AB7: 0 | AC7: =SUM(S7:AB7) -> 0
B8: =Projektbudget!A15 -> Adjunkt | C8: 1700 | D8: =Projektbudget!D15*$C8 -> 0 | E8: =Projektbudget!E15*$C8 -> 0 | F8: =Projektbudget!F15*$C8 -> 0 | G8: =Projektbudget!G15*$C8 -> 0 | H8: =Projektbudget!H15*$C8 -> 0 | I8: =Projektbudget!I15*$C8 -> 0 | J8: =Projektbudget!J15*$C8 -> 0 | K8: =Projektbudget!K15*$C8 -> 0 | L8: =Projektbudget!L15*$C8 -> 0 | M8: =Projektbudget!M15*$C8 -> 0 | N8: 0 | Q8: Adjunkt | S8: 0 | T8: 0 | U8: 0 | V8: 0 | W8: 0 | X8: 0 | Y8: 0 | Z8: 0 | AA8: 0 | AB8: 0 | AC8: 0
B9: =Projektbudget!A16 -> Post dok | C9: 1700 | D9: =Projektbudget!D16*$C9 -> 0 | E9: =Projektbudget!E16*$C9 -> 0 | F9: =Projektbudget!F16*$C9 -> 0 | G9: =Projektbudget!G16*$C9 -> 0 | H9: =Projektbudget!H16*$C9 -> 0 | I9: =Projektbudget!I16*$C9 -> 0 | J9: =Projektbudget!J16*$C9 -> 0 | K9: =Projektbudget!K16*$C9 -> 0 | L9: =Projektbudget!L16*$C9 -> 0 | M9: =Projektbudget!M16*$C9 -> 0 | N9: 0 | Q9: Post dok | S9: 0 | T9: 0 | U9: 0 | V9: 0 | W9: 0 | X9: 0 | Y9: 0 | Z9: 0 | AA9: 0 | AB9: 0 | AC9: 0
B10: =Projektbudget!A17 -> Doktorand (Snittlön) | C10: 1700 | D10: =Projektbudget!D17*$C10 -> 0 | E10: =Projektbudget!E17*$C10 -> 0 | F10: =Projektbudget!F17*$C10 -> 0 | G10: =Projektbudget!G17*$C10 -> 0 | H10: =Projektbudget!H17*$C10 -> 0 | I10: =Projektbudget!I17*$C10 -> 0 | J10: =Projektbudget!J17*$C10 -> 0 | K10: =Projektbudget!K17*$C10 -> 0 | L10: =Projektbudget!L17*$C10 -> 0 | M10: =Projektbudget!M17*$C10 -> 0 | N10: 0 | Q10: Doktorand (Snittlön) | S10: 0 | T10: 0 | U10: 0 | V10: 0 | W10: 0 | X10: 0 | Y10: 0 | Z10: 0 | AA10: 0 | AB10: 0 | AC10: 0
B11: =Projektbudget!A18 -> Administratör | C11: 1700 | D11: =Projektbudget!D18*$C11 -> 0 | E11: =Projektbudget!E18*$C11 -> 0 | F11: =Projektbudget!F18*$C11 -> 0 | G11: =Projektbudget!G18*$C11 -> 0 | H11: =Projektbudget!H18*$C11 -> 0 | I11: =Projektbudget!I18*$C11 -> 0 | J11: =Projektbudget!J18*$C11 -> 0 | K11: =Projektbudget!K18*$C11 -> 0 | L11: =Projektbudget!L18*$C11 -> 0 | M11: =Projektbudget!M18*$C11 -> 0 | N11: 0 | Q11: Administratör | S11: 0 | T11: 0 | U11: 0 | V11: 0 | W11: 0 | X11: 0 | Y11: 0 | Z11: 0 | AA11: 0 | AB11: 0 | AC11: 0
B12: =Projektbudget!A19 -> Labbtekniker | C12: 1700 | D12: =Projektbudget!D19*$C12 -> 0 | E12: =Projektbudget!E19*$C12 -> 0 | F12: =Projektbudget!F19*$C12 -> 0 | G12: =Projektbudget!G19*$C12 -> 0 | H12: =Projektbudget!H19*$C12 -> 0 | I12: =Projektbudget!I19*$C12 -> 0 | J12: =Projektbudget!J19*$C12 -> 0 | K12: =Projektbudget!K19*$C12 -> 0 | L12: =Projektbudget!L19*$C12 -> 0 | M12: =Projektbudget!M19*$C12 -> 0 | N12: 0 | Q12: Labbtekniker | S12: 0 | T12: 0 | U12: 0 | V12: 0 | W12: 0 | X12: 0 | Y12: 0 | Z12: 0 | AA12: 0 | AB12: 0 | AC12: 0
B13: =Projektbudget!A20 -> Forskningsassistent | C13: 1700 | D13: =Projektbudget!D20*$C13 -> 0 | E13: =Projektbudget!E20*$C13 -> 0 | F13: =Projektbudget!F20*$C13 -> 0 | G13: =Projektbudget!G20*$C13 -> 0 | H13: =Projektbudget!H20*$C13 -> 0 | I13: =Projektbudget!I20*$C13 -> 0 | J13: =Projektbudget!J20*$C13 -> 0 | K13: =Projektbudget!K20*$C13 -> 0 | L13: =Projektbudget!L20*$C13 -> 0 | M13: =Projektbudget!M20*$C13 -> 0 | N13: 0 | Q13: Forskningsassistent | S13: 0 | T13: 0 | U13: 0 | V13: 0 | W13: 0 | X13: 0 | Y13: 0 | Z13: 0 | AA13: 0 | AB13: 0 | AC13: 0
B14: =Projektbudget!A21 -> Forskare/biträdande forskare | C14: 1700 | D14: =Projektbudget!D21*$C14 -> 0 | E14: =Projektbudget!E21*$C14 -> 0 | F14: =Projektbudget!F21*$C14 -> 0 | G14: =Projektbudget!G21*$C14 -> 0 | H14: =Projektbudget!H21*$C14 -> 0 | I14: =Projektbudget!I21*$C14 -> 0 | J14: =Projektbudget!J21*$C14 -> 0 | K14: =Projektbudget!K21*$C14 -> 0 | L14: =Projektbudget!L21*$C14 -> 0 | M14: =Projektbudget!M21*$C14 -> 0 | N14: 0 | Q14: Forskare/biträdande forskare | S14: 0 | T14: 0 | U14: 0 | V14: 0 | W14: 0 | X14: 0 | Y14: 0 | Z14: 0 | AA14: 0 | AB14: 0 | AC14: 0
B15: =Projektbudget!A22 -> 0 | C15: 1700 | D15: =Projektbudget!D22*$C15 -> 0 | E15: =Projektbudget!E22*$C15 -> 0 | F15: =Projektbudget!F22*$C15 -> 0 | G15: =Projektbudget!G22*$C15 -> 0 | H15: =Projektbudget!H22*$C15 -> 0 | I15: =Projektbudget!I22*$C15 -> 0 | J15: =Projektbudget!J22*$C15 -> 0 | K15: =Projektbudget!K22*$C15 -> 0 | L15: =Projektbudget!L22*$C15 -> 0 | M15: =Projektbudget!M22*$C15 -> 0 | N15: 0 | Q15: 0 | S15: 0 | T15: 0 | U15: 0 | V15: 0 | W15: 0 | X15: 0 | Y15: 0 | Z15: 0 | AA15: 0 | AB15: 0 | AC15: 0
B16: =Projektbudget!A23 -> 0 | C16: 1700 | D16: =Projektbudget!D23*$C16 -> 0 | E16: =Projektbudget!E23*$C16 -> 0 | F16: =Projektbudget!F23*$C16 -> 0 | G16: =Projektbudget!G23*$C16 -> 0 | H16: =Projektbudget!H23*$C16 -> 0 | I16: =Projektbudget!I23*$C16 -> 0 | J16: =Projektbudget!J23*$C16 -> 0 | K16: =Projektbudget!K23*$C16 -> 0 | L16: =Projektbudget!L23*$C16 -> 0 | M16: =Projektbudget!M23*$C16 -> 0 | N16: 0 | Q16: 0 | S16: 0 | T16: 0 | U16: 0 | V16: 0 | W16: 0 | X16: 0 | Y16: 0 | Z16: 0 | AA16: 0 | AB16: 0 | AC16: 0
B17: =Projektbudget!A24 -> 0 | C17: 1700 | D17: =Projektbudget!D24*$C17 -> 0 | E17: =Projektbudget!E24*$C17 -> 0 | F17: =Projektbudget!F24*$C17 -> 0 | G17: =Projektbudget!G24*$C17 -> 0 | H17: =Projektbudget!H24*$C17 -> 0 | I17: =Projektbudget!I24*$C17 -> 0 | J17: =Projektbudget!J24*$C17 -> 0 | K17: =Projektbudget!K24*$C17 -> 0 | L17: =Projektbudget!L24*$C17 -> 0 | M17: =Projektbudget!M24*$C17 -> 0 | N17: 0 | Q17: 0 | S17: 0 | T17: 0 | U17: 0 | V17: 0 | W17: 0 | X17: 0 | Y17: 0 | Z17: 0 | AA17: 0 | AB17: 0 | AC17: 0
B18: =Projektbudget!A25 -> 0 | C18: 1700 | D18: =Projektbudget!D25*$C18 -> 0 | E18: =Projektbudget!E25*$C18 -> 0 | F18: =Projektbudget!F25*$C18 -> 0 | G18: =Projektbudget!G25*$C18 -> 0 | H18: =Projektbudget!H25*$C18 -> 0 | I18: =Projektbudget!I25*$C18 -> 0 | J18: =Projektbudget!J25*$C18 -> 0 | K18: =Projektbudget!K25*$C18 -> 0 | L18: =Projektbudget!L25*$C18 -> 0 | M18: =Projektbudget!M25*$C18 -> 0 | N18: 0 | Q18: 0 | S18: 0 | T18: 0 | U18: 0 | V18: 0 | W18: 0 | X18: 0 | Y18: 0 | Z18: 0 | AA18: 0 | AB18: 0 | AC18: 0
B19: =Projektbudget!A26 -> 0 | C19: 1700 | D19: =Projektbudget!D26*$C19 -> 0 | E19: =Projektbudget!E26*$C19 -> 0 | F19: =Projektbudget!F26*$C19 -> 0 | G19: =Projektbudget!G26*$C19 -> 0 | H19: =Projektbudget!H26*$C19 -> 0 | I19: =Projektbudget!I26*$C19 -> 0 | J19: =Projektbudget!J26*$C19 -> 0 | K19: =Projektbudget!K26*$C19 -> 0 | L19: =Projektbudget!L26*$C19 -> 0 | M19: =Projektbudget!M26*$C19 -> 0 | N19: 0 | Q19: 0 | S19: 0 | T19: 0 | U19: 0 | V19: 0 | W19: 0 | X19: 0 | Y19: 0 | Z19: 0 | AA19: 0 | AB19: 0 | AC19: 0
B20: =Projektbudget!A27 -> 0 | C20: 1700 | D20: =Projektbudget!D27*$C20 -> 0 | E20: =Projektbudget!E27*$C20 -> 0 | F20: =Projektbudget!F27*$C20 -> 0 | G20: =Projektbudget!G27*$C20 -> 0 | H20: =Projektbudget!H27*$C20 -> 0 | I20: =Projektbudget!I27*$C20 -> 0 | J20: =Projektbudget!J27*$C20 -> 0 | K20: =Projektbudget!K27*$C20 -> 0 | L20: =Projektbudget!L27*$C20 -> 0 | M20: =Projektbudget!M27*$C20 -> 0 | N20: 0 | Q20: 0 | S20: 0 | T20: 0 | U20: 0 | V20: 0 | W20: 0 | X20: 0 | Y20: 0 | Z20: 0 | AA20: 0 | AB20: 0 | AC20: 0
B21: =Projektbudget!A28 -> 0 | C21: 1700 | D21: =Projektbudget!D28*$C21 -> 0 | E21: =Projektbudget!E28*$C21 -> 0 | F21: =Projektbudget!F28*$C21 -> 0 | G21: =Projektbudget!G28*$C21 -> 0 | H21: =Projektbudget!H28*$C21 -> 0 | I21: =Projektbudget!I28*$C21 -> 0 | J21: =Projektbudget!J28*$C21 -> 0 | K21: =Projektbudget!K28*$C21 -> 0 | L21: =Projektbudget!L28*$C21 -> 0 | M21: =Projektbudget!M28*$C21 -> 0 | N21: 0 | Q21: 0 | S21: 0 | T21: 0 | U21: 0 | V21: 0 | W21: 0 | X21: 0 | Y21: 0 | Z21: 0 | AA21: 0 | AB21: 0 | AC21: 0
B22: =Projektbudget!A29 -> 0 | C22: 1700 | D22: =Projektbudget!D29*$C22 -> 0 | E22: =Projektbudget!E29*$C22 -> 0 | F22: =Projektbudget!F29*$C22 -> 0 | G22: =Projektbudget!G29*$C22 -> 0 | H22: =Projektbudget!H29*$C22 -> 0 | I22: =Projektbudget!I29*$C22 -> 0 | J22: =Projektbudget!J29*$C22 -> 0 | K22: =Projektbudget!K29*$C22 -> 0 | L22: =Projektbudget!L29*$C22 -> 0 | M22: =Projektbudget!M29*$C22 -> 0 | N22: 0 | Q22: 0 | S22: 0 | T22: 0 | U22: 0 | V22: 0 | W22: 0 | X22: 0 | Y22: 0 | Z22: 0 | AA22: 0 | AB22: 0 | AC22: 0
B23: =Projektbudget!A30 -> 0 | C23: 1700 | D23: =Projektbudget!D30*$C23 -> 0 | E23: =Projektbudget!E30*$C23 -> 0 | F23: =Projektbudget!F30*$C23 -> 0 | G23: =Projektbudget!G30*$C23 -> 0 | H23: =Projektbudget!H30*$C23 -> 0 | I23: =Projektbudget!I30*$C23 -> 0 | J23: =Projektbudget!J30*$C23 -> 0 | K23: =Projektbudget!K30*$C23 -> 0 | L23: =Projektbudget!L30*$C23 -> 0 | M23: =Projektbudget!M30*$C23 -> 0 | N23: 0 | Q23: 0 | S23: 0 | T23: 0 | U23: 0 | V23: 0 | W23: 0 | X23: 0 | Y23: 0 | Z23: 0 | AA23: 0 | AB23: 0 | AC23: 0
B24: =Projektbudget!A31 -> 0 | C24: 1700 | D24: =Projektbudget!D31*$C24 -> 0 | E24: =Projektbudget!E31*$C24 -> 0 | F24: =Projektbudget!F31*$C24 -> 0 | G24: =Projektbudget!G31*$C24 -> 0 | H24: =Projektbudget!H31*$C24 -> 0 | I24: =Projektbudget!I31*$C24 -> 0 | J24: =Projektbudget!J31*$C24 -> 0 | K24: =Projektbudget!K31*$C24 -> 0 | L24: =Projektbudget!L31*$C24 -> 0 | M24: =Projektbudget!M31*$C24 -> 0 | N24: 0 | Q24: 0 | S24: 0 | T24: 0 | U24: 0 | V24: 0 | W24: 0 | X24: 0 | Y24: 0 | Z24: 0 | AA24: 0 | AB24: 0 | AC24: 0
B25: =Projektbudget!A32 -> 0 | C25: 1700 | D25: =Projektbudget!D32*$C25 -> 0 | E25: =Projektbudget!E32*$C25 -> 0 | F25: =Projektbudget!F32*$C25 -> 0 | G25: =Projektbudget!G32*$C25 -> 0 | H25: =Projektbudget!H32*$C25 -> 0 | I25: =Projektbudget!I32*$C25 -> 0 | J25: =Projektbudget!J32*$C25 -> 0 | K25: =Projektbudget!K32*$C25 -> 0 | L25: =Projektbudget!L32*$C25 -> 0 | M25: =Projektbudget!M32*$C25 -> 0 | N25: 0 | Q25: 0 | S25: 0 | T25: 0 | U25: 0 | V25: 0 | W25: 0 | X25: 0 | Y25: 0 | Z25: 0 | AA25: 0 | AB25: 0 | AC25: 0
B26: =Projektbudget!A33 -> 0 | C26: 1700 | D26: =Projektbudget!D33*$C26 -> 0 | E26: =Projektbudget!E33*$C26 -> 0 | F26: =Projektbudget!F33*$C26 -> 0 | G26: =Projektbudget!G33*$C26 -> 0 | H26: =Projektbudget!H33*$C26 -> 0 | I26: =Projektbudget!I33*$C26 -> 0 | J26: =Projektbudget!J33*$C26 -> 0 | K26: =Projektbudget!K33*$C26 -> 0 | L26: =Projektbudget!L33*$C26 -> 0 | M26: =Projektbudget!M33*$C26 -> 0 | N26: 0 | Q26: 0 | S26: 0 | T26: 0 | U26: 0 | V26: 0 | W26: 0 | X26: 0 | Y26: 0 | Z26: 0 | AA26: 0 | AB26: 0 | AC26: 0
B27: =Projektbudget!A34 -> 0 | C27: 1700 | D27: =Projektbudget!D34*$C27 -> 0 | E27: =Projektbudget!E34*$C27 -> 0 | F27: =Projektbudget!F34*$C27 -> 0 | G27: =Projektbudget!G34*$C27 -> 0 | H27: =Projektbudget!H34*$C27 -> 0 | I27: =Projektbudget!I34*$C27 -> 0 | J27: =Projektbudget!J34*$C27 -> 0 | K27: =Projektbudget!K34*$C27 -> 0 | L27: =Projektbudget!L34*$C27 -> 0 | M27: =Projektbudget!M34*$C27 -> 0 | N27: 0 | Q27: 0 | S27: 0 | T27: 0 | U27: 0 | V27: 0 | W27: 0 | X27: 0 | Y27: 0 | Z27: 0 | AA27: 0 | AB27: 0 | AC27: 0
B28: =Projektbudget!A35 -> 0 | C28: 1700 | D28: =Projektbudget!D35*$C28 -> 0 | E28: =Projektbudget!E35*$C28 -> 0 | F28: =Projektbudget!F35*$C28 -> 0 | G28: =Projektbudget!G35*$C28 -> 0 | H28: =Projektbudget!H35*$C28 -> 0 | I28: =Projektbudget!I35*$C28 -> 0 | J28: =Projektbudget!J35*$C28 -> 0 | K28: =Projektbudget!K35*$C28 -> 0 | L28: =Projektbudget!L35*$C28 -> 0 | M28: =Projektbudget!M35*$C28 -> 0 | N28: 0 | Q28: 0 | S28: 0 | T28: 0 | U28: 0 | V28: 0 | W28: 0 | X28: 0 | Y28: 0 | Z28: 0 | AA28: 0 | AB28: 0 | AC28: 0
B29: =Projektbudget!A36 -> 0 | C29: 1700 | D29: =Projektbudget!D36*$C29 -> 0 | E29: =Projektbudget!E36*$C29 -> 0 | F29: =Projektbudget!F36*$C29 -> 0 | G29: =Projektbudget!G36*$C29 -> 0 | H29: =Projektbudget!H36*$C29 -> 0 | I29: =Projektbudget!I36*$C29 -> 0 | J29: =Projektbudget!J36*$C29 -> 0 | K29: =Projektbudget!K36*$C29 -> 0 | L29: =Projektbudget!L36*$C29 -> 0 | M29: =Projektbudget!M36*$C29 -> 0 | N29: 0 | Q29: 0 | S29: 0 | T29: 0 | U29: 0 | V29: 0 | W29: 0 | X29: 0 | Y29: 0 | Z29: 0 | AA29: 0 | AB29: 0 | AC29: 0
B30: =Projektbudget!A37 -> 0 | C30: 1700 | D30: =Projektbudget!D37*$C30 -> 0 | E30: =Projektbudget!E37*$C30 -> 0 | F30: =Projektbudget!F37*$C30 -> 0 | G30: =Projektbudget!G37*$C30 -> 0 | H30: =Projektbudget!H37*$C30 -> 0 | I30: =Projektbudget!I37*$C30 -> 0 | J30: =Projektbudget!J37*$C30 -> 0 | K30: =Projektbudget!K37*$C30 -> 0 | L30: =Projektbudget!L37*$C30 -> 0 | M30: =Projektbudget!M37*$C30 -> 0 | N30: 0 | Q30: 0 | S30: 0 | T30: 0 | U30: 0 | V30: 0 | W30: 0 | X30: 0 | Y30: 0 | Z30: 0 | AA30: 0 | AB30: 0 | AC30: 0
B31: =Projektbudget!A38 -> 0 | C31: 1700 | D31: =Projektbudget!D38*$C31 -> 0 | E31: =Projektbudget!E38*$C31 -> 0 | F31: =Projektbudget!F38*$C31 -> 0 | G31: =Projektbudget!G38*$C31 -> 0 | H31: =Projektbudget!H38*$C31 -> 0 | I31: =Projektbudget!I38*$C31 -> 0 | J31: =Projektbudget!J38*$C31 -> 0 | K31: =Projektbudget!K38*$C31 -> 0 | L31: =Projektbudget!L38*$C31 -> 0 | M31: =Projektbudget!M38*$C31 -> 0 | N31: 0 | Q31: 0 | S31: 0 | T31: 0 | U31: 0 | V31: 0 | W31: 0 | X31: 0 | Y31: 0 | Z31: 0 | AA31: 0 | AB31: 0 | AC31: 0
B32: =Projektbudget!A39 -> 0 | C32: 1700 | D32: =Projektbudget!D39*$C32 -> 0 | E32: =Projektbudget!E39*$C32 -> 0 | F32: =Projektbudget!F39*$C32 -> 0 | G32: =Projektbudget!G39*$C32 -> 0 | H32: =Projektbudget!H39*$C32 -> 0 | I32: =Projektbudget!I39*$C32 -> 0 | J32: =Projektbudget!J39*$C32 -> 0 | K32: =Projektbudget!K39*$C32 -> 0 | L32: =Projektbudget!L39*$C32 -> 0 | M32: =Projektbudget!M39*$C32 -> 0 | N32: 0 | Q32: 0 | S32: 0 | T32: 0 | U32: 0 | V32: 0 | W32: 0 | X32: 0 | Y32: 0 | Z32: 0 | AA32: 0 | AB32: 0 | AC32: 0
B33: =Projektbudget!A40 -> 0 | C33: 1700 | D33: =Projektbudget!D40*$C33 -> 0 | E33: =Projektbudget!E40*$C33 -> 0 | F33: =Projektbudget!F40*$C33 -> 0 | G33: =Projektbudget!G40*$C33 -> 0 | H33: =Projektbudget!H40*$C33 -> 0 | I33: =Projektbudget!I40*$C33 -> 0 | J33: =Projektbudget!J40*$C33 -> 0 | K33: =Projektbudget!K40*$C33 -> 0 | L33: =Projektbudget!L40*$C33 -> 0 | M33: =Projektbudget!M40*$C33 -> 0 | N33: 0 | Q33: 0 | S33: 0 | T33: 0 | U33: 0 | V33: 0 | W33: 0 | X33: 0 | Y33: 0 | Z33: 0 | AA33: 0 | AB33: 0 | AC33: 0
B34: =Projektbudget!A41 -> 0 | C34: 1700 | D34: =Projektbudget!D41*$C34 -> 0 | E34: =Projektbudget!E41*$C34 -> 0 | F34: =Projektbudget!F41*$C34 -> 0 | G34: =Projektbudget!G41*$C34 -> 0 | H34: =Projektbudget!H41*$C34 -> 0 | I34: =Projektbudget!I41*$C34 -> 0 | J34: =Projektbudget!J41*$C34 -> 0 | K34: =Projektbudget!K41*$C34 -> 0 | L34: =Projektbudget!L41*$C34 -> 0 | M34: =Projektbudget!M41*$C34 -> 0 | N34: 0 | Q34: 0 | S34: 0 | T34: 0 | U34: 0 | V34: 0 | W34: 0 | X34: 0 | Y34: 0 | Z34: 0 | AA34: 0 | AB34: 0 | AC34: 0
B35: =Projektbudget!A42 -> 0 | C35: 1700 | D35: =Projektbudget!D42*$C35 -> 0 | E35: =Projektbudget!E42*$C35 -> 0 | F35: =Projektbudget!F42*$C35 -> 0 | G35: =Projektbudget!G42*$C35 -> 0 | H35: =Projektbudget!H42*$C35 -> 0 | I35: =Projektbudget!I42*$C35 -> 0 | J35: =Projektbudget!J42*$C35 -> 0 | K35: =Projektbudget!K42*$C35 -> 0 | L35: =Projektbudget!L42*$C35 -> 0 | M35: =Projektbudget!M42*$C35 -> 0 | N35: 0 | Q35: 0 | S35: 0 | T35: 0 | U35: 0 | V35: 0 | W35: 0 | X35: 0 | Y35: 0 | Z35: 0 | AA35: 0 | AB35: 0 | AC35: 0
B36: =Projektbudget!A43 -> 0 | C36: 1700 | D36: =Projektbudget!D43*$C36 -> 0 | E36: =Projektbudget!E43*$C36 -> 0 | F36: =Projektbudget!F43*$C36 -> 0 | G36: =Projektbudget!G43*$C36 -> 0 | H36: =Projektbudget!H43*$C36 -> 0 | I36: =Projektbudget!I43*$C36 -> 0 | J36: =Projektbudget!J43*$C36 -> 0 | K36: =Projektbudget!K43*$C36 -> 0 | L36: =Projektbudget!L43*$C36 -> 0 | M36: =Projektbudget!M43*$C36 -> 0 | N36: 0 | Q36: 0 | S36: 0 | T36: 0 | U36: 0 | V36: 0 | W36: 0 | X36: 0 | Y36: 0 | Z36: 0 | AA36: 0 | AB36: 0 | AC36: 0
B37: =Projektbudget!A44 -> 0 | C37: 1700 | D37: =Projektbudget!D44*$C37 -> 0 | E37: =Projektbudget!E44*$C37 -> 0 | F37: =Projektbudget!F44*$C37 -> 0 | G37: =Projektbudget!G44*$C37 -> 0 | H37: =Projektbudget!H44*$C37 -> 0 | I37: =Projektbudget!I44*$C37 -> 0 | J37: =Projektbudget!J44*$C37 -> 0 | K37: =Projektbudget!K44*$C37 -> 0 | L37: =Projektbudget!L44*$C37 -> 0 | M37: =Projektbudget!M44*$C37 -> 0 | N37: 0 | Q37: 0 | S37: 0 | T37: 0 | U37: 0 | V37: 0 | W37: 0 | X37: 0 | Y37: 0 | Z37: 0 | AA37: 0 | AB37: 0 | AC37: 0
B38: =Projektbudget!A45 -> 0 | C38: 1700 | D38: =Projektbudget!D45*$C38 -> 0 | E38: =Projektbudget!E45*$C38 -> 0 | F38: =Projektbudget!F45*$C38 -> 0 | G38: =Projektbudget!G45*$C38 -> 0 | H38: =Projektbudget!H45*$C38 -> 0 | I38: =Projektbudget!I45*$C38 -> 0 | J38: =Projektbudget!J45*$C38 -> 0 | K38: =Projektbudget!K45*$C38 -> 0 | L38: =Projektbudget!L45*$C38 -> 0 | M38: =Projektbudget!M45*$C38 -> 0 | N38: 0 | Q38: 0 | S38: 0 | T38: 0 | U38: 0 | V38: 0 | W38: 0 | X38: 0 | Y38: 0 | Z38: 0 | AA38: 0 | AB38: 0 | AC38: 0
B39: =Projektbudget!A46 -> 0 | C39: 1700 | D39: =Projektbudget!D46*$C39 -> 0 | E39: =Projektbudget!E46*$C39 -> 0 | F39: =Projektbudget!F46*$C39 -> 0 | G39: =Projektbudget!G46*$C39 -> 0 | H39: =Projektbudget!H46*$C39 -> 0 | I39: =Projektbudget!I46*$C39 -> 0 | J39: =Projektbudget!J46*$C39 -> 0 | K39: =Projektbudget!K46*$C39 -> 0 | L39: =Projektbudget!L46*$C39 -> 0 | M39: =Projektbudget!M46*$C39 -> 0 | N39: 0 | Q39: 0 | S39: 0 | T39: 0 | U39: 0 | V39: 0 | W39: 0 | X39: 0 | Y39: 0 | Z39: 0 | AA39: 0 | AB39: 0 | AC39: 0
B40: Totalt | C40: 5100 | D40: =SUM(D5:D39) -> 0 | E40: 0 | F40: 0 | G40: 0 | H40: 0 | I40: 0 | J40: 0 | K40: 0 | L40: 0 | M40: 0 | N40: 0 | Q40: Totalt | R40: =AC40 -> 0 | S40: =SUM(S5:S39) -> 0 | T40: 0 | U40: 0 | V40: 0 | W40: 0 | X40: 0 | Y40: 0 | Z40: 0 | AA40: 0 | AB40: 0 | AC40: 0

Sheet År 1 (hidden)
B1: ="Projekt: "&Projektbudget!$B$4 -> Projekt:
D3: Budget timmar (ev. reviderad) | O3: Godkännande | S3: Manmånader
C4: Åarb | D4: =Projektbudget!D52 -> 2021 | E4: =Projektbudget!E52 -> 2022 | F4: =Projektbudget!F52 -> 2023 | G4: =Projektbudget!G52 -> 2024 | H4: =Projektbudget!H52 -> 2025 | I4: =Projektbudget!I52 -> 2026 | J4: =Projektbudget!J52 -> 2027 | K4: =Projektbudget!K52 -> 2028 | L4: =Projektbudget!L52 -> 2029 | M4: =Projektbudget!M52 -> 2030 | N4: Totalt | O4: prefekt / SR | S4: =D4 -> 2021 | T4: =E4 -> 2022 | U4: =F4 -> 2023 | V4: =G4 -> 2024 | W4: =H4 -> 2025 | X4: =I4 -> 2026 | Y4: 2027 | Z4: 2028 | AA4: 2029 | AB4: 2030 | AC4: Totalt
B5: =Projektbudget!A12 -> Professor | C5: ='Resursallokering budget (låst)'!C5 -> 1700 | D5: =Projektbudget!D12*$C5 -> 0 | E5: =Projektbudget!E12*$C5 -> 0 | F5: =Projektbudget!F12*$C5 -> 0 | G5: =Projektbudget!G12*$C5 -> 0 | H5: =Projektbudget!H12*$C5 -> 0 | I5: =Projektbudget!I12*$C5 -> 0 | J5: =Projektbudget!J12*$C5 -> 0 | K5: =Projektbudget!K12*$C5 -> 0 | L5: =Projektbudget!L12*$C5 -> 0 | M5: =Projektbudget!M12*$C5 -> 0 | N5: =SUM(D5:M5) -> 0 | Q5: =B5 -> Professor | S5: =IFERROR(D5/($C5/12),0) -> 0 | T5: 0 | U5: 0 | V5: 0 | W5: 0 | X5: 0 | Y5: 0 | Z5: 0 | AA5: 0 | AB5: 0 | AC5: =SUM(S5:AB5) -> 0
B6: =Projektbudget!A13 -> Docent | C6: ='Resursallokering budget (låst)'!C6 -> 1700 | D6: =Projektbudget!D13*$C6 -> 0 | E6: =Projektbudget!E13*$C6 -> 0 | F6: =Projektbudget!F13*$C6 -> 0 | G6: =Projektbudget!G13*$C6 -> 0 | H6: =Projektbudget!H13*$C6 -> 0 | I6: =Projektbudget!I13*$C6 -> 0 | J6: =Projektbudget!J13*$C6 -> 0 | K6: =Projektbudget!K13*$C6 -> 0 | L6: =Projektbudget!L13*$C6 -> 0 | M6: =Projektbudget!M13*$C6 -> 0 | N6: =SUM(D6:M6) -> 0 | Q6: Docent | S6: 0 | T6: 0 | U6: 0 | V6: 0 | W6: 0 | X6: 0 | Y6: 0 | Z6: 0 | AA6: 0 | AB6: 0 | AC6: =SUM(S6:AB6) -> 0
B7: =Projektbudget!A14 -> Lektor | C7: ='Resursallokering budget (låst)'!C7 -> 1700 | D7: =Projektbudget!D14*$C7 -> 0 | E7: =Projektbudget!E14*$C7 -> 0 | F7: =Projektbudget!F14*$C7 -> 0 | G7: =Projektbudget!G14*$C7 -> 0 | H7: =Projektbudget!H14*$C7 -> 0 | I7: =Projektbudget!I14*$C7 -> 0 | J7: =Projektbudget!J14*$C7 -> 0 | K7: =Projektbudget!K14*$C7 -> 0 | L7: =Projektbudget!L14*$C7 -> 0 | M7: =Projektbudget!M14*$C7 -> 0 | N7: 0 | Q7: Lektor | S7: =IFERROR(D7/($C7/12),0) -> 0 | T7: =IFERROR(E7/($C7/12),0) -> 0 | U7: 0 | V7: 0 | W7: 0 | X7: 0 | Y7: 0 | Z7: 0 | AA7: 0 | AB7: 0 | AC7: 0
B8: =Projektbudget!A15 -> Adjunkt | C8: ='Resursallokering budget (låst)'!C8 -> 1700 | D8: =Projektbudget!D15*$C8 -> 0 | E8: =Projektbudget!E15*$C8 -> 0 | F8: =Projektbudget!F15*$C8 -> 0 | G8: =Projektbudget!G15*$C8 -> 0 | H8: =Projektbudget!H15*$C8 -> 0 | I8: =Projektbudget!I15*$C8 -> 0 | J8: =Projektbudget!J15*$C8 -> 0 | K8: =Projektbudget!K15*$C8 -> 0 | L8: =Projektbudget!L15*$C8 -> 0 | M8: =Projektbudget!M15*$C8 -> 0 | N8: 0 | Q8: Adjunkt | S8: =IFERROR(D8/($C8/12),0) -> 0 | T8: 0 | U8: 0 | V8: 0 | W8: 0 | X8: 0 | Y8: 0 | Z8: 0 | AA8: 0 | AB8: 0 | AC8: 0
B9: =Projektbudget!A16 -> Post dok | C9: ='Resursallokering budget (låst)'!C9 -> 1700 | D9: =Projektbudget!D16*$C9 -> 0 | E9: =Projektbudget!E16*$C9 -> 0 | F9: =Projektbudget!F16*$C9 -> 0 | G9: =Projektbudget!G16*$C9 -> 0 | H9: =Projektbudget!H16*$C9 -> 0 | I9: =Projektbudget!I16*$C9 -> 0 | J9: =Projektbudget!J16*$C9 -> 0 | K9: =Projektbudget!K16*$C9 -> 0 | L9: =Projektbudget!L16*$C9 -> 0 | M9: =Projektbudget!M16*$C9 -> 0 | N9: 0 | Q9: Post dok | S9: 0 | T9: 0 | U9: 0 | V9: 0 | W9: 0 | X9: 0 | Y9: 0 | Z9: 0 | AA9: 0 | AB9: 0 | AC9: 0
B10: =Projektbudget!A17 -> Doktorand (Snittlön) | C10: ='Resursallokering budget (låst)'!C10 -> 1700 | D10: =Projektbudget!D17*$C10 -> 0 | E10: =Projektbudget!E17*$C10 -> 0 | F10: =Projektbudget!F17*$C10 -> 0 | G10: =Projektbudget!G17*$C10 -> 0 | H10: =Projektbudget!H17*$C10 -> 0 | I10: =Projektbudget!I17*$C10 -> 0 | J10: =Projektbudget!J17*$C10 -> 0 | K10: =Projektbudget!K17*$C10 -> 0 | L10: =Projektbudget!L17*$C10 -> 0 | M10: =Projektbudget!M17*$C10 -> 0 | N10: 0 | Q10: Doktorand (Snittlön) | S10: 0 | T10: 0 | U10: 0 | V10: 0 | W10: 0 | X10: 0 | Y10: 0 | Z10: 0 | AA10: 0 | AB10: 0 | AC10: 0
B11: =Projektbudget!A18 -> Administratör | C11: ='Resursallokering budget (låst)'!C11 -> 1700 | D11: =Projektbudget!D18*$C11 -> 0 | E11: =Projektbudget!E18*$C11 -> 0 | F11: =Projektbudget!F18*$C11 -> 0 | G11: =Projektbudget!G18*$C11 -> 0 | H11: =Projektbudget!H18*$C11 -> 0 | I11: =Projektbudget!I18*$C11 -> 0 | J11: =Projektbudget!J18*$C11 -> 0 | K11: =Projektbudget!K18*$C11 -> 0 | L11: =Projektbudget!L18*$C11 -> 0 | M11: =Projektbudget!M18*$C11 -> 0 | N11: 0 | Q11: Administratör | S11: 0 | T11: 0 | U11: 0 | V11: 0 | W11: 0 | X11: 0 | Y11: 0 | Z11: 0 | AA11: 0 | AB11: 0 | AC11: 0
B12: =Projektbudget!A19 -> Labbtekniker | C12: ='Resursallokering budget (låst)'!C12 -> 1700 | D12: =Projektbudget!D19*$C12 -> 0 | E12: =Projektbudget!E19*$C12 -> 0 | F12: =Projektbudget!F19*$C12 -> 0 | G12: =Projektbudget!G19*$C12 -> 0 | H12: =Projektbudget!H19*$C12 -> 0 | I12: =Projektbudget!I19*$C12 -> 0 | J12: =Projektbudget!J19*$C12 -> 0 | K12: =Projektbudget!K19*$C12 -> 0 | L12: =Projektbudget!L19*$C12 -> 0 | M12: =Projektbudget!M19*$C12 -> 0 | N12: 0 | Q12: Labbtekniker | S12: 0 | T12: 0 | U12: 0 | V12: 0 | W12: 0 | X12: 0 | Y12: 0 | Z12: 0 | AA12: 0 | AB12: 0 | AC12: 0
B13: =Projektbudget!A20 -> Forskningsassistent | C13: ='Resursallokering budget (låst)'!C13 -> 1700 | D13: =Projektbudget!D20*$C13 -> 0 | E13: =Projektbudget!E20*$C13 -> 0 | F13: =Projektbudget!F20*$C13 -> 0 | G13: =Projektbudget!G20*$C13 -> 0 | H13: =Projektbudget!H20*$C13 -> 0 | I13: =Projektbudget!I20*$C13 -> 0 | J13: =Projektbudget!J20*$C13 -> 0 | K13: =Projektbudget!K20*$C13 -> 0 | L13: =Projektbudget!L20*$C13 -> 0 | M13: =Projektbudget!M20*$C13 -> 0 | N13: 0 | Q13: Forskningsassistent | S13: 0 | T13: 0 | U13: 0 | V13: 0 | W13: 0 | X13: 0 | Y13: 0 | Z13: 0 | AA13: 0 | AB13: 0 | AC13: 0
B14: =Projektbudget!A21 -> Forskare/biträdande forskare | C14: ='Resursallokering budget (låst)'!C14 -> 1700 | D14: =Projektbudget!D21*$C14 -> 0 | E14: =Projektbudget!E21*$C14 -> 0 | F14: =Projektbudget!F21*$C14 -> 0 | G14: =Projektbudget!G21*$C14 -> 0 | H14: =Projektbudget!H21*$C14 -> 0 | I14: =Projektbudget!I21*$C14 -> 0 | J14: =Projektbudget!J21*$C14 -> 0 | K14: =Projektbudget!K21*$C14 -> 0 | L14: =Projektbudget!L21*$C14 -> 0 | M14: =Projektbudget!M21*$C14 -> 0 | N14: 0 | Q14: Forskare/biträdande forskare | S14: 0 | T14: 0 | U14: 0 | V14: 0 | W14: 0 | X14: 0 | Y14: 0 | Z14: 0 | AA14: 0 | AB14: 0 | AC14: 0
B15: =Projektbudget!A22 -> 0 | C15: ='Resursallokering budget (låst)'!C15 -> 1700 | D15: =Projektbudget!D22*$C15 -> 0 | E15: =Projektbudget!E22*$C15 -> 0 | F15: =Projektbudget!F22*$C15 -> 0 | G15: =Projektbudget!G22*$C15 -> 0 | H15: =Projektbudget!H22*$C15 -> 0 | I15: =Projektbudget!I22*$C15 -> 0 | J15: =Projektbudget!J22*$C15 -> 0 | K15: =Projektbudget!K22*$C15 -> 0 | L15: =Projektbudget!L22*$C15 -> 0 | M15: =Projektbudget!M22*$C15 -> 0 | N15: 0 | Q15: 0 | S15: 0 | T15: 0 | U15: 0 | V15: 0 | W15: 0 | X15: 0 | Y15: 0 | Z15: 0 | AA15: 0 | AB15: 0 | AC15: 0
B16: =Projektbudget!A23 -> 0 | C16: ='Resursallokering budget (låst)'!C16 -> 1700 | D16: =Projektbudget!D23*$C16 -> 0 | E16: =Projektbudget!E23*$C16 -> 0 | F16: =Projektbudget!F23*$C16 -> 0 | G16: =Projektbudget!G23*$C16 -> 0 | H16: =Projektbudget!H23*$C16 -> 0 | I16: =Projektbudget!I23*$C16 -> 0 | J16: =Projektbudget!J23*$C16 -> 0 | K16: =Projektbudget!K23*$C16 -> 0 | L16: =Projektbudget!L23*$C16 -> 0 | M16: =Projektbudget!M23*$C16 -> 0 | N16: 0 | Q16: 0 | S16: 0 | T16: 0 | U16: 0 | V16: 0 | W16: 0 | X16: 0 | Y16: 0 | Z16: 0 | AA16: 0 | AB16: 0 | AC16: 0
B17: =Projektbudget!A24 -> 0 | C17: ='Resursallokering budget (låst)'!C17 -> 1700 | D17: =Projektbudget!D24*$C17 -> 0 | E17: =Projektbudget!E24*$C17 -> 0 | F17: =Projektbudget!F24*$C17 -> 0 | G17: =Projektbudget!G24*$C17 -> 0 | H17: =Projektbudget!H24*$C17 -> 0 | I17: =Projektbudget!I24*$C17 -> 0 | J17: =Projektbudget!J24*$C17 -> 0 | K17: =Projektbudget!K24*$C17 -> 0 | L17: =Projektbudget!L24*$C17 -> 0 | M17: =Projektbudget!M24*$C17 -> 0 | N17: 0 | Q17: 0 | S17: 0 | T17: 0 | U17: 0 | V17: 0 | W17: 0 | X17: 0 | Y17: 0 | Z17: 0 | AA17: 0 | AB17: 0 | AC17: 0
B18: =Projektbudget!A25 -> 0 | C18: ='Resursallokering budget (låst)'!C18 -> 1700 | D18: =Projektbudget!D25*$C18 -> 0 | E18: =Projektbudget!E25*$C18 -> 0 | F18: =Projektbudget!F25*$C18 -> 0 | G18: =Projektbudget!G25*$C18 -> 0 | H18: =Projektbudget!H25*$C18 -> 0 | I18: =Projektbudget!I25*$C18 -> 0 | J18: =Projektbudget!J25*$C18 -> 0 | K18: =Projektbudget!K25*$C18 -> 0 | L18: =Projektbudget!L25*$C18 -> 0 | M18: =Projektbudget!M25*$C18 -> 0 | N18: 0 | Q18: 0 | S18: 0 | T18: 0 | U18: 0 | V18: 0 | W18: 0 | X18: 0 | Y18: 0 | Z18: 0 | AA18: 0 | AB18: 0 | AC18: 0
B19: =Projektbudget!A26 -> 0 | C19: ='Resursallokering budget (låst)'!C19 -> 1700 | D19: =Projektbudget!D26*$C19 -> 0 | E19: =Projektbudget!E26*$C19 -> 0 | F19: =Projektbudget!F26*$C19 -> 0 | G19: =Projektbudget!G26*$C19 -> 0 | H19: =Projektbudget!H26*$C19 -> 0 | I19: =Projektbudget!I26*$C19 -> 0 | J19: =Projektbudget!J26*$C19 -> 0 | K19: =Projektbudget!K26*$C19 -> 0 | L19: =Projektbudget!L26*$C19 -> 0 | M19: =Projektbudget!M26*$C19 -> 0 | N19: 0 | Q19: 0 | S19: 0 | T19: 0 | U19: 0 | V19: 0 | W19: 0 | X19: 0 | Y19: 0 | Z19: 0 | AA19: 0 | AB19: 0 | AC19: 0
B20: =Projektbudget!A27 -> 0 | C20: ='Resursallokering budget (låst)'!C20 -> 1700 | D20: =Projektbudget!D27*$C20 -> 0 | E20: =Projektbudget!E27*$C20 -> 0 | F20: =Projektbudget!F27*$C20 -> 0 | G20: =Projektbudget!G27*$C20 -> 0 | H20: =Projektbudget!H27*$C20 -> 0 | I20: =Projektbudget!I27*$C20 -> 0 | J20: =Projektbudget!J27*$C20 -> 0 | K20: =Projektbudget!K27*$C20 -> 0 | L20: =Projektbudget!L27*$C20 -> 0 | M20: =Projektbudget!M27*$C20 -> 0 | N20: 0 | Q20: 0 | S20: 0 | T20: 0 | U20: 0 | V20: 0 | W20: 0 | X20: 0 | Y20: 0 | Z20: 0 | AA20: 0 | AB20: 0 | AC20: 0
B21: =Projektbudget!A28 -> 0 | C21: ='Resursallokering budget (låst)'!C21 -> 1700 | D21: =Projektbudget!D28*$C21 -> 0 | E21: =Projektbudget!E28*$C21 -> 0 | F21: =Projektbudget!F28*$C21 -> 0 | G21: =Projektbudget!G28*$C21 -> 0 | H21: =Projektbudget!H28*$C21 -> 0 | I21: =Projektbudget!I28*$C21 -> 0 | J21: =Projektbudget!J28*$C21 -> 0 | K21: =Projektbudget!K28*$C21 -> 0 | L21: =Projektbudget!L28*$C21 -> 0 | M21: =Projektbudget!M28*$C21 -> 0 | N21: 0 | Q21: 0 | S21: 0 | T21: 0 | U21: 0 | V21: 0 | W21: 0 | X21: 0 | Y21: 0 | Z21: 0 | AA21: 0 | AB21: 0 | AC21: 0
B22: =Projektbudget!A29 -> 0 | C22: ='Resursallokering budget (låst)'!C22 -> 1700 | D22: =Projektbudget!D29*$C22 -> 0 | E22: =Projektbudget!E29*$C22 -> 0 | F22: =Projektbudget!F29*$C22 -> 0 | G22: =Projektbudget!G29*$C22 -> 0 | H22: =Projektbudget!H29*$C22 -> 0 | I22: =Projektbudget!I29*$C22 -> 0 | J22: =Projektbudget!J29*$C22 -> 0 | K22: =Projektbudget!K29*$C22 -> 0 | L22: =Projektbudget!L29*$C22 -> 0 | M22: =Projektbudget!M29*$C22 -> 0 | N22: 0 | Q22: 0 | S22: 0 | T22: 0 | U22: 0 | V22: 0 | W22: 0 | X22: 0 | Y22: 0 | Z22: 0 | AA22: 0 | AB22: 0 | AC22: 0
B23: =Projektbudget!A30 -> 0 | C23: ='Resursallokering budget (låst)'!C23 -> 1700 | D23: =Projektbudget!D30*$C23 -> 0 | E23: =Projektbudget!E30*$C23 -> 0 | F23: =Projektbudget!F30*$C23 -> 0 | G23: =Projektbudget!G30*$C23 -> 0 | H23: =Projektbudget!H30*$C23 -> 0 | I23: =Projektbudget!I30*$C23 -> 0 | J23: =Projektbudget!J30*$C23 -> 0 | K23: =Projektbudget!K30*$C23 -> 0 | L23: =Projektbudget!L30*$C23 -> 0 | M23: =Projektbudget!M30*$C23 -> 0 | N23: 0 | Q23: 0 | S23: 0 | T23: 0 | U23: 0 | V23: 0 | W23: 0 | X23: 0 | Y23: 0 | Z23: 0 | AA23: 0 | AB23: 0 | AC23: 0
B24: =Projektbudget!A31 -> 0 | C24: ='Resursallokering budget (låst)'!C24 -> 1700 | D24: =Projektbudget!D31*$C24 -> 0 | E24: =Projektbudget!E31*$C24 -> 0 | F24: =Projektbudget!F31*$C24 -> 0 | G24: =Projektbudget!G31*$C24 -> 0 | H24: =Projektbudget!H31*$C24 -> 0 | I24: =Projektbudget!I31*$C24 -> 0 | J24: =Projektbudget!J31*$C24 -> 0 | K24: =Projektbudget!K31*$C24 -> 0 | L24: =Projektbudget!L31*$C24 -> 0 | M24: =Projektbudget!M31*$C24 -> 0 | N24: 0 | Q24: 0 | S24: 0 | T24: 0 | U24: 0 | V24: 0 | W24: 0 | X24: 0 | Y24: 0 | Z24: 0 | AA24: 0 | AB24: 0 | AC24: 0
B25: =Projektbudget!A32 -> 0 | C25: ='Resursallokering budget (låst)'!C25 -> 1700 | D25: =Projektbudget!D32*$C25 -> 0 | E25: =Projektbudget!E32*$C25 -> 0 | F25: =Projektbudget!F32*$C25 -> 0 | G25: =Projektbudget!G32*$C25 -> 0 | H25: =Projektbudget!H32*$C25 -> 0 | I25: =Projektbudget!I32*$C25 -> 0 | J25: =Projektbudget!J32*$C25 -> 0 | K25: =Projektbudget!K32*$C25 -> 0 | L25: =Projektbudget!L32*$C25 -> 0 | M25: =Projektbudget!M32*$C25 -> 0 | N25: 0 | Q25: 0 | S25: 0 | T25: 0 | U25: 0 | V25: 0 | W25: 0 | X25: 0 | Y25: 0 | Z25: 0 | AA25: 0 | AB25: 0 | AC25: 0
B26: =Projektbudget!A33 -> 0 | C26: ='Resursallokering budget (låst)'!C26 -> 1700 | D26: =Projektbudget!D33*$C26 -> 0 | E26: =Projektbudget!E33*$C26 -> 0 | F26: =Projektbudget!F33*$C26 -> 0 | G26: =Projektbudget!G33*$C26 -> 0 | H26: =Projektbudget!H33*$C26 -> 0 | I26: =Projektbudget!I33*$C26 -> 0 | J26: =Projektbudget!J33*$C26 -> 0 | K26: =Projektbudget!K33*$C26 -> 0 | L26: =Projektbudget!L33*$C26 -> 0 | M26: =Projektbudget!M33*$C26 -> 0 | N26: 0 | Q26: 0 | S26: 0 | T26: 0 | U26: 0 | V26: 0 | W26: 0 | X26: 0 | Y26: 0 | Z26: 0 | AA26: 0 | AB26: 0 | AC26: 0
B27: =Projektbudget!A34 -> 0 | C27: ='Resursallokering budget (låst)'!C27 -> 1700 | D27: =Projektbudget!D34*$C27 -> 0 | E27: =Projektbudget!E34*$C27 -> 0 | F27: =Projektbudget!F34*$C27 -> 0 | G27: =Projektbudget!G34*$C27 -> 0 | H27: =Projektbudget!H34*$C27 -> 0 | I27: =Projektbudget!I34*$C27 -> 0 | J27: =Projektbudget!J34*$C27 -> 0 | K27: =Projektbudget!K34*$C27 -> 0 | L27: =Projektbudget!L34*$C27 -> 0 | M27: =Projektbudget!M34*$C27 -> 0 | N27: 0 | Q27: 0 | S27: 0 | T27: 0 | U27: 0 | V27: 0 | W27: 0 | X27: 0 | Y27: 0 | Z27: 0 | AA27: 0 | AB27: 0 | AC27: 0
B28: =Projektbudget!A35 -> 0 | C28: ='Resursallokering budget (låst)'!C28 -> 1700 | D28: =Projektbudget!D35*$C28 -> 0 | E28: =Projektbudget!E35*$C28 -> 0 | F28: =Projektbudget!F35*$C28 -> 0 | G28: =Projektbudget!G35*$C28 -> 0 | H28: =Projektbudget!H35*$C28 -> 0 | I28: =Projektbudget!I35*$C28 -> 0 | J28: =Projektbudget!J35*$C28 -> 0 | K28: =Projektbudget!K35*$C28 -> 0 | L28: =Projektbudget!L35*$C28 -> 0 | M28: =Projektbudget!M35*$C28 -> 0 | N28: 0 | Q28: 0 | S28: 0 | T28: 0 | U28: 0 | V28: 0 | W28: 0 | X28: 0 | Y28: 0 | Z28: 0 | AA28: 0 | AB28: 0 | AC28: 0
B29: =Projektbudget!A36 -> 0 | C29: ='Resursallokering budget (låst)'!C29 -> 1700 | D29: =Projektbudget!D36*$C29 -> 0 | E29: =Projektbudget!E36*$C29 -> 0 | F29: =Projektbudget!F36*$C29 -> 0 | G29: =Projektbudget!G36*$C29 -> 0 | H29: =Projektbudget!H36*$C29 -> 0 | I29: =Projektbudget!I36*$C29 -> 0 | J29: =Projektbudget!J36*$C29 -> 0 | K29: =Projektbudget!K36*$C29 -> 0 | L29: =Projektbudget!L36*$C29 -> 0 | M29: =Projektbudget!M36*$C29 -> 0 | N29: 0 | Q29: 0 | S29: 0 | T29: 0 | U29: 0 | V29: 0 | W29: 0 | X29: 0 | Y29: 0 | Z29: 0 | AA29: 0 | AB29: 0 | AC29: 0
B30: =Projektbudget!A37 -> 0 | C30: ='Resursallokering budget (låst)'!C30 -> 1700 | D30: =Projektbudget!D37*$C30 -> 0 | E30: =Projektbudget!E37*$C30 -> 0 | F30: =Projektbudget!F37*$C30 -> 0 | G30: =Projektbudget!G37*$C30 -> 0 | H30: =Projektbudget!H37*$C30 -> 0 | I30: =Projektbudget!I37*$C30 -> 0 | J30: =Projektbudget!J37*$C30 -> 0 | K30: =Projektbudget!K37*$C30 -> 0 | L30: =Projektbudget!L37*$C30 -> 0 | M30: =Projektbudget!M37*$C30 -> 0 | N30: 0 | Q30: 0 | S30: 0 | T30: 0 | U30: 0 | V30: 0 | W30: 0 | X30: 0 | Y30: 0 | Z30: 0 | AA30: 0 | AB30: 0 | AC30: 0
B31: =Projektbudget!A38 -> 0 | C31: ='Resursallokering budget (låst)'!C31 -> 1700 | D31: =Projektbudget!D38*$C31 -> 0 | E31: =Projektbudget!E38*$C31 -> 0 | F31: =Projektbudget!F38*$C31 -> 0 | G31: =Projektbudget!G38*$C31 -> 0 | H31: =Projektbudget!H38*$C31 -> 0 | I31: =Projektbudget!I38*$C31 -> 0 | J31: =Projektbudget!J38*$C31 -> 0 | K31: =Projektbudget!K38*$C31 -> 0 | L31: =Projektbudget!L38*$C31 -> 0 | M31: =Projektbudget!M38*$C31 -> 0 | N31: 0 | Q31: 0 | S31: 0 | T31: 0 | U31: 0 | V31: 0 | W31: 0 | X31: 0 | Y31: 0 | Z31: 0 | AA31: 0 | AB31: 0 | AC31: 0
B32: =Projektbudget!A39 -> 0 | C32: ='Resursallokering budget (låst)'!C32 -> 1700 | D32: =Projektbudget!D39*$C32 -> 0 | E32: =Projektbudget!E39*$C32 -> 0 | F32: =Projektbudget!F39*$C32 -> 0 | G32: =Projektbudget!G39*$C32 -> 0 | H32: =Projektbudget!H39*$C32 -> 0 | I32: =Projektbudget!I39*$C32 -> 0 | J32: =Projektbudget!J39*$C32 -> 0 | K32: =Projektbudget!K39*$C32 -> 0 | L32: =Projektbudget!L39*$C32 -> 0 | M32: =Projektbudget!M39*$C32 -> 0 | N32: 0 | Q32: 0 | S32: 0 | T32: 0 | U32: 0 | V32: 0 | W32: 0 | X32: 0 | Y32: 0 | Z32: 0 | AA32: 0 | AB32: 0 | AC32: 0
B33: =Projektbudget!A40 -> 0 | C33: ='Resursallokering budget (låst)'!C33 -> 1700 | D33: =Projektbudget!D40*$C33 -> 0 | E33: =Projektbudget!E40*$C33 -> 0 | F33: =Projektbudget!F40*$C33 -> 0 | G33: =Projektbudget!G40*$C33 -> 0 | H33: =Projektbudget!H40*$C33 -> 0 | I33: =Projektbudget!I40*$C33 -> 0 | J33: =Projektbudget!J40*$C33 -> 0 | K33: =Projektbudget!K40*$C33 -> 0 | L33: =Projektbudget!L40*$C33 -> 0 | M33: =Projektbudget!M40*$C33 -> 0 | N33: 0 | Q33: 0 | S33: 0 | T33: 0 | U33: 0 | V33: 0 | W33: 0 | X33: 0 | Y33: 0 | Z33: 0 | AA33: 0 | AB33: 0 | AC33: 0
B34: =Projektbudget!A41 -> 0 | C34: ='Resursallokering budget (låst)'!C34 -> 1700 | D34: =Projektbudget!D41*$C34 -> 0 | E34: =Projektbudget!E41*$C34 -> 0 | F34: =Projektbudget!F41*$C34 -> 0 | G34: =Projektbudget!G41*$C34 -> 0 | H34: =Projektbudget!H41*$C34 -> 0 | I34: =Projektbudget!I41*$C34 -> 0 | J34: =Projektbudget!J41*$C34 -> 0 | K34: =Projektbudget!K41*$C34 -> 0 | L34: =Projektbudget!L41*$C34 -> 0 | M34: =Projektbudget!M41*$C34 -> 0 | N34: 0 | Q34: 0 | S34: 0 | T34: 0 | U34: 0 | V34: 0 | W34: 0 | X34: 0 | Y34: 0 | Z34: 0 | AA34: 0 | AB34: 0 | AC34: 0
B35: =Projektbudget!A42 -> 0 | C35: ='Resursallokering budget (låst)'!C35 -> 1700 | D35: =Projektbudget!D42*$C35 -> 0 | E35: =Projektbudget!E42*$C35 -> 0 | F35: =Projektbudget!F42*$C35 -> 0 | G35: =Projektbudget!G42*$C35 -> 0 | H35: =Projektbudget!H42*$C35 -> 0 | I35: =Projektbudget!I42*$C35 -> 0 | J35: =Projektbudget!J42*$C35 -> 0 | K35: =Projektbudget!K42*$C35 -> 0 | L35: =Projektbudget!L42*$C35 -> 0 | M35: =Projektbudget!M42*$C35 -> 0 | N35: 0 | Q35: 0 | S35: 0 | T35: 0 | U35: 0 | V35: 0 | W35: 0 | X35: 0 | Y35: 0 | Z35: 0 | AA35: 0 | AB35: 0 | AC35: 0
B36: =Projektbudget!A43 -> 0 | C36: ='Resursallokering budget (låst)'!C36 -> 1700 | D36: =Projektbudget!D43*$C36 -> 0 | E36: =Projektbudget!E43*$C36 -> 0 | F36: =Projektbudget!F43*$C36 -> 0 | G36: =Projektbudget!G43*$C36 -> 0 | H36: =Projektbudget!H43*$C36 -> 0 | I36: =Projektbudget!I43*$C36 -> 0 | J36: =Projektbudget!J43*$C36 -> 0 | K36: =Projektbudget!K43*$C36 -> 0 | L36: =Projektbudget!L43*$C36 -> 0 | M36: =Projektbudget!M43*$C36 -> 0 | N36: 0 | Q36: 0 | S36: 0 | T36: 0 | U36: 0 | V36: 0 | W36: 0 | X36: 0 | Y36: 0 | Z36: 0 | AA36: 0 | AB36: 0 | AC36: 0
B37: =Projektbudget!A44 -> 0 | C37: ='Resursallokering budget (låst)'!C37 -> 1700 | D37: =Projektbudget!D44*$C37 -> 0 | E37: =Projektbudget!E44*$C37 -> 0 | F37: =Projektbudget!F44*$C37 -> 0 | G37: =Projektbudget!G44*$C37 -> 0 | H37: =Projektbudget!H44*$C37 -> 0 | I37: =Projektbudget!I44*$C37 -> 0 | J37: =Projektbudget!J44*$C37 -> 0 | K37: =Projektbudget!K44*$C37 -> 0 | L37: =Projektbudget!L44*$C37 -> 0 | M37: =Projektbudget!M44*$C37 -> 0 | N37: 0 | Q37: 0 | S37: 0 | T37: 0 | U37: 0 | V37: 0 | W37: 0 | X37: 0 | Y37: 0 | Z37: 0 | AA37: 0 | AB37: 0 | AC37: 0
B38: =Projektbudget!A45 -> 0 | C38: ='Resursallokering budget (låst)'!C38 -> 1700 | D38: =Projektbudget!D45*$C38 -> 0 | E38: =Projektbudget!E45*$C38 -> 0 | F38: =Projektbudget!F45*$C38 -> 0 | G38: =Projektbudget!G45*$C38 -> 0 | H38: =Projektbudget!H45*$C38 -> 0 | I38: =Projektbudget!I45*$C38 -> 0 | J38: =Projektbudget!J45*$C38 -> 0 | K38: =Projektbudget!K45*$C38 -> 0 | L38: =Projektbudget!L45*$C38 -> 0 | M38: =Projektbudget!M45*$C38 -> 0 | N38: 0 | Q38: 0 | S38: 0 | T38: 0 | U38: 0 | V38: 0 | W38: 0 | X38: 0 | Y38: 0 | Z38: 0 | AA38: 0 | AB38: 0 | AC38: 0
B39: =Projektbudget!A46 -> 0 | C39: ='Resursallokering budget (låst)'!C39 -> 1700 | D39: =Projektbudget!D46*$C39 -> 0 | E39: =Projektbudget!E46*$C39 -> 0 | F39: =Projektbudget!F46*$C39 -> 0 | G39: =Projektbudget!G46*$C39 -> 0 | H39: =Projektbudget!H46*$C39 -> 0 | I39: =Projektbudget!I46*$C39 -> 0 | J39: =Projektbudget!J46*$C39 -> 0 | K39: =Projektbudget!K46*$C39 -> 0 | L39: =Projektbudget!L46*$C39 -> 0 | M39: =Projektbudget!M46*$C39 -> 0 | N39: 0 | Q39: 0 | S39: 0 | T39: 0 | U39: 0 | V39: 0 | W39: 0 | X39: 0 | Y39: 0 | Z39: 0 | AA39: 0 | AB39: 0 | AC39: 0
B40: Totalt | C40: =SUM(D40:M40) -> 0 | D40: =SUM(D5:D39) -> 0 | E40: 0 | F40: 0 | G40: 0 | H40: 0 | I40: 0 | J40: 0 | K40: 0 | L40: 0 | M40: 0 | N40: =SUM(N5:N39) -> 0 | Q40: Totalt | R40: =SUM(S40:AB40) -> 0 | S40: =SUM(S5:S39) -> 0 | T40: 0 | U40: 0 | V40: 0 | W40: 0 | X40: 0 | Y40: 0 | Z40: 0 | AA40: 0 | AB40: 0 | AC40: =SUM(AC5:AC39) -> 0
D42: Utfall / Prognos timmar | S42: Omfattning %
D43: =D4 -> 2021 | E43: =E4 -> 2022 | F43: =F4 -> 2023 | G43: =G4 -> 2024 | H43: =H4 -> 2025 | I43: =I4 -> 2026 | J43: 2027 | K43: 2028 | L43: 2029 | M43: 2030 | N43: Kr/tim | S43: =D43 -> 2021 | T43: =E43 -> 2022 | U43: =F43 -> 2023 | V43: =G43 -> 2024 | W43: =H43 -> 2025 | X43: =I43 -> 2026 | Y43: 2027 | Z43: 2028 | AA43: 2029 | AB43: 2030 | AC43: Totalt
B44: =B5 -> Professor | N44: =IFERROR(Projektbudget!B12*12*LönePåläggUppräkningÅr1/C5,0) -> 729.3225882 | Q44: =B5 -> Professor | S44: =IFERROR(D44/$C5,0) -> 0 | T44: 0 | U44: 0 | V44: 0 | W44: 0 | X44: 0 | Y44: 0 | Z44: 0 | AA44: 0 | AB44: 0 | AC44: =SUM(S44:AB44) -> 0
B45: Docent | N45: =IFERROR(Projektbudget!B13*12*LönePåläggUppräkningÅr1/C6,0) -> 557.3330824 | Q45: Docent | S45: 0 | T45: 0 | U45: 0 | V45: 0 | W45: 0 | X45: 0 | Y45: 0 | Z45: 0 | AA45: 0 | AB45: 0 | AC45: =SUM(S45:AB45) -> 0
B46: Lektor | N46: =IFERROR(Projektbudget!B14*12*LönePåläggUppräkningÅr1/C7,0) -> 507.2601882 | Q46: Lektor | S46: 0 | T46: 0 | U46: 0 | V46: 0 | W46: 0 | X46: 0 | Y46: 0 | Z46: 0 | AA46: 0 | AB46: 0 | AC46: 0
B47: Adjunkt | N47: =IFERROR(Projektbudget!B15*12*LönePåläggUppräkningÅr1/C8,0) -> 434.3279294 | Q47: Adjunkt | S47: 0 | T47: 0 | U47: 0 | V47: 0 | W47: 0 | X47: 0 | Y47: 0 | Z47: 0 | AA47: 0 | AB47: 0 | AC47: 0
B48: Post dok | N48: =IFERROR(Projektbudget!B16*12*LönePåläggUppräkningÅr1/C9,0) -> 379.9008706 | Q48: Post dok | S48: 0 | T48: 0 | U48: 0 | V48: 0 | W48: 0 | X48: 0 | Y48: 0 | Z48: 0 | AA48: 0 | AB48: 0 | AC48: 0
B49: Doktorand (Snittlön) | N49: =IFERROR(Projektbudget!B17*12*LönePåläggUppräkningÅr1/C10,0) -> 310.5063706 | Q49: Doktorand (Snittlön) | S49: 0 | T49: 0 | U49: 0 | V49: 0 | W49: 0 | X49: 0 | Y49: 0 | Z49: 0 | AA49: 0 | AB49: 0 | AC49: 0
B50: Administratör | N50: =IFERROR(Projektbudget!B18*12*LönePåläggUppräkningÅr1/C11,0) -> 390.7862824 | Q50: Administratör | S50: 0 | T50: 0 | U50: 0 | V50: 0 | W50: 0 | X50: 0 | Y50: 0 | Z50: 0 | AA50: 0 | AB50: 0 | AC50: 0
B51: Labbtekniker | N51: =IFERROR(Projektbudget!B19*12*LönePåläggUppräkningÅr1/C12,0) -> 359.2185882 | Q51: Labbtekniker | S51: 0 | T51: 0 | U51: 0 | V51: 0 | W51: 0 | X51: 0 | Y51: 0 | Z51: 0 | AA51: 0 | AB51: 0 | AC51: 0
B52: Forskningsassistent | N52: =IFERROR(Projektbudget!B20*12*LönePåläggUppräkningÅr1/C13,0) -> 271.0467529 | Q52: Forskningsassistent | S52: 0 | T52: 0 | U52: 0 | V52: 0 | W52: 0 | X52: 0 | Y52: =IFERROR(J52/$C13,0) -> 0 | Z52: 0 | AA52: 0 | AB52: 0 | AC52: 0
B53: Forskare/biträdande forskare | N53: =IFERROR(Projektbudget!B21*12*LönePåläggUppräkningÅr1/C14,0) -> 404.9373176 | Q53: Forskare/biträdande forskare | S53: 0 | T53: 0 | U53: 0 | V53: 0 | W53: 0 | X53: 0 | Y53: 0 | Z53: 0 | AA53: 0 | AB53: 0 | AC53: 0
B54: 0 | N54: =IFERROR(Projektbudget!B22*12*LönePåläggUppräkningÅr1/C15,0) -> 0 | Q54: 0 | S54: 0 | T54: 0 | U54: 0 | V54: 0 | W54: 0 | X54: 0 | Y54: 0 | Z54: 0 | AA54: 0 | AB54: 0 | AC54: 0
B55: 0 | N55: =IFERROR(Projektbudget!B23*12*LönePåläggUppräkningÅr1/C16,0) -> 0 | Q55: 0 | S55: 0 | T55: 0 | U55: 0 | V55: 0 | W55: 0 | X55: 0 | Y55: 0 | Z55: 0 | AA55: 0 | AB55: 0 | AC55: 0
B56: 0 | N56: =IFERROR(Projektbudget!B24*12*LönePåläggUppräkningÅr1/C17,0) -> 0 | Q56: 0 | S56: 0 | T56: 0 | U56: 0 | V56: 0 | W56: 0 | X56: 0 | Y56: 0 | Z56: 0 | AA56: 0 | AB56: 0 | AC56: 0
B57: 0 | N57: =IFERROR(Projektbudget!B25*12*LönePåläggUppräkningÅr1/C18,0) -> 0 | Q57: 0 | S57: 0 | T57: 0 | U57: 0 | V57: 0 | W57: 0 | X57: 0 | Y57: 0 | Z57: 0 | AA57: 0 | AB57: 0 | AC57: 0
B58: 0 | N58: =IFERROR(Projektbudget!B26*12*LönePåläggUppräkningÅr1/C19,0) -> 0 | Q58: 0 | S58: 0 | T58: 0 | U58: 0 | V58: 0 | W58: 0 | X58: 0 | Y58: 0 | Z58: 0 | AA58: 0 | AB58: 0 | AC58: 0
B59: 0 | N59: =IFERROR(Projektbudget!B27*12*LönePåläggUppräkningÅr1/C20,0) -> 0 | Q59: 0 | S59: 0 | T59: 0 | U59: 0 | V59: 0 | W59: 0 | X59: 0 | Y59: 0 | Z59: 0 | AA59: 0 | AB59: 0 | AC59: 0
B60: 0 | N60: =IFERROR(Projektbudget!B28*12*LönePåläggUppräkningÅr1/C21,0) -> 0 | Q60: 0 | S60: =IFERROR(D60/$C21,0) -> 0 | T60: 0 | U60: 0 | V60: 0 | W60: 0 | X60: 0 | Y60: 0 | Z60: 0 | AA60: 0 | AB60: 0 | AC60: 0
B61: 0 | N61: =IFERROR(Projektbudget!B29*12*LönePåläggUppräkningÅr1/C22,0) -> 0 | Q61: 0 | S61: 0 | T61: 0 | U61: 0 | V61: 0 | W61: 0 | X61: 0 | Y61: 0 | Z61: 0 | AA61: 0 | AB61: 0 | AC61: 0
B62: 0 | N62: =IFERROR(Projektbudget!B30*12*LönePåläggUppräkningÅr1/C23,0) -> 0 | Q62: 0 | S62: 0 | T62: 0 | U62: 0 | V62: 0 | W62: 0 | X62: 0 | Y62: 0 | Z62: 0 | AA62: 0 | AB62: 0 | AC62: 0
B63: 0 | N63: =IFERROR(Projektbudget!B31*12*LönePåläggUppräkningÅr1/C24,0) -> 0 | Q63: 0 | S63: 0 | T63: 0 | U63: 0 | V63: 0 | W63: 0 | X63: 0 | Y63: 0 | Z63: 0 | AA63: 0 | AB63: 0 | AC63: 0
B64: 0 | N64: =IFERROR(Projektbudget!B32*12*LönePåläggUppräkningÅr1/C25,0) -> 0 | Q64: 0 | S64: 0 | T64: 0 | U64: 0 | V64: 0 | W64: 0 | X64: 0 | Y64: 0 | Z64: 0 | AA64: 0 | AB64: 0 | AC64: 0
B65: 0 | N65: =IFERROR(Projektbudget!B33*12*LönePåläggUppräkningÅr1/C26,0) -> 0 | Q65: 0 | S65: 0 | T65: 0 | U65: 0 | V65: 0 | W65: 0 | X65: 0 | Y65: 0 | Z65: 0 | AA65: 0 | AB65: 0 | AC65: 0
B66: 0 | N66: =IFERROR(Projektbudget!B34*12*LönePåläggUppräkningÅr1/C27,0) -> 0 | Q66: 0 | S66: 0 | T66: 0 | U66: 0 | V66: 0 | W66: 0 | X66: 0 | Y66: 0 | Z66: 0 | AA66: 0 | AB66: 0 | AC66: 0
B67: 0 | N67: =IFERROR(Projektbudget!B35*12*LönePåläggUppräkningÅr1/C28,0) -> 0 | Q67: 0 | S67: 0 | T67: 0 | U67: 0 | V67: 0 | W67: 0 | X67: 0 | Y67: 0 | Z67: 0 | AA67: 0 | AB67: 0 | AC67: 0
B68: 0 | N68: =IFERROR(Projektbudget!B36*12*LönePåläggUppräkningÅr1/C29,0) -> 0 | Q68: 0 | S68: 0 | T68: 0 | U68: 0 | V68: 0 | W68: 0 | X68: 0 | Y68: 0 | Z68: 0 | AA68: 0 | AB68: 0 | AC68: 0
B69: 0 | N69: =IFERROR(Projektbudget!B37*12*LönePåläggUppräkningÅr1/C30,0) -> 0 | Q69: 0 | S69: 0 | T69: 0 | U69: 0 | V69: 0 | W69: 0 | X69: 0 | Y69: 0 | Z69: 0 | AA69: 0 | AB69: 0 | AC69: 0
B70: 0 | N70: =IFERROR(Projektbudget!B38*12*LönePåläggUppräkningÅr1/C31,0) -> 0 | Q70: 0 | S70: 0 | T70: 0 | U70: 0 | V70: 0 | W70: 0 | X70: 0 | Y70: 0 | Z70: 0 | AA70: 0 | AB70: 0 | AC70: 0
B71: 0 | N71: =IFERROR(Projektbudget!B39*12*LönePåläggUppräkningÅr1/C32,0) -> 0 | Q71: 0 | S71: 0 | T71: 0 | U71: 0 | V71: 0 | W71: 0 | X71: 0 | Y71: 0 | Z71: 0 | AA71: 0 | AB71: 0 | AC71: 0
B72: 0 | N72: =IFERROR(Projektbudget!B40*12*LönePåläggUppräkningÅr1/C33,0) -> 0 | Q72: 0 | S72: 0 | T72: 0 | U72: 0 | V72: 0 | W72: 0 | X72: 0 | Y72: 0 | Z72: 0 | AA72: 0 | AB72: 0 | AC72: 0
B73: 0 | N73: =IFERROR(Projektbudget!B41*12*LönePåläggUppräkningÅr1/C34,0) -> 0 | Q73: 0 | S73: 0 | T73: 0 | U73: 0 | V73: 0 | W73: 0 | X73: 0 | Y73: 0 | Z73: 0 | AA73: 0 | AB73: 0 | AC73: 0
B74: 0 | N74: =IFERROR(Projektbudget!B42*12*LönePåläggUppräkningÅr1/C35,0) -> 0 | Q74: 0 | S74: 0 | T74: 0 | U74: 0 | V74: 0 | W74: 0 | X74: 0 | Y74: 0 | Z74: 0 | AA74: 0 | AB74: 0 | AC74: 0
B75: 0 | N75: =IFERROR(Projektbudget!B43*12*LönePåläggUppräkningÅr1/C36,0) -> 0 | Q75: 0 | S75: 0 | T75: 0 | U75: 0 | V75: 0 | W75: 0 | X75: 0 | Y75: 0 | Z75: 0 | AA75: 0 | AB75: 0 | AC75: 0
B76: 0 | N76: =IFERROR(Projektbudget!B44*12*LönePåläggUppräkningÅr1/C37,0) -> 0 | Q76: 0 | S76: =IFERROR(D76/$C37,0) -> 0 | T76: 0 | U76: 0 | V76: 0 | W76: 0 | X76: 0 | Y76: 0 | Z76: 0 | AA76: 0 | AB76: 0 | AC76: 0
B77: 0 | N77: =IFERROR(Projektbudget!B45*12*LönePåläggUppräkningÅr1/C38,0) -> 0 | Q77: 0 | S77: 0 | T77: 0 | U77: 0 | V77: 0 | W77: 0 | X77: 0 | Y77: 0 | Z77: 0 | AA77: 0 | AB77: 0 | AC77: 0
B78: 0 | N78: =IFERROR(Projektbudget!B46*12*LönePåläggUppräkningÅr1/C39,0) -> 0 | Q78: 0 | S78: 0 | T78: 0 | U78: 0 | V78: 0 | W78: 0 | X78: 0 | Y78: 0 | Z78: 0 | AA78: 0 | AB78: 0 | AC78: 0
B79: =B40 -> Totalt | C79: =SUM(D79:M79) -> 0 | D79: =SUM(D44:D78) -> 0 | E79: =SUM(E44:E78) -> 0 | F79: =SUM(F44:F78) -> 0 | G79: =SUM(G44:G78) -> 0 | H79: =SUM(H44:H78) -> 0 | I79: =SUM(I44:I78) -> 0 | J79: 0 | K79: 0 | L79: 0 | M79: 0 | Q79: Totalt | R79: =SUM(S79:AB79) -> 0 | S79: =SUM(S44:S78) -> 0 | T79: 0 | U79: 0 | V79: 0 | W79: 0 | X79: 0 | Y79: 0 | Z79: 0 | AA79: 0 | AB79: 0 | AC79: 0

Sheet År 2 (hidden)
B1: ="Projekt: "&Projektbudget!$B$4 -> Projekt:
D3: ='År 1'!D3:N3 -> Budget timmar (ev. reviderad) | O3: ='År 1'!O3 -> Godkännande | S3: ='År 1'!S3:AC3 -> Manmånader
C4: Åarb | D4: =Projektbudget!D52 -> 2021 | E4: =Projektbudget!E52 -> 2022 | F4: =Projektbudget!F52 -> 2023 | G4: =Projektbudget!G52 -> 2024 | H4: =Projektbudget!H52 -> 2025 | I4: =Projektbudget!I52 -> 2026 | J4: =Projektbudget!J52 -> 2027 | K4: =Projektbudget!K52 -> 2028 | L4: =Projektbudget!L52 -> 2029 | M4: =Projektbudget!M52 -> 2030 | N4: ='År 1'!N4 -> Totalt | O4: ='År 1'!O4 -> prefekt / SR | S4: =D4 -> 2021 | T4: =E4 -> 2022 | U4: =F4 -> 2023 | V4: =G4 -> 2024 | W4: =H4 -> 2025 | X4: =I4 -> 2026 | Y4: 2027 | Z4: 2028 | AA4: 2029 | AB4: 2030 | AC4: ='År 1'!AC4 -> Totalt
B5: =Projektbudget!A12 -> Professor | C5: ='År 1'!C5 -> 1700 | D5: =Projektbudget!D12*$C5 -> 0 | E5: =Projektbudget!E12*$C5 -> 0 | F5: =Projektbudget!F12*$C5 -> 0 | G5: =Projektbudget!G12*$C5 -> 0 | H5: =Projektbudget!H12*$C5 -> 0 | I5: =Projektbudget!I12*$C5 -> 0 | J5: =Projektbudget!J12*$C5 -> 0 | K5: =Projektbudget!K12*$C5 -> 0 | L5: =Projektbudget!L12*$C5 -> 0 | M5: =Projektbudget!M12*$C5 -> 0 | N5: =SUM(D5:M5) -> 0 | Q5: =B5 -> Professor | S5: =IFERROR(D5/($C5/12),0) -> 0 | T5: 0 | U5: 0 | V5: 0 | W5: 0 | X5: 0 | Y5: 0 | Z5: 0 | AA5: 0 | AB5: 0 | AC5: =SUM(S5:AB5) -> 0
B6: =Projektbudget!A13 -> Docent | C6: ='År 1'!C6 -> 1700 | D6: =Projektbudget!D13*$C6 -> 0 | E6: =Projektbudget!E13*$C6 -> 0 | F6: =Projektbudget!F13*$C6 -> 0 | G6: =Projektbudget!G13*$C6 -> 0 | H6: =Projektbudget!H13*$C6 -> 0 | I6: =Projektbudget!I13*$C6 -> 0 | J6: =Projektbudget!J13*$C6 -> 0 | K6: =Projektbudget!K13*$C6 -> 0 | L6: =Projektbudget!L13*$C6 -> 0 | M6: =Projektbudget!M13*$C6 -> 0 | N6: =SUM(D6:M6) -> 0 | Q6: Docent | S6: 0 | T6: 0 | U6: 0 | V6: 0 | W6: 0 | X6: 0 | Y6: 0 | Z6: 0 | AA6: 0 | AB6: 0 | AC6: =SUM(S6:AB6) -> 0
B7: =Projektbudget!A14 -> Lektor | C7: ='År 1'!C7 -> 1700 | D7: =Projektbudget!D14*$C7 -> 0 | E7: =Projektbudget!E14*$C7 -> 0 | F7: =Projektbudget!F14*$C7 -> 0 | G7: =Projektbudget!G14*$C7 -> 0 | H7: =Projektbudget!H14*$C7 -> 0 | I7: =Projektbudget!I14*$C7 -> 0 | J7: =Projektbudget!J14*$C7 -> 0 | K7: =Projektbudget!K14*$C7 -> 0 | L7: =Projektbudget!L14*$C7 -> 0 | M7: =Projektbudget!M14*$C7 -> 0 | N7: 0 | Q7: Lektor | S7: 0 | T7: 0 | U7: 0 | V7: 0 | W7: 0 | X7: 0 | Y7: 0 | Z7: 0 | AA7: 0 | AB7: 0 | AC7: 0
B8: =Projektbudget!A15 -> Adjunkt | C8: ='År 1'!C8 -> 1700 | D8: =Projektbudget!D15*$C8 -> 0 | E8: =Projektbudget!E15*$C8 -> 0 | F8: =Projektbudget!F15*$C8 -> 0 | G8: =Projektbudget!G15*$C8 -> 0 | H8: =Projektbudget!H15*$C8 -> 0 | I8: =Projektbudget!I15*$C8 -> 0 | J8: =Projektbudget!J15*$C8 -> 0 | K8: =Projektbudget!K15*$C8 -> 0 | L8: =Projektbudget!L15*$C8 -> 0 | M8: =Projektbudget!M15*$C8 -> 0 | N8: 0 | Q8: Adjunkt | S8: 0 | T8: 0 | U8: 0 | V8: 0 | W8: 0 | X8: 0 | Y8: 0 | Z8: 0 | AA8: 0 | AB8: 0 | AC8: 0
B9: =Projektbudget!A16 -> Post dok | C9: ='År 1'!C9 -> 1700 | D9: =Projektbudget!D16*$C9 -> 0 | E9: =Projektbudget!E16*$C9 -> 0 | F9: =Projektbudget!F16*$C9 -> 0 | G9: =Projektbudget!G16*$C9 -> 0 | H9: =Projektbudget!H16*$C9 -> 0 | I9: =Projektbudget!I16*$C9 -> 0 | J9: =Projektbudget!J16*$C9 -> 0 | K9: =Projektbudget!K16*$C9 -> 0 | L9: =Projektbudget!L16*$C9 -> 0 | M9: =Projektbudget!M16*$C9 -> 0 | N9: 0 | Q9: Post dok | S9: 0 | T9: 0 | U9: 0 | V9: 0 | W9: 0 | X9: 0 | Y9: 0 | Z9: 0 | AA9: 0 | AB9: 0 | AC9: 0
B10: =Projektbudget!A17 -> Doktorand (Snittlön) | C10: ='År 1'!C10 -> 1700 | D10: =Projektbudget!D17*$C10 -> 0 | E10: =Projektbudget!E17*$C10 -> 0 | F10: =Projektbudget!F17*$C10 -> 0 | G10: =Projektbudget!G17*$C10 -> 0 | H10: =Projektbudget!H17*$C10 -> 0 | I10: =Projektbudget!I17*$C10 -> 0 | J10: =Projektbudget!J17*$C10 -> 0 | K10: =Projektbudget!K17*$C10 -> 0 | L10: =Projektbudget!L17*$C10 -> 0 | M10: =Projektbudget!M17*$C10 -> 0 | N10: 0 | Q10: Doktorand (Snittlön) | S10: 0 | T10: 0 | U10: 0 | V10: 0 | W10: 0 | X10: 0 | Y10: 0 | Z10: 0 | AA10: 0 | AB10: 0 | AC10: 0
B11: =Projektbudget!A18 -> Administratör | C11: ='År 1'!C11 -> 1700 | D11: =Projektbudget!D18*$C11 -> 0 | E11: =Projektbudget!E18*$C11 -> 0 | F11: =Projektbudget!F18*$C11 -> 0 | G11: =Projektbudget!G18*$C11 -> 0 | H11: =Projektbudget!H18*$C11 -> 0 | I11: =Projektbudget!I18*$C11 -> 0 | J11: =Projektbudget!J18*$C11 -> 0 | K11: =Projektbudget!K18*$C11 -> 0 | L11: =Projektbudget!L18*$C11 -> 0 | M11: =Projektbudget!M18*$C11 -> 0 | N11: 0 | Q11: Administratör | S11: 0 | T11: 0 | U11: 0 | V11: 0 | W11: 0 | X11: 0 | Y11: 0 | Z11: 0 | AA11: 0 | AB11: 0 | AC11: 0
B12: =Projektbudget!A19 -> Labbtekniker | C12: ='År 1'!C12 -> 1700 | D12: =Projektbudget!D19*$C12 -> 0 | E12: =Projektbudget!E19*$C12 -> 0 | F12: =Projektbudget!F19*$C12 -> 0 | G12: =Projektbudget!G19*$C12 -> 0 | H12: =Projektbudget!H19*$C12 -> 0 | I12: =Projektbudget!I19*$C12 -> 0 | J12: =Projektbudget!J19*$C12 -> 0 | K12: =Projektbudget!K19*$C12 -> 0 | L12: =Projektbudget!L19*$C12 -> 0 | M12: =Projektbudget!M19*$C12 -> 0 | N12: 0 | Q12: Labbtekniker | S12: 0 | T12: 0 | U12: 0 | V12: 0 | W12: 0 | X12: 0 | Y12: 0 | Z12: 0 | AA12: 0 | AB12: 0 | AC12: 0
B13: =Projektbudget!A20 -> Forskningsassistent | C13: ='År 1'!C13 -> 1700 | D13: =Projektbudget!D20*$C13 -> 0 | E13: =Projektbudget!E20*$C13 -> 0 | F13: =Projektbudget!F20*$C13 -> 0 | G13: =Projektbudget!G20*$C13 -> 0 | H13: =Projektbudget!H20*$C13 -> 0 | I13: =Projektbudget!I20*$C13 -> 0 | J13: =Projektbudget!J20*$C13 -> 0 | K13: =Projektbudget!K20*$C13 -> 0 | L13: =Projektbudget!L20*$C13 -> 0 | M13: =Projektbudget!M20*$C13 -> 0 | N13: 0 | Q13: Forskningsassistent | S13: 0 | T13: 0 | U13: 0 | V13: 0 | W13: 0 | X13: 0 | Y13: 0 | Z13: 0 | AA13: 0 | AB13: 0 | AC13: 0
B14: =Projektbudget!A21 -> Forskare/biträdande forskare | C14: ='År 1'!C14 -> 1700 | D14: =Projektbudget!D21*$C14 -> 0 | E14: =Projektbudget!E21*$C14 -> 0 | F14: =Projektbudget!F21*$C14 -> 0 | G14: =Projektbudget!G21*$C14 -> 0 | H14: =Projektbudget!H21*$C14 -> 0 | I14: =Projektbudget!I21*$C14 -> 0 | J14: =Projektbudget!J21*$C14 -> 0 | K14: =Projektbudget!K21*$C14 -> 0 | L14: =Projektbudget!L21*$C14 -> 0 | M14: =Projektbudget!M21*$C14 -> 0 | N14: 0 | Q14: Forskare/biträdande forskare | S14: 0 | T14: 0 | U14: 0 | V14: 0 | W14: 0 | X14: 0 | Y14: 0 | Z14: 0 | AA14: 0 | AB14: 0 | AC14: 0
B15: =Projektbudget!A22 -> 0 | C15: ='År 1'!C15 -> 1700 | D15: =Projektbudget!D22*$C15 -> 0 | E15: =Projektbudget!E22*$C15 -> 0 | F15: =Projektbudget!F22*$C15 -> 0 | G15: =Projektbudget!G22*$C15 -> 0 | H15: =Projektbudget!H22*$C15 -> 0 | I15: =Projektbudget!I22*$C15 -> 0 | J15: =Projektbudget!J22*$C15 -> 0 | K15: =Projektbudget!K22*$C15 -> 0 | L15: =Projektbudget!L22*$C15 -> 0 | M15: =Projektbudget!M22*$C15 -> 0 | N15: 0 | Q15: 0 | S15: 0 | T15: 0 | U15: 0 | V15: 0 | W15: 0 | X15: 0 | Y15: 0 | Z15: 0 | AA15: 0 | AB15: 0 | AC15: 0
B16: =Projektbudget!A23 -> 0 | C16: ='År 1'!C16 -> 1700 | D16: =Projektbudget!D23*$C16 -> 0 | E16: =Projektbudget!E23*$C16 -> 0 | F16: =Projektbudget!F23*$C16 -> 0 | G16: =Projektbudget!G23*$C16 -> 0 | H16: =Projektbudget!H23*$C16 -> 0 | I16: =Projektbudget!I23*$C16 -> 0 | J16: =Projektbudget!J23*$C16 -> 0 | K16: =Projektbudget!K23*$C16 -> 0 | L16: =Projektbudget!L23*$C16 -> 0 | M16: =Projektbudget!M23*$C16 -> 0 | N16: 0 | Q16: 0 | S16: 0 | T16: 0 | U16: 0 | V16: 0 | W16: 0 | X16: 0 | Y16: 0 | Z16: 0 | AA16: 0 | AB16: 0 | AC16: 0
B17: =Projektbudget!A24 -> 0 | C17: ='År 1'!C17 -> 1700 | D17: =Projektbudget!D24*$C17 -> 0 | E17: =Projektbudget!E24*$C17 -> 0 | F17: =Projektbudget!F24*$C17 -> 0 | G17: =Projektbudget!G24*$C17 -> 0 | H17: =Projektbudget!H24*$C17 -> 0 | I17: =Projektbudget!I24*$C17 -> 0 | J17: =Projektbudget!J24*$C17 -> 0 | K17: =Projektbudget!K24*$C17 -> 0 | L17: =Projektbudget!L24*$C17 -> 0 | M17: =Projektbudget!M24*$C17 -> 0 | N17: 0 | Q17: 0 | S17: 0 | T17: 0 | U17: 0 | V17: 0 | W17: 0 | X17: 0 | Y17: 0 | Z17: 0 | AA17: 0 | AB17: 0 | AC17: 0
B18: =Projektbudget!A25 -> 0 | C18: ='År 1'!C18 -> 1700 | D18: =Projektbudget!D25*$C18 -> 0 | E18: =Projektbudget!E25*$C18 -> 0 | F18: =Projektbudget!F25*$C18 -> 0 | G18: =Projektbudget!G25*$C18 -> 0 | H18: =Projektbudget!H25*$C18 -> 0 | I18: =Projektbudget!I25*$C18 -> 0 | J18: =Projektbudget!J25*$C18 -> 0 | K18: =Projektbudget!K25*$C18 -> 0 | L18: =Projektbudget!L25*$C18 -> 0 | M18: =Projektbudget!M25*$C18 -> 0 | N18: 0 | Q18: 0 | S18: 0 | T18: 0 | U18: 0 | V18: 0 | W18: 0 | X18: 0 | Y18: 0 | Z18: 0 | AA18: 0 | AB18: 0 | AC18: 0
B19: =Projektbudget!A26 -> 0 | C19: ='År 1'!C19 -> 1700 | D19: =Projektbudget!D26*$C19 -> 0 | E19: =Projektbudget!E26*$C19 -> 0 | F19: =Projektbudget!F26*$C19 -> 0 | G19: =Projektbudget!G26*$C19 -> 0 | H19: =Projektbudget!H26*$C19 -> 0 | I19: =Projektbudget!I26*$C19 -> 0 | J19: =Projektbudget!J26*$C19 -> 0 | K19: =Projektbudget!K26*$C19 -> 0 | L19: =Projektbudget!L26*$C19 -> 0 | M19: =Projektbudget!M26*$C19 -> 0 | N19: 0 | Q19: 0 | S19: 0 | T19: 0 | U19: 0 | V19: 0 | W19: 0 | X19: 0 | Y19: 0 | Z19: 0 | AA19: 0 | AB19: 0 | AC19: 0
B20: =Projektbudget!A27 -> 0 | C20: ='År 1'!C20 -> 1700 | D20: =Projektbudget!D27*$C20 -> 0 | E20: =Projektbudget!E27*$C20 -> 0 | F20: =Projektbudget!F27*$C20 -> 0 | G20: =Projektbudget!G27*$C20 -> 0 | H20: =Projektbudget!H27*$C20 -> 0 | I20: =Projektbudget!I27*$C20 -> 0 | J20: =Projektbudget!J27*$C20 -> 0 | K20: =Projektbudget!K27*$C20 -> 0 | L20: =Projektbudget!L27*$C20 -> 0 | M20: =Projektbudget!M27*$C20 -> 0 | N20: 0 | Q20: 0 | S20: 0 | T20: 0 | U20: 0 | V20: 0 | W20: 0 | X20: 0 | Y20: 0 | Z20: 0 | AA20: 0 | AB20: 0 | AC20: 0
B21: =Projektbudget!A28 -> 0 | C21: ='År 1'!C21 -> 1700 | D21: =Projektbudget!D28*$C21 -> 0 | E21: =Projektbudget!E28*$C21 -> 0 | F21: =Projektbudget!F28*$C21 -> 0 | G21: =Projektbudget!G28*$C21 -> 0 | H21: =Projektbudget!H28*$C21 -> 0 | I21: =Projektbudget!I28*$C21 -> 0 | J21: =Projektbudget!J28*$C21 -> 0 | K21: =Projektbudget!K28*$C21 -> 0 | L21: =Projektbudget!L28*$C21 -> 0 | M21: =Projektbudget!M28*$C21 -> 0 | N21: 0 | Q21: 0 | S21: 0 | T21: 0 | U21: 0 | V21: 0 | W21: 0 | X21: 0 | Y21: 0 | Z21: 0 | AA21: 0 | AB21: 0 | AC21: 0
B22: =Projektbudget!A29 -> 0 | C22: ='År 1'!C22 -> 1700 | D22: =Projektbudget!D29*$C22 -> 0 | E22: =Projektbudget!E29*$C22 -> 0 | F22: =Projektbudget!F29*$C22 -> 0 | G22: =Projektbudget!G29*$C22 -> 0 | H22: =Projektbudget!H29*$C22 -> 0 | I22: =Projektbudget!I29*$C22 -> 0 | J22: =Projektbudget!J29*$C22 -> 0 | K22: =Projektbudget!K29*$C22 -> 0 | L22: =Projektbudget!L29*$C22 -> 0 | M22: =Projektbudget!M29*$C22 -> 0 | N22: 0 | Q22: 0 | S22: 0 | T22: 0 | U22: 0 | V22: 0 | W22: 0 | X22: 0 | Y22: 0 | Z22: 0 | AA22: 0 | AB22: 0 | AC22: 0
B23: =Projektbudget!A30 -> 0 | C23: ='År 1'!C23 -> 1700 | D23: =Projektbudget!D30*$C23 -> 0 | E23: =Projektbudget!E30*$C23 -> 0 | F23: =Projektbudget!F30*$C23 -> 0 | G23: =Projektbudget!G30*$C23 -> 0 | H23: =Projektbudget!H30*$C23 -> 0 | I23: =Projektbudget!I30*$C23 -> 0 | J23: =Projektbudget!J30*$C23 -> 0 | K23: =Projektbudget!K30*$C23 -> 0 | L23: =Projektbudget!L30*$C23 -> 0 | M23: =Projektbudget!M30*$C23 -> 0 | N23: 0 | Q23: 0 | S23: 0 | T23: 0 | U23: 0 | V23: 0 | W23: 0 | X23: 0 | Y23: 0 | Z23: 0 | AA23: 0 | AB23: 0 | AC23: 0
B24: =Projektbudget!A31 -> 0 | C24: ='År 1'!C24 -> 1700 | D24: =Projektbudget!D31*$C24 -> 0 | E24: =Projektbudget!E31*$C24 -> 0 | F24: =Projektbudget!F31*$C24 -> 0 | G24: =Projektbudget!G31*$C24 -> 0 | H24: =Projektbudget!H31*$C24 -> 0 | I24: =Projektbudget!I31*$C24 -> 0 | J24: =Projektbudget!J31*$C24 -> 0 | K24: =Projektbudget!K31*$C24 -> 0 | L24: =Projektbudget!L31*$C24 -> 0 | M24: =Projektbudget!M31*$C24 -> 0 | N24: 0 | Q24: 0 | S24: 0 | T24: 0 | U24: 0 | V24: 0 | W24: 0 | X24: 0 | Y24: 0 | Z24: 0 | AA24: 0 | AB24: 0 | AC24: 0
B25: =Projektbudget!A32 -> 0 | C25: ='År 1'!C25 -> 1700 | D25: =Projektbudget!D32*$C25 -> 0 | E25: =Projektbudget!E32*$C25 -> 0 | F25: =Projektbudget!F32*$C25 -> 0 | G25: =Projektbudget!G32*$C25 -> 0 | H25: =Projektbudget!H32*$C25 -> 0 | I25: =Projektbudget!I32*$C25 -> 0 | J25: =Projektbudget!J32*$C25 -> 0 | K25: =Projektbudget!K32*$C25 -> 0 | L25: =Projektbudget!L32*$C25 -> 0 | M25: =Projektbudget!M32*$C25 -> 0 | N25: 0 | Q25: 0 | S25: 0 | T25: 0 | U25: 0 | V25: 0 | W25: 0 | X25: 0 | Y25: 0 | Z25: 0 | AA25: 0 | AB25: 0 | AC25: 0
B26: =Projektbudget!A33 -> 0 | C26: ='År 1'!C26 -> 1700 | D26: =Projektbudget!D33*$C26 -> 0 | E26: =Projektbudget!E33*$C26 -> 0 | F26: =Projektbudget!F33*$C26 -> 0 | G26: =Projektbudget!G33*$C26 -> 0 | H26: =Projektbudget!H33*$C26 -> 0 | I26: =Projektbudget!I33*$C26 -> 0 | J26: =Projektbudget!J33*$C26 -> 0 | K26: =Projektbudget!K33*$C26 -> 0 | L26: =Projektbudget!L33*$C26 -> 0 | M26: =Projektbudget!M33*$C26 -> 0 | N26: 0 | Q26: 0 | S26: 0 | T26: 0 | U26: 0 | V26: 0 | W26: 0 | X26: 0 | Y26: 0 | Z26: 0 | AA26: 0 | AB26: 0 | AC26: 0
B27: =Projektbudget!A34 -> 0 | C27: ='År 1'!C27 -> 1700 | D27: =Projektbudget!D34*$C27 -> 0 | E27: =Projektbudget!E34*$C27 -> 0 | F27: =Projektbudget!F34*$C27 -> 0 | G27: =Projektbudget!G34*$C27 -> 0 | H27: =Projektbudget!H34*$C27 -> 0 | I27: =Projektbudget!I34*$C27 -> 0 | J27: =Projektbudget!J34*$C27 -> 0 | K27: =Projektbudget!K34*$C27 -> 0 | L27: =Projektbudget!L34*$C27 -> 0 | M27: =Projektbudget!M34*$C27 -> 0 | N27: 0 | Q27: 0 | S27: 0 | T27: 0 | U27: 0 | V27: 0 | W27: 0 | X27: 0 | Y27: 0 | Z27: 0 | AA27: 0 | AB27: 0 | AC27: 0
B28: =Projektbudget!A35 -> 0 | C28: ='År 1'!C28 -> 1700 | D28: =Projektbudget!D35*$C28 -> 0 | E28: =Projektbudget!E35*$C28 -> 0 | F28: =Projektbudget!F35*$C28 -> 0 | G28: =Projektbudget!G35*$C28 -> 0 | H28: =Projektbudget!H35*$C28 -> 0 | I28: =Projektbudget!I35*$C28 -> 0 | J28: =Projektbudget!J35*$C28 -> 0 | K28: =Projektbudget!K35*$C28 -> 0 | L28: =Projektbudget!L35*$C28 -> 0 | M28: =Projektbudget!M35*$C28 -> 0 | N28: 0 | Q28: 0 | S28: 0 | T28: 0 | U28: 0 | V28: 0 | W28: 0 | X28: 0 | Y28: 0 | Z28: 0 | AA28: 0 | AB28: 0 | AC28: 0
B29: =Projektbudget!A36 -> 0 | C29: ='År 1'!C29 -> 1700 | D29: =Projektbudget!D36*$C29 -> 0 | E29: =Projektbudget!E36*$C29 -> 0 | F29: =Projektbudget!F36*$C29 -> 0 | G29: =Projektbudget!G36*$C29 -> 0 | H29: =Projektbudget!H36*$C29 -> 0 | I29: =Projektbudget!I36*$C29 -> 0 | J29: =Projektbudget!J36*$C29 -> 0 | K29: =Projektbudget!K36*$C29 -> 0 | L29: =Projektbudget!L36*$C29 -> 0 | M29: =Projektbudget!M36*$C29 -> 0 | N29: 0 | Q29: 0 | S29: 0 | T29: 0 | U29: 0 | V29: 0 | W29: 0 | X29: 0 | Y29: 0 | Z29: 0 | AA29: 0 | AB29: 0 | AC29: 0
B30: =Projektbudget!A37 -> 0 | C30: ='År 1'!C30 -> 1700 | D30: =Projektbudget!D37*$C30 -> 0 | E30: =Projektbudget!E37*$C30 -> 0 | F30: =Projektbudget!F37*$C30 -> 0 | G30: =Projektbudget!G37*$C30 -> 0 | H30: =Projektbudget!H37*$C30 -> 0 | I30: =Projektbudget!I37*$C30 -> 0 | J30: =Projektbudget!J37*$C30 -> 0 | K30: =Projektbudget!K37*$C30 -> 0 | L30: =Projektbudget!L37*$C30 -> 0 | M30: =Projektbudget!M37*$C30 -> 0 | N30: 0 | Q30: 0 | S30: 0 | T30: 0 | U30: 0 | V30: 0 | W30: 0 | X30: =IFERROR(I30/($C30/12),0) -> 0 | Y30: 0 | Z30: 0 | AA30: 0 | AB30: 0 | AC30: 0
B31: =Projektbudget!A38 -> 0 | C31: ='År 1'!C31 -> 1700 | D31: =Projektbudget!D38*$C31 -> 0 | E31: =Projektbudget!E38*$C31 -> 0 | F31: =Projektbudget!F38*$C31 -> 0 | G31: =Projektbudget!G38*$C31 -> 0 | H31: =Projektbudget!H38*$C31 -> 0 | I31: =Projektbudget!I38*$C31 -> 0 | J31: =Projektbudget!J38*$C31 -> 0 | K31: =Projektbudget!K38*$C31 -> 0 | L31: =Projektbudget!L38*$C31 -> 0 | M31: =Projektbudget!M38*$C31 -> 0 | N31: 0 | Q31: 0 | S31: =IFERROR(D31/($C31/12),0) -> 0 | T31: 0 | U31: 0 | V31: 0 | W31: 0 | X31: 0 | Y31: 0 | Z31: 0 | AA31: 0 | AB31: 0 | AC31: 0
B32: =Projektbudget!A39 -> 0 | C32: ='År 1'!C32 -> 1700 | D32: =Projektbudget!D39*$C32 -> 0 | E32: =Projektbudget!E39*$C32 -> 0 | F32: =Projektbudget!F39*$C32 -> 0 | G32: =Projektbudget!G39*$C32 -> 0 | H32: =Projektbudget!H39*$C32 -> 0 | I32: =Projektbudget!I39*$C32 -> 0 | J32: =Projektbudget!J39*$C32 -> 0 | K32: =Projektbudget!K39*$C32 -> 0 | L32: =Projektbudget!L39*$C32 -> 0 | M32: =Projektbudget!M39*$C32 -> 0 | N32: 0 | Q32: 0 | S32: 0 | T32: 0 | U32: 0 | V32: 0 | W32: 0 | X32: 0 | Y32: 0 | Z32: 0 | AA32: 0 | AB32: 0 | AC32: 0
B33: =Projektbudget!A40 -> 0 | C33: ='År 1'!C33 -> 1700 | D33: =Projektbudget!D40*$C33 -> 0 | E33: =Projektbudget!E40*$C33 -> 0 | F33: =Projektbudget!F40*$C33 -> 0 | G33: =Projektbudget!G40*$C33 -> 0 | H33: =Projektbudget!H40*$C33 -> 0 | I33: =Projektbudget!I40*$C33 -> 0 | J33: =Projektbudget!J40*$C33 -> 0 | K33: =Projektbudget!K40*$C33 -> 0 | L33: =Projektbudget!L40*$C33 -> 0 | M33: =Projektbudget!M40*$C33 -> 0 | N33: 0 | Q33: 0 | S33: 0 | T33: 0 | U33: 0 | V33: 0 | W33: 0 | X33: 0 | Y33: 0 | Z33: 0 | AA33: 0 | AB33: 0 | AC33: 0
B34: =Projektbudget!A41 -> 0 | C34: ='År 1'!C34 -> 1700 | D34: =Projektbudget!D41*$C34 -> 0 | E34: =Projektbudget!E41*$C34 -> 0 | F34: =Projektbudget!F41*$C34 -> 0 | G34: =Projektbudget!G41*$C34 -> 0 | H34: =Projektbudget!H41*$C34 -> 0 | I34: =Projektbudget!I41*$C34 -> 0 | J34: =Projektbudget!J41*$C34 -> 0 | K34: =Projektbudget!K41*$C34 -> 0 | L34: =Projektbudget!L41*$C34 -> 0 | M34: =Projektbudget!M41*$C34 -> 0 | N34: 0 | Q34: 0 | S34: 0 | T34: 0 | U34: 0 | V34: 0 | W34: 0 | X34: 0 | Y34: 0 | Z34: 0 | AA34: 0 | AB34: 0 | AC34: 0
B35: =Projektbudget!A42 -> 0 | C35: ='År 1'!C35 -> 1700 | D35: =Projektbudget!D42*$C35 -> 0 | E35: =Projektbudget!E42*$C35 -> 0 | F35: =Projektbudget!F42*$C35 -> 0 | G35: =Projektbudget!G42*$C35 -> 0 | H35: =Projektbudget!H42*$C35 -> 0 | I35: =Projektbudget!I42*$C35 -> 0 | J35: =Projektbudget!J42*$C35 -> 0 | K35: =Projektbudget!K42*$C35 -> 0 | L35: =Projektbudget!L42*$C35 -> 0 | M35: =Projektbudget!M42*$C35 -> 0 | N35: 0 | Q35: 0 | S35: 0 | T35: 0 | U35: 0 | V35: 0 | W35: 0 | X35: 0 | Y35: 0 | Z35: 0 | AA35: 0 | AB35: 0 | AC35: 0
B36: =Projektbudget!A43 -> 0 | C36: ='År 1'!C36 -> 1700 | D36: =Projektbudget!D43*$C36 -> 0 | E36: =Projektbudget!E43*$C36 -> 0 | F36: =Projektbudget!F43*$C36 -> 0 | G36: =Projektbudget!G43*$C36 -> 0 | H36: =Projektbudget!H43*$C36 -> 0 | I36: =Projektbudget!I43*$C36 -> 0 | J36: =Projektbudget!J43*$C36 -> 0 | K36: =Projektbudget!K43*$C36 -> 0 | L36: =Projektbudget!L43*$C36 -> 0 | M36: =Projektbudget!M43*$C36 -> 0 | N36: 0 | Q36: 0 | S36: 0 | T36: 0 | U36: 0 | V36: 0 | W36: 0 | X36: 0 | Y36: 0 | Z36: 0 | AA36: 0 | AB36: 0 | AC36: 0
B37: =Projektbudget!A44 -> 0 | C37: ='År 1'!C37 -> 1700 | D37: =Projektbudget!D44*$C37 -> 0 | E37: =Projektbudget!E44*$C37 -> 0 | F37: =Projektbudget!F44*$C37 -> 0 | G37: =Projektbudget!G44*$C37 -> 0 | H37: =Projektbudget!H44*$C37 -> 0 | I37: =Projektbudget!I44*$C37 -> 0 | J37: =Projektbudget!J44*$C37 -> 0 | K37: =Projektbudget!K44*$C37 -> 0 | L37: =Projektbudget!L44*$C37 -> 0 | M37: =Projektbudget!M44*$C37 -> 0 | N37: 0 | Q37: 0 | S37: 0 | T37: 0 | U37: 0 | V37: 0 | W37: 0 | X37: 0 | Y37: 0 | Z37: 0 | AA37: 0 | AB37: 0 | AC37: 0
B38: =Projektbudget!A45 -> 0 | C38: ='År 1'!C38 -> 1700 | D38: =Projektbudget!D45*$C38 -> 0 | E38: =Projektbudget!E45*$C38 -> 0 | F38: =Projektbudget!F45*$C38 -> 0 | G38: =Projektbudget!G45*$C38 -> 0 | H38: =Projektbudget!H45*$C38 -> 0 | I38: =Projektbudget!I45*$C38 -> 0 | J38: =Projektbudget!J45*$C38 -> 0 | K38: =Projektbudget!K45*$C38 -> 0 | L38: =Projektbudget!L45*$C38 -> 0 | M38: =Projektbudget!M45*$C38 -> 0 | N38: 0 | Q38: 0 | S38: 0 | T38: 0 | U38: 0 | V38: 0 | W38: 0 | X38: 0 | Y38: 0 | Z38: 0 | AA38: 0 | AB38: 0 | AC38: 0
B39: =Projektbudget!A46 -> 0 | C39: ='År 1'!C39 -> 1700 | D39: =Projektbudget!D46*$C39 -> 0 | E39: =Projektbudget!E46*$C39 -> 0 | F39: =Projektbudget!F46*$C39 -> 0 | G39: =Projektbudget!G46*$C39 -> 0 | H39: =Projektbudget!H46*$C39 -> 0 | I39: =Projektbudget!I46*$C39 -> 0 | J39: =Projektbudget!J46*$C39 -> 0 | K39: =Projektbudget!K46*$C39 -> 0 | L39: =Projektbudget!L46*$C39 -> 0 | M39: =Projektbudget!M46*$C39 -> 0 | N39: 0 | Q39: 0 | S39: 0 | T39: 0 | U39: 0 | V39: 0 | W39: 0 | X39: 0 | Y39: 0 | Z39: 0 | AA39: 0 | AB39: 0 | AC39: 0
B40: ='År 1'!B40 -> Totalt | C40: =SUM(D40:M40) -> 0 | D40: =SUM(D5:D39) -> 0 | E40: 0 | F40: 0 | G40: 0 | H40: 0 | I40: 0 | J40: 0 | K40: 0 | L40: 0 | M40: 0 | N40: 0 | Q40: ='År 1'!Q40 -> Totalt | R40: =SUM(S40:AB40) -> 0 | S40: =SUM(S5:S39) -> 0 | T40: 0 | U40: 0 | V40: 0 | W40: 0 | X40: 0 | Y40: 0 | Z40: 0 | AA40: 0 | AB40: 0 | AC40: =SUM(AC5:AC39) -> 0
D42: ='År 1'!D42:N42 -> Utfall / Prognos timmar | S42: ='År 1'!S42:AC42 -> Omfattning %
D43: =D4 -> 2021 | E43: =E4 -> 2022 | F43: =F4 -> 2023 | G43: =G4 -> 2024 | H43: =H4 -> 2025 | I43: =I4 -> 2026 | J43: 2027 | K43: 2028 | L43: 2029 | M43: 2030 | N43: Kr/tim | S43: =D43 -> 2021 | T43: =E43 -> 2022 | U43: =F43 -> 2023 | V43: =G43 -> 2024 | W43: =H43 -> 2025 | X43: =I43 -> 2026 | Y43: 2027 | Z43: 2028 | AA43: 2029 | AB43: 2030 | AC43: ='År 1'!AC43 -> Totalt
B44: =B5 -> Professor | D44: ='År 1'!D44 -> 0 | N44: =IFERROR(Projektbudget!B12*12*LönePåläggUppräkningÅr2/C5,0) -> 729.3225882 | Q44: =B44 -> Professor | S44: =IFERROR(D44/$C5,0) -> 0 | T44: 0 | U44: 0 | V44: 0 | W44: 0 | X44: 0 | Y44: 0 | Z44: 0 | AA44: 0 | AB44: 0 | AC44: =SUM(S44:AB44) -> 0
B45: Docent | N45: =IFERROR(Projektbudget!B13*12*LönePåläggUppräkningÅr2/C6,0) -> 557.3330824 | Q45: Docent | S45: 0 | T45: 0 | U45: 0 | V45: 0 | W45: 0 | X45: 0 | Y45: 0 | Z45: 0 | AA45: 0 | AB45: 0 | AC45: =SUM(S45:AB45) -> 0
B46: Lektor | N46: =IFERROR(Projektbudget!B14*12*LönePåläggUppräkningÅr2/C7,0) -> 507.2601882 | Q46: Lektor | S46: 0 | T46: 0 | U46: 0 | V46: 0 | W46: 0 | X46: 0 | Y46: 0 | Z46: 0 | AA46: 0 | AB46: 0 | AC46: 0
B47: Adjunkt | N47: =IFERROR(Projektbudget!B15*12*LönePåläggUppräkningÅr2/C8,0) -> 434.3279294 | Q47: Adjunkt | S47: 0 | T47: 0 | U47: 0 | V47: 0 | W47: 0 | X47: 0 | Y47: 0 | Z47: 0 | AA47: 0 | AB47: 0 | AC47: 0
B48: Post dok | N48: =IFERROR(Projektbudget!B16*12*LönePåläggUppräkningÅr2/C9,0) -> 379.9008706 | Q48: Post dok | S48: 0 | T48: 0 | U48: 0 | V48: 0 | W48: 0 | X48: 0 | Y48: 0 | Z48: 0 | AA48: 0 | AB48: 0 | AC48: 0
B49: Doktorand (Snittlön) | N49: =IFERROR(Projektbudget!B17*12*LönePåläggUppräkningÅr2/C10,0) -> 310.5063706 | Q49: Doktorand (Snittlön) | S49: 0 | T49: 0 | U49: 0 | V49: 0 | W49: 0 | X49: 0 | Y49: 0 | Z49: 0 | AA49: 0 | AB49: 0 | AC49: 0
B50: Administratör | N50: =IFERROR(Projektbudget!B18*12*LönePåläggUppräkningÅr2/C11,0) -> 390.7862824 | Q50: Administratör | S50: 0 | T50: 0 | U50: 0 | V50: 0 | W50: 0 | X50: 0 | Y50: 0 | Z50: 0 | AA50: 0 | AB50: 0 | AC50: 0
B51: Labbtekniker | N51: =IFERROR(Projektbudget!B19*12*LönePåläggUppräkningÅr2/C12,0) -> 359.2185882 | Q51: Labbtekniker | S51: 0 | T51: 0 | U51: 0 | V51: 0 | W51: 0 | X51: 0 | Y51: 0 | Z51: 0 | AA51: 0 | AB51: 0 | AC51: 0
B52: Forskningsassistent | N52: =IFERROR(Projektbudget!B20*12*LönePåläggUppräkningÅr2/C13,0) -> 271.0467529 | Q52: Forskningsassistent | S52: 0 | T52: 0 | U52: 0 | V52: 0 | W52: 0 | X52: 0 | Y52: 0 | Z52: 0 | AA52: 0 | AB52: 0 | AC52: 0
B53: Forskare/biträdande forskare | D53: ='År 1'!D53 -> 0 | N53: =IFERROR(Projektbudget!B21*12*LönePåläggUppräkningÅr2/C14,0) -> 404.9373176 | Q53: Forskare/biträdande forskare | S53: 0 | T53: 0 | U53: 0 | V53: 0 | W53: 0 | X53: 0 | Y53: 0 | Z53: 0 | AA53: 0 | AB53: 0 | AC53: 0
B54: 0 | D54: ='År 1'!D54 -> 0 | N54: =IFERROR(Projektbudget!B22*12*LönePåläggUppräkningÅr2/C15,0) -> 0 | Q54: 0 | S54: 0 | T54: 0 | U54: 0 | V54: 0 | W54: 0 | X54: 0 | Y54: 0 | Z54: 0 | AA54: 0 | AB54: 0 | AC54: 0
B55: 0 | D55: ='År 1'!D55 -> 0 | N55: =IFERROR(Projektbudget!B23*12*LönePåläggUppräkningÅr2/C16,0) -> 0 | Q55: 0 | S55: 0 | T55: 0 | U55: 0 | V55: 0 | W55: 0 | X55: 0 | Y55: 0 | Z55: 0 | AA55: 0 | AB55: 0 | AC55: 0
B56: 0 | D56: ='År 1'!D56 -> 0 | N56: =IFERROR(Projektbudget!B24*12*LönePåläggUppräkningÅr2/C17,0) -> 0 | Q56: 0 | S56: 0 | T56: 0 | U56: 0 | V56: 0 | W56: 0 | X56: 0 | Y56: 0 | Z56: 0 | AA56: 0 | AB56: 0 | AC56: 0
B57: 0 | D57: ='År 1'!D57 -> 0 | N57: =IFERROR(Projektbudget!B25*12*LönePåläggUppräkningÅr2/C18,0) -> 0 | Q57: 0 | S57: 0 | T57: 0 | U57: 0 | V57: 0 | W57: 0 | X57: 0 | Y57: 0 | Z57: 0 | AA57: 0 | AB57: 0 | AC57: 0
B58: 0 | D58: ='År 1'!D58 -> 0 | N58: =IFERROR(Projektbudget!B26*12*LönePåläggUppräkningÅr2/C19,0) -> 0 | Q58: 0 | S58: 0 | T58: 0 | U58: 0 | V58: 0 | W58: 0 | X58: 0 | Y58: 0 | Z58: 0 | AA58: 0 | AB58: 0 | AC58: 0
B59: 0 | D59: ='År 1'!D59 -> 0 | N59: =IFERROR(Projektbudget!B27*12*LönePåläggUppräkningÅr2/C20,0) -> 0 | Q59: 0 | S59: 0 | T59: 0 | U59: 0 | V59: 0 | W59: 0 | X59: 0 | Y59: 0 | Z59: 0 | AA59: 0 | AB59: 0 | AC59: 0
B60: 0 | D60: ='År 1'!D60 -> 0 | N60: =IFERROR(Projektbudget!B28*12*LönePåläggUppräkningÅr2/C21,0) -> 0 | Q60: 0 | S60: =IFERROR(D60/$C21,0) -> 0 | T60: 0 | U60: 0 | V60: 0 | W60: 0 | X60: 0 | Y60: 0 | Z60: 0 | AA60: 0 | AB60: 0 | AC60: 0
B61: 0 | D61: ='År 1'!D61 -> 0 | N61: =IFERROR(Projektbudget!B29*12*LönePåläggUppräkningÅr2/C22,0) -> 0 | Q61: 0 | S61: 0 | T61: 0 | U61: 0 | V61: 0 | W61: 0 | X61: 0 | Y61: 0 | Z61: 0 | AA61: 0 | AB61: 0 | AC61: 0
B62: 0 | D62: ='År 1'!D62 -> 0 | N62: =IFERROR(Projektbudget!B30*12*LönePåläggUppräkningÅr2/C23,0) -> 0 | Q62: 0 | S62: 0 | T62: 0 | U62: 0 | V62: 0 | W62: 0 | X62: 0 | Y62: 0 | Z62: 0 | AA62: 0 | AB62: 0 | AC62: 0
B63: 0 | D63: ='År 1'!D63 -> 0 | N63: =IFERROR(Projektbudget!B31*12*LönePåläggUppräkningÅr2/C24,0) -> 0 | Q63: 0 | S63: 0 | T63: 0 | U63: 0 | V63: 0 | W63: 0 | X63: 0 | Y63: 0 | Z63: 0 | AA63: 0 | AB63: 0 | AC63: 0
B64: 0 | D64: ='År 1'!D64 -> 0 | N64: =IFERROR(Projektbudget!B32*12*LönePåläggUppräkningÅr2/C25,0) -> 0 | Q64: 0 | S64: 0 | T64: 0 | U64: 0 | V64: 0 | W64: 0 | X64: 0 | Y64: 0 | Z64: 0 | AA64: 0 | AB64: 0 | AC64: 0
B65: 0 | D65: ='År 1'!D65 -> 0 | N65: =IFERROR(Projektbudget!B33*12*LönePåläggUppräkningÅr2/C26,0) -> 0 | Q65: 0 | S65: 0 | T65: 0 | U65: 0 | V65: 0 | W65: 0 | X65: 0 | Y65: 0 | Z65: 0 | AA65: 0 | AB65: 0 | AC65: 0
B66: 0 | D66: ='År 1'!D66 -> 0 | N66: =IFERROR(Projektbudget!B34*12*LönePåläggUppräkningÅr2/C27,0) -> 0 | Q66: 0 | S66: 0 | T66: 0 | U66: 0 | V66: 0 | W66: 0 | X66: 0 | Y66: 0 | Z66: 0 | AA66: 0 | AB66: 0 | AC66: 0
B67: 0 | D67: ='År 1'!D67 -> 0 | N67: =IFERROR(Projektbudget!B35*12*LönePåläggUppräkningÅr2/C28,0) -> 0 | Q67: 0 | S67: 0 | T67: 0 | U67: 0 | V67: 0 | W67: 0 | X67: 0 | Y67: 0 | Z67: 0 | AA67: 0 | AB67: 0 | AC67: 0
B68: 0 | D68: ='År 1'!D68 -> 0 | N68: =IFERROR(Projektbudget!B36*12*LönePåläggUppräkningÅr2/C29,0) -> 0 | Q68: 0 | S68: 0 | T68: 0 | U68: 0 | V68: 0 | W68: 0 | X68: 0 | Y68: 0 | Z68: 0 | AA68: 0 | AB68: 0 | AC68: 0
B69: 0 | D69: ='År 1'!D69 -> 0 | N69: =IFERROR(Projektbudget!B37*12*LönePåläggUppräkningÅr2/C30,0) -> 0 | Q69: 0 | S69: 0 | T69: 0 | U69: 0 | V69: 0 | W69: 0 | X69: 0 | Y69: 0 | Z69: 0 | AA69: 0 | AB69: 0 | AC69: 0
B70: 0 | D70: ='År 1'!D70 -> 0 | N70: =IFERROR(Projektbudget!B38*12*LönePåläggUppräkningÅr2/C31,0) -> 0 | Q70: 0 | S70: 0 | T70: 0 | U70: 0 | V70: 0 | W70: 0 | X70: 0 | Y70: 0 | Z70: 0 | AA70: 0 | AB70: 0 | AC70: 0
B71: 0 | D71: ='År 1'!D71 -> 0 | N71: =IFERROR(Projektbudget!B39*12*LönePåläggUppräkningÅr2/C32,0) -> 0 | Q71: 0 | S71: 0 | T71: 0 | U71: 0 | V71: 0 | W71: 0 | X71: 0 | Y71: 0 | Z71: 0 | AA71: 0 | AB71: 0 | AC71: 0
B72: 0 | D72: ='År 1'!D72 -> 0 | N72: =IFERROR(Projektbudget!B40*12*LönePåläggUppräkningÅr2/C33,0) -> 0 | Q72: 0 | S72: 0 | T72: 0 | U72: 0 | V72: 0 | W72: 0 | X72: 0 | Y72: 0 | Z72: 0 | AA72: 0 | AB72: 0 | AC72: 0
B73: 0 | D73: ='År 1'!D73 -> 0 | N73: =IFERROR(Projektbudget!B41*12*LönePåläggUppräkningÅr2/C34,0) -> 0 | Q73: 0 | S73: 0 | T73: 0 | U73: 0 | V73: 0 | W73: 0 | X73: 0 | Y73: 0 | Z73: 0 | AA73: 0 | AB73: 0 | AC73: 0
B74: 0 | D74: ='År 1'!D74 -> 0 | N74: =IFERROR(Projektbudget!B42*12*LönePåläggUppräkningÅr2/C35,0) -> 0 | Q74: 0 | S74: 0 | T74: 0 | U74: 0 | V74: 0 | W74: 0 | X74: 0 | Y74: 0 | Z74: 0 | AA74: 0 | AB74: 0 | AC74: 0
B75: 0 | D75: ='År 1'!D75 -> 0 | N75: =IFERROR(Projektbudget!B43*12*LönePåläggUppräkningÅr2/C36,0) -> 0 | Q75: 0 | S75: 0 | T75: 0 | U75: 0 | V75: 0 | W75: 0 | X75: 0 | Y75: 0 | Z75: 0 | AA75: 0 | AB75: 0 | AC75: 0
B76: 0 | D76: ='År 1'!D76 -> 0 | N76: =IFERROR(Projektbudget!B44*12*LönePåläggUppräkningÅr2/C37,0) -> 0 | Q76: 0 | S76: =IFERROR(D76/$C37,0) -> 0 | T76: 0 | U76: 0 | V76: 0 | W76: 0 | X76: 0 | Y76: 0 | Z76: 0 | AA76: 0 | AB76: 0 | AC76: 0
B77: 0 | D77: ='År 1'!D77 -> 0 | N77: =IFERROR(Projektbudget!B45*12*LönePåläggUppräkningÅr2/C38,0) -> 0 | Q77: 0 | S77: 0 | T77: 0 | U77: 0 | V77: 0 | W77: 0 | X77: 0 | Y77: 0 | Z77: 0 | AA77: 0 | AB77: 0 | AC77: 0
B78: 0 | D78: ='År 1'!D78 -> 0 | N78: =IFERROR(Projektbudget!B46*12*LönePåläggUppräkningÅr2/C39,0) -> 0 | Q78: 0 | S78: 0 | T78: 0 | U78: 0 | V78: 0 | W78: 0 | X78: 0 | Y78: 0 | Z78: 0 | AA78: 0 | AB78: 0 | AC78: 0
B79: ='År 1'!B40 -> Totalt | C79: =SUM(D79:M79) -> 0 | D79: =SUM(D44:D78) -> 0 | E79: =SUM(E44:E78) -> 0 | F79: =SUM(F44:F78) -> 0 | G79: =SUM(G44:G78) -> 0 | H79: =SUM(H44:H78) -> 0 | I79: =SUM(I44:I78) -> 0 | J79: 0 | K79: 0 | L79: 0 | M79: 0 | Q79: ='År 1'!Q40 -> Totalt | R79: =SUM(S79:AB79) -> 0 | S79: =SUM(S44:S78) -> 0 | T79: 0 | U79: 0 | V79: 0 | W79: 0 | X79: 0 | Y79: 0 | Z79: 0 | AA79: 0 | AB79: 0 | AC79: =SUM(AC44:AC78) -> 0

Sheet År 3 (hidden)
B1: ="Projekt: "&Projektbudget!$B$4 -> Projekt: | F1: ='År 4'!$F$1 -> 0
D3: ='År 2'!D3:N3 -> Budget timmar (ev. reviderad) | O3: ='År 2'!O3 -> Godkännande | S3: Manmånader
C4: Åarb | D4: =Projektbudget!D52 -> 2021 | E4: =Projektbudget!E52 -> 2022 | F4: =Projektbudget!F52 -> 2023 | G4: =Projektbudget!G52 -> 2024 | H4: =Projektbudget!H52 -> 2025 | I4: =Projektbudget!I52 -> 2026 | J4: =Projektbudget!J52 -> 2027 | K4: =Projektbudget!K52 -> 2028 | L4: =Projektbudget!L52 -> 2029 | M4: =Projektbudget!M52 -> 2030 | N4: Totalt | O4: prefekt/SR | S4: =D4 -> 2021 | T4: =E4 -> 2022 | U4: =F4 -> 2023 | V4: =G4 -> 2024 | W4: =H4 -> 2025 | X4: =I4 -> 2026 | Y4: 2027 | Z4: 2028 | AA4: 2029 | AB4: 2030 | AC4: Totalt
B5: =Projektbudget!A12 -> Professor | C5: ='År 2'!C5 -> 1700 | D5: =Projektbudget!D12*$C5 -> 0 | E5: =Projektbudget!E12*$C5 -> 0 | F5: =Projektbudget!F12*$C5 -> 0 | G5: =Projektbudget!G12*$C5 -> 0 | H5: =Projektbudget!H12*$C5 -> 0 | I5: =Projektbudget!I12*$C5 -> 0 | J5: =Projektbudget!J12*$C5 -> 0 | K5: =Projektbudget!K12*$C5 -> 0 | L5: =Projektbudget!L12*$C5 -> 0 | M5: =Projektbudget!M12*$C5 -> 0 | N5: =SUM(D5:M5) -> 0 | Q5: =B5 -> Professor | S5: =IFERROR(D5/($C5/12),0) -> 0 | T5: 0 | U5: 0 | V5: 0 | W5: 0 | X5: 0 | Y5: 0 | Z5: 0 | AA5: 0 | AB5: 0 | AC5: =SUM(S5:AB5) -> 0
B6: =Projektbudget!A13 -> Docent | C6: ='År 2'!C6 -> 1700 | D6: =Projektbudget!D13*$C6 -> 0 | E6: =Projektbudget!E13*$C6 -> 0 | F6: =Projektbudget!F13*$C6 -> 0 | G6: =Projektbudget!G13*$C6 -> 0 | H6: =Projektbudget!H13*$C6 -> 0 | I6: =Projektbudget!I13*$C6 -> 0 | J6: =Projektbudget!J13*$C6 -> 0 | K6: =Projektbudget!K13*$C6 -> 0 | L6: =Projektbudget!L13*$C6 -> 0 | M6: =Projektbudget!M13*$C6 -> 0 | N6: =SUM(D6:M6) -> 0 | Q6: =B6 -> Docent | S6: 0 | T6: 0 | U6: 0 | V6: 0 | W6: 0 | X6: 0 | Y6: 0 | Z6: 0 | AA6: 0 | AB6: 0 | AC6: =SUM(S6:AB6) -> 0
B7: =Projektbudget!A14 -> Lektor | C7: ='År 2'!C7 -> 1700 | D7: =Projektbudget!D14*$C7 -> 0 | E7: =Projektbudget!E14*$C7 -> 0 | F7: =Projektbudget!F14*$C7 -> 0 | G7: =Projektbudget!G14*$C7 -> 0 | H7: =Projektbudget!H14*$C7 -> 0 | I7: =Projektbudget!I14*$C7 -> 0 | J7: =Projektbudget!J14*$C7 -> 0 | K7: =Projektbudget!K14*$C7 -> 0 | L7: =Projektbudget!L14*$C7 -> 0 | M7: =Projektbudget!M14*$C7 -> 0 | N7: 0 | Q7: Lektor | S7: 0 | T7: 0 | U7: 0 | V7: 0 | W7: 0 | X7: 0 | Y7: 0 | Z7: 0 | AA7: 0 | AB7: 0 | AC7: 0
B8: =Projektbudget!A15 -> Adjunkt | C8: ='År 2'!C8 -> 1700 | D8: =Projektbudget!D15*$C8 -> 0 | E8: =Projektbudget!E15*$C8 -> 0 | F8: =Projektbudget!F15*$C8 -> 0 | G8: =Projektbudget!G15*$C8 -> 0 | H8: =Projektbudget!H15*$C8 -> 0 | I8: =Projektbudget!I15*$C8 -> 0 | J8: =Projektbudget!J15*$C8 -> 0 | K8: =Projektbudget!K15*$C8 -> 0 | L8: =Projektbudget!L15*$C8 -> 0 | M8: =Projektbudget!M15*$C8 -> 0 | N8: 0 | Q8: Adjunkt | S8: 0 | T8: 0 | U8: 0 | V8: 0 | W8: 0 | X8: 0 | Y8: 0 | Z8: 0 | AA8: 0 | AB8: 0 | AC8: 0
B9: =Projektbudget!A16 -> Post dok | C9: ='År 2'!C9 -> 1700 | D9: =Projektbudget!D16*$C9 -> 0 | E9: =Projektbudget!E16*$C9 -> 0 | F9: =Projektbudget!F16*$C9 -> 0 | G9: =Projektbudget!G16*$C9 -> 0 | H9: =Projektbudget!H16*$C9 -> 0 | I9: =Projektbudget!I16*$C9 -> 0 | J9: =Projektbudget!J16*$C9 -> 0 | K9: =Projektbudget!K16*$C9 -> 0 | L9: =Projektbudget!L16*$C9 -> 0 | M9: =Projektbudget!M16*$C9 -> 0 | N9: 0 | Q9: Post dok | S9: 0 | T9: 0 | U9: 0 | V9: 0 | W9: 0 | X9: 0 | Y9: 0 | Z9: 0 | AA9: 0 | AB9: 0 | AC9: 0
B10: =Projektbudget!A17 -> Doktorand (Snittlön) | C10: ='År 2'!C10 -> 1700 | D10: =Projektbudget!D17*$C10 -> 0 | E10: =Projektbudget!E17*$C10 -> 0 | F10: =Projektbudget!F17*$C10 -> 0 | G10: =Projektbudget!G17*$C10 -> 0 | H10: =Projektbudget!H17*$C10 -> 0 | I10: =Projektbudget!I17*$C10 -> 0 | J10: =Projektbudget!J17*$C10 -> 0 | K10: =Projektbudget!K17*$C10 -> 0 | L10: =Projektbudget!L17*$C10 -> 0 | M10: =Projektbudget!M17*$C10 -> 0 | N10: 0 | Q10: Doktorand (Snittlön) | S10: 0 | T10: 0 | U10: 0 | V10: 0 | W10: 0 | X10: 0 | Y10: 0 | Z10: 0 | AA10: 0 | AB10: 0 | AC10: 0
B11: =Projektbudget!A18 -> Administratör | C11: ='År 2'!C11 -> 1700 | D11: =Projektbudget!D18*$C11 -> 0 | E11: =Projektbudget!E18*$C11 -> 0 | F11: =Projektbudget!F18*$C11 -> 0 | G11: =Projektbudget!G18*$C11 -> 0 | H11: =Projektbudget!H18*$C11 -> 0 | I11: =Projektbudget!I18*$C11 -> 0 | J11: =Projektbudget!J18*$C11 -> 0 | K11: =Projektbudget!K18*$C11 -> 0 | L11: =Projektbudget!L18*$C11 -> 0 | M11: =Projektbudget!M18*$C11 -> 0 | N11: 0 | Q11: Administratör | S11: 0 | T11: 0 | U11: 0 | V11: 0 | W11: 0 | X11: 0 | Y11: 0 | Z11: 0 | AA11: 0 | AB11: 0 | AC11: 0
B12: =Projektbudget!A19 -> Labbtekniker | C12: ='År 2'!C12 -> 1700 | D12: =Projektbudget!D19*$C12 -> 0 | E12: =Projektbudget!E19*$C12 -> 0 | F12: =Projektbudget!F19*$C12 -> 0 | G12: =Projektbudget!G19*$C12 -> 0 | H12: =Projektbudget!H19*$C12 -> 0 | I12: =Projektbudget!I19*$C12 -> 0 | J12: =Projektbudget!J19*$C12 -> 0 | K12: =Projektbudget!K19*$C12 -> 0 | L12: =Projektbudget!L19*$C12 -> 0 | M12: =Projektbudget!M19*$C12 -> 0 | N12: 0 | Q12: Labbtekniker | S12: 0 | T12: 0 | U12: 0 | V12: 0 | W12: 0 | X12: 0 | Y12: 0 | Z12: 0 | AA12: 0 | AB12: 0 | AC12: 0
B13: =Projektbudget!A20 -> Forskningsassistent | C13: ='År 2'!C13 -> 1700 | D13: =Projektbudget!D20*$C13 -> 0 | E13: =Projektbudget!E20*$C13 -> 0 | F13: =Projektbudget!F20*$C13 -> 0 | G13: =Projektbudget!G20*$C13 -> 0 | H13: =Projektbudget!H20*$C13 -> 0 | I13: =Projektbudget!I20*$C13 -> 0 | J13: =Projektbudget!J20*$C13 -> 0 | K13: =Projektbudget!K20*$C13 -> 0 | L13: =Projektbudget!L20*$C13 -> 0 | M13: =Projektbudget!M20*$C13 -> 0 | N13: 0 | Q13: Forskningsassistent | S13: 0 | T13: 0 | U13: 0 | V13: 0 | W13: 0 | X13: 0 | Y13: 0 | Z13: 0 | AA13: 0 | AB13: 0 | AC13: 0
B14: =Projektbudget!A21 -> Forskare/biträdande forskare | C14: ='År 2'!C14 -> 1700 | D14: =Projektbudget!D21*$C14 -> 0 | E14: =Projektbudget!E21*$C14 -> 0 | F14: =Projektbudget!F21*$C14 -> 0 | G14: =Projektbudget!G21*$C14 -> 0 | H14: =Projektbudget!H21*$C14 -> 0 | I14: =Projektbudget!I21*$C14 -> 0 | J14: =Projektbudget!J21*$C14 -> 0 | K14: =Projektbudget!K21*$C14 -> 0 | L14: =Projektbudget!L21*$C14 -> 0 | M14: =Projektbudget!M21*$C14 -> 0 | N14: 0 | Q14: Forskare/biträdande forskare | S14: 0 | T14: 0 | U14: 0 | V14: 0 | W14: 0 | X14: 0 | Y14: 0 | Z14: 0 | AA14: 0 | AB14: 0 | AC14: 0
B15: =Projektbudget!A22 -> 0 | C15: ='År 2'!C15 -> 1700 | D15: =Projektbudget!D22*$C15 -> 0 | E15: =Projektbudget!E22*$C15 -> 0 | F15: =Projektbudget!F22*$C15 -> 0 | G15: =Projektbudget!G22*$C15 -> 0 | H15: =Projektbudget!H22*$C15 -> 0 | I15: =Projektbudget!I22*$C15 -> 0 | J15: =Projektbudget!J22*$C15 -> 0 | K15: =Projektbudget!K22*$C15 -> 0 | L15: =Projektbudget!L22*$C15 -> 0 | M15: =Projektbudget!M22*$C15 -> 0 | N15: 0 | Q15: =B15 -> 0 | S15: =IFERROR(D15/($C15/12),0) -> 0 | T15: 0 | U15: 0 | V15: 0 | W15: 0 | X15: 0 | Y15: 0 | Z15: 0 | AA15: 0 | AB15: 0 | AC15: 0
B16: =Projektbudget!A23 -> 0 | C16: ='År 2'!C16 -> 1700 | D16: =Projektbudget!D23*$C16 -> 0 | E16: =Projektbudget!E23*$C16 -> 0 | F16: =Projektbudget!F23*$C16 -> 0 | G16: =Projektbudget!G23*$C16 -> 0 | H16: =Projektbudget!H23*$C16 -> 0 | I16: =Projektbudget!I23*$C16 -> 0 | J16: =Projektbudget!J23*$C16 -> 0 | K16: =Projektbudget!K23*$C16 -> 0 | L16: =Projektbudget!L23*$C16 -> 0 | M16: =Projektbudget!M23*$C16 -> 0 | N16: 0 | Q16: =B16 -> 0 | S16: =IFERROR(D16/($C16/12),0) -> 0 | T16: 0 | U16: 0 | V16: 0 | W16: 0 | X16: 0 | Y16: 0 | Z16: 0 | AA16: 0 | AB16: 0 | AC16: 0
B17: =Projektbudget!A24 -> 0 | C17: ='År 2'!C17 -> 1700 | D17: =Projektbudget!D24*$C17 -> 0 | E17: =Projektbudget!E24*$C17 -> 0 | F17: =Projektbudget!F24*$C17 -> 0 | G17: =Projektbudget!G24*$C17 -> 0 | H17: =Projektbudget!H24*$C17 -> 0 | I17: =Projektbudget!I24*$C17 -> 0 | J17: =Projektbudget!J24*$C17 -> 0 | K17: =Projektbudget!K24*$C17 -> 0 | L17: =Projektbudget!L24*$C17 -> 0 | M17: =Projektbudget!M24*$C17 -> 0 | N17: 0 | Q17: =B17 -> 0 | S17: =IFERROR(D17/($C17/12),0) -> 0 | T17: 0 | U17: 0 | V17: 0 | W17: 0 | X17: 0 | Y17: 0 | Z17: 0 | AA17: 0 | AB17: 0 | AC17: 0
B18: =Projektbudget!A25 -> 0 | C18: ='År 2'!C18 -> 1700 | D18: =Projektbudget!D25*$C18 -> 0 | E18: =Projektbudget!E25*$C18 -> 0 | F18: =Projektbudget!F25*$C18 -> 0 | G18: =Projektbudget!G25*$C18 -> 0 | H18: =Projektbudget!H25*$C18 -> 0 | I18: =Projektbudget!I25*$C18 -> 0 | J18: =Projektbudget!J25*$C18 -> 0 | K18: =Projektbudget!K25*$C18 -> 0 | L18: =Projektbudget!L25*$C18 -> 0 | M18: =Projektbudget!M25*$C18 -> 0 | N18: 0 | Q18: =B18 -> 0 | S18: =IFERROR(D18/($C18/12),0) -> 0 | T18: 0 | U18: 0 | V18: 0 | W18: 0 | X18: 0 | Y18: 0 | Z18: 0 | AA18: 0 | AB18: 0 | AC18: 0
B19: =Projektbudget!A26 -> 0 | C19: ='År 2'!C19 -> 1700 | D19: =Projektbudget!D26*$C19 -> 0 | E19: =Projektbudget!E26*$C19 -> 0 | F19: =Projektbudget!F26*$C19 -> 0 | G19: =Projektbudget!G26*$C19 -> 0 | H19: =Projektbudget!H26*$C19 -> 0 | I19: =Projektbudget!I26*$C19 -> 0 | J19: =Projektbudget!J26*$C19 -> 0 | K19: =Projektbudget!K26*$C19 -> 0 | L19: =Projektbudget!L26*$C19 -> 0 | M19: =Projektbudget!M26*$C19 -> 0 | N19: 0 | Q19: =B19 -> 0 | S19: =IFERROR(D19/($C19/12),0) -> 0 | T19: 0 | U19: 0 | V19: 0 | W19: 0 | X19: 0 | Y19: 0 | Z19: 0 | AA19: 0 | AB19: 0 | AC19: 0
B20: =Projektbudget!A27 -> 0 | C20: ='År 2'!C20 -> 1700 | D20: =Projektbudget!D27*$C20 -> 0 | E20: =Projektbudget!E27*$C20 -> 0 | F20: =Projektbudget!F27*$C20 -> 0 | G20: =Projektbudget!G27*$C20 -> 0 | H20: =Projektbudget!H27*$C20 -> 0 | I20: =Projektbudget!I27*$C20 -> 0 | J20: =Projektbudget!J27*$C20 -> 0 | K20: =Projektbudget!K27*$C20 -> 0 | L20: =Projektbudget!L27*$C20 -> 0 | M20: =Projektbudget!M27*$C20 -> 0 | N20: 0 | Q20: =B20 -> 0 | S20: =IFERROR(D20/($C20/12),0) -> 0 | T20: 0 | U20: 0 | V20: 0 | W20: 0 | X20: 0 | Y20: 0 | Z20: 0 | AA20: 0 | AB20: 0 | AC20: 0
B21: =Projektbudget!A28 -> 0 | C21: ='År 2'!C21 -> 1700 | D21: =Projektbudget!D28*$C21 -> 0 | E21: =Projektbudget!E28*$C21 -> 0 | F21: =Projektbudget!F28*$C21 -> 0 | G21: =Projektbudget!G28*$C21 -> 0 | H21: =Projektbudget!H28*$C21 -> 0 | I21: =Projektbudget!I28*$C21 -> 0 | J21: =Projektbudget!J28*$C21 -> 0 | K21: =Projektbudget!K28*$C21 -> 0 | L21: =Projektbudget!L28*$C21 -> 0 | M21: =Projektbudget!M28*$C21 -> 0 | N21: 0 | Q21: 0 | S21: 0 | T21: 0 | U21: 0 | V21: 0 | W21: 0 | X21: 0 | Y21: 0 | Z21: 0 | AA21: 0 | AB21: 0 | AC21: 0
B22: =Projektbudget!A29 -> 0 | C22: ='År 2'!C22 -> 1700 | D22: =Projektbudget!D29*$C22 -> 0 | E22: =Projektbudget!E29*$C22 -> 0 | F22: =Projektbudget!F29*$C22 -> 0 | G22: =Projektbudget!G29*$C22 -> 0 | H22: =Projektbudget!H29*$C22 -> 0 | I22: =Projektbudget!I29*$C22 -> 0 | J22: =Projektbudget!J29*$C22 -> 0 | K22: =Projektbudget!K29*$C22 -> 0 | L22: =Projektbudget!L29*$C22 -> 0 | M22: =Projektbudget!M29*$C22 -> 0 | N22: 0 | Q22: 0 | S22: 0 | T22: 0 | U22: 0 | V22: 0 | W22: 0 | X22: 0 | Y22: 0 | Z22: 0 | AA22: 0 | AB22: 0 | AC22: 0
B23: =Projektbudget!A30 -> 0 | C23: ='År 2'!C23 -> 1700 | D23: =Projektbudget!D30*$C23 -> 0 | E23: =Projektbudget!E30*$C23 -> 0 | F23: =Projektbudget!F30*$C23 -> 0 | G23: =Projektbudget!G30*$C23 -> 0 | H23: =Projektbudget!H30*$C23 -> 0 | I23: =Projektbudget!I30*$C23 -> 0 | J23: =Projektbudget!J30*$C23 -> 0 | K23: =Projektbudget!K30*$C23 -> 0 | L23: =Projektbudget!L30*$C23 -> 0 | M23: =Projektbudget!M30*$C23 -> 0 | N23: 0 | Q23: 0 | S23: 0 | T23: 0 | U23: 0 | V23: 0 | W23: 0 | X23: 0 | Y23: 0 | Z23: 0 | AA23: 0 | AB23: 0 | AC23: 0
B24: =Projektbudget!A31 -> 0 | C24: ='År 2'!C24 -> 1700 | D24: =Projektbudget!D31*$C24 -> 0 | E24: =Projektbudget!E31*$C24 -> 0 | F24: =Projektbudget!F31*$C24 -> 0 | G24: =Projektbudget!G31*$C24 -> 0 | H24: =Projektbudget!H31*$C24 -> 0 | I24: =Projektbudget!I31*$C24 -> 0 | J24: =Projektbudget!J31*$C24 -> 0 | K24: =Projektbudget!K31*$C24 -> 0 | L24: =Projektbudget!L31*$C24 -> 0 | M24: =Projektbudget!M31*$C24 -> 0 | N24: 0 | Q24: 0 | S24: 0 | T24: 0 | U24: 0 | V24: 0 | W24: 0 | X24: 0 | Y24: 0 | Z24: 0 | AA24: 0 | AB24: 0 | AC24: 0
B25: =Projektbudget!A32 -> 0 | C25: ='År 2'!C25 -> 1700 | D25: =Projektbudget!D32*$C25 -> 0 | E25: =Projektbudget!E32*$C25 -> 0 | F25: =Projektbudget!F32*$C25 -> 0 | G25: =Projektbudget!G32*$C25 -> 0 | H25: =Projektbudget!H32*$C25 -> 0 | I25: =Projektbudget!I32*$C25 -> 0 | J25: =Projektbudget!J32*$C25 -> 0 | K25: =Projektbudget!K32*$C25 -> 0 | L25: =Projektbudget!L32*$C25 -> 0 | M25: =Projektbudget!M32*$C25 -> 0 | N25: 0 | Q25: 0 | S25: 0 | T25: 0 | U25: 0 | V25: 0 | W25: 0 | X25: 0 | Y25: 0 | Z25: 0 | AA25: 0 | AB25: 0 | AC25: 0
B26: =Projektbudget!A33 -> 0 | C26: ='År 2'!C26 -> 1700 | D26: =Projektbudget!D33*$C26 -> 0 | E26: =Projektbudget!E33*$C26 -> 0 | F26: =Projektbudget!F33*$C26 -> 0 | G26: =Projektbudget!G33*$C26 -> 0 | H26: =Projektbudget!H33*$C26 -> 0 | I26: =Projektbudget!I33*$C26 -> 0 | J26: =Projektbudget!J33*$C26 -> 0 | K26: =Projektbudget!K33*$C26 -> 0 | L26: =Projektbudget!L33*$C26 -> 0 | M26: =Projektbudget!M33*$C26 -> 0 | N26: 0 | Q26: 0 | S26: 0 | T26: 0 | U26: 0 | V26: 0 | W26: 0 | X26: 0 | Y26: 0 | Z26: 0 | AA26: 0 | AB26: 0 | AC26: 0
B27: =Projektbudget!A34 -> 0 | C27: ='År 2'!C27 -> 1700 | D27: =Projektbudget!D34*$C27 -> 0 | E27: =Projektbudget!E34*$C27 -> 0 | F27: =Projektbudget!F34*$C27 -> 0 | G27: =Projektbudget!G34*$C27 -> 0 | H27: =Projektbudget!H34*$C27 -> 0 | I27: =Projektbudget!I34*$C27 -> 0 | J27: =Projektbudget!J34*$C27 -> 0 | K27: =Projektbudget!K34*$C27 -> 0 | L27: =Projektbudget!L34*$C27 -> 0 | M27: =Projektbudget!M34*$C27 -> 0 | N27: 0 | Q27: 0 | S27: 0 | T27: 0 | U27: 0 | V27: 0 | W27: 0 | X27: 0 | Y27: 0 | Z27: 0 | AA27: 0 | AB27: 0 | AC27: 0
B28: =Projektbudget!A35 -> 0 | C28: ='År 2'!C28 -> 1700 | D28: =Projektbudget!D35*$C28 -> 0 | E28: =Projektbudget!E35*$C28 -> 0 | F28: =Projektbudget!F35*$C28 -> 0 | G28: =Projektbudget!G35*$C28 -> 0 | H28: =Projektbudget!H35*$C28 -> 0 | I28: =Projektbudget!I35*$C28 -> 0 | J28: =Projektbudget!J35*$C28 -> 0 | K28: =Projektbudget!K35*$C28 -> 0 | L28: =Projektbudget!L35*$C28 -> 0 | M28: =Projektbudget!M35*$C28 -> 0 | N28: 0 | Q28: 0 | S28: 0 | T28: 0 | U28: 0 | V28: 0 | W28: 0 | X28: 0 | Y28: 0 | Z28: 0 | AA28: 0 | AB28: 0 | AC28: 0
B29: =Projektbudget!A36 -> 0 | C29: ='År 2'!C29 -> 1700 | D29: =Projektbudget!D36*$C29 -> 0 | E29: =Projektbudget!E36*$C29 -> 0 | F29: =Projektbudget!F36*$C29 -> 0 | G29: =Projektbudget!G36*$C29 -> 0 | H29: =Projektbudget!H36*$C29 -> 0 | I29: =Projektbudget!I36*$C29 -> 0 | J29: =Projektbudget!J36*$C29 -> 0 | K29: =Projektbudget!K36*$C29 -> 0 | L29: =Projektbudget!L36*$C29 -> 0 | M29: =Projektbudget!M36*$C29 -> 0 | N29: 0 | Q29: 0 | S29: 0 | T29: 0 | U29: 0 | V29: 0 | W29: 0 | X29: 0 | Y29: 0 | Z29: 0 | AA29: 0 | AB29: 0 | AC29: 0
B30: =Projektbudget!A37 -> 0 | C30: ='År 2'!C30 -> 1700 | D30: =Projektbudget!D37*$C30 -> 0 | E30: =Projektbudget!E37*$C30 -> 0 | F30: =Projektbudget!F37*$C30 -> 0 | G30: =Projektbudget!G37*$C30 -> 0 | H30: =Projektbudget!H37*$C30 -> 0 | I30: =Projektbudget!I37*$C30 -> 0 | J30: =Projektbudget!J37*$C30 -> 0 | K30: =Projektbudget!K37*$C30 -> 0 | L30: =Projektbudget!L37*$C30 -> 0 | M30: =Projektbudget!M37*$C30 -> 0 | N30: 0 | Q30: 0 | S30: 0 | T30: 0 | U30: 0 | V30: 0 | W30: 0 | X30: 0 | Y30: 0 | Z30: 0 | AA30: 0 | AB30: 0 | AC30: 0
B31: =Projektbudget!A38 -> 0 | C31: ='År 2'!C31 -> 1700 | D31: =Projektbudget!D38*$C31 -> 0 | E31: =Projektbudget!E38*$C31 -> 0 | F31: =Projektbudget!F38*$C31 -> 0 | G31: =Projektbudget!G38*$C31 -> 0 | H31: =Projektbudget!H38*$C31 -> 0 | I31: =Projektbudget!I38*$C31 -> 0 | J31: =Projektbudget!J38*$C31 -> 0 | K31: =Projektbudget!K38*$C31 -> 0 | L31: =Projektbudget!L38*$C31 -> 0 | M31: =Projektbudget!M38*$C31 -> 0 | N31: 0 | Q31: 0 | S31: 0 | T31: 0 | U31: 0 | V31: 0 | W31: 0 | X31: 0 | Y31: 0 | Z31: 0 | AA31: 0 | AB31: 0 | AC31: 0
B32: =Projektbudget!A39 -> 0 | C32: ='År 2'!C32 -> 1700 | D32: =Projektbudget!D39*$C32 -> 0 | E32: =Projektbudget!E39*$C32 -> 0 | F32: =Projektbudget!F39*$C32 -> 0 | G32: =Projektbudget!G39*$C32 -> 0 | H32: =Projektbudget!H39*$C32 -> 0 | I32: =Projektbudget!I39*$C32 -> 0 | J32: =Projektbudget!J39*$C32 -> 0 | K32: =Projektbudget!K39*$C32 -> 0 | L32: =Projektbudget!L39*$C32 -> 0 | M32: =Projektbudget!M39*$C32 -> 0 | N32: 0 | Q32: 0 | S32: 0 | T32: 0 | U32: 0 | V32: 0 | W32: 0 | X32: 0 | Y32: 0 | Z32: 0 | AA32: 0 | AB32: 0 | AC32: 0
B33: =Projektbudget!A40 -> 0 | C33: ='År 2'!C33 -> 1700 | D33: =Projektbudget!D40*$C33 -> 0 | E33: =Projektbudget!E40*$C33 -> 0 | F33: =Projektbudget!F40*$C33 -> 0 | G33: =Projektbudget!G40*$C33 -> 0 | H33: =Projektbudget!H40*$C33 -> 0 | I33: =Projektbudget!I40*$C33 -> 0 | J33: =Projektbudget!J40*$C33 -> 0 | K33: =Projektbudget!K40*$C33 -> 0 | L33: =Projektbudget!L40*$C33 -> 0 | M33: =Projektbudget!M40*$C33 -> 0 | N33: 0 | Q33: 0 | S33: 0 | T33: 0 | U33: 0 | V33: 0 | W33: 0 | X33: 0 | Y33: 0 | Z33: 0 | AA33: 0 | AB33: 0 | AC33: 0
B34: =Projektbudget!A41 -> 0 | C34: ='År 2'!C34 -> 1700 | D34: =Projektbudget!D41*$C34 -> 0 | E34: =Projektbudget!E41*$C34 -> 0 | F34: =Projektbudget!F41*$C34 -> 0 | G34: =Projektbudget!G41*$C34 -> 0 | H34: =Projektbudget!H41*$C34 -> 0 | I34: =Projektbudget!I41*$C34 -> 0 | J34: =Projektbudget!J41*$C34 -> 0 | K34: =Projektbudget!K41*$C34 -> 0 | L34: =Projektbudget!L41*$C34 -> 0 | M34: =Projektbudget!M41*$C34 -> 0 | N34: 0 | Q34: 0 | S34: 0 | T34: 0 | U34: 0 | V34: 0 | W34: 0 | X34: 0 | Y34: 0 | Z34: 0 | AA34: 0 | AB34: 0 | AC34: 0
B35: =Projektbudget!A42 -> 0 | C35: ='År 2'!C35 -> 1700 | D35: =Projektbudget!D42*$C35 -> 0 | E35: =Projektbudget!E42*$C35 -> 0 | F35: =Projektbudget!F42*$C35 -> 0 | G35: =Projektbudget!G42*$C35 -> 0 | H35: =Projektbudget!H42*$C35 -> 0 | I35: =Projektbudget!I42*$C35 -> 0 | J35: =Projektbudget!J42*$C35 -> 0 | K35: =Projektbudget!K42*$C35 -> 0 | L35: =Projektbudget!L42*$C35 -> 0 | M35: =Projektbudget!M42*$C35 -> 0 | N35: 0 | Q35: 0 | S35: 0 | T35: 0 | U35: 0 | V35: 0 | W35: 0 | X35: 0 | Y35: 0 | Z35: 0 | AA35: 0 | AB35: 0 | AC35: 0
B36: =Projektbudget!A43 -> 0 | C36: ='År 2'!C36 -> 1700 | D36: =Projektbudget!D43*$C36 -> 0 | E36: =Projektbudget!E43*$C36 -> 0 | F36: =Projektbudget!F43*$C36 -> 0 | G36: =Projektbudget!G43*$C36 -> 0 | H36: =Projektbudget!H43*$C36 -> 0 | I36: =Projektbudget!I43*$C36 -> 0 | J36: =Projektbudget!J43*$C36 -> 0 | K36: =Projektbudget!K43*$C36 -> 0 | L36: =Projektbudget!L43*$C36 -> 0 | M36: =Projektbudget!M43*$C36 -> 0 | N36: 0 | Q36: 0 | S36: 0 | T36: 0 | U36: 0 | V36: 0 | W36: 0 | X36: 0 | Y36: 0 | Z36: 0 | AA36: 0 | AB36: 0 | AC36: 0
B37: =Projektbudget!A44 -> 0 | C37: ='År 2'!C37 -> 1700 | D37: =Projektbudget!D44*$C37 -> 0 | E37: =Projektbudget!E44*$C37 -> 0 | F37: =Projektbudget!F44*$C37 -> 0 | G37: =Projektbudget!G44*$C37 -> 0 | H37: =Projektbudget!H44*$C37 -> 0 | I37: =Projektbudget!I44*$C37 -> 0 | J37: =Projektbudget!J44*$C37 -> 0 | K37: =Projektbudget!K44*$C37 -> 0 | L37: =Projektbudget!L44*$C37 -> 0 | M37: =Projektbudget!M44*$C37 -> 0 | N37: 0 | Q37: 0 | S37: 0 | T37: 0 | U37: 0 | V37: 0 | W37: 0 | X37: 0 | Y37: 0 | Z37: 0 | AA37: 0 | AB37: 0 | AC37: 0
B38: =Projektbudget!A45 -> 0 | C38: ='År 2'!C38 -> 1700 | D38: =Projektbudget!D45*$C38 -> 0 | E38: =Projektbudget!E45*$C38 -> 0 | F38: =Projektbudget!F45*$C38 -> 0 | G38: =Projektbudget!G45*$C38 -> 0 | H38: =Projektbudget!H45*$C38 -> 0 | I38: =Projektbudget!I45*$C38 -> 0 | J38: =Projektbudget!J45*$C38 -> 0 | K38: =Projektbudget!K45*$C38 -> 0 | L38: =Projektbudget!L45*$C38 -> 0 | M38: =Projektbudget!M45*$C38 -> 0 | N38: 0 | Q38: 0 | S38: 0 | T38: 0 | U38: 0 | V38: 0 | W38: 0 | X38: 0 | Y38: 0 | Z38: 0 | AA38: 0 | AB38: 0 | AC38: 0
B39: =Projektbudget!A46 -> 0 | C39: ='År 2'!C39 -> 1700 | D39: =Projektbudget!D46*$C39 -> 0 | E39: =Projektbudget!E46*$C39 -> 0 | F39: =Projektbudget!F46*$C39 -> 0 | G39: =Projektbudget!G46*$C39 -> 0 | H39: =Projektbudget!H46*$C39 -> 0 | I39: =Projektbudget!I46*$C39 -> 0 | J39: =Projektbudget!J46*$C39 -> 0 | K39: =Projektbudget!K46*$C39 -> 0 | L39: =Projektbudget!L46*$C39 -> 0 | M39: =Projektbudget!M46*$C39 -> 0 | N39: 0 | Q39: 0 | S39: 0 | T39: 0 | U39: 0 | V39: 0 | W39: 0 | X39: 0 | Y39: 0 | Z39: 0 | AA39: 0 | AB39: 0 | AC39: 0
B40: Totalt | C40: =SUM(D40:M40) -> 0 | D40: =SUM(D5:D39) -> 0 | E40: 0 | F40: 0 | G40: 0 | H40: 0 | I40: 0 | J40: 0 | K40: 0 | L40: 0 | M40: 0 | N40: 0 | Q40: =B40 -> Totalt | R40: =SUM(S40:AB40) -> 0 | S40: =SUM(S5:S39) -> 0 | T40: 0 | U40: 0 | V40: 0 | W40: 0 | X40: 0 | Y40: 0 | Z40: 0 | AA40: 0 | AB40: 0 | AC40: 0
D42: Utfall / Prgnos timmar | S42: Omfattning %
D43: =D4 -> 2021 | E43: =E4 -> 2022 | F43: =F4 -> 2023 | G43: =G4 -> 2024 | H43: =H4 -> 2025 | I43: =I4 -> 2026 | J43: 2027 | K43: 2028 | L43: 2029 | M43: 2030 | N43: Kr/tim | S43: =D43 -> 2021 | T43: =E43 -> 2022 | U43: =F43 -> 2023 | V43: =G43 -> 2024 | W43: =H43 -> 2025 | X43: =I43 -> 2026 | Y43: 2027 | Z43: 2028 | AA43: 2029 | AB43: 2030 | AC43: Totalt
B44: =B5 -> Professor | D44: ='År 2'!D44 -> 0 | E44: ='År 2'!E44 -> 0 | N44: =IFERROR(Projektbudget!B12*12*LönePåläggUppräkningÅr3/C5,0) -> 729.3225882 | Q44: =B44 -> Professor | S44: =IFERROR(D44/$C5,0) -> 0 | T44: 0 | U44: 0 | V44: 0 | W44: 0 | X44: 0 | Y44: 0 | Z44: 0 | AA44: 0 | AB44: 0 | AC44: =SUM(S44:AB44) -> 0
B45: Docent | D45: ='År 2'!D45 -> 0 | E45: ='År 2'!E45 -> 0 | N45: =IFERROR(Projektbudget!B13*12*LönePåläggUppräkningÅr3/C6,0) -> 557.3330824 | Q45: =B45 -> Docent | S45: 0 | T45: 0 | U45: 0 | V45: 0 | W45: 0 | X45: 0 | Y45: 0 | Z45: 0 | AA45: 0 | AB45: 0 | AC45: =SUM(S45:AB45) -> 0
B46: Lektor | D46: ='År 2'!D46 -> 0 | E46: ='År 2'!E46 -> 0 | N46: =IFERROR(Projektbudget!B14*12*LönePåläggUppräkningÅr3/C7,0) -> 507.2601882 | Q46: Lektor | S46: 0 | T46: 0 | U46: 0 | V46: 0 | W46: 0 | X46: 0 | Y46: 0 | Z46: 0 | AA46: 0 | AB46: 0 | AC46: 0
B47: Adjunkt | D47: ='År 2'!D47 -> 0 | E47: ='År 2'!E47 -> 0 | N47: =IFERROR(Projektbudget!B15*12*LönePåläggUppräkningÅr3/C8,0) -> 434.3279294 | Q47: Adjunkt | S47: 0 | T47: 0 | U47: 0 | V47: 0 | W47: 0 | X47: 0 | Y47: 0 | Z47: 0 | AA47: 0 | AB47: 0 | AC47: 0
B48: Post dok | D48: ='År 2'!D48 -> 0 | E48: ='År 2'!E48 -> 0 | N48: =IFERROR(Projektbudget!B16*12*LönePåläggUppräkningÅr3/C9,0) -> 379.9008706 | Q48: Post dok | S48: 0 | T48: 0 | U48: 0 | V48: 0 | W48: 0 | X48: 0 | Y48: 0 | Z48: 0 | AA48: 0 | AB48: 0 | AC48: 0
B49: Doktorand (Snittlön) | D49: ='År 2'!D49 -> 0 | E49: ='År 2'!E49 -> 0 | N49: =IFERROR(Projektbudget!B17*12*LönePåläggUppräkningÅr3/C10,0) -> 310.5063706 | Q49: Doktorand (Snittlön) | S49: 0 | T49: 0 | U49: 0 | V49: 0 | W49: 0 | X49: 0 | Y49: 0 | Z49: 0 | AA49: 0 | AB49: 0 | AC49: 0
B50: Administratör | D50: ='År 2'!D50 -> 0 | E50: ='År 2'!E50 -> 0 | N50: =IFERROR(Projektbudget!B18*12*LönePåläggUppräkningÅr3/C11,0) -> 390.7862824 | Q50: Administratör | S50: 0 | T50: 0 | U50: 0 | V50: 0 | W50: 0 | X50: 0 | Y50: 0 | Z50: 0 | AA50: 0 | AB50: 0 | AC50: 0
B51: Labbtekniker | D51: ='År 2'!D51 -> 0 | E51: ='År 2'!E51 -> 0 | N51: =IFERROR(Projektbudget!B19*12*LönePåläggUppräkningÅr3/C12,0) -> 359.2185882 | Q51: Labbtekniker | S51: 0 | T51: 0 | U51: 0 | V51: 0 | W51: 0 | X51: 0 | Y51: 0 | Z51: 0 | AA51: 0 | AB51: 0 | AC51: 0
B52: Forskningsassistent | D52: ='År 2'!D52 -> 0 | E52: ='År 2'!E52 -> 0 | N52: =IFERROR(Projektbudget!B20*12*LönePåläggUppräkningÅr3/C13,0) -> 271.0467529 | Q52: Forskningsassistent | S52: 0 | T52: 0 | U52: 0 | V52: 0 | W52: 0 | X52: 0 | Y52: 0 | Z52: 0 | AA52: 0 | AB52: 0 | AC52: 0
B53: Forskare/biträdande forskare | D53: ='År 2'!D53 -> 0 | E53: ='År 2'!E53 -> 0 | N53: =IFERROR(Projektbudget!B21*12*LönePåläggUppräkningÅr3/C14,0) -> 404.9373176 | Q53: Forskare/biträdande forskare | S53: 0 | T53: 0 | U53: 0 | V53: 0 | W53: 0 | X53: 0 | Y53: 0 | Z53: 0 | AA53: 0 | AB53: 0 | AC53: 0
B54: 0 | D54: ='År 2'!D54 -> 0 | E54: ='År 2'!E54 -> 0 | N54: =IFERROR(Projektbudget!B22*12*LönePåläggUppräkningÅr3/C15,0) -> 0 | Q54: =B54 -> 0 | S54: 0 | T54: 0 | U54: 0 | V54: 0 | W54: 0 | X54: 0 | Y54: 0 | Z54: 0 | AA54: 0 | AB54: 0 | AC54: 0
B55: 0 | D55: ='År 2'!D55 -> 0 | E55: ='År 2'!E55 -> 0 | N55: =IFERROR(Projektbudget!B23*12*LönePåläggUppräkningÅr3/C16,0) -> 0 | Q55: =B55 -> 0 | S55: 0 | T55: 0 | U55: 0 | V55: 0 | W55: 0 | X55: 0 | Y55: 0 | Z55: 0 | AA55: 0 | AB55: 0 | AC55: 0
B56: 0 | D56: ='År 2'!D56 -> 0 | E56: ='År 2'!E56 -> 0 | N56: =IFERROR(Projektbudget!B24*12*LönePåläggUppräkningÅr3/C17,0) -> 0 | Q56: =B56 -> 0 | S56: 0 | T56: 0 | U56: 0 | V56: 0 | W56: 0 | X56: 0 | Y56: 0 | Z56: 0 | AA56: 0 | AB56: 0 | AC56: 0
B57: 0 | D57: ='År 2'!D57 -> 0 | E57: ='År 2'!E57 -> 0 | N57: =IFERROR(Projektbudget!B25*12*LönePåläggUppräkningÅr3/C18,0) -> 0 | Q57: =B57 -> 0 | S57: 0 | T57: 0 | U57: 0 | V57: 0 | W57: 0 | X57: 0 | Y57: 0 | Z57: 0 | AA57: 0 | AB57: 0 | AC57: 0
B58: 0 | D58: ='År 2'!D58 -> 0 | E58: ='År 2'!E58 -> 0 | N58: =IFERROR(Projektbudget!B26*12*LönePåläggUppräkningÅr3/C19,0) -> 0 | Q58: =B58 -> 0 | S58: 0 | T58: 0 | U58: 0 | V58: 0 | W58: 0 | X58: 0 | Y58: 0 | Z58: 0 | AA58: 0 | AB58: 0 | AC58: 0
B59: 0 | D59: ='År 2'!D59 -> 0 | E59: ='År 2'!E59 -> 0 | N59: =IFERROR(Projektbudget!B27*12*LönePåläggUppräkningÅr3/C20,0) -> 0 | Q59: =B59 -> 0 | S59: 0 | T59: 0 | U59: 0 | V59: 0 | W59: 0 | X59: 0 | Y59: 0 | Z59: 0 | AA59: 0 | AB59: 0 | AC59: 0
B60: 0 | D60: ='År 2'!D60 -> 0 | E60: ='År 2'!E60 -> 0 | N60: =IFERROR(Projektbudget!B28*12*LönePåläggUppräkningÅr3/C21,0) -> 0 | Q60: 0 | S60: =IFERROR(D60/$C21,0) -> 0 | T60: 0 | U60: 0 | V60: 0 | W60: 0 | X60: 0 | Y60: 0 | Z60: 0 | AA60: 0 | AB60: 0 | AC60: 0
B61: 0 | D61: ='År 2'!D61 -> 0 | E61: ='År 2'!E61 -> 0 | N61: =IFERROR(Projektbudget!B29*12*LönePåläggUppräkningÅr3/C22,0) -> 0 | Q61: 0 | S61: 0 | T61: 0 | U61: 0 | V61: 0 | W61: 0 | X61: 0 | Y61: 0 | Z61: 0 | AA61: 0 | AB61: 0 | AC61: 0
B62: 0 | D62: ='År 2'!D62 -> 0 | E62: ='År 2'!E62 -> 0 | N62: =IFERROR(Projektbudget!B30*12*LönePåläggUppräkningÅr3/C23,0) -> 0 | Q62: 0 | S62: 0 | T62: 0 | U62: 0 | V62: 0 | W62: 0 | X62: 0 | Y62: 0 | Z62: 0 | AA62: 0 | AB62: 0 | AC62: 0
B63: 0 | D63: ='År 2'!D63 -> 0 | E63: ='År 2'!E63 -> 0 | N63: =IFERROR(Projektbudget!B31*12*LönePåläggUppräkningÅr3/C24,0) -> 0 | Q63: 0 | S63: 0 | T63: 0 | U63: 0 | V63: 0 | W63: 0 | X63: 0 | Y63: 0 | Z63: 0 | AA63: 0 | AB63: 0 | AC63: 0
B64: 0 | D64: ='År 2'!D64 -> 0 | E64: ='År 2'!E64 -> 0 | N64: =IFERROR(Projektbudget!B32*12*LönePåläggUppräkningÅr3/C25,0) -> 0 | Q64: 0 | S64: 0 | T64: 0 | U64: 0 | V64: 0 | W64: 0 | X64: 0 | Y64: 0 | Z64: 0 | AA64: 0 | AB64: 0 | AC64: 0
B65: 0 | D65: ='År 2'!D65 -> 0 | E65: ='År 2'!E65 -> 0 | N65: =IFERROR(Projektbudget!B33*12*LönePåläggUppräkningÅr3/C26,0) -> 0 | Q65: 0 | S65: 0 | T65: 0 | U65: 0 | V65: 0 | W65: 0 | X65: 0 | Y65: 0 | Z65: 0 | AA65: 0 | AB65: 0 | AC65: 0
B66: 0 | D66: ='År 2'!D66 -> 0 | E66: ='År 2'!E66 -> 0 | N66: =IFERROR(Projektbudget!B34*12*LönePåläggUppräkningÅr3/C27,0) -> 0 | Q66: 0 | S66: 0 | T66: 0 | U66: 0 | V66: 0 | W66: 0 | X66: 0 | Y66: 0 | Z66: 0 | AA66: 0 | AB66: 0 | AC66: 0
B67: 0 | D67: ='År 2'!D67 -> 0 | E67: ='År 2'!E67 -> 0 | N67: =IFERROR(Projektbudget!B35*12*LönePåläggUppräkningÅr3/C28,0) -> 0 | Q67: 0 | S67: 0 | T67: 0 | U67: 0 | V67: 0 | W67: 0 | X67: 0 | Y67: 0 | Z67: 0 | AA67: 0 | AB67: 0 | AC67: 0
B68: 0 | D68: ='År 2'!D68 -> 0 | E68: ='År 2'!E68 -> 0 | N68: =IFERROR(Projektbudget!B36*12*LönePåläggUppräkningÅr3/C29,0) -> 0 | Q68: 0 | S68: 0 | T68: 0 | U68: 0 | V68: 0 | W68: 0 | X68: 0 | Y68: 0 | Z68: 0 | AA68: 0 | AB68: 0 | AC68: 0
B69: 0 | D69: ='År 2'!D69 -> 0 | E69: ='År 2'!E69 -> 0 | N69: =IFERROR(Projektbudget!B37*12*LönePåläggUppräkningÅr3/C30,0) -> 0 | Q69: 0 | S69: 0 | T69: 0 | U69: 0 | V69: 0 | W69: 0 | X69: 0 | Y69: 0 | Z69: 0 | AA69: 0 | AB69: 0 | AC69: 0
B70: 0 | D70: ='År 2'!D70 -> 0 | E70: ='År 2'!E70 -> 0 | N70: =IFERROR(Projektbudget!B38*12*LönePåläggUppräkningÅr3/C31,0) -> 0 | Q70: 0 | S70: 0 | T70: 0 | U70: 0 | V70: 0 | W70: 0 | X70: 0 | Y70: 0 | Z70: 0 | AA70: 0 | AB70: 0 | AC70: 0
B71: 0 | D71: ='År 2'!D71 -> 0 | E71: ='År 2'!E71 -> 0 | N71: =IFERROR(Projektbudget!B39*12*LönePåläggUppräkningÅr3/C32,0) -> 0 | Q71: 0 | S71: 0 | T71: 0 | U71: 0 | V71: 0 | W71: 0 | X71: 0 | Y71: 0 | Z71: 0 | AA71: 0 | AB71: 0 | AC71: 0
B72: 0 | D72: ='År 2'!D72 -> 0 | E72: ='År 2'!E72 -> 0 | N72: =IFERROR(Projektbudget!B40*12*LönePåläggUppräkningÅr3/C33,0) -> 0 | Q72: 0 | S72: 0 | T72: 0 | U72: 0 | V72: 0 | W72: 0 | X72: 0 | Y72: 0 | Z72: 0 | AA72: 0 | AB72: 0 | AC72: 0
B73: 0 | D73: ='År 2'!D73 -> 0 | E73: ='År 2'!E73 -> 0 | N73: =IFERROR(Projektbudget!B41*12*LönePåläggUppräkningÅr3/C34,0) -> 0 | Q73: 0 | S73: 0 | T73: 0 | U73: 0 | V73: 0 | W73: 0 | X73: 0 | Y73: 0 | Z73: 0 | AA73: 0 | AB73: 0 | AC73: 0
B74: 0 | D74: ='År 2'!D74 -> 0 | E74: ='År 2'!E74 -> 0 | N74: =IFERROR(Projektbudget!B42*12*LönePåläggUppräkningÅr3/C35,0) -> 0 | Q74: 0 | S74: 0 | T74: 0 | U74: 0 | V74: 0 | W74: 0 | X74: 0 | Y74: 0 | Z74: 0 | AA74: 0 | AB74: 0 | AC74: 0
B75: 0 | D75: ='År 2'!D75 -> 0 | E75: ='År 2'!E75 -> 0 | N75: =IFERROR(Projektbudget!B43*12*LönePåläggUppräkningÅr3/C36,0) -> 0 | Q75: 0 | S75: 0 | T75: 0 | U75: 0 | V75: 0 | W75: 0 | X75: 0 | Y75: 0 | Z75: 0 | AA75: 0 | AB75: 0 | AC75: 0
B76: 0 | D76: ='År 2'!D76 -> 0 | E76: ='År 2'!E76 -> 0 | N76: =IFERROR(Projektbudget!B44*12*LönePåläggUppräkningÅr3/C37,0) -> 0 | Q76: 0 | S76: =IFERROR(D76/$C37,0) -> 0 | T76: 0 | U76: 0 | V76: 0 | W76: 0 | X76: 0 | Y76: 0 | Z76: 0 | AA76: 0 | AB76: 0 | AC76: 0
B77: 0 | D77: ='År 2'!D77 -> 0 | E77: ='År 2'!E77 -> 0 | N77: =IFERROR(Projektbudget!B45*12*LönePåläggUppräkningÅr3/C38,0) -> 0 | Q77: 0 | S77: 0 | T77: 0 | U77: 0 | V77: 0 | W77: 0 | X77: 0 | Y77: 0 | Z77: 0 | AA77: 0 | AB77: 0 | AC77: 0
B78: 0 | D78: ='År 2'!D78 -> 0 | E78: ='År 2'!E78 -> 0 | N78: =IFERROR(Projektbudget!B46*12*LönePåläggUppräkningÅr3/C39,0) -> 0 | Q78: 0 | S78: 0 | T78: 0 | U78: 0 | V78: 0 | W78: 0 | X78: 0 | Y78: 0 | Z78: 0 | AA78: 0 | AB78: 0 | AC78: 0
B79: =B40 -> Totalt | C79: =SUM(D79:M79) -> 0 | D79: =SUM(D44:D78) -> 0 | E79: =SUM(E44:E78) -> 0 | F79: =SUM(F44:F78) -> 0 | G79: =SUM(G44:G78) -> 0 | H79: =SUM(H44:H78) -> 0 | I79: =SUM(I44:I78) -> 0 | J79: 0 | K79: 0 | L79: 0 | M79: 0 | Q79: =B79 -> Totalt | R79: =SUM(S79:AB79) -> 0 | S79: =SUM(S44:S78) -> 0 | T79: 0 | U79: 0 | V79: 0 | W79: 0 | X79: 0 | Y79: 0 | Z79: 0 | AA79: 0 | AB79: 0 | AC79: =SUM(AC44:AC78) -> 0

Sheet År 4 (hidden)
B1: ="Projekt: "&Projektbudget!$B$4 -> Projekt:
D3: Budget timmar (ev. reviderad) | O3: Godkännande | S3: Manmånader
C4: Åarb | D4: =Projektbudget!D52 -> 2021 | E4: =Projektbudget!E52 -> 2022 | F4: =Projektbudget!F52 -> 2023 | G4: =Projektbudget!G52 -> 2024 | H4: =Projektbudget!H52 -> 2025 | I4: =Projektbudget!I52 -> 2026 | J4: =Projektbudget!J52 -> 2027 | K4: =Projektbudget!K52 -> 2028 | L4: =Projektbudget!L52 -> 2029 | M4: =Projektbudget!M52 -> 2030 | N4: Totalt | O4: prefekt / SR | S4: =D4 -> 2021 | T4: =E4 -> 2022 | U4: =F4 -> 2023 | V4: =G4 -> 2024 | W4: =H4 -> 2025 | X4: =I4 -> 2026 | Y4: 2027 | Z4: 2028 | AA4: 2029 | AB4: 2030 | AC4: Totalt
B5: =Projektbudget!A12 -> Professor | C5: ='År 3'!C5 -> 1700 | D5: =Projektbudget!D12*$C5 -> 0 | E5: =Projektbudget!E12*$C5 -> 0 | F5: =Projektbudget!F12*$C5 -> 0 | G5: =Projektbudget!G12*$C5 -> 0 | H5: =Projektbudget!H12*$C5 -> 0 | I5: =Projektbudget!I12*$C5 -> 0 | J5: =Projektbudget!J12*$C5 -> 0 | K5: =Projektbudget!K12*$C5 -> 0 | L5: =Projektbudget!L12*$C5 -> 0 | M5: =Projektbudget!M12*$C5 -> 0 | N5: =SUM(D5:M5) -> 0 | Q5: =B5 -> Professor | S5: =IFERROR(D5/($C5/12),0) -> 0 | T5: 0 | U5: 0 | V5: 0 | W5: 0 | X5: 0 | Y5: 0 | Z5: 0 | AA5: 0 | AB5: 0 | AC5: =SUM(S5:AB5) -> 0
B6: =Projektbudget!A13 -> Docent | C6: ='År 3'!C6 -> 1700 | D6: =Projektbudget!D13*$C6 -> 0 | E6: =Projektbudget!E13*$C6 -> 0 | F6: =Projektbudget!F13*$C6 -> 0 | G6: =Projektbudget!G13*$C6 -> 0 | H6: =Projektbudget!H13*$C6 -> 0 | I6: =Projektbudget!I13*$C6 -> 0 | J6: =Projektbudget!J13*$C6 -> 0 | K6: =Projektbudget!K13*$C6 -> 0 | L6: =Projektbudget!L13*$C6 -> 0 | M6: =Projektbudget!M13*$C6 -> 0 | N6: =SUM(D6:M6) -> 0 | Q6: =B6 -> Docent | S6: 0 | T6: 0 | U6: 0 | V6: 0 | W6: 0 | X6: 0 | Y6: 0 | Z6: 0 | AA6: 0 | AB6: 0 | AC6: 0
B7: =Projektbudget!A14 -> Lektor | C7: ='År 3'!C7 -> 1700 | D7: =Projektbudget!D14*$C7 -> 0 | E7: =Projektbudget!E14*$C7 -> 0 | F7: =Projektbudget!F14*$C7 -> 0 | G7: =Projektbudget!G14*$C7 -> 0 | H7: =Projektbudget!H14*$C7 -> 0 | I7: =Projektbudget!I14*$C7 -> 0 | J7: =Projektbudget!J14*$C7 -> 0 | K7: =Projektbudget!K14*$C7 -> 0 | L7: =Projektbudget!L14*$C7 -> 0 | M7: =Projektbudget!M14*$C7 -> 0 | N7: 0 | Q7: Lektor | S7: 0 | T7: 0 | U7: 0 | V7: 0 | W7: 0 | X7: 0 | Y7: 0 | Z7: 0 | AA7: 0 | AB7: 0 | AC7: 0
B8: =Projektbudget!A15 -> Adjunkt | C8: ='År 3'!C8 -> 1700 | D8: =Projektbudget!D15*$C8 -> 0 | E8: =Projektbudget!E15*$C8 -> 0 | F8: =Projektbudget!F15*$C8 -> 0 | G8: =Projektbudget!G15*$C8 -> 0 | H8: =Projektbudget!H15*$C8 -> 0 | I8: =Projektbudget!I15*$C8 -> 0 | J8: =Projektbudget!J15*$C8 -> 0 | K8: =Projektbudget!K15*$C8 -> 0 | L8: =Projektbudget!L15*$C8 -> 0 | M8: =Projektbudget!M15*$C8 -> 0 | N8: 0 | Q8: Adjunkt | S8: 0 | T8: 0 | U8: 0 | V8: 0 | W8: 0 | X8: 0 | Y8: 0 | Z8: 0 | AA8: 0 | AB8: 0 | AC8: 0
B9: =Projektbudget!A16 -> Post dok | C9: ='År 3'!C9 -> 1700 | D9: =Projektbudget!D16*$C9 -> 0 | E9: =Projektbudget!E16*$C9 -> 0 | F9: =Projektbudget!F16*$C9 -> 0 | G9: =Projektbudget!G16*$C9 -> 0 | H9: =Projektbudget!H16*$C9 -> 0 | I9: =Projektbudget!I16*$C9 -> 0 | J9: =Projektbudget!J16*$C9 -> 0 | K9: =Projektbudget!K16*$C9 -> 0 | L9: =Projektbudget!L16*$C9 -> 0 | M9: =Projektbudget!M16*$C9 -> 0 | N9: 0 | Q9: Post dok | S9: 0 | T9: 0 | U9: 0 | V9: 0 | W9: 0 | X9: 0 | Y9: 0 | Z9: 0 | AA9: 0 | AB9: 0 | AC9: 0
B10: =Projektbudget!A17 -> Doktorand (Snittlön) | C10: ='År 3'!C10 -> 1700 | D10: =Projektbudget!D17*$C10 -> 0 | E10: =Projektbudget!E17*$C10 -> 0 | F10: =Projektbudget!F17*$C10 -> 0 | G10: =Projektbudget!G17*$C10 -> 0 | H10: =Projektbudget!H17*$C10 -> 0 | I10: =Projektbudget!I17*$C10 -> 0 | J10: =Projektbudget!J17*$C10 -> 0 | K10: =Projektbudget!K17*$C10 -> 0 | L10: =Projektbudget!L17*$C10 -> 0 | M10: =Projektbudget!M17*$C10 -> 0 | N10: 0 | Q10: Doktorand (Snittlön) | S10: 0 | T10: 0 | U10: 0 | V10: 0 | W10: 0 | X10: 0 | Y10: 0 | Z10: 0 | AA10: 0 | AB10: 0 | AC10: 0
B11: =Projektbudget!A18 -> Administratör | C11: ='År 3'!C11 -> 1700 | D11: =Projektbudget!D18*$C11 -> 0 | E11: =Projektbudget!E18*$C11 -> 0 | F11: =Projektbudget!F18*$C11 -> 0 | G11: =Projektbudget!G18*$C11 -> 0 | H11: =Projektbudget!H18*$C11 -> 0 | I11: =Projektbudget!I18*$C11 -> 0 | J11: =Projektbudget!J18*$C11 -> 0 | K11: =Projektbudget!K18*$C11 -> 0 | L11: =Projektbudget!L18*$C11 -> 0 | M11: =Projektbudget!M18*$C11 -> 0 | N11: 0 | Q11: Administratör | S11: 0 | T11: 0 | U11: 0 | V11: 0 | W11: 0 | X11: 0 | Y11: 0 | Z11: 0 | AA11: 0 | AB11: 0 | AC11: 0
B12: =Projektbudget!A19 -> Labbtekniker | C12: ='År 3'!C12 -> 1700 | D12: =Projektbudget!D19*$C12 -> 0 | E12: =Projektbudget!E19*$C12 -> 0 | F12: =Projektbudget!F19*$C12 -> 0 | G12: =Projektbudget!G19*$C12 -> 0 | H12: =Projektbudget!H19*$C12 -> 0 | I12: =Projektbudget!I19*$C12 -> 0 | J12: =Projektbudget!J19*$C12 -> 0 | K12: =Projektbudget!K19*$C12 -> 0 | L12: =Projektbudget!L19*$C12 -> 0 | M12: =Projektbudget!M19*$C12 -> 0 | N12: 0 | Q12: Labbtekniker | S12: 0 | T12: 0 | U12: 0 | V12: 0 | W12: 0 | X12: 0 | Y12: 0 | Z12: 0 | AA12: 0 | AB12: 0 | AC12: 0
B13: =Projektbudget!A20 -> Forskningsassistent | C13: ='År 3'!C13 -> 1700 | D13: =Projektbudget!D20*$C13 -> 0 | E13: =Projektbudget!E20*$C13 -> 0 | F13: =Projektbudget!F20*$C13 -> 0 | G13: =Projektbudget!G20*$C13 -> 0 | H13: =Projektbudget!H20*$C13 -> 0 | I13: =Projektbudget!I20*$C13 -> 0 | J13: =Projektbudget!J20*$C13 -> 0 | K13: =Projektbudget!K20*$C13 -> 0 | L13: =Projektbudget!L20*$C13 -> 0 | M13: =Projektbudget!M20*$C13 -> 0 | N13: 0 | Q13: Forskningsassistent | S13: 0 | T13: 0 | U13: 0 | V13: 0 | W13: 0 | X13: 0 | Y13: 0 | Z13: 0 | AA13: 0 | AB13: 0 | AC13: 0
B14: =Projektbudget!A21 -> Forskare/biträdande forskare | C14: ='År 3'!C14 -> 1700 | D14: =Projektbudget!D21*$C14 -> 0 | E14: =Projektbudget!E21*$C14 -> 0 | F14: =Projektbudget!F21*$C14 -> 0 | G14: =Projektbudget!G21*$C14 -> 0 | H14: =Projektbudget!H21*$C14 -> 0 | I14: =Projektbudget!I21*$C14 -> 0 | J14: =Projektbudget!J21*$C14 -> 0 | K14: =Projektbudget!K21*$C14 -> 0 | L14: =Projektbudget!L21*$C14 -> 0 | M14: =Projektbudget!M21*$C14 -> 0 | N14: 0 | Q14: Forskare/biträdande forskare | S14: 0 | T14: 0 | U14: 0 | V14: 0 | W14: 0 | X14: 0 | Y14: 0 | Z14: 0 | AA14: 0 | AB14: 0 | AC14: 0
B15: =Projektbudget!A22 -> 0 | C15: ='År 3'!C15 -> 1700 | D15: =Projektbudget!D22*$C15 -> 0 | E15: =Projektbudget!E22*$C15 -> 0 | F15: =Projektbudget!F22*$C15 -> 0 | G15: =Projektbudget!G22*$C15 -> 0 | H15: =Projektbudget!H22*$C15 -> 0 | I15: =Projektbudget!I22*$C15 -> 0 | J15: =Projektbudget!J22*$C15 -> 0 | K15: =Projektbudget!K22*$C15 -> 0 | L15: =Projektbudget!L22*$C15 -> 0 | M15: =Projektbudget!M22*$C15 -> 0 | N15: 0 | Q15: =B15 -> 0 | S15: 0 | T15: 0 | U15: 0 | V15: 0 | W15: 0 | X15: 0 | Y15: 0 | Z15: 0 | AA15: 0 | AB15: 0 | AC15: 0
B16: =Projektbudget!A23 -> 0 | C16: ='År 3'!C16 -> 1700 | D16: =Projektbudget!D23*$C16 -> 0 | E16: =Projektbudget!E23*$C16 -> 0 | F16: =Projektbudget!F23*$C16 -> 0 | G16: =Projektbudget!G23*$C16 -> 0 | H16: =Projektbudget!H23*$C16 -> 0 | I16: =Projektbudget!I23*$C16 -> 0 | J16: =Projektbudget!J23*$C16 -> 0 | K16: =Projektbudget!K23*$C16 -> 0 | L16: =Projektbudget!L23*$C16 -> 0 | M16: =Projektbudget!M23*$C16 -> 0 | N16: 0 | Q16: =B16 -> 0 | S16: 0 | T16: 0 | U16: 0 | V16: 0 | W16: 0 | X16: 0 | Y16: 0 | Z16: 0 | AA16: 0 | AB16: 0 | AC16: 0
B17: =Projektbudget!A24 -> 0 | C17: ='År 3'!C17 -> 1700 | D17: =Projektbudget!D24*$C17 -> 0 | E17: =Projektbudget!E24*$C17 -> 0 | F17: =Projektbudget!F24*$C17 -> 0 | G17: =Projektbudget!G24*$C17 -> 0 | H17: =Projektbudget!H24*$C17 -> 0 | I17: =Projektbudget!I24*$C17 -> 0 | J17: =Projektbudget!J24*$C17 -> 0 | K17: =Projektbudget!K24*$C17 -> 0 | L17: =Projektbudget!L24*$C17 -> 0 | M17: =Projektbudget!M24*$C17 -> 0 | N17: 0 | Q17: =B17 -> 0 | S17: 0 | T17: 0 | U17: 0 | V17: 0 | W17: 0 | X17: 0 | Y17: 0 | Z17: 0 | AA17: 0 | AB17: 0 | AC17: 0
B18: =Projektbudget!A25 -> 0 | C18: ='År 3'!C18 -> 1700 | D18: =Projektbudget!D25*$C18 -> 0 | E18: =Projektbudget!E25*$C18 -> 0 | F18: =Projektbudget!F25*$C18 -> 0 | G18: =Projektbudget!G25*$C18 -> 0 | H18: =Projektbudget!H25*$C18 -> 0 | I18: =Projektbudget!I25*$C18 -> 0 | J18: =Projektbudget!J25*$C18 -> 0 | K18: =Projektbudget!K25*$C18 -> 0 | L18: =Projektbudget!L25*$C18 -> 0 | M18: =Projektbudget!M25*$C18 -> 0 | N18: 0 | Q18: =B18 -> 0 | S18: 0 | T18: 0 | U18: 0 | V18: 0 | W18: 0 | X18: 0 | Y18: 0 | Z18: 0 | AA18: 0 | AB18: 0 | AC18: 0
B19: =Projektbudget!A26 -> 0 | C19: ='År 3'!C19 -> 1700 | D19: =Projektbudget!D26*$C19 -> 0 | E19: =Projektbudget!E26*$C19 -> 0 | F19: =Projektbudget!F26*$C19 -> 0 | G19: =Projektbudget!G26*$C19 -> 0 | H19: =Projektbudget!H26*$C19 -> 0 | I19: =Projektbudget!I26*$C19 -> 0 | J19: =Projektbudget!J26*$C19 -> 0 | K19: =Projektbudget!K26*$C19 -> 0 | L19: =Projektbudget!L26*$C19 -> 0 | M19: =Projektbudget!M26*$C19 -> 0 | N19: 0 | Q19: =B19 -> 0 | S19: 0 | T19: 0 | U19: 0 | V19: 0 | W19: 0 | X19: 0 | Y19: 0 | Z19: 0 | AA19: 0 | AB19: 0 | AC19: 0
B20: =Projektbudget!A27 -> 0 | C20: ='År 3'!C20 -> 1700 | D20: =Projektbudget!D27*$C20 -> 0 | E20: =Projektbudget!E27*$C20 -> 0 | F20: =Projektbudget!F27*$C20 -> 0 | G20: =Projektbudget!G27*$C20 -> 0 | H20: =Projektbudget!H27*$C20 -> 0 | I20: =Projektbudget!I27*$C20 -> 0 | J20: =Projektbudget!J27*$C20 -> 0 | K20: =Projektbudget!K27*$C20 -> 0 | L20: =Projektbudget!L27*$C20 -> 0 | M20: =Projektbudget!M27*$C20 -> 0 | N20: 0 | Q20: =B20 -> 0 | S20: 0 | T20: 0 | U20: 0 | V20: 0 | W20: 0 | X20: 0 | Y20: 0 | Z20: 0 | AA20: 0 | AB20: 0 | AC20: 0
B21: =Projektbudget!A28 -> 0 | C21: ='År 3'!C21 -> 1700 | D21: =Projektbudget!D28*$C21 -> 0 | E21: =Projektbudget!E28*$C21 -> 0 | F21: =Projektbudget!F28*$C21 -> 0 | G21: =Projektbudget!G28*$C21 -> 0 | H21: =Projektbudget!H28*$C21 -> 0 | I21: =Projektbudget!I28*$C21 -> 0 | J21: =Projektbudget!J28*$C21 -> 0 | K21: =Projektbudget!K28*$C21 -> 0 | L21: =Projektbudget!L28*$C21 -> 0 | M21: =Projektbudget!M28*$C21 -> 0 | N21: 0 | Q21: 0 | S21: =IFERROR(D21/($C21/12),0) -> 0 | T21: 0 | U21: 0 | V21: 0 | W21: 0 | X21: 0 | Y21: 0 | Z21: 0 | AA21: 0 | AB21: 0 | AC21: 0
B22: =Projektbudget!A29 -> 0 | C22: ='År 3'!C22 -> 1700 | D22: =Projektbudget!D29*$C22 -> 0 | E22: =Projektbudget!E29*$C22 -> 0 | F22: =Projektbudget!F29*$C22 -> 0 | G22: =Projektbudget!G29*$C22 -> 0 | H22: =Projektbudget!H29*$C22 -> 0 | I22: =Projektbudget!I29*$C22 -> 0 | J22: =Projektbudget!J29*$C22 -> 0 | K22: =Projektbudget!K29*$C22 -> 0 | L22: =Projektbudget!L29*$C22 -> 0 | M22: =Projektbudget!M29*$C22 -> 0 | N22: 0 | Q22: 0 | S22: 0 | T22: 0 | U22: 0 | V22: 0 | W22: 0 | X22: 0 | Y22: 0 | Z22: 0 | AA22: 0 | AB22: 0 | AC22: 0
B23: =Projektbudget!A30 -> 0 | C23: ='År 3'!C23 -> 1700 | D23: =Projektbudget!D30*$C23 -> 0 | E23: =Projektbudget!E30*$C23 -> 0 | F23: =Projektbudget!F30*$C23 -> 0 | G23: =Projektbudget!G30*$C23 -> 0 | H23: =Projektbudget!H30*$C23 -> 0 | I23: =Projektbudget!I30*$C23 -> 0 | J23: =Projektbudget!J30*$C23 -> 0 | K23: =Projektbudget!K30*$C23 -> 0 | L23: =Projektbudget!L30*$C23 -> 0 | M23: =Projektbudget!M30*$C23 -> 0 | N23: 0 | Q23: 0 | S23: 0 | T23: 0 | U23: 0 | V23: 0 | W23: 0 | X23: 0 | Y23: 0 | Z23: 0 | AA23: 0 | AB23: 0 | AC23: 0
B24: =Projektbudget!A31 -> 0 | C24: ='År 3'!C24 -> 1700 | D24: =Projektbudget!D31*$C24 -> 0 | E24: =Projektbudget!E31*$C24 -> 0 | F24: =Projektbudget!F31*$C24 -> 0 | G24: =Projektbudget!G31*$C24 -> 0 | H24: =Projektbudget!H31*$C24 -> 0 | I24: =Projektbudget!I31*$C24 -> 0 | J24: =Projektbudget!J31*$C24 -> 0 | K24: =Projektbudget!K31*$C24 -> 0 | L24: =Projektbudget!L31*$C24 -> 0 | M24: =Projektbudget!M31*$C24 -> 0 | N24: 0 | Q24: 0 | S24: 0 | T24: 0 | U24: 0 | V24: 0 | W24: 0 | X24: 0 | Y24: 0 | Z24: 0 | AA24: 0 | AB24: 0 | AC24: 0
B25: =Projektbudget!A32 -> 0 | C25: ='År 3'!C25 -> 1700 | D25: =Projektbudget!D32*$C25 -> 0 | E25: =Projektbudget!E32*$C25 -> 0 | F25: =Projektbudget!F32*$C25 -> 0 | G25: =Projektbudget!G32*$C25 -> 0 | H25: =Projektbudget!H32*$C25 -> 0 | I25: =Projektbudget!I32*$C25 -> 0 | J25: =Projektbudget!J32*$C25 -> 0 | K25: =Projektbudget!K32*$C25 -> 0 | L25: =Projektbudget!L32*$C25 -> 0 | M25: =Projektbudget!M32*$C25 -> 0 | N25: 0 | Q25: 0 | S25: 0 | T25: 0 | U25: 0 | V25: 0 | W25: 0 | X25: 0 | Y25: 0 | Z25: 0 | AA25: 0 | AB25: 0 | AC25: 0
B26: =Projektbudget!A33 -> 0 | C26: ='År 3'!C26 -> 1700 | D26: =Projektbudget!D33*$C26 -> 0 | E26: =Projektbudget!E33*$C26 -> 0 | F26: =Projektbudget!F33*$C26 -> 0 | G26: =Projektbudget!G33*$C26 -> 0 | H26: =Projektbudget!H33*$C26 -> 0 | I26: =Projektbudget!I33*$C26 -> 0 | J26: =Projektbudget!J33*$C26 -> 0 | K26: =Projektbudget!K33*$C26 -> 0 | L26: =Projektbudget!L33*$C26 -> 0 | M26: =Projektbudget!M33*$C26 -> 0 | N26: 0 | Q26: 0 | S26: 0 | T26: 0 | U26: 0 | V26: 0 | W26: 0 | X26: 0 | Y26: 0 | Z26: 0 | AA26: 0 | AB26: 0 | AC26: 0
B27: =Projektbudget!A34 -> 0 | C27: ='År 3'!C27 -> 1700 | D27: =Projektbudget!D34*$C27 -> 0 | E27: =Projektbudget!E34*$C27 -> 0 | F27: =Projektbudget!F34*$C27 -> 0 | G27: =Projektbudget!G34*$C27 -> 0 | H27: =Projektbudget!H34*$C27 -> 0 | I27: =Projektbudget!I34*$C27 -> 0 | J27: =Projektbudget!J34*$C27 -> 0 | K27: =Projektbudget!K34*$C27 -> 0 | L27: =Projektbudget!L34*$C27 -> 0 | M27: =Projektbudget!M34*$C27 -> 0 | N27: 0 | Q27: 0 | S27: 0 | T27: 0 | U27: 0 | V27: 0 | W27: 0 | X27: 0 | Y27: 0 | Z27: 0 | AA27: 0 | AB27: 0 | AC27: 0
B28: =Projektbudget!A35 -> 0 | C28: ='År 3'!C28 -> 1700 | D28: =Projektbudget!D35*$C28 -> 0 | E28: =Projektbudget!E35*$C28 -> 0 | F28: =Projektbudget!F35*$C28 -> 0 | G28: =Projektbudget!G35*$C28 -> 0 | H28: =Projektbudget!H35*$C28 -> 0 | I28: =Projektbudget!I35*$C28 -> 0 | J28: =Projektbudget!J35*$C28 -> 0 | K28: =Projektbudget!K35*$C28 -> 0 | L28: =Projektbudget!L35*$C28 -> 0 | M28: =Projektbudget!M35*$C28 -> 0 | N28: 0 | Q28: 0 | S28: 0 | T28: 0 | U28: 0 | V28: 0 | W28: 0 | X28: 0 | Y28: 0 | Z28: 0 | AA28: 0 | AB28: 0 | AC28: 0
B29: =Projektbudget!A36 -> 0 | C29: ='År 3'!C29 -> 1700 | D29: =Projektbudget!D36*$C29 -> 0 | E29: =Projektbudget!E36*$C29 -> 0 | F29: =Projektbudget!F36*$C29 -> 0 | G29: =Projektbudget!G36*$C29 -> 0 | H29: =Projektbudget!H36*$C29 -> 0 | I29: =Projektbudget!I36*$C29 -> 0 | J29: =Projektbudget!J36*$C29 -> 0 | K29: =Projektbudget!K36*$C29 -> 0 | L29: =Projektbudget!L36*$C29 -> 0 | M29: =Projektbudget!M36*$C29 -> 0 | N29: 0 | Q29: 0 | S29: 0 | T29: 0 | U29: 0 | V29: 0 | W29: 0 | X29: 0 | Y29: 0 | Z29: 0 | AA29: 0 | AB29: 0 | AC29: 0
B30: =Projektbudget!A37 -> 0 | C30: ='År 3'!C30 -> 1700 | D30: =Projektbudget!D37*$C30 -> 0 | E30: =Projektbudget!E37*$C30 -> 0 | F30: =Projektbudget!F37*$C30 -> 0 | G30: =Projektbudget!G37*$C30 -> 0 | H30: =Projektbudget!H37*$C30 -> 0 | I30: =Projektbudget!I37*$C30 -> 0 | J30: =Projektbudget!J37*$C30 -> 0 | K30: =Projektbudget!K37*$C30 -> 0 | L30: =Projektbudget!L37*$C30 -> 0 | M30: =Projektbudget!M37*$C30 -> 0 | N30: 0 | Q30: 0 | S30: 0 | T30: 0 | U30: 0 | V30: 0 | W30: 0 | X30: 0 | Y30: 0 | Z30: 0 | AA30: 0 | AB30: 0 | AC30: 0
B31: =Projektbudget!A38 -> 0 | C31: ='År 3'!C31 -> 1700 | D31: =Projektbudget!D38*$C31 -> 0 | E31: =Projektbudget!E38*$C31 -> 0 | F31: =Projektbudget!F38*$C31 -> 0 | G31: =Projektbudget!G38*$C31 -> 0 | H31: =Projektbudget!H38*$C31 -> 0 | I31: =Projektbudget!I38*$C31 -> 0 | J31: =Projektbudget!J38*$C31 -> 0 | K31: =Projektbudget!K38*$C31 -> 0 | L31: =Projektbudget!L38*$C31 -> 0 | M31: =Projektbudget!M38*$C31 -> 0 | N31: 0 | Q31: 0 | S31: 0 | T31: 0 | U31: 0 | V31: 0 | W31: 0 | X31: 0 | Y31: 0 | Z31: 0 | AA31: 0 | AB31: 0 | AC31: 0
B32: =Projektbudget!A39 -> 0 | C32: ='År 3'!C32 -> 1700 | D32: =Projektbudget!D39*$C32 -> 0 | E32: =Projektbudget!E39*$C32 -> 0 | F32: =Projektbudget!F39*$C32 -> 0 | G32: =Projektbudget!G39*$C32 -> 0 | H32: =Projektbudget!H39*$C32 -> 0 | I32: =Projektbudget!I39*$C32 -> 0 | J32: =Projektbudget!J39*$C32 -> 0 | K32: =Projektbudget!K39*$C32 -> 0 | L32: =Projektbudget!L39*$C32 -> 0 | M32: =Projektbudget!M39*$C32 -> 0 | N32: 0 | Q32: 0 | S32: 0 | T32: 0 | U32: 0 | V32: 0 | W32: 0 | X32: 0 | Y32: 0 | Z32: 0 | AA32: 0 | AB32: 0 | AC32: 0
B33: =Projektbudget!A40 -> 0 | C33: ='År 3'!C33 -> 1700 | D33: =Projektbudget!D40*$C33 -> 0 | E33: =Projektbudget!E40*$C33 -> 0 | F33: =Projektbudget!F40*$C33 -> 0 | G33: =Projektbudget!G40*$C33 -> 0 | H33: =Projektbudget!H40*$C33 -> 0 | I33: =Projektbudget!I40*$C33 -> 0 | J33: =Projektbudget!J40*$C33 -> 0 | K33: =Projektbudget!K40*$C33 -> 0 | L33: =Projektbudget!L40*$C33 -> 0 | M33: =Projektbudget!M40*$C33 -> 0 | N33: 0 | Q33: 0 | S33: 0 | T33: 0 | U33: 0 | V33: 0 | W33: 0 | X33: 0 | Y33: 0 | Z33: 0 | AA33: 0 | AB33: 0 | AC33: 0
B34: =Projektbudget!A41 -> 0 | C34: ='År 3'!C34 -> 1700 | D34: =Projektbudget!D41*$C34 -> 0 | E34: =Projektbudget!E41*$C34 -> 0 | F34: =Projektbudget!F41*$C34 -> 0 | G34: =Projektbudget!G41*$C34 -> 0 | H34: =Projektbudget!H41*$C34 -> 0 | I34: =Projektbudget!I41*$C34 -> 0 | J34: =Projektbudget!J41*$C34 -> 0 | K34: =Projektbudget!K41*$C34 -> 0 | L34: =Projektbudget!L41*$C34 -> 0 | M34: =Projektbudget!M41*$C34 -> 0 | N34: 0 | Q34: 0 | S34: 0 | T34: 0 | U34: 0 | V34: 0 | W34: 0 | X34: 0 | Y34: 0 | Z34: 0 | AA34: 0 | AB34: 0 | AC34: 0
B35: =Projektbudget!A42 -> 0 | C35: ='År 3'!C35 -> 1700 | D35: =Projektbudget!D42*$C35 -> 0 | E35: =Projektbudget!E42*$C35 -> 0 | F35: =Projektbudget!F42*$C35 -> 0 | G35: =Projektbudget!G42*$C35 -> 0 | H35: =Projektbudget!H42*$C35 -> 0 | I35: =Projektbudget!I42*$C35 -> 0 | J35: =Projektbudget!J42*$C35 -> 0 | K35: =Projektbudget!K42*$C35 -> 0 | L35: =Projektbudget!L42*$C35 -> 0 | M35: =Projektbudget!M42*$C35 -> 0 | N35: 0 | Q35: 0 | S35: 0 | T35: 0 | U35: 0 | V35: 0 | W35: 0 | X35: 0 | Y35: 0 | Z35: 0 | AA35: 0 | AB35: 0 | AC35: 0
B36: =Projektbudget!A43 -> 0 | C36: ='År 3'!C36 -> 1700 | D36: =Projektbudget!D43*$C36 -> 0 | E36: =Projektbudget!E43*$C36 -> 0 | F36: =Projektbudget!F43*$C36 -> 0 | G36: =Projektbudget!G43*$C36 -> 0 | H36: =Projektbudget!H43*$C36 -> 0 | I36: =Projektbudget!I43*$C36 -> 0 | J36: =Projektbudget!J43*$C36 -> 0 | K36: =Projektbudget!K43*$C36 -> 0 | L36: =Projektbudget!L43*$C36 -> 0 | M36: =Projektbudget!M43*$C36 -> 0 | N36: 0 | Q36: 0 | S36: 0 | T36: 0 | U36: 0 | V36: 0 | W36: 0 | X36: 0 | Y36: 0 | Z36: 0 | AA36: 0 | AB36: 0 | AC36: 0
B37: =Projektbudget!A44 -> 0 | C37: ='År 3'!C37 -> 1700 | D37: =Projektbudget!D44*$C37 -> 0 | E37: =Projektbudget!E44*$C37 -> 0 | F37: =Projektbudget!F44*$C37 -> 0 | G37: =Projektbudget!G44*$C37 -> 0 | H37: =Projektbudget!H44*$C37 -> 0 | I37: =Projektbudget!I44*$C37 -> 0 | J37: =Projektbudget!J44*$C37 -> 0 | K37: =Projektbudget!K44*$C37 -> 0 | L37: =Projektbudget!L44*$C37 -> 0 | M37: =Projektbudget!M44*$C37 -> 0 | N37: 0 | Q37: 0 | S37: 0 | T37: 0 | U37: 0 | V37: 0 | W37: 0 | X37: 0 | Y37: 0 | Z37: 0 | AA37: 0 | AB37: 0 | AC37: 0
B38: =Projektbudget!A45 -> 0 | C38: ='År 3'!C38 -> 1700 | D38: =Projektbudget!D45*$C38 -> 0 | E38: =Projektbudget!E45*$C38 -> 0 | F38: =Projektbudget!F45*$C38 -> 0 | G38: =Projektbudget!G45*$C38 -> 0 | H38: =Projektbudget!H45*$C38 -> 0 | I38: =Projektbudget!I45*$C38 -> 0 | J38: =Projektbudget!J45*$C38 -> 0 | K38: =Projektbudget!K45*$C38 -> 0 | L38: =Projektbudget!L45*$C38 -> 0 | M38: =Projektbudget!M45*$C38 -> 0 | N38: 0 | Q38: 0 | S38: 0 | T38: 0 | U38: 0 | V38: 0 | W38: 0 | X38: 0 | Y38: 0 | Z38: 0 | AA38: 0 | AB38: 0 | AC38: 0
B39: =Projektbudget!A46 -> 0 | C39: ='År 3'!C39 -> 1700 | D39: =Projektbudget!D46*$C39 -> 0 | E39: =Projektbudget!E46*$C39 -> 0 | F39: =Projektbudget!F46*$C39 -> 0 | G39: =Projektbudget!G46*$C39 -> 0 | H39: =Projektbudget!H46*$C39 -> 0 | I39: =Projektbudget!I46*$C39 -> 0 | J39: =Projektbudget!J46*$C39 -> 0 | K39: =Projektbudget!K46*$C39 -> 0 | L39: =Projektbudget!L46*$C39 -> 0 | M39: =Projektbudget!M46*$C39 -> 0 | N39: 0 | Q39: 0 | S39: 0 | T39: 0 | U39: 0 | V39: 0 | W39: 0 | X39: 0 | Y39: 0 | Z39: 0 | AA39: 0 | AB39: 0 | AC39: 0
B40: Totalt | C40: =SUM(D40:M40) -> 0 | D40: =SUM(D5:D39) -> 0 | E40: 0 | F40: 0 | G40: 0 | H40: 0 | I40: 0 | J40: 0 | K40: 0 | L40: 0 | M40: 0 | N40: 0 | Q40: Totalt | R40: =SUM(S40:AB40) -> 0 | S40: =SUM(S5:S39) -> 0 | T40: 0 | U40: 0 | V40: 0 | W40: 0 | X40: 0 | Y40: 0 | Z40: 0 | AA40: 0 | AB40: 0 | AC40: 0
D42: Utfall/Prognos timmar | S42: Omfattning %
D43: =D4 -> 2021 | E43: =E4 -> 2022 | F43: =F4 -> 2023 | G43: =G4 -> 2024 | H43: =H4 -> 2025 | I43: =I4 -> 2026 | J43: 2027 | K43: 2028 | L43: 2029 | M43: 2030 | N43: Kr/tim | S43: =D43 -> 2021 | T43: =E43 -> 2022 | U43: =F43 -> 2023 | V43: =G43 -> 2024 | W43: =H43 -> 2025 | X43: =I43 -> 2026 | Y43: 2027 | Z43: 2028 | AA43: 2029 | AB43: 2030 | AC43: Totalt
B44: =B5 -> Professor | D44: ='År 3'!D44 -> 0 | E44: ='År 3'!E44 -> 0 | F44: ='År 3'!F44 -> 0 | N44: =IFERROR(Projektbudget!B12*12*LönePåläggUppräkningÅr4/C5,0) -> 729.3225882 | Q44: =B44 -> Professor | S44: =IFERROR(D44/$C5,0) -> 0 | T44: 0 | U44: 0 | V44: 0 | W44: 0 | X44: 0 | Y44: 0 | Z44: 0 | AA44: 0 | AB44: 0 | AC44: =SUM(S44:AB44) -> 0
B45: Docent | D45: ='År 3'!D45 -> 0 | E45: ='År 3'!E45 -> 0 | F45: ='År 3'!F45 -> 0 | N45: =IFERROR(Projektbudget!B13*12*LönePåläggUppräkningÅr4/C6,0) -> 557.3330824 | Q45: =B45 -> Docent | S45: 0 | T45: 0 | U45: 0 | V45: 0 | W45: 0 | X45: 0 | Y45: 0 | Z45: 0 | AA45: 0 | AB45: 0 | AC45: 0
B46: Lektor | D46: ='År 3'!D46 -> 0 | E46: ='År 3'!E46 -> 0 | F46: ='År 3'!F46 -> 0 | N46: =IFERROR(Projektbudget!B14*12*LönePåläggUppräkningÅr4/C7,0) -> 507.2601882 | Q46: Lektor | S46: 0 | T46: 0 | U46: 0 | V46: 0 | W46: 0 | X46: 0 | Y46: 0 | Z46: 0 | AA46: 0 | AB46: 0 | AC46: 0
B47: Adjunkt | D47: ='År 3'!D47 -> 0 | E47: ='År 3'!E47 -> 0 | F47: ='År 3'!F47 -> 0 | N47: =IFERROR(Projektbudget!B15*12*LönePåläggUppräkningÅr4/C8,0) -> 434.3279294 | Q47: Adjunkt | S47: 0 | T47: 0 | U47: 0 | V47: 0 | W47: 0 | X47: 0 | Y47: 0 | Z47: 0 | AA47: 0 | AB47: 0 | AC47: 0
B48: Post dok | D48: ='År 3'!D48 -> 0 | E48: ='År 3'!E48 -> 0 | F48: ='År 3'!F48 -> 0 | N48: =IFERROR(Projektbudget!B16*12*LönePåläggUppräkningÅr4/C9,0) -> 379.9008706 | Q48: Post dok | S48: 0 | T48: 0 | U48: 0 | V48: 0 | W48: 0 | X48: 0 | Y48: 0 | Z48: 0 | AA48: 0 | AB48: 0 | AC48: 0
B49: Doktorand (Snittlön) | D49: ='År 3'!D49 -> 0 | E49: ='År 3'!E49 -> 0 | F49: ='År 3'!F49 -> 0 | N49: =IFERROR(Projektbudget!B17*12*LönePåläggUppräkningÅr4/C10,0) -> 310.5063706 | Q49: Doktorand (Snittlön) | S49: 0 | T49: 0 | U49: 0 | V49: 0 | W49: 0 | X49: 0 | Y49: 0 | Z49: 0 | AA49: 0 | AB49: 0 | AC49: 0
B50: Administratör | D50: ='År 3'!D50 -> 0 | E50: ='År 3'!E50 -> 0 | F50: ='År 3'!F50 -> 0 | N50: =IFERROR(Projektbudget!B18*12*LönePåläggUppräkningÅr4/C11,0) -> 390.7862824 | Q50: Administratör | S50: 0 | T50: 0 | U50: 0 | V50: 0 | W50: 0 | X50: 0 | Y50: 0 | Z50: 0 | AA50: 0 | AB50: 0 | AC50: 0
B51: Labbtekniker | D51: ='År 3'!D51 -> 0 | E51: ='År 3'!E51 -> 0 | F51: ='År 3'!F51 -> 0 | N51: =IFERROR(Projektbudget!B19*12*LönePåläggUppräkningÅr4/C12,0) -> 359.2185882 | Q51: Labbtekniker | S51: 0 | T51: 0 | U51: 0 | V51: 0 | W51: 0 | X51: 0 | Y51: 0 | Z51: 0 | AA51: 0 | AB51: 0 | AC51: 0
B52: Forskningsassistent | D52: ='År 3'!D52 -> 0 | E52: ='År 3'!E52 -> 0 | F52: ='År 3'!F52 -> 0 | N52: =IFERROR(Projektbudget!B20*12*LönePåläggUppräkningÅr4/C13,0) -> 271.0467529 | Q52: Forskningsassistent | S52: 0 | T52: 0 | U52: 0 | V52: 0 | W52: 0 | X52: 0 | Y52: 0 | Z52: 0 | AA52: 0 | AB52: 0 | AC52: 0
B53: Forskare/biträdande forskare | D53: ='År 3'!D53 -> 0 | E53: ='År 3'!E53 -> 0 | F53: ='År 3'!F53 -> 0 | N53: =IFERROR(Projektbudget!B21*12*LönePåläggUppräkningÅr4/C14,0) -> 404.9373176 | Q53: Forskare/biträdande forskare | S53: 0 | T53: 0 | U53: 0 | V53: 0 | W53: 0 | X53: 0 | Y53: 0 | Z53: 0 | AA53: 0 | AB53: 0 | AC53: 0
B54: 0 | D54: ='År 3'!D54 -> 0 | E54: ='År 3'!E54 -> 0 | F54: ='År 3'!F54 -> 0 | N54: =IFERROR(Projektbudget!B22*12*LönePåläggUppräkningÅr4/C15,0) -> 0 | Q54: 0 | S54: 0 | T54: 0 | U54: 0 | V54: 0 | W54: 0 | X54: 0 | Y54: 0 | Z54: 0 | AA54: 0 | AB54: 0 | AC54: 0
B55: 0 | D55: ='År 3'!D55 -> 0 | E55: ='År 3'!E55 -> 0 | F55: ='År 3'!F55 -> 0 | N55: =IFERROR(Projektbudget!B23*12*LönePåläggUppräkningÅr4/C16,0) -> 0 | Q55: 0 | S55: 0 | T55: 0 | U55: 0 | V55: 0 | W55: 0 | X55: 0 | Y55: 0 | Z55: 0 | AA55: 0 | AB55: 0 | AC55: 0
B56: 0 | D56: ='År 3'!D56 -> 0 | E56: ='År 3'!E56 -> 0 | F56: ='År 3'!F56 -> 0 | N56: =IFERROR(Projektbudget!B24*12*LönePåläggUppräkningÅr4/C17,0) -> 0 | Q56: 0 | S56: 0 | T56: 0 | U56: 0 | V56: 0 | W56: 0 | X56: 0 | Y56: 0 | Z56: 0 | AA56: 0 | AB56: 0 | AC56: 0
B57: 0 | D57: ='År 3'!D57 -> 0 | E57: ='År 3'!E57 -> 0 | F57: ='År 3'!F57 -> 0 | N57: =IFERROR(Projektbudget!B25*12*LönePåläggUppräkningÅr4/C18,0) -> 0 | Q57: 0 | S57: 0 | T57: 0 | U57: 0 | V57: 0 | W57: 0 | X57: 0 | Y57: 0 | Z57: 0 | AA57: 0 | AB57: 0 | AC57: 0
B58: 0 | D58: ='År 3'!D58 -> 0 | E58: ='År 3'!E58 -> 0 | F58: ='År 3'!F58 -> 0 | N58: =IFERROR(Projektbudget!B26*12*LönePåläggUppräkningÅr4/C19,0) -> 0 | Q58: 0 | S58: 0 | T58: 0 | U58: 0 | V58: 0 | W58: 0 | X58: 0 | Y58: 0 | Z58: 0 | AA58: 0 | AB58: 0 | AC58: 0
B59: 0 | D59: ='År 3'!D59 -> 0 | E59: ='År 3'!E59 -> 0 | F59: ='År 3'!F59 -> 0 | N59: =IFERROR(Projektbudget!B27*12*LönePåläggUppräkningÅr4/C20,0) -> 0 | Q59: 0 | S59: 0 | T59: 0 | U59: 0 | V59: 0 | W59: 0 | X59: 0 | Y59: 0 | Z59: 0 | AA59: 0 | AB59: 0 | AC59: 0
B60: 0 | D60: ='År 3'!D60 -> 0 | E60: ='År 3'!E60 -> 0 | F60: ='År 3'!F60 -> 0 | N60: =IFERROR(Projektbudget!B28*12*LönePåläggUppräkningÅr4/C21,0) -> 0 | Q60: 0 | S60: =IFERROR(D60/$C21,0) -> 0 | T60: 0 | U60: 0 | V60: 0 | W60: 0 | X60: 0 | Y60: 0 | Z60: 0 | AA60: 0 | AB60: 0 | AC60: 0
B61: 0 | D61: ='År 3'!D61 -> 0 | E61: ='År 3'!E61 -> 0 | F61: ='År 3'!F61 -> 0 | N61: =IFERROR(Projektbudget!B29*12*LönePåläggUppräkningÅr4/C22,0) -> 0 | Q61: 0 | S61: 0 | T61: 0 | U61: 0 | V61: 0 | W61: 0 | X61: 0 | Y61: 0 | Z61: 0 | AA61: 0 | AB61: 0 | AC61: 0
B62: 0 | D62: ='År 3'!D62 -> 0 | E62: ='År 3'!E62 -> 0 | F62: ='År 3'!F62 -> 0 | N62: =IFERROR(Projektbudget!B30*12*LönePåläggUppräkningÅr4/C23,0) -> 0 | Q62: 0 | S62: 0 | T62: 0 | U62: 0 | V62: 0 | W62: 0 | X62: 0 | Y62: 0 | Z62: 0 | AA62: 0 | AB62: 0 | AC62: 0
B63: 0 | D63: ='År 3'!D63 -> 0 | E63: ='År 3'!E63 -> 0 | F63: ='År 3'!F63 -> 0 | N63: =IFERROR(Projektbudget!B31*12*LönePåläggUppräkningÅr4/C24,0) -> 0 | Q63: 0 | S63: 0 | T63: 0 | U63: 0 | V63: 0 | W63: 0 | X63: 0 | Y63: 0 | Z63: 0 | AA63: 0 | AB63: 0 | AC63: 0
B64: 0 | D64: ='År 3'!D64 -> 0 | E64: ='År 3'!E64 -> 0 | F64: ='År 3'!F64 -> 0 | N64: =IFERROR(Projektbudget!B32*12*LönePåläggUppräkningÅr4/C25,0) -> 0 | Q64: 0 | S64: 0 | T64: 0 | U64: 0 | V64: 0 | W64: 0 | X64: 0 | Y64: 0 | Z64: 0 | AA64: 0 | AB64: 0 | AC64: 0
B65: 0 | D65: ='År 3'!D65 -> 0 | E65: ='År 3'!E65 -> 0 | F65: ='År 3'!F65 -> 0 | N65: =IFERROR(Projektbudget!B33*12*LönePåläggUppräkningÅr4/C26,0) -> 0 | Q65: 0 | S65: 0 | T65: 0 | U65: 0 | V65: 0 | W65: 0 | X65: 0 | Y65: 0 | Z65: 0 | AA65: 0 | AB65: 0 | AC65: 0
B66: 0 | D66: ='År 3'!D66 -> 0 | E66: ='År 3'!E66 -> 0 | F66: ='År 3'!F66 -> 0 | N66: =IFERROR(Projektbudget!B34*12*LönePåläggUppräkningÅr4/C27,0) -> 0 | Q66: 0 | S66: 0 | T66: 0 | U66: 0 | V66: 0 | W66: 0 | X66: 0 | Y66: 0 | Z66: 0 | AA66: 0 | AB66: 0 | AC66: 0
B67: 0 | D67: ='År 3'!D67 -> 0 | E67: ='År 3'!E67 -> 0 | F67: ='År 3'!F67 -> 0 | N67: =IFERROR(Projektbudget!B35*12*LönePåläggUppräkningÅr4/C28,0) -> 0 | Q67: 0 | S67: 0 | T67: 0 | U67: 0 | V67: 0 | W67: 0 | X67: 0 | Y67: 0 | Z67: 0 | AA67: 0 | AB67: 0 | AC67: 0
B68: 0 | D68: ='År 3'!D68 -> 0 | E68: ='År 3'!E68 -> 0 | F68: ='År 3'!F68 -> 0 | N68: =IFERROR(Projektbudget!B36*12*LönePåläggUppräkningÅr4/C29,0) -> 0 | Q68: 0 | S68: 0 | T68: 0 | U68: 0 | V68: 0 | W68: 0 | X68: 0 | Y68: 0 | Z68: 0 | AA68: 0 | AB68: 0 | AC68: 0
B69: 0 | D69: ='År 3'!D69 -> 0 | E69: ='År 3'!E69 -> 0 | F69: ='År 3'!F69 -> 0 | N69: =IFERROR(Projektbudget!B37*12*LönePåläggUppräkningÅr4/C30,0) -> 0 | Q69: 0 | S69: 0 | T69: 0 | U69: 0 | V69: 0 | W69: 0 | X69: 0 | Y69: 0 | Z69: 0 | AA69: 0 | AB69: 0 | AC69: 0
B70: 0 | D70: ='År 3'!D70 -> 0 | E70: ='År 3'!E70 -> 0 | F70: ='År 3'!F70 -> 0 | N70: =IFERROR(Projektbudget!B38*12*LönePåläggUppräkningÅr4/C31,0) -> 0 | Q70: 0 | S70: 0 | T70: 0 | U70: 0 | V70: 0 | W70: 0 | X70: 0 | Y70: 0 | Z70: 0 | AA70: 0 | AB70: 0 | AC70: 0
B71: 0 | D71: ='År 3'!D71 -> 0 | E71: ='År 3'!E71 -> 0 | F71: ='År 3'!F71 -> 0 | N71: =IFERROR(Projektbudget!B39*12*LönePåläggUppräkningÅr4/C32,0) -> 0 | Q71: 0 | S71: 0 | T71: 0 | U71: 0 | V71: 0 | W71: 0 | X71: 0 | Y71: 0 | Z71: 0 | AA71: 0 | AB71: 0 | AC71: 0
B72: 0 | D72: ='År 3'!D72 -> 0 | E72: ='År 3'!E72 -> 0 | F72: ='År 3'!F72 -> 0 | N72: =IFERROR(Projektbudget!B40*12*LönePåläggUppräkningÅr4/C33,0) -> 0 | Q72: 0 | S72: 0 | T72: 0 | U72: 0 | V72: 0 | W72: 0 | X72: 0 | Y72: 0 | Z72: 0 | AA72: 0 | AB72: 0 | AC72: 0
B73: 0 | D73: ='År 3'!D73 -> 0 | E73: ='År 3'!E73 -> 0 | F73: ='År 3'!F73 -> 0 | N73: =IFERROR(Projektbudget!B41*12*LönePåläggUppräkningÅr4/C34,0) -> 0 | Q73: 0 | S73: 0 | T73: 0 | U73: 0 | V73: 0 | W73: 0 | X73: 0 | Y73: 0 | Z73: 0 | AA73: 0 | AB73: 0 | AC73: 0
B74: 0 | D74: ='År 3'!D74 -> 0 | E74: ='År 3'!E74 -> 0 | F74: ='År 3'!F74 -> 0 | N74: =IFERROR(Projektbudget!B42*12*LönePåläggUppräkningÅr4/C35,0) -> 0 | Q74: 0 | S74: 0 | T74: 0 | U74: 0 | V74: 0 | W74: 0 | X74: 0 | Y74: 0 | Z74: 0 | AA74: 0 | AB74: 0 | AC74: 0
B75: 0 | D75: ='År 3'!D75 -> 0 | E75: ='År 3'!E75 -> 0 | F75: ='År 3'!F75 -> 0 | N75: =IFERROR(Projektbudget!B43*12*LönePåläggUppräkningÅr4/C36,0) -> 0 | Q75: 0 | S75: 0 | T75: 0 | U75: 0 | V75: 0 | W75: 0 | X75: 0 | Y75: 0 | Z75: 0 | AA75: 0 | AB75: 0 | AC75: 0
B76: 0 | D76: ='År 3'!D76 -> 0 | E76: ='År 3'!E76 -> 0 | F76: ='År 3'!F76 -> 0 | N76: =IFERROR(Projektbudget!B44*12*LönePåläggUppräkningÅr4/C37,0) -> 0 | Q76: 0 | S76: =IFERROR(D76/$C37,0) -> 0 | T76: 0 | U76: 0 | V76: 0 | W76: 0 | X76: 0 | Y76: 0 | Z76: 0 | AA76: 0 | AB76: 0 | AC76: 0
B77: 0 | D77: ='År 3'!D77 -> 0 | E77: ='År 3'!E77 -> 0 | F77: ='År 3'!F77 -> 0 | N77: =IFERROR(Projektbudget!B45*12*LönePåläggUppräkningÅr4/C38,0) -> 0 | Q77: 0 | S77: 0 | T77: 0 | U77: 0 | V77: 0 | W77: 0 | X77: 0 | Y77: 0 | Z77: 0 | AA77: 0 | AB77: 0 | AC77: 0
B78: 0 | D78: ='År 3'!D78 -> 0 | E78: ='År 3'!E78 -> 0 | F78: ='År 3'!F78 -> 0 | N78: =IFERROR(Projektbudget!B46*12*LönePåläggUppräkningÅr4/C39,0) -> 0 | Q78: 0 | S78: 0 | T78: 0 | U78: 0 | V78: 0 | W78: 0 | X78: 0 | Y78: 0 | Z78: 0 | AA78: 0 | AB78: 0 | AC78: 0
B79: =B40 -> Totalt | C79: =SUM(D79:M79) -> 0 | D79: =SUM(D44:D78) -> 0 | E79: =SUM(E44:E78) -> 0 | F79: =SUM(F44:F78) -> 0 | G79: =SUM(G44:G78) -> 0 | H79: =SUM(H44:H78) -> 0 | I79: =SUM(I44:I78) -> 0 | J79: 0 | K79: 0 | L79: 0 | M79: 0 | N79: =SUM(N44:N63) -> 4344.639971 | Q79: Totalt | R79: =SUM(S79:AB79) -> 0 | S79: =SUM(S44:S78) -> 0 | T79: 0 | U79: 0 | V79: 0 | W79: 0 | X79: 0 | Y79: 0 | Z79: 0 | AA79: 0 | AB79: 0 | AC79: 0

Sheet År 5 (hidden)
B1: ="Projekt: "&Projektbudget!$B$4 -> Projekt:
D3: Budget timmar (ev. reviderad) | O3: Godkännande | S3: Manmånader
C4: Åarb | D4: =Projektbudget!D52 -> 2021 | E4: =Projektbudget!E52 -> 2022 | F4: =Projektbudget!F52 -> 2023 | G4: =Projektbudget!G52 -> 2024 | H4: =Projektbudget!H52 -> 2025 | I4: =Projektbudget!I52 -> 2026 | J4: =Projektbudget!J52 -> 2027 | K4: =Projektbudget!K52 -> 2028 | L4: =Projektbudget!L52 -> 2029 | M4: =Projektbudget!M52 -> 2030 | N4: Totalt | O4: prefekt / SR | S4: =D4 -> 2021 | T4: =E4 -> 2022 | U4: =F4 -> 2023 | V4: =G4 -> 2024 | W4: =H4 -> 2025 | X4: =I4 -> 2026 | Y4: 2027 | Z4: 2028 | AA4: 2029 | AB4: 2030 | AC4: Totalt
B5: =Projektbudget!A12 -> Professor | C5: ='År 4'!C5 -> 1700 | D5: =Projektbudget!D12*$C5 -> 0 | E5: =Projektbudget!E12*$C5 -> 0 | F5: =Projektbudget!F12*$C5 -> 0 | G5: =Projektbudget!G12*$C5 -> 0 | H5: =Projektbudget!H12*$C5 -> 0 | I5: =Projektbudget!I12*$C5 -> 0 | J5: =Projektbudget!J12*$C5 -> 0 | K5: =Projektbudget!K12*$C5 -> 0 | L5: =Projektbudget!L12*$C5 -> 0 | M5: =Projektbudget!M12*$C5 -> 0 | N5: =SUM(D5:M5) -> 0 | Q5: =B5 -> Professor | S5: =IFERROR(D5/($C5/12),0) -> 0 | T5: =IFERROR(E5/($C5/12),0) -> 0 | U5: =IFERROR(F5/($C5/12),0) -> 0 | V5: =IFERROR(G5/($C5/12),0) -> 0 | W5: =IFERROR(H5/($C5/12),0) -> 0 | X5: =IFERROR(I5/($C5/12),0) -> 0 | Y5: 0 | Z5: 0 | AA5: 0 | AB5: 0 | AC5: =SUM(S5:AB5) -> 0
B6: =Projektbudget!A13 -> Docent | C6: ='År 4'!C6 -> 1700 | D6: =Projektbudget!D13*$C6 -> 0 | E6: =Projektbudget!E13*$C6 -> 0 | F6: =Projektbudget!F13*$C6 -> 0 | G6: =Projektbudget!G13*$C6 -> 0 | H6: =Projektbudget!H13*$C6 -> 0 | I6: =Projektbudget!I13*$C6 -> 0 | J6: =Projektbudget!J13*$C6 -> 0 | K6: =Projektbudget!K13*$C6 -> 0 | L6: =Projektbudget!L13*$C6 -> 0 | M6: =Projektbudget!M13*$C6 -> 0 | N6: =SUM(D6:M6) -> 0 | Q6: =B6 -> Docent | S6: =IFERROR(D6/($C6/12),0) -> 0 | T6: 0 | U6: 0 | V6: 0 | W6: 0 | X6: 0 | Y6: 0 | Z6: 0 | AA6: 0 | AB6: 0 | AC6: 0
B7: =Projektbudget!A14 -> Lektor | C7: ='År 4'!C7 -> 1700 | D7: =Projektbudget!D14*$C7 -> 0 | E7: =Projektbudget!E14*$C7 -> 0 | F7: =Projektbudget!F14*$C7 -> 0 | G7: =Projektbudget!G14*$C7 -> 0 | H7: =Projektbudget!H14*$C7 -> 0 | I7: =Projektbudget!I14*$C7 -> 0 | J7: =Projektbudget!J14*$C7 -> 0 | K7: =Projektbudget!K14*$C7 -> 0 | L7: =Projektbudget!L14*$C7 -> 0 | M7: =Projektbudget!M14*$C7 -> 0 | N7: 0 | Q7: Lektor | S7: 0 | T7: 0 | U7: 0 | V7: 0 | W7: 0 | X7: 0 | Y7: 0 | Z7: 0 | AA7: 0 | AB7: 0 | AC7: 0
B8: =Projektbudget!A15 -> Adjunkt | C8: ='År 4'!C8 -> 1700 | D8: =Projektbudget!D15*$C8 -> 0 | E8: =Projektbudget!E15*$C8 -> 0 | F8: =Projektbudget!F15*$C8 -> 0 | G8: =Projektbudget!G15*$C8 -> 0 | H8: =Projektbudget!H15*$C8 -> 0 | I8: =Projektbudget!I15*$C8 -> 0 | J8: =Projektbudget!J15*$C8 -> 0 | K8: =Projektbudget!K15*$C8 -> 0 | L8: =Projektbudget!L15*$C8 -> 0 | M8: =Projektbudget!M15*$C8 -> 0 | N8: 0 | Q8: Adjunkt | S8: 0 | T8: 0 | U8: 0 | V8: 0 | W8: 0 | X8: 0 | Y8: 0 | Z8: 0 | AA8: 0 | AB8: 0 | AC8: 0
B9: =Projektbudget!A16 -> Post dok | C9: ='År 4'!C9 -> 1700 | D9: =Projektbudget!D16*$C9 -> 0 | E9: =Projektbudget!E16*$C9 -> 0 | F9: =Projektbudget!F16*$C9 -> 0 | G9: =Projektbudget!G16*$C9 -> 0 | H9: =Projektbudget!H16*$C9 -> 0 | I9: =Projektbudget!I16*$C9 -> 0 | J9: =Projektbudget!J16*$C9 -> 0 | K9: =Projektbudget!K16*$C9 -> 0 | L9: =Projektbudget!L16*$C9 -> 0 | M9: =Projektbudget!M16*$C9 -> 0 | N9: 0 | Q9: Post dok | S9: 0 | T9: 0 | U9: 0 | V9: 0 | W9: 0 | X9: 0 | Y9: 0 | Z9: 0 | AA9: 0 | AB9: 0 | AC9: 0
B10: =Projektbudget!A17 -> Doktorand (Snittlön) | C10: ='År 4'!C10 -> 1700 | D10: =Projektbudget!D17*$C10 -> 0 | E10: =Projektbudget!E17*$C10 -> 0 | F10: =Projektbudget!F17*$C10 -> 0 | G10: =Projektbudget!G17*$C10 -> 0 | H10: =Projektbudget!H17*$C10 -> 0 | I10: =Projektbudget!I17*$C10 -> 0 | J10: =Projektbudget!J17*$C10 -> 0 | K10: =Projektbudget!K17*$C10 -> 0 | L10: =Projektbudget!L17*$C10 -> 0 | M10: =Projektbudget!M17*$C10 -> 0 | N10: 0 | Q10: Doktorand (Snittlön) | S10: 0 | T10: 0 | U10: 0 | V10: 0 | W10: 0 | X10: 0 | Y10: 0 | Z10: 0 | AA10: 0 | AB10: 0 | AC10: 0
B11: =Projektbudget!A18 -> Administratör | C11: ='År 4'!C11 -> 1700 | D11: =Projektbudget!D18*$C11 -> 0 | E11: =Projektbudget!E18*$C11 -> 0 | F11: =Projektbudget!F18*$C11 -> 0 | G11: =Projektbudget!G18*$C11 -> 0 | H11: =Projektbudget!H18*$C11 -> 0 | I11: =Projektbudget!I18*$C11 -> 0 | J11: =Projektbudget!J18*$C11 -> 0 | K11: =Projektbudget!K18*$C11 -> 0 | L11: =Projektbudget!L18*$C11 -> 0 | M11: =Projektbudget!M18*$C11 -> 0 | N11: 0 | Q11: Administratör | S11: 0 | T11: 0 | U11: 0 | V11: 0 | W11: 0 | X11: 0 | Y11: 0 | Z11: 0 | AA11: 0 | AB11: 0 | AC11: 0
B12: =Projektbudget!A19 -> Labbtekniker | C12: ='År 4'!C12 -> 1700 | D12: =Projektbudget!D19*$C12 -> 0 | E12: =Projektbudget!E19*$C12 -> 0 | F12: =Projektbudget!F19*$C12 -> 0 | G12: =Projektbudget!G19*$C12 -> 0 | H12: =Projektbudget!H19*$C12 -> 0 | I12: =Projektbudget!I19*$C12 -> 0 | J12: =Projektbudget!J19*$C12 -> 0 | K12: =Projektbudget!K19*$C12 -> 0 | L12: =Projektbudget!L19*$C12 -> 0 | M12: =Projektbudget!M19*$C12 -> 0 | N12: 0 | Q12: Labbtekniker | S12: 0 | T12: 0 | U12: 0 | V12: 0 | W12: 0 | X12: 0 | Y12: 0 | Z12: 0 | AA12: 0 | AB12: 0 | AC12: 0
B13: =Projektbudget!A20 -> Forskningsassistent | C13: ='År 4'!C13 -> 1700 | D13: =Projektbudget!D20*$C13 -> 0 | E13: =Projektbudget!E20*$C13 -> 0 | F13: =Projektbudget!F20*$C13 -> 0 | G13: =Projektbudget!G20*$C13 -> 0 | H13: =Projektbudget!H20*$C13 -> 0 | I13: =Projektbudget!I20*$C13 -> 0 | J13: =Projektbudget!J20*$C13 -> 0 | K13: =Projektbudget!K20*$C13 -> 0 | L13: =Projektbudget!L20*$C13 -> 0 | M13: =Projektbudget!M20*$C13 -> 0 | N13: 0 | Q13: Forskningsassistent | S13: 0 | T13: 0 | U13: 0 | V13: 0 | W13: 0 | X13: 0 | Y13: 0 | Z13: 0 | AA13: 0 | AB13: 0 | AC13: 0
B14: =Projektbudget!A21 -> Forskare/biträdande forskare | C14: ='År 4'!C14 -> 1700 | D14: =Projektbudget!D21*$C14 -> 0 | E14: =Projektbudget!E21*$C14 -> 0 | F14: =Projektbudget!F21*$C14 -> 0 | G14: =Projektbudget!G21*$C14 -> 0 | H14: =Projektbudget!H21*$C14 -> 0 | I14: =Projektbudget!I21*$C14 -> 0 | J14: =Projektbudget!J21*$C14 -> 0 | K14: =Projektbudget!K21*$C14 -> 0 | L14: =Projektbudget!L21*$C14 -> 0 | M14: =Projektbudget!M21*$C14 -> 0 | N14: 0 | Q14: Forskare/biträdande forskare | S14: 0 | T14: 0 | U14: 0 | V14: 0 | W14: 0 | X14: 0 | Y14: 0 | Z14: 0 | AA14: 0 | AB14: 0 | AC14: 0
B15: =Projektbudget!A22 -> 0 | C15: ='År 4'!C15 -> 1700 | D15: =Projektbudget!D22*$C15 -> 0 | E15: =Projektbudget!E22*$C15 -> 0 | F15: =Projektbudget!F22*$C15 -> 0 | G15: =Projektbudget!G22*$C15 -> 0 | H15: =Projektbudget!H22*$C15 -> 0 | I15: =Projektbudget!I22*$C15 -> 0 | J15: =Projektbudget!J22*$C15 -> 0 | K15: =Projektbudget!K22*$C15 -> 0 | L15: =Projektbudget!L22*$C15 -> 0 | M15: =Projektbudget!M22*$C15 -> 0 | N15: 0 | Q15: =B15 -> 0 | S15: =IFERROR(D15/($C15/12),0) -> 0 | T15: 0 | U15: 0 | V15: 0 | W15: 0 | X15: 0 | Y15: 0 | Z15: 0 | AA15: 0 | AB15: 0 | AC15: 0
B16: =Projektbudget!A23 -> 0 | C16: ='År 4'!C16 -> 1700 | D16: =Projektbudget!D23*$C16 -> 0 | E16: =Projektbudget!E23*$C16 -> 0 | F16: =Projektbudget!F23*$C16 -> 0 | G16: =Projektbudget!G23*$C16 -> 0 | H16: =Projektbudget!H23*$C16 -> 0 | I16: =Projektbudget!I23*$C16 -> 0 | J16: =Projektbudget!J23*$C16 -> 0 | K16: =Projektbudget!K23*$C16 -> 0 | L16: =Projektbudget!L23*$C16 -> 0 | M16: =Projektbudget!M23*$C16 -> 0 | N16: 0 | Q16: =B16 -> 0 | S16: =IFERROR(D16/($C16/12),0) -> 0 | T16: 0 | U16: 0 | V16: 0 | W16: 0 | X16: 0 | Y16: 0 | Z16: 0 | AA16: 0 | AB16: 0 | AC16: 0
B17: =Projektbudget!A24 -> 0 | C17: ='År 4'!C17 -> 1700 | D17: =Projektbudget!D24*$C17 -> 0 | E17: =Projektbudget!E24*$C17 -> 0 | F17: =Projektbudget!F24*$C17 -> 0 | G17: =Projektbudget!G24*$C17 -> 0 | H17: =Projektbudget!H24*$C17 -> 0 | I17: =Projektbudget!I24*$C17 -> 0 | J17: =Projektbudget!J24*$C17 -> 0 | K17: =Projektbudget!K24*$C17 -> 0 | L17: =Projektbudget!L24*$C17 -> 0 | M17: =Projektbudget!M24*$C17 -> 0 | N17: 0 | Q17: =B17 -> 0 | S17: =IFERROR(D17/($C17/12),0) -> 0 | T17: 0 | U17: 0 | V17: 0 | W17: 0 | X17: 0 | Y17: 0 | Z17: 0 | AA17: 0 | AB17: 0 | AC17: 0
B18: =Projektbudget!A25 -> 0 | C18: ='År 4'!C18 -> 1700 | D18: =Projektbudget!D25*$C18 -> 0 | E18: =Projektbudget!E25*$C18 -> 0 | F18: =Projektbudget!F25*$C18 -> 0 | G18: =Projektbudget!G25*$C18 -> 0 | H18: =Projektbudget!H25*$C18 -> 0 | I18: =Projektbudget!I25*$C18 -> 0 | J18: =Projektbudget!J25*$C18 -> 0 | K18: =Projektbudget!K25*$C18 -> 0 | L18: =Projektbudget!L25*$C18 -> 0 | M18: =Projektbudget!M25*$C18 -> 0 | N18: 0 | Q18: =B18 -> 0 | S18: =IFERROR(D18/($C18/12),0) -> 0 | T18: 0 | U18: 0 | V18: 0 | W18: 0 | X18: 0 | Y18: 0 | Z18: 0 | AA18: 0 | AB18: 0 | AC18: 0
B19: =Projektbudget!A26 -> 0 | C19: ='År 4'!C19 -> 1700 | D19: =Projektbudget!D26*$C19 -> 0 | E19: =Projektbudget!E26*$C19 -> 0 | F19: =Projektbudget!F26*$C19 -> 0 | G19: =Projektbudget!G26*$C19 -> 0 | H19: =Projektbudget!H26*$C19 -> 0 | I19: =Projektbudget!I26*$C19 -> 0 | J19: =Projektbudget!J26*$C19 -> 0 | K19: =Projektbudget!K26*$C19 -> 0 | L19: =Projektbudget!L26*$C19 -> 0 | M19: =Projektbudget!M26*$C19 -> 0 | N19: 0 | Q19: =B19 -> 0 | S19: =IFERROR(D19/($C19/12),0) -> 0 | T19: 0 | U19: 0 | V19: 0 | W19: 0 | X19: 0 | Y19: 0 | Z19: 0 | AA19: 0 | AB19: 0 | AC19: 0
B20: =Projektbudget!A27 -> 0 | C20: ='År 4'!C20 -> 1700 | D20: =Projektbudget!D27*$C20 -> 0 | E20: =Projektbudget!E27*$C20 -> 0 | F20: =Projektbudget!F27*$C20 -> 0 | G20: =Projektbudget!G27*$C20 -> 0 | H20: =Projektbudget!H27*$C20 -> 0 | I20: =Projektbudget!I27*$C20 -> 0 | J20: =Projektbudget!J27*$C20 -> 0 | K20: =Projektbudget!K27*$C20 -> 0 | L20: =Projektbudget!L27*$C20 -> 0 | M20: =Projektbudget!M27*$C20 -> 0 | N20: 0 | Q20: =B20 -> 0 | S20: =IFERROR(D20/($C20/12),0) -> 0 | T20: 0 | U20: 0 | V20: 0 | W20: 0 | X20: 0 | Y20: 0 | Z20: 0 | AA20: 0 | AB20: 0 | AC20: 0
B21: =Projektbudget!A28 -> 0 | C21: ='År 4'!C21 -> 1700 | D21: =Projektbudget!D28*$C21 -> 0 | E21: =Projektbudget!E28*$C21 -> 0 | F21: =Projektbudget!F28*$C21 -> 0 | G21: =Projektbudget!G28*$C21 -> 0 | H21: =Projektbudget!H28*$C21 -> 0 | I21: =Projektbudget!I28*$C21 -> 0 | J21: =Projektbudget!J28*$C21 -> 0 | K21: =Projektbudget!K28*$C21 -> 0 | L21: =Projektbudget!L28*$C21 -> 0 | M21: =Projektbudget!M28*$C21 -> 0 | N21: 0 | Q21: 0 | S21: 0 | T21: 0 | U21: 0 | V21: 0 | W21: 0 | X21: 0 | Y21: 0 | Z21: 0 | AA21: 0 | AB21: 0 | AC21: 0
B22: =Projektbudget!A29 -> 0 | C22: ='År 4'!C22 -> 1700 | D22: =Projektbudget!D29*$C22 -> 0 | E22: =Projektbudget!E29*$C22 -> 0 | F22: =Projektbudget!F29*$C22 -> 0 | G22: =Projektbudget!G29*$C22 -> 0 | H22: =Projektbudget!H29*$C22 -> 0 | I22: =Projektbudget!I29*$C22 -> 0 | J22: =Projektbudget!J29*$C22 -> 0 | K22: =Projektbudget!K29*$C22 -> 0 | L22: =Projektbudget!L29*$C22 -> 0 | M22: =Projektbudget!M29*$C22 -> 0 | N22: 0 | Q22: 0 | S22: 0 | T22: 0 | U22: 0 | V22: 0 | W22: 0 | X22: 0 | Y22: 0 | Z22: 0 | AA22: 0 | AB22: 0 | AC22: 0
B23: =Projektbudget!A30 -> 0 | C23: ='År 4'!C23 -> 1700 | D23: =Projektbudget!D30*$C23 -> 0 | E23: =Projektbudget!E30*$C23 -> 0 | F23: =Projektbudget!F30*$C23 -> 0 | G23: =Projektbudget!G30*$C23 -> 0 | H23: =Projektbudget!H30*$C23 -> 0 | I23: =Projektbudget!I30*$C23 -> 0 | J23: =Projektbudget!J30*$C23 -> 0 | K23: =Projektbudget!K30*$C23 -> 0 | L23: =Projektbudget!L30*$C23 -> 0 | M23: =Projektbudget!M30*$C23 -> 0 | N23: 0 | Q23: 0 | S23: 0 | T23: 0 | U23: 0 | V23: 0 | W23: 0 | X23: 0 | Y23: 0 | Z23: 0 | AA23: 0 | AB23: 0 | AC23: 0
B24: =Projektbudget!A31 -> 0 | C24: ='År 4'!C24 -> 1700 | D24: =Projektbudget!D31*$C24 -> 0 | E24: =Projektbudget!E31*$C24 -> 0 | F24: =Projektbudget!F31*$C24 -> 0 | G24: =Projektbudget!G31*$C24 -> 0 | H24: =Projektbudget!H31*$C24 -> 0 | I24: =Projektbudget!I31*$C24 -> 0 | J24: =Projektbudget!J31*$C24 -> 0 | K24: =Projektbudget!K31*$C24 -> 0 | L24: =Projektbudget!L31*$C24 -> 0 | M24: =Projektbudget!M31*$C24 -> 0 | N24: 0 | Q24: 0 | S24: 0 | T24: 0 | U24: 0 | V24: 0 | W24: 0 | X24: 0 | Y24: 0 | Z24: 0 | AA24: 0 | AB24: 0 | AC24: 0
B25: =Projektbudget!A32 -> 0 | C25: ='År 4'!C25 -> 1700 | D25: =Projektbudget!D32*$C25 -> 0 | E25: =Projektbudget!E32*$C25 -> 0 | F25: =Projektbudget!F32*$C25 -> 0 | G25: =Projektbudget!G32*$C25 -> 0 | H25: =Projektbudget!H32*$C25 -> 0 | I25: =Projektbudget!I32*$C25 -> 0 | J25: =Projektbudget!J32*$C25 -> 0 | K25: =Projektbudget!K32*$C25 -> 0 | L25: =Projektbudget!L32*$C25 -> 0 | M25: =Projektbudget!M32*$C25 -> 0 | N25: 0 | Q25: 0 | S25: 0 | T25: 0 | U25: 0 | V25: 0 | W25: 0 | X25: 0 | Y25: 0 | Z25: 0 | AA25: 0 | AB25: 0 | AC25: 0
B26: =Projektbudget!A33 -> 0 | C26: ='År 4'!C26 -> 1700 | D26: =Projektbudget!D33*$C26 -> 0 | E26: =Projektbudget!E33*$C26 -> 0 | F26: =Projektbudget!F33*$C26 -> 0 | G26: =Projektbudget!G33*$C26 -> 0 | H26: =Projektbudget!H33*$C26 -> 0 | I26: =Projektbudget!I33*$C26 -> 0 | J26: =Projektbudget!J33*$C26 -> 0 | K26: =Projektbudget!K33*$C26 -> 0 | L26: =Projektbudget!L33*$C26 -> 0 | M26: =Projektbudget!M33*$C26 -> 0 | N26: 0 | Q26: 0 | S26: 0 | T26: 0 | U26: 0 | V26: 0 | W26: 0 | X26: 0 | Y26: 0 | Z26: 0 | AA26: 0 | AB26: 0 | AC26: 0
B27: =Projektbudget!A34 -> 0 | C27: ='År 4'!C27 -> 1700 | D27: =Projektbudget!D34*$C27 -> 0 | E27: =Projektbudget!E34*$C27 -> 0 | F27: =Projektbudget!F34*$C27 -> 0 | G27: =Projektbudget!G34*$C27 -> 0 | H27: =Projektbudget!H34*$C27 -> 0 | I27: =Projektbudget!I34*$C27 -> 0 | J27: =Projektbudget!J34*$C27 -> 0 | K27: =Projektbudget!K34*$C27 -> 0 | L27: =Projektbudget!L34*$C27 -> 0 | M27: =Projektbudget!M34*$C27 -> 0 | N27: 0 | Q27: 0 | S27: 0 | T27: 0 | U27: 0 | V27: 0 | W27: 0 | X27: 0 | Y27: 0 | Z27: 0 | AA27: 0 | AB27: 0 | AC27: 0
B28: =Projektbudget!A35 -> 0 | C28: ='År 4'!C28 -> 1700 | D28: =Projektbudget!D35*$C28 -> 0 | E28: =Projektbudget!E35*$C28 -> 0 | F28: =Projektbudget!F35*$C28 -> 0 | G28: =Projektbudget!G35*$C28 -> 0 | H28: =Projektbudget!H35*$C28 -> 0 | I28: =Projektbudget!I35*$C28 -> 0 | J28: =Projektbudget!J35*$C28 -> 0 | K28: =Projektbudget!K35*$C28 -> 0 | L28: =Projektbudget!L35*$C28 -> 0 | M28: =Projektbudget!M35*$C28 -> 0 | N28: 0 | Q28: 0 | S28: 0 | T28: 0 | U28: 0 | V28: 0 | W28: 0 | X28: 0 | Y28: 0 | Z28: 0 | AA28: 0 | AB28: 0 | AC28: 0
B29: =Projektbudget!A36 -> 0 | C29: ='År 4'!C29 -> 1700 | D29: =Projektbudget!D36*$C29 -> 0 | E29: =Projektbudget!E36*$C29 -> 0 | F29: =Projektbudget!F36*$C29 -> 0 | G29: =Projektbudget!G36*$C29 -> 0 | H29: =Projektbudget!H36*$C29 -> 0 | I29: =Projektbudget!I36*$C29 -> 0 | J29: =Projektbudget!J36*$C29 -> 0 | K29: =Projektbudget!K36*$C29 -> 0 | L29: =Projektbudget!L36*$C29 -> 0 | M29: =Projektbudget!M36*$C29 -> 0 | N29: 0 | Q29: 0 | S29: 0 | T29: 0 | U29: 0 | V29: 0 | W29: 0 | X29: 0 | Y29: 0 | Z29: 0 | AA29: 0 | AB29: 0 | AC29: 0
B30: =Projektbudget!A37 -> 0 | C30: ='År 4'!C30 -> 1700 | D30: =Projektbudget!D37*$C30 -> 0 | E30: =Projektbudget!E37*$C30 -> 0 | F30: =Projektbudget!F37*$C30 -> 0 | G30: =Projektbudget!G37*$C30 -> 0 | H30: =Projektbudget!H37*$C30 -> 0 | I30: =Projektbudget!I37*$C30 -> 0 | J30: =Projektbudget!J37*$C30 -> 0 | K30: =Projektbudget!K37*$C30 -> 0 | L30: =Projektbudget!L37*$C30 -> 0 | M30: =Projektbudget!M37*$C30 -> 0 | N30: 0 | Q30: 0 | S30: 0 | T30: 0 | U30: 0 | V30: 0 | W30: 0 | X30: 0 | Y30: 0 | Z30: 0 | AA30: 0 | AB30: 0 | AC30: 0
B31: =Projektbudget!A38 -> 0 | C31: ='År 4'!C31 -> 1700 | D31: =Projektbudget!D38*$C31 -> 0 | E31: =Projektbudget!E38*$C31 -> 0 | F31: =Projektbudget!F38*$C31 -> 0 | G31: =Projektbudget!G38*$C31 -> 0 | H31: =Projektbudget!H38*$C31 -> 0 | I31: =Projektbudget!I38*$C31 -> 0 | J31: =Projektbudget!J38*$C31 -> 0 | K31: =Projektbudget!K38*$C31 -> 0 | L31: =Projektbudget!L38*$C31 -> 0 | M31: =Projektbudget!M38*$C31 -> 0 | N31: 0 | Q31: 0 | S31: 0 | T31: 0 | U31: 0 | V31: 0 | W31: 0 | X31: 0 | Y31: 0 | Z31: 0 | AA31: 0 | AB31: 0 | AC31: 0
B32: =Projektbudget!A39 -> 0 | C32: ='År 4'!C32 -> 1700 | D32: =Projektbudget!D39*$C32 -> 0 | E32: =Projektbudget!E39*$C32 -> 0 | F32: =Projektbudget!F39*$C32 -> 0 | G32: =Projektbudget!G39*$C32 -> 0 | H32: =Projektbudget!H39*$C32 -> 0 | I32: =Projektbudget!I39*$C32 -> 0 | J32: =Projektbudget!J39*$C32 -> 0 | K32: =Projektbudget!K39*$C32 -> 0 | L32: =Projektbudget!L39*$C32 -> 0 | M32: =Projektbudget!M39*$C32 -> 0 | N32: 0 | Q32: 0 | S32: 0 | T32: 0 | U32: 0 | V32: 0 | W32: 0 | X32: 0 | Y32: 0 | Z32: 0 | AA32: 0 | AB32: 0 | AC32: 0
B33: =Projektbudget!A40 -> 0 | C33: ='År 4'!C33 -> 1700 | D33: =Projektbudget!D40*$C33 -> 0 | E33: =Projektbudget!E40*$C33 -> 0 | F33: =Projektbudget!F40*$C33 -> 0 | G33: =Projektbudget!G40*$C33 -> 0 | H33: =Projektbudget!H40*$C33 -> 0 | I33: =Projektbudget!I40*$C33 -> 0 | J33: =Projektbudget!J40*$C33 -> 0 | K33: =Projektbudget!K40*$C33 -> 0 | L33: =Projektbudget!L40*$C33 -> 0 | M33: =Projektbudget!M40*$C33 -> 0 | N33: 0 | Q33: 0 | S33: 0 | T33: 0 | U33: 0 | V33: 0 | W33: 0 | X33: 0 | Y33: 0 | Z33: 0 | AA33: 0 | AB33: 0 | AC33: 0
B34: =Projektbudget!A41 -> 0 | C34: ='År 4'!C34 -> 1700 | D34: =Projektbudget!D41*$C34 -> 0 | E34: =Projektbudget!E41*$C34 -> 0 | F34: =Projektbudget!F41*$C34 -> 0 | G34: =Projektbudget!G41*$C34 -> 0 | H34: =Projektbudget!H41*$C34 -> 0 | I34: =Projektbudget!I41*$C34 -> 0 | J34: =Projektbudget!J41*$C34 -> 0 | K34: =Projektbudget!K41*$C34 -> 0 | L34: =Projektbudget!L41*$C34 -> 0 | M34: =Projektbudget!M41*$C34 -> 0 | N34: 0 | Q34: 0 | S34: 0 | T34: 0 | U34: 0 | V34: 0 | W34: 0 | X34: 0 | Y34: 0 | Z34: 0 | AA34: 0 | AB34: 0 | AC34: 0
B35: =Projektbudget!A42 -> 0 | C35: ='År 4'!C35 -> 1700 | D35: =Projektbudget!D42*$C35 -> 0 | E35: =Projektbudget!E42*$C35 -> 0 | F35: =Projektbudget!F42*$C35 -> 0 | G35: =Projektbudget!G42*$C35 -> 0 | H35: =Projektbudget!H42*$C35 -> 0 | I35: =Projektbudget!I42*$C35 -> 0 | J35: =Projektbudget!J42*$C35 -> 0 | K35: =Projektbudget!K42*$C35 -> 0 | L35: =Projektbudget!L42*$C35 -> 0 | M35: =Projektbudget!M42*$C35 -> 0 | N35: 0 | Q35: 0 | S35: 0 | T35: 0 | U35: 0 | V35: 0 | W35: 0 | X35: 0 | Y35: 0 | Z35: 0 | AA35: 0 | AB35: 0 | AC35: 0
B36: =Projektbudget!A43 -> 0 | C36: ='År 4'!C36 -> 1700 | D36: =Projektbudget!D43*$C36 -> 0 | E36: =Projektbudget!E43*$C36 -> 0 | F36: =Projektbudget!F43*$C36 -> 0 | G36: =Projektbudget!G43*$C36 -> 0 | H36: =Projektbudget!H43*$C36 -> 0 | I36: =Projektbudget!I43*$C36 -> 0 | J36: =Projektbudget!J43*$C36 -> 0 | K36: =Projektbudget!K43*$C36 -> 0 | L36: =Projektbudget!L43*$C36 -> 0 | M36: =Projektbudget!M43*$C36 -> 0 | N36: 0 | Q36: 0 | S36: 0 | T36: 0 | U36: 0 | V36: 0 | W36: 0 | X36: 0 | Y36: 0 | Z36: 0 | AA36: 0 | AB36: 0 | AC36: 0
B37: =Projektbudget!A44 -> 0 | C37: ='År 4'!C37 -> 1700 | D37: =Projektbudget!D44*$C37 -> 0 | E37: =Projektbudget!E44*$C37 -> 0 | F37: =Projektbudget!F44*$C37 -> 0 | G37: =Projektbudget!G44*$C37 -> 0 | H37: =Projektbudget!H44*$C37 -> 0 | I37: =Projektbudget!I44*$C37 -> 0 | J37: =Projektbudget!J44*$C37 -> 0 | K37: =Projektbudget!K44*$C37 -> 0 | L37: =Projektbudget!L44*$C37 -> 0 | M37: =Projektbudget!M44*$C37 -> 0 | N37: 0 | Q37: 0 | S37: 0 | T37: 0 | U37: 0 | V37: 0 | W37: 0 | X37: 0 | Y37: 0 | Z37: 0 | AA37: 0 | AB37: 0 | AC37: 0
B38: =Projektbudget!A45 -> 0 | C38: ='År 4'!C38 -> 1700 | D38: =Projektbudget!D45*$C38 -> 0 | E38: =Projektbudget!E45*$C38 -> 0 | F38: =Projektbudget!F45*$C38 -> 0 | G38: =Projektbudget!G45*$C38 -> 0 | H38: =Projektbudget!H45*$C38 -> 0 | I38: =Projektbudget!I45*$C38 -> 0 | J38: =Projektbudget!J45*$C38 -> 0 | K38: =Projektbudget!K45*$C38 -> 0 | L38: =Projektbudget!L45*$C38 -> 0 | M38: =Projektbudget!M45*$C38 -> 0 | N38: 0 | Q38: 0 | S38: 0 | T38: 0 | U38: 0 | V38: 0 | W38: 0 | X38: 0 | Y38: 0 | Z38: 0 | AA38: 0 | AB38: 0 | AC38: 0
B39: =Projektbudget!A46 -> 0 | C39: ='År 4'!C39 -> 1700 | D39: =Projektbudget!D46*$C39 -> 0 | E39: =Projektbudget!E46*$C39 -> 0 | F39: =Projektbudget!F46*$C39 -> 0 | G39: =Projektbudget!G46*$C39 -> 0 | H39: =Projektbudget!H46*$C39 -> 0 | I39: =Projektbudget!I46*$C39 -> 0 | J39: =Projektbudget!J46*$C39 -> 0 | K39: =Projektbudget!K46*$C39 -> 0 | L39: =Projektbudget!L46*$C39 -> 0 | M39: =Projektbudget!M46*$C39 -> 0 | N39: 0 | Q39: 0 | S39: 0 | T39: 0 | U39: 0 | V39: 0 | W39: 0 | X39: 0 | Y39: 0 | Z39: 0 | AA39: 0 | AB39: 0 | AC39: 0
B40: Totalt | C40: =SUM(D40:M40) -> 0 | D40: =SUM(D5:D39) -> 0 | E40: 0 | F40: 0 | G40: 0 | H40: 0 | I40: 0 | J40: 0 | K40: 0 | L40: 0 | M40: 0 | N40: 0 | Q40: Totalt | R40: =SUM(S40:AB40) -> 0 | S40: =SUM(S5:S39) -> 0 | T40: 0 | U40: 0 | V40: 0 | W40: 0 | X40: 0 | Y40: 0 | Z40: 0 | AA40: 0 | AB40: 0 | AC40: 0
D42: Utfall/Prognos timmar | S42: Omfattning %
D43: =D4 -> 2021 | E43: =E4 -> 2022 | F43: =F4 -> 2023 | G43: =G4 -> 2024 | H43: =H4 -> 2025 | I43: =I4 -> 2026 | J43: 2027 | K43: 2028 | L43: 2029 | M43: 2030 | N43: Kr/tim | S43: =D43 -> 2021 | T43: =E43 -> 2022 | U43: =F43 -> 2023 | V43: =G43 -> 2024 | W43: =H43 -> 2025 | X43: =I43 -> 2026 | Y43: 2027 | Z43: 2028 | AA43: 2029 | AB43: 2030 | AC43: Totalt
B44: =B5 -> Professor | D44: ='År 4'!D44 -> 0 | E44: ='År 4'!E44 -> 0 | F44: ='År 4'!F44 -> 0 | G44: ='År 4'!G44 -> 0 | N44: =IFERROR(Projektbudget!B12*12*LönePåläggUppräkningÅr5/C5,0) -> 729.3225882 | Q44: =B44 -> Professor | S44: =IFERROR(D44/$C5,0) -> 0 | T44: 0 | U44: 0 | V44: 0 | W44: 0 | X44: 0 | Y44: 0 | Z44: 0 | AA44: 0 | AB44: 0 | AC44: =SUM(S44:AB44) -> 0
B45: Docent | D45: ='År 4'!D45 -> 0 | E45: ='År 4'!E45 -> 0 | F45: ='År 4'!F45 -> 0 | G45: ='År 4'!G45 -> 0 | N45: =IFERROR(Projektbudget!B13*12*LönePåläggUppräkningÅr5/C6,0) -> 557.3330824 | Q45: =B45 -> Docent | S45: 0 | T45: 0 | U45: 0 | V45: 0 | W45: 0 | X45: 0 | Y45: 0 | Z45: 0 | AA45: 0 | AB45: 0 | AC45: 0
B46: Lektor | D46: ='År 4'!D46 -> 0 | E46: ='År 4'!E46 -> 0 | F46: ='År 4'!F46 -> 0 | G46: ='År 4'!G46 -> 0 | N46: =IFERROR(Projektbudget!B14*12*LönePåläggUppräkningÅr5/C7,0) -> 507.2601882 | Q46: Lektor | S46: 0 | T46: 0 | U46: 0 | V46: 0 | W46: 0 | X46: 0 | Y46: 0 | Z46: 0 | AA46: 0 | AB46: 0 | AC46: 0
B47: Adjunkt | D47: ='År 4'!D47 -> 0 | E47: ='År 4'!E47 -> 0 | F47: ='År 4'!F47 -> 0 | G47: ='År 4'!G47 -> 0 | N47: =IFERROR(Projektbudget!B15*12*LönePåläggUppräkningÅr5/C8,0) -> 434.3279294 | Q47: Adjunkt | S47: 0 | T47: 0 | U47: 0 | V47: 0 | W47: 0 | X47: 0 | Y47: 0 | Z47: 0 | AA47: 0 | AB47: 0 | AC47: 0
B48: Post dok | D48: ='År 4'!D48 -> 0 | E48: ='År 4'!E48 -> 0 | F48: ='År 4'!F48 -> 0 | G48: ='År 4'!G48 -> 0 | N48: =IFERROR(Projektbudget!B16*12*LönePåläggUppräkningÅr5/C9,0) -> 379.9008706 | Q48: Post dok | S48: 0 | T48: 0 | U48: 0 | V48: 0 | W48: 0 | X48: 0 | Y48: 0 | Z48: 0 | AA48: 0 | AB48: 0 | AC48: 0
B49: Doktorand (Snittlön) | D49: ='År 4'!D49 -> 0 | E49: ='År 4'!E49 -> 0 | F49: ='År 4'!F49 -> 0 | G49: ='År 4'!G49 -> 0 | N49: =IFERROR(Projektbudget!B17*12*LönePåläggUppräkningÅr5/C10,0) -> 310.5063706 | Q49: Doktorand (Snittlön) | S49: 0 | T49: 0 | U49: 0 | V49: 0 | W49: 0 | X49: 0 | Y49: 0 | Z49: 0 | AA49: 0 | AB49: 0 | AC49: 0
B50: Administratör | D50: ='År 4'!D50 -> 0 | E50: ='År 4'!E50 -> 0 | F50: ='År 4'!F50 -> 0 | G50: ='År 4'!G50 -> 0 | N50: =IFERROR(Projektbudget!B18*12*LönePåläggUppräkningÅr5/C11,0) -> 390.7862824 | Q50: Administratör | S50: 0 | T50: 0 | U50: 0 | V50: 0 | W50: 0 | X50: 0 | Y50: 0 | Z50: 0 | AA50: 0 | AB50: 0 | AC50: 0
B51: Labbtekniker | D51: ='År 4'!D51 -> 0 | E51: ='År 4'!E51 -> 0 | F51: ='År 4'!F51 -> 0 | G51: ='År 4'!G51 -> 0 | N51: =IFERROR(Projektbudget!B19*12*LönePåläggUppräkningÅr5/C12,0) -> 359.2185882 | Q51: Labbtekniker | S51: 0 | T51: 0 | U51: 0 | V51: 0 | W51: 0 | X51: 0 | Y51: 0 | Z51: 0 | AA51: 0 | AB51: 0 | AC51: 0
B52: Forskningsassistent | D52: ='År 4'!D52 -> 0 | E52: ='År 4'!E52 -> 0 | F52: ='År 4'!F52 -> 0 | G52: ='År 4'!G52 -> 0 | N52: =IFERROR(Projektbudget!B20*12*LönePåläggUppräkningÅr5/C13,0) -> 271.0467529 | Q52: Forskningsassistent | S52: 0 | T52: 0 | U52: 0 | V52: 0 | W52: 0 | X52: 0 | Y52: 0 | Z52: 0 | AA52: 0 | AB52: 0 | AC52: 0
B53: Forskare/biträdande forskare | D53: ='År 4'!D53 -> 0 | E53: ='År 4'!E53 -> 0 | F53: ='År 4'!F53 -> 0 | G53: ='År 4'!G53 -> 0 | N53: =IFERROR(Projektbudget!B21*12*LönePåläggUppräkningÅr5/C14,0) -> 404.9373176 | Q53: Forskare/biträdande forskare | S53: 0 | T53: 0 | U53: 0 | V53: 0 | W53: 0 | X53: 0 | Y53: 0 | Z53: 0 | AA53: 0 | AB53: 0 | AC53: 0
B54: 0 | D54: ='År 4'!D54 -> 0 | E54: ='År 4'!E54 -> 0 | F54: ='År 4'!F54 -> 0 | G54: ='År 4'!G54 -> 0 | N54: =IFERROR(Projektbudget!B22*12*LönePåläggUppräkningÅr5/C15,0) -> 0 | Q54: 0 | S54: 0 | T54: 0 | U54: 0 | V54: 0 | W54: 0 | X54: 0 | Y54: 0 | Z54: 0 | AA54: 0 | AB54: 0 | AC54: 0
B55: 0 | D55: ='År 4'!D55 -> 0 | E55: ='År 4'!E55 -> 0 | F55: ='År 4'!F55 -> 0 | G55: ='År 4'!G55 -> 0 | N55: =IFERROR(Projektbudget!B23*12*LönePåläggUppräkningÅr5/C16,0) -> 0 | Q55: 0 | S55: 0 | T55: 0 | U55: 0 | V55: 0 | W55: 0 | X55: 0 | Y55: 0 | Z55: 0 | AA55: 0 | AB55: 0 | AC55: 0
B56: 0 | D56: ='År 4'!D56 -> 0 | E56: ='År 4'!E56 -> 0 | F56: ='År 4'!F56 -> 0 | G56: ='År 4'!G56 -> 0 | N56: =IFERROR(Projektbudget!B24*12*LönePåläggUppräkningÅr5/C17,0) -> 0 | Q56: 0 | S56: 0 | T56: 0 | U56: 0 | V56: 0 | W56: 0 | X56: 0 | Y56: 0 | Z56: 0 | AA56: 0 | AB56: 0 | AC56: 0
B57: 0 | D57: ='År 4'!D57 -> 0 | E57: ='År 4'!E57 -> 0 | F57: ='År 4'!F57 -> 0 | G57: ='År 4'!G57 -> 0 | N57: =IFERROR(Projektbudget!B25*12*LönePåläggUppräkningÅr5/C18,0) -> 0 | Q57: 0 | S57: 0 | T57: 0 | U57: 0 | V57: 0 | W57: 0 | X57: 0 | Y57: 0 | Z57: 0 | AA57: 0 | AB57: 0 | AC57: 0
B58: 0 | D58: ='År 4'!D58 -> 0 | E58: ='År 4'!E58 -> 0 | F58: ='År 4'!F58 -> 0 | G58: ='År 4'!G58 -> 0 | N58: =IFERROR(Projektbudget!B26*12*LönePåläggUppräkningÅr5/C19,0) -> 0 | Q58: 0 | S58: 0 | T58: 0 | U58: 0 | V58: 0 | W58: 0 | X58: 0 | Y58: 0 | Z58: 0 | AA58: 0 | AB58: 0 | AC58: 0
B59: 0 | D59: ='År 4'!D59 -> 0 | E59: ='År 4'!E59 -> 0 | F59: ='År 4'!F59 -> 0 | G59: ='År 4'!G59 -> 0 | N59: =IFERROR(Projektbudget!B27*12*LönePåläggUppräkningÅr5/C20,0) -> 0 | Q59: 0 | S59: 0 | T59: 0 | U59: 0 | V59: 0 | W59: 0 | X59: 0 | Y59: 0 | Z59: 0 | AA59: 0 | AB59: 0 | AC59: 0
B60: 0 | D60: ='År 4'!D60 -> 0 | E60: ='År 4'!E60 -> 0 | F60: ='År 4'!F60 -> 0 | G60: ='År 4'!G60 -> 0 | N60: =IFERROR(Projektbudget!B28*12*LönePåläggUppräkningÅr5/C21,0) -> 0 | Q60: 0 | S60: =IFERROR(D60/$C21,0) -> 0 | T60: 0 | U60: 0 | V60: 0 | W60: 0 | X60: 0 | Y60: 0 | Z60: 0 | AA60: 0 | AB60: 0 | AC60: 0
B61: 0 | D61: ='År 4'!D61 -> 0 | E61: ='År 4'!E61 -> 0 | F61: ='År 4'!F61 -> 0 | G61: ='År 4'!G61 -> 0 | N61: =IFERROR(Projektbudget!B29*12*LönePåläggUppräkningÅr5/C22,0) -> 0 | Q61: 0 | S61: 0 | T61: 0 | U61: 0 | V61: 0 | W61: 0 | X61: 0 | Y61: 0 | Z61: 0 | AA61: 0 | AB61: 0 | AC61: 0
B62: 0 | D62: ='År 4'!D62 -> 0 | E62: ='År 4'!E62 -> 0 | F62: ='År 4'!F62 -> 0 | G62: ='År 4'!G62 -> 0 | N62: =IFERROR(Projektbudget!B30*12*LönePåläggUppräkningÅr5/C23,0) -> 0 | Q62: 0 | S62: 0 | T62: 0 | U62: 0 | V62: 0 | W62: 0 | X62: 0 | Y62: 0 | Z62: 0 | AA62: 0 | AB62: 0 | AC62: 0
B63: 0 | D63: ='År 4'!D63 -> 0 | E63: ='År 4'!E63 -> 0 | F63: ='År 4'!F63 -> 0 | G63: ='År 4'!G63 -> 0 | N63: =IFERROR(Projektbudget!B31*12*LönePåläggUppräkningÅr5/C24,0) -> 0 | Q63: 0 | S63: 0 | T63: 0 | U63: 0 | V63: 0 | W63: 0 | X63: 0 | Y63: 0 | Z63: 0 | AA63: 0 | AB63: 0 | AC63: 0
B64: 0 | D64: ='År 4'!D64 -> 0 | E64: ='År 4'!E64 -> 0 | F64: ='År 4'!F64 -> 0 | G64: ='År 4'!G64 -> 0 | N64: =IFERROR(Projektbudget!B32*12*LönePåläggUppräkningÅr5/C25,0) -> 0 | Q64: 0 | S64: 0 | T64: 0 | U64: 0 | V64: 0 | W64: 0 | X64: 0 | Y64: 0 | Z64: 0 | AA64: 0 | AB64: 0 | AC64: 0
B65: 0 | D65: ='År 4'!D65 -> 0 | E65: ='År 4'!E65 -> 0 | F65: ='År 4'!F65 -> 0 | G65: ='År 4'!G65 -> 0 | N65: =IFERROR(Projektbudget!B33*12*LönePåläggUppräkningÅr5/C26,0) -> 0 | Q65: 0 | S65: 0 | T65: 0 | U65: 0 | V65: 0 | W65: 0 | X65: 0 | Y65: 0 | Z65: 0 | AA65: 0 | AB65: 0 | AC65: 0
B66: 0 | D66: ='År 4'!D66 -> 0 | E66: ='År 4'!E66 -> 0 | F66: ='År 4'!F66 -> 0 | G66: ='År 4'!G66 -> 0 | N66: =IFERROR(Projektbudget!B34*12*LönePåläggUppräkningÅr5/C27,0) -> 0 | Q66: 0 | S66: 0 | T66: 0 | U66: 0 | V66: 0 | W66: 0 | X66: 0 | Y66: 0 | Z66: 0 | AA66: 0 | AB66: 0 | AC66: 0
B67: 0 | D67: ='År 4'!D67 -> 0 | E67: ='År 4'!E67 -> 0 | F67: ='År 4'!F67 -> 0 | G67: ='År 4'!G67 -> 0 | N67: =IFERROR(Projektbudget!B35*12*LönePåläggUppräkningÅr5/C28,0) -> 0 | Q67: 0 | S67: 0 | T67: 0 | U67: 0 | V67: 0 | W67: 0 | X67: 0 | Y67: 0 | Z67: 0 | AA67: 0 | AB67: 0 | AC67: 0
B68: 0 | D68: ='År 4'!D68 -> 0 | E68: ='År 4'!E68 -> 0 | F68: ='År 4'!F68 -> 0 | G68: ='År 4'!G68 -> 0 | N68: =IFERROR(Projektbudget!B36*12*LönePåläggUppräkningÅr5/C29,0) -> 0 | Q68: 0 | S68: 0 | T68: 0 | U68: 0 | V68: 0 | W68: 0 | X68: 0 | Y68: 0 | Z68: 0 | AA68: 0 | AB68: 0 | AC68: 0
B69: 0 | D69: ='År 4'!D69 -> 0 | E69: ='År 4'!E69 -> 0 | F69: ='År 4'!F69 -> 0 | G69: ='År 4'!G69 -> 0 | N69: =IFERROR(Projektbudget!B37*12*LönePåläggUppräkningÅr5/C30,0) -> 0 | Q69: 0 | S69: 0 | T69: 0 | U69: 0 | V69: 0 | W69: 0 | X69: 0 | Y69: 0 | Z69: 0 | AA69: 0 | AB69: 0 | AC69: 0
B70: 0 | D70: ='År 4'!D70 -> 0 | E70: ='År 4'!E70 -> 0 | F70: ='År 4'!F70 -> 0 | G70: ='År 4'!G70 -> 0 | N70: =IFERROR(Projektbudget!B38*12*LönePåläggUppräkningÅr5/C31,0) -> 0 | Q70: 0 | S70: 0 | T70: 0 | U70: 0 | V70: 0 | W70: 0 | X70: 0 | Y70: 0 | Z70: 0 | AA70: 0 | AB70: 0 | AC70: 0
B71: 0 | D71: ='År 4'!D71 -> 0 | E71: ='År 4'!E71 -> 0 | F71: ='År 4'!F71 -> 0 | G71: ='År 4'!G71 -> 0 | N71: =IFERROR(Projektbudget!B39*12*LönePåläggUppräkningÅr5/C32,0) -> 0 | Q71: 0 | S71: 0 | T71: 0 | U71: 0 | V71: 0 | W71: 0 | X71: 0 | Y71: 0 | Z71: 0 | AA71: 0 | AB71: 0 | AC71: 0
B72: 0 | D72: ='År 4'!D72 -> 0 | E72: ='År 4'!E72 -> 0 | F72: ='År 4'!F72 -> 0 | G72: ='År 4'!G72 -> 0 | N72: =IFERROR(Projektbudget!B40*12*LönePåläggUppräkningÅr5/C33,0) -> 0 | Q72: 0 | S72: 0 | T72: 0 | U72: 0 | V72: 0 | W72: 0 | X72: 0 | Y72: 0 | Z72: 0 | AA72: 0 | AB72: 0 | AC72: 0
B73: 0 | D73: ='År 4'!D73 -> 0 | E73: ='År 4'!E73 -> 0 | F73: ='År 4'!F73 -> 0 | G73: ='År 4'!G73 -> 0 | N73: =IFERROR(Projektbudget!B41*12*LönePåläggUppräkningÅr5/C34,0) -> 0 | Q73: 0 | S73: 0 | T73: 0 | U73: 0 | V73: 0 | W73: 0 | X73: 0 | Y73: 0 | Z73: 0 | AA73: 0 | AB73: 0 | AC73: 0
B74: 0 | D74: ='År 4'!D74 -> 0 | E74: ='År 4'!E74 -> 0 | F74: ='År 4'!F74 -> 0 | G74: ='År 4'!G74 -> 0 | N74: =IFERROR(Projektbudget!B42*12*LönePåläggUppräkningÅr5/C35,0) -> 0 | Q74: 0 | S74: 0 | T74: 0 | U74: 0 | V74: 0 | W74: 0 | X74: 0 | Y74: 0 | Z74: 0 | AA74: 0 | AB74: 0 | AC74: 0
B75: 0 | D75: ='År 4'!D75 -> 0 | E75: ='År 4'!E75 -> 0 | F75: ='År 4'!F75 -> 0 | G75: ='År 4'!G75 -> 0 | N75: =IFERROR(Projektbudget!B43*12*LönePåläggUppräkningÅr5/C36,0) -> 0 | Q75: 0 | S75: 0 | T75: 0 | U75: 0 | V75: 0 | W75: 0 | X75: 0 | Y75: 0 | Z75: 0 | AA75: 0 | AB75: 0 | AC75: 0
B76: 0 | D76: ='År 4'!D76 -> 0 | E76: ='År 4'!E76 -> 0 | F76: ='År 4'!F76 -> 0 | G76: ='År 4'!G76 -> 0 | N76: =IFERROR(Projektbudget!B44*12*LönePåläggUppräkningÅr5/C37,0) -> 0 | Q76: 0 | S76: =IFERROR(D76/$C37,0) -> 0 | T76: 0 | U76: 0 | V76: 0 | W76: 0 | X76: 0 | Y76: 0 | Z76: 0 | AA76: 0 | AB76: 0 | AC76: 0
B77: 0 | D77: ='År 4'!D77 -> 0 | E77: ='År 4'!E77 -> 0 | F77: ='År 4'!F77 -> 0 | G77: ='År 4'!G77 -> 0 | N77: =IFERROR(Projektbudget!B45*12*LönePåläggUppräkningÅr5/C38,0) -> 0 | Q77: 0 | S77: 0 | T77: 0 | U77: 0 | V77: 0 | W77: 0 | X77: 0 | Y77: 0 | Z77: 0 | AA77: 0 | AB77: 0 | AC77: 0
B78: 0 | D78: ='År 4'!D78 -> 0 | E78: ='År 4'!E78 -> 0 | F78: ='År 4'!F78 -> 0 | G78: ='År 4'!G78 -> 0 | N78: =IFERROR(Projektbudget!B46*12*LönePåläggUppräkningÅr5/C39,0) -> 0 | Q78: 0 | S78: 0 | T78: 0 | U78: 0 | V78: 0 | W78: 0 | X78: 0 | Y78: 0 | Z78: 0 | AA78: 0 | AB78: 0 | AC78: 0
B79: =B40 -> Totalt | C79: =SUM(D79:M79) -> 0 | D79: =SUM(D44:D78) -> 0 | E79: =SUM(E44:E78) -> 0 | F79: =SUM(F44:F78) -> 0 | G79: =SUM(G44:G78) -> 0 | H79: =SUM(H44:H78) -> 0 | I79: =SUM(I44:I78) -> 0 | J79: 0 | K79: 0 | L79: 0 | M79: 0 | Q79: Totalt | R79: =SUM(S79:AB79) -> 0 | S79: =SUM(S44:S78) -> 0 | T79: 0 | U79: 0 | V79: 0 | W79: 0 | X79: 0 | Y79: 0 | Z79: 0 | AA79: 0 | AB79: 0 | AC79: 0

Sheet År 6 (hidden)
B1: ="Projekt: "&Projektbudget!$B$4 -> Projekt:
D3: Budget timmar (ev. reviderad) | O3: Godkännande | S3: Manmånader
C4: Åarb | D4: =Projektbudget!D52 -> 2021 | E4: =Projektbudget!E52 -> 2022 | F4: =Projektbudget!F52 -> 2023 | G4: =Projektbudget!G52 -> 2024 | H4: =Projektbudget!H52 -> 2025 | I4: =Projektbudget!I52 -> 2026 | J4: =Projektbudget!J52 -> 2027 | K4: =Projektbudget!K52 -> 2028 | L4: =Projektbudget!L52 -> 2029 | M4: =Projektbudget!M52 -> 2030 | N4: Totalt | O4: prefekt / SR | S4: =D4 -> 2021 | T4: =E4 -> 2022 | U4: =F4 -> 2023 | V4: =G4 -> 2024 | W4: =H4 -> 2025 | X4: =I4 -> 2026 | Y4: 2027 | Z4: 2028 | AA4: 2029 | AB4: 2030 | AC4: Totalt
B5: =Projektbudget!A12 -> Professor | C5: ='År 4'!C5 -> 1700 | D5: =Projektbudget!D12*$C5 -> 0 | E5: =Projektbudget!E12*$C5 -> 0 | F5: =Projektbudget!F12*$C5 -> 0 | G5: =Projektbudget!G12*$C5 -> 0 | H5: =Projektbudget!H12*$C5 -> 0 | I5: =Projektbudget!I12*$C5 -> 0 | J5: =Projektbudget!J12*$C5 -> 0 | K5: =Projektbudget!K12*$C5 -> 0 | L5: =Projektbudget!L12*$C5 -> 0 | M5: =Projektbudget!M12*$C5 -> 0 | N5: =SUM(D5:M5) -> 0 | Q5: =B5 -> Professor | S5: =IFERROR(D5/($C5/12),0) -> 0 | T5: =IFERROR(E5/($C5/12),0) -> 0 | U5: =IFERROR(F5/($C5/12),0) -> 0 | V5: =IFERROR(G5/($C5/12),0) -> 0 | W5: =IFERROR(H5/($C5/12),0) -> 0 | X5: =IFERROR(I5/($C5/12),0) -> 0 | Y5: 0 | Z5: 0 | AA5: 0 | AB5: 0 | AC5: =SUM(S5:AB5) -> 0
B6: =Projektbudget!A13 -> Docent | C6: ='År 4'!C6 -> 1700 | D6: =Projektbudget!D13*$C6 -> 0 | E6: =Projektbudget!E13*$C6 -> 0 | F6: =Projektbudget!F13*$C6 -> 0 | G6: =Projektbudget!G13*$C6 -> 0 | H6: =Projektbudget!H13*$C6 -> 0 | I6: =Projektbudget!I13*$C6 -> 0 | J6: =Projektbudget!J13*$C6 -> 0 | K6: =Projektbudget!K13*$C6 -> 0 | L6: =Projektbudget!L13*$C6 -> 0 | M6: =Projektbudget!M13*$C6 -> 0 | N6: =SUM(D6:M6) -> 0 | Q6: =B6 -> Docent | S6: =IFERROR(D6/($C6/12),0) -> 0 | T6: 0 | U6: 0 | V6: 0 | W6: 0 | X6: 0 | Y6: 0 | Z6: 0 | AA6: 0 | AB6: 0 | AC6: 0
B7: =Projektbudget!A14 -> Lektor | C7: ='År 4'!C7 -> 1700 | D7: =Projektbudget!D14*$C7 -> 0 | E7: =Projektbudget!E14*$C7 -> 0 | F7: =Projektbudget!F14*$C7 -> 0 | G7: =Projektbudget!G14*$C7 -> 0 | H7: =Projektbudget!H14*$C7 -> 0 | I7: =Projektbudget!I14*$C7 -> 0 | J7: =Projektbudget!J14*$C7 -> 0 | K7: =Projektbudget!K14*$C7 -> 0 | L7: =Projektbudget!L14*$C7 -> 0 | M7: =Projektbudget!M14*$C7 -> 0 | N7: 0 | Q7: Lektor | S7: 0 | T7: 0 | U7: 0 | V7: 0 | W7: 0 | X7: 0 | Y7: 0 | Z7: 0 | AA7: 0 | AB7: 0 | AC7: 0
B8: =Projektbudget!A15 -> Adjunkt | C8: ='År 4'!C8 -> 1700 | D8: =Projektbudget!D15*$C8 -> 0 | E8: =Projektbudget!E15*$C8 -> 0 | F8: =Projektbudget!F15*$C8 -> 0 | G8: =Projektbudget!G15*$C8 -> 0 | H8: =Projektbudget!H15*$C8 -> 0 | I8: =Projektbudget!I15*$C8 -> 0 | J8: =Projektbudget!J15*$C8 -> 0 | K8: =Projektbudget!K15*$C8 -> 0 | L8: =Projektbudget!L15*$C8 -> 0 | M8: =Projektbudget!M15*$C8 -> 0 | N8: 0 | Q8: Adjunkt | S8: 0 | T8: 0 | U8: 0 | V8: 0 | W8: 0 | X8: 0 | Y8: 0 | Z8: 0 | AA8: 0 | AB8: 0 | AC8: 0
B9: =Projektbudget!A16 -> Post dok | C9: ='År 4'!C9 -> 1700 | D9: =Projektbudget!D16*$C9 -> 0 | E9: =Projektbudget!E16*$C9 -> 0 | F9: =Projektbudget!F16*$C9 -> 0 | G9: =Projektbudget!G16*$C9 -> 0 | H9: =Projektbudget!H16*$C9 -> 0 | I9: =Projektbudget!I16*$C9 -> 0 | J9: =Projektbudget!J16*$C9 -> 0 | K9: =Projektbudget!K16*$C9 -> 0 | L9: =Projektbudget!L16*$C9 -> 0 | M9: =Projektbudget!M16*$C9 -> 0 | N9: 0 | Q9: Post dok | S9: 0 | T9: 0 | U9: 0 | V9: 0 | W9: 0 | X9: 0 | Y9: 0 | Z9: 0 | AA9: 0 | AB9: 0 | AC9: 0
B10: =Projektbudget!A17 -> Doktorand (Snittlön) | C10: ='År 4'!C10 -> 1700 | D10: =Projektbudget!D17*$C10 -> 0 | E10: =Projektbudget!E17*$C10 -> 0 | F10: =Projektbudget!F17*$C10 -> 0 | G10: =Projektbudget!G17*$C10 -> 0 | H10: =Projektbudget!H17*$C10 -> 0 | I10: =Projektbudget!I17*$C10 -> 0 | J10: =Projektbudget!J17*$C10 -> 0 | K10: =Projektbudget!K17*$C10 -> 0 | L10: =Projektbudget!L17*$C10 -> 0 | M10: =Projektbudget!M17*$C10 -> 0 | N10: 0 | Q10: Doktorand (Snittlön) | S10: 0 | T10: 0 | U10: 0 | V10: 0 | W10: 0 | X10: 0 | Y10: 0 | Z10: 0 | AA10: 0 | AB10: 0 | AC10: 0
B11: =Projektbudget!A18 -> Administratör | C11: ='År 4'!C11 -> 1700 | D11: =Projektbudget!D18*$C11 -> 0 | E11: =Projektbudget!E18*$C11 -> 0 | F11: =Projektbudget!F18*$C11 -> 0 | G11: =Projektbudget!G18*$C11 -> 0 | H11: =Projektbudget!H18*$C11 -> 0 | I11: =Projektbudget!I18*$C11 -> 0 | J11: =Projektbudget!J18*$C11 -> 0 | K11: =Projektbudget!K18*$C11 -> 0 | L11: =Projektbudget!L18*$C11 -> 0 | M11: =Projektbudget!M18*$C11 -> 0 | N11: 0 | Q11: Administratör | S11: 0 | T11: 0 | U11: 0 | V11: 0 | W11: 0 | X11: 0 | Y11: 0 | Z11: 0 | AA11: 0 | AB11: 0 | AC11: 0
B12: =Projektbudget!A19 -> Labbtekniker | C12: ='År 4'!C12 -> 1700 | D12: =Projektbudget!D19*$C12 -> 0 | E12: =Projektbudget!E19*$C12 -> 0 | F12: =Projektbudget!F19*$C12 -> 0 | G12: =Projektbudget!G19*$C12 -> 0 | H12: =Projektbudget!H19*$C12 -> 0 | I12: =Projektbudget!I19*$C12 -> 0 | J12: =Projektbudget!J19*$C12 -> 0 | K12: =Projektbudget!K19*$C12 -> 0 | L12: =Projektbudget!L19*$C12 -> 0 | M12: =Projektbudget!M19*$C12 -> 0 | N12: 0 | Q12: Labbtekniker | S12: 0 | T12: 0 | U12: 0 | V12: 0 | W12: 0 | X12: 0 | Y12: 0 | Z12: 0 | AA12: 0 | AB12: 0 | AC12: 0
B13: =Projektbudget!A20 -> Forskningsassistent | C13: ='År 4'!C13 -> 1700 | D13: =Projektbudget!D20*$C13 -> 0 | E13: =Projektbudget!E20*$C13 -> 0 | F13: =Projektbudget!F20*$C13 -> 0 | G13: =Projektbudget!G20*$C13 -> 0 | H13: =Projektbudget!H20*$C13 -> 0 | I13: =Projektbudget!I20*$C13 -> 0 | J13: =Projektbudget!J20*$C13 -> 0 | K13: =Projektbudget!K20*$C13 -> 0 | L13: =Projektbudget!L20*$C13 -> 0 | M13: =Projektbudget!M20*$C13 -> 0 | N13: 0 | Q13: Forskningsassistent | S13: 0 | T13: 0 | U13: 0 | V13: 0 | W13: 0 | X13: 0 | Y13: 0 | Z13: 0 | AA13: 0 | AB13: 0 | AC13: 0
B14: =Projektbudget!A21 -> Forskare/biträdande forskare | C14: ='År 4'!C14 -> 1700 | D14: =Projektbudget!D21*$C14 -> 0 | E14: =Projektbudget!E21*$C14 -> 0 | F14: =Projektbudget!F21*$C14 -> 0 | G14: =Projektbudget!G21*$C14 -> 0 | H14: =Projektbudget!H21*$C14 -> 0 | I14: =Projektbudget!I21*$C14 -> 0 | J14: =Projektbudget!J21*$C14 -> 0 | K14: =Projektbudget!K21*$C14 -> 0 | L14: =Projektbudget!L21*$C14 -> 0 | M14: =Projektbudget!M21*$C14 -> 0 | N14: 0 | Q14: Forskare/biträdande forskare | S14: 0 | T14: 0 | U14: 0 | V14: 0 | W14: 0 | X14: 0 | Y14: 0 | Z14: 0 | AA14: 0 | AB14: 0 | AC14: 0
B15: =Projektbudget!A22 -> 0 | C15: ='År 4'!C15 -> 1700 | D15: =Projektbudget!D22*$C15 -> 0 | E15: =Projektbudget!E22*$C15 -> 0 | F15: =Projektbudget!F22*$C15 -> 0 | G15: =Projektbudget!G22*$C15 -> 0 | H15: =Projektbudget!H22*$C15 -> 0 | I15: =Projektbudget!I22*$C15 -> 0 | J15: =Projektbudget!J22*$C15 -> 0 | K15: =Projektbudget!K22*$C15 -> 0 | L15: =Projektbudget!L22*$C15 -> 0 | M15: =Projektbudget!M22*$C15 -> 0 | N15: 0 | Q15: =B15 -> 0 | S15: =IFERROR(D15/($C15/12),0) -> 0 | T15: 0 | U15: 0 | V15: 0 | W15: 0 | X15: 0 | Y15: 0 | Z15: 0 | AA15: 0 | AB15: 0 | AC15: 0
B16: =Projektbudget!A23 -> 0 | C16: ='År 4'!C16 -> 1700 | D16: =Projektbudget!D23*$C16 -> 0 | E16: =Projektbudget!E23*$C16 -> 0 | F16: =Projektbudget!F23*$C16 -> 0 | G16: =Projektbudget!G23*$C16 -> 0 | H16: =Projektbudget!H23*$C16 -> 0 | I16: =Projektbudget!I23*$C16 -> 0 | J16: =Projektbudget!J23*$C16 -> 0 | K16: =Projektbudget!K23*$C16 -> 0 | L16: =Projektbudget!L23*$C16 -> 0 | M16: =Projektbudget!M23*$C16 -> 0 | N16: 0 | Q16: =B16 -> 0 | S16: =IFERROR(D16/($C16/12),0) -> 0 | T16: 0 | U16: 0 | V16: 0 | W16: 0 | X16: 0 | Y16: 0 | Z16: 0 | AA16: 0 | AB16: 0 | AC16: 0
B17: =Projektbudget!A24 -> 0 | C17: ='År 4'!C17 -> 1700 | D17: =Projektbudget!D24*$C17 -> 0 | E17: =Projektbudget!E24*$C17 -> 0 | F17: =Projektbudget!F24*$C17 -> 0 | G17: =Projektbudget!G24*$C17 -> 0 | H17: =Projektbudget!H24*$C17 -> 0 | I17: =Projektbudget!I24*$C17 -> 0 | J17: =Projektbudget!J24*$C17 -> 0 | K17: =Projektbudget!K24*$C17 -> 0 | L17: =Projektbudget!L24*$C17 -> 0 | M17: =Projektbudget!M24*$C17 -> 0 | N17: 0 | Q17: =B17 -> 0 | S17: =IFERROR(D17/($C17/12),0) -> 0 | T17: 0 | U17: 0 | V17: 0 | W17: 0 | X17: 0 | Y17: 0 | Z17: 0 | AA17: 0 | AB17: 0 | AC17: 0
B18: =Projektbudget!A25 -> 0 | C18: ='År 4'!C18 -> 1700 | D18: =Projektbudget!D25*$C18 -> 0 | E18: =Projektbudget!E25*$C18 -> 0 | F18: =Projektbudget!F25*$C18 -> 0 | G18: =Projektbudget!G25*$C18 -> 0 | H18: =Projektbudget!H25*$C18 -> 0 | I18: =Projektbudget!I25*$C18 -> 0 | J18: =Projektbudget!J25*$C18 -> 0 | K18: =Projektbudget!K25*$C18 -> 0 | L18: =Projektbudget!L25*$C18 -> 0 | M18: =Projektbudget!M25*$C18 -> 0 | N18: 0 | Q18: =B18 -> 0 | S18: =IFERROR(D18/($C18/12),0) -> 0 | T18: 0 | U18: 0 | V18: 0 | W18: 0 | X18: 0 | Y18: 0 | Z18: 0 | AA18: 0 | AB18: 0 | AC18: 0
B19: =Projektbudget!A26 -> 0 | C19: ='År 4'!C19 -> 1700 | D19: =Projektbudget!D26*$C19 -> 0 | E19: =Projektbudget!E26*$C19 -> 0 | F19: =Projektbudget!F26*$C19 -> 0 | G19: =Projektbudget!G26*$C19 -> 0 | H19: =Projektbudget!H26*$C19 -> 0 | I19: =Projektbudget!I26*$C19 -> 0 | J19: =Projektbudget!J26*$C19 -> 0 | K19: =Projektbudget!K26*$C19 -> 0 | L19: =Projektbudget!L26*$C19 -> 0 | M19: =Projektbudget!M26*$C19 -> 0 | N19: 0 | Q19: =B19 -> 0 | S19: =IFERROR(D19/($C19/12),0) -> 0 | T19: 0 | U19: 0 | V19: 0 | W19: 0 | X19: 0 | Y19: 0 | Z19: 0 | AA19: 0 | AB19: 0 | AC19: 0
B20: =Projektbudget!A27 -> 0 | C20: ='År 4'!C20 -> 1700 | D20: =Projektbudget!D27*$C20 -> 0 | E20: =Projektbudget!E27*$C20 -> 0 | F20: =Projektbudget!F27*$C20 -> 0 | G20: =Projektbudget!G27*$C20 -> 0 | H20: =Projektbudget!H27*$C20 -> 0 | I20: =Projektbudget!I27*$C20 -> 0 | J20: =Projektbudget!J27*$C20 -> 0 | K20: =Projektbudget!K27*$C20 -> 0 | L20: =Projektbudget!L27*$C20 -> 0 | M20: =Projektbudget!M27*$C20 -> 0 | N20: 0 | Q20: =B20 -> 0 | S20: =IFERROR(D20/($C20/12),0) -> 0 | T20: 0 | U20: 0 | V20: 0 | W20: 0 | X20: 0 | Y20: 0 | Z20: 0 | AA20: 0 | AB20: 0 | AC20: 0
B21: =Projektbudget!A28 -> 0 | C21: ='År 4'!C21 -> 1700 | D21: =Projektbudget!D28*$C21 -> 0 | E21: =Projektbudget!E28*$C21 -> 0 | F21: =Projektbudget!F28*$C21 -> 0 | G21: =Projektbudget!G28*$C21 -> 0 | H21: =Projektbudget!H28*$C21 -> 0 | I21: =Projektbudget!I28*$C21 -> 0 | J21: =Projektbudget!J28*$C21 -> 0 | K21: =Projektbudget!K28*$C21 -> 0 | L21: =Projektbudget!L28*$C21 -> 0 | M21: =Projektbudget!M28*$C21 -> 0 | N21: 0 | Q21: 0 | S21: 0 | T21: 0 | U21: 0 | V21: 0 | W21: 0 | X21: 0 | Y21: 0 | Z21: 0 | AA21: 0 | AB21: 0 | AC21: 0
B22: =Projektbudget!A29 -> 0 | C22: ='År 4'!C22 -> 1700 | D22: =Projektbudget!D29*$C22 -> 0 | E22: =Projektbudget!E29*$C22 -> 0 | F22: =Projektbudget!F29*$C22 -> 0 | G22: =Projektbudget!G29*$C22 -> 0 | H22: =Projektbudget!H29*$C22 -> 0 | I22: =Projektbudget!I29*$C22 -> 0 | J22: =Projektbudget!J29*$C22 -> 0 | K22: =Projektbudget!K29*$C22 -> 0 | L22: =Projektbudget!L29*$C22 -> 0 | M22: =Projektbudget!M29*$C22 -> 0 | N22: 0 | Q22: 0 | S22: 0 | T22: 0 | U22: 0 | V22: 0 | W22: 0 | X22: 0 | Y22: 0 | Z22: 0 | AA22: 0 | AB22: 0 | AC22: 0
B23: =Projektbudget!A30 -> 0 | C23: ='År 4'!C23 -> 1700 | D23: =Projektbudget!D30*$C23 -> 0 | E23: =Projektbudget!E30*$C23 -> 0 | F23: =Projektbudget!F30*$C23 -> 0 | G23: =Projektbudget!G30*$C23 -> 0 | H23: =Projektbudget!H30*$C23 -> 0 | I23: =Projektbudget!I30*$C23 -> 0 | J23: =Projektbudget!J30*$C23 -> 0 | K23: =Projektbudget!K30*$C23 -> 0 | L23: =Projektbudget!L30*$C23 -> 0 | M23: =Projektbudget!M30*$C23 -> 0 | N23: 0 | Q23: 0 | S23: 0 | T23: 0 | U23: 0 | V23: 0 | W23: 0 | X23: 0 | Y23: 0 | Z23: 0 | AA23: 0 | AB23: 0 | AC23: 0
B24: =Projektbudget!A31 -> 0 | C24: ='År 4'!C24 -> 1700 | D24: =Projektbudget!D31*$C24 -> 0 | E24: =Projektbudget!E31*$C24 -> 0 | F24: =Projektbudget!F31*$C24 -> 0 | G24: =Projektbudget!G31*$C24 -> 0 | H24: =Projektbudget!H31*$C24 -> 0 | I24: =Projektbudget!I31*$C24 -> 0 | J24: =Projektbudget!J31*$C24 -> 0 | K24: =Projektbudget!K31*$C24 -> 0 | L24: =Projektbudget!L31*$C24 -> 0 | M24: =Projektbudget!M31*$C24 -> 0 | N24: 0 | Q24: 0 | S24: 0 | T24: 0 | U24: 0 | V24: 0 | W24: 0 | X24: 0 | Y24: 0 | Z24: 0 | AA24: 0 | AB24: 0 | AC24: 0
B25: =Projektbudget!A32 -> 0 | C25: ='År 4'!C25 -> 1700 | D25: =Projektbudget!D32*$C25 -> 0 | E25: =Projektbudget!E32*$C25 -> 0 | F25: =Projektbudget!F32*$C25 -> 0 | G25: =Projektbudget!G32*$C25 -> 0 | H25: =Projektbudget!H32*$C25 -> 0 | I25: =Projektbudget!I32*$C25 -> 0 | J25: =Projektbudget!J32*$C25 -> 0 | K25: =Projektbudget!K32*$C25 -> 0 | L25: =Projektbudget!L32*$C25 -> 0 | M25: =Projektbudget!M32*$C25 -> 0 | N25: 0 | Q25: 0 | S25: 0 | T25: 0 | U25: 0 | V25: 0 | W25: 0 | X25: 0 | Y25: 0 | Z25: 0 | AA25: 0 | AB25: 0 | AC25: 0
B26: =Projektbudget!A33 -> 0 | C26: ='År 4'!C26 -> 1700 | D26: =Projektbudget!D33*$C26 -> 0 | E26: =Projektbudget!E33*$C26 -> 0 | F26: =Projektbudget!F33*$C26 -> 0 | G26: =Projektbudget!G33*$C26 -> 0 | H26: =Projektbudget!H33*$C26 -> 0 | I26: =Projektbudget!I33*$C26 -> 0 | J26: =Projektbudget!J33*$C26 -> 0 | K26: =Projektbudget!K33*$C26 -> 0 | L26: =Projektbudget!L33*$C26 -> 0 | M26: =Projektbudget!M33*$C26 -> 0 | N26: 0 | Q26: 0 | S26: 0 | T26: 0 | U26: 0 | V26: 0 | W26: 0 | X26: 0 | Y26: 0 | Z26: 0 | AA26: 0 | AB26: 0 | AC26: 0
B27: =Projektbudget!A34 -> 0 | C27: ='År 4'!C27 -> 1700 | D27: =Projektbudget!D34*$C27 -> 0 | E27: =Projektbudget!E34*$C27 -> 0 | F27: =Projektbudget!F34*$C27 -> 0 | G27: =Projektbudget!G34*$C27 -> 0 | H27: =Projektbudget!H34*$C27 -> 0 | I27: =Projektbudget!I34*$C27 -> 0 | J27: =Projektbudget!J34*$C27 -> 0 | K27: =Projektbudget!K34*$C27 -> 0 | L27: =Projektbudget!L34*$C27 -> 0 | M27: =Projektbudget!M34*$C27 -> 0 | N27: 0 | Q27: 0 | S27: 0 | T27: 0 | U27: 0 | V27: 0 | W27: 0 | X27: 0 | Y27: 0 | Z27: 0 | AA27: 0 | AB27: 0 | AC27: 0
B28: =Projektbudget!A35 -> 0 | C28: ='År 4'!C28 -> 1700 | D28: =Projektbudget!D35*$C28 -> 0 | E28: =Projektbudget!E35*$C28 -> 0 | F28: =Projektbudget!F35*$C28 -> 0 | G28: =Projektbudget!G35*$C28 -> 0 | H28: =Projektbudget!H35*$C28 -> 0 | I28: =Projektbudget!I35*$C28 -> 0 | J28: =Projektbudget!J35*$C28 -> 0 | K28: =Projektbudget!K35*$C28 -> 0 | L28: =Projektbudget!L35*$C28 -> 0 | M28: =Projektbudget!M35*$C28 -> 0 | N28: 0 | Q28: 0 | S28: 0 | T28: 0 | U28: 0 | V28: 0 | W28: 0 | X28: 0 | Y28: 0 | Z28: 0 | AA28: 0 | AB28: 0 | AC28: 0
B29: =Projektbudget!A36 -> 0 | C29: ='År 4'!C29 -> 1700 | D29: =Projektbudget!D36*$C29 -> 0 | E29: =Projektbudget!E36*$C29 -> 0 | F29: =Projektbudget!F36*$C29 -> 0 | G29: =Projektbudget!G36*$C29 -> 0 | H29: =Projektbudget!H36*$C29 -> 0 | I29: =Projektbudget!I36*$C29 -> 0 | J29: =Projektbudget!J36*$C29 -> 0 | K29: =Projektbudget!K36*$C29 -> 0 | L29: =Projektbudget!L36*$C29 -> 0 | M29: =Projektbudget!M36*$C29 -> 0 | N29: 0 | Q29: 0 | S29: 0 | T29: 0 | U29: 0 | V29: 0 | W29: 0 | X29: 0 | Y29: 0 | Z29: 0 | AA29: 0 | AB29: 0 | AC29: 0
B30: =Projektbudget!A37 -> 0 | C30: ='År 4'!C30 -> 1700 | D30: =Projektbudget!D37*$C30 -> 0 | E30: =Projektbudget!E37*$C30 -> 0 | F30: =Projektbudget!F37*$C30 -> 0 | G30: =Projektbudget!G37*$C30 -> 0 | H30: =Projektbudget!H37*$C30 -> 0 | I30: =Projektbudget!I37*$C30 -> 0 | J30: =Projektbudget!J37*$C30 -> 0 | K30: =Projektbudget!K37*$C30 -> 0 | L30: =Projektbudget!L37*$C30 -> 0 | M30: =Projektbudget!M37*$C30 -> 0 | N30: 0 | Q30: 0 | S30: 0 | T30: 0 | U30: 0 | V30: 0 | W30: 0 | X30: 0 | Y30: 0 | Z30: 0 | AA30: 0 | AB30: 0 | AC30: 0
B31: =Projektbudget!A38 -> 0 | C31: ='År 4'!C31 -> 1700 | D31: =Projektbudget!D38*$C31 -> 0 | E31: =Projektbudget!E38*$C31 -> 0 | F31: =Projektbudget!F38*$C31 -> 0 | G31: =Projektbudget!G38*$C31 -> 0 | H31: =Projektbudget!H38*$C31 -> 0 | I31: =Projektbudget!I38*$C31 -> 0 | J31: =Projektbudget!J38*$C31 -> 0 | K31: =Projektbudget!K38*$C31 -> 0 | L31: =Projektbudget!L38*$C31 -> 0 | M31: =Projektbudget!M38*$C31 -> 0 | N31: 0 | Q31: 0 | S31: 0 | T31: 0 | U31: 0 | V31: 0 | W31: 0 | X31: 0 | Y31: 0 | Z31: 0 | AA31: 0 | AB31: 0 | AC31: 0
B32: =Projektbudget!A39 -> 0 | C32: ='År 4'!C32 -> 1700 | D32: =Projektbudget!D39*$C32 -> 0 | E32: =Projektbudget!E39*$C32 -> 0 | F32: =Projektbudget!F39*$C32 -> 0 | G32: =Projektbudget!G39*$C32 -> 0 | H32: =Projektbudget!H39*$C32 -> 0 | I32: =Projektbudget!I39*$C32 -> 0 | J32: =Projektbudget!J39*$C32 -> 0 | K32: =Projektbudget!K39*$C32 -> 0 | L32: =Projektbudget!L39*$C32 -> 0 | M32: =Projektbudget!M39*$C32 -> 0 | N32: 0 | Q32: 0 | S32: 0 | T32: 0 | U32: 0 | V32: 0 | W32: 0 | X32: 0 | Y32: 0 | Z32: 0 | AA32: 0 | AB32: 0 | AC32: 0
B33: =Projektbudget!A40 -> 0 | C33: ='År 4'!C33 -> 1700 | D33: =Projektbudget!D40*$C33 -> 0 | E33: =Projektbudget!E40*$C33 -> 0 | F33: =Projektbudget!F40*$C33 -> 0 | G33: =Projektbudget!G40*$C33 -> 0 | H33: =Projektbudget!H40*$C33 -> 0 | I33: =Projektbudget!I40*$C33 -> 0 | J33: =Projektbudget!J40*$C33 -> 0 | K33: =Projektbudget!K40*$C33 -> 0 | L33: =Projektbudget!L40*$C33 -> 0 | M33: =Projektbudget!M40*$C33 -> 0 | N33: 0 | Q33: 0 | S33: 0 | T33: 0 | U33: 0 | V33: 0 | W33: 0 | X33: 0 | Y33: 0 | Z33: 0 | AA33: 0 | AB33: 0 | AC33: 0
B34: =Projektbudget!A41 -> 0 | C34: ='År 4'!C34 -> 1700 | D34: =Projektbudget!D41*$C34 -> 0 | E34: =Projektbudget!E41*$C34 -> 0 | F34: =Projektbudget!F41*$C34 -> 0 | G34: =Projektbudget!G41*$C34 -> 0 | H34: =Projektbudget!H41*$C34 -> 0 | I34: =Projektbudget!I41*$C34 -> 0 | J34: =Projektbudget!J41*$C34 -> 0 | K34: =Projektbudget!K41*$C34 -> 0 | L34: =Projektbudget!L41*$C34 -> 0 | M34: =Projektbudget!M41*$C34 -> 0 | N34: 0 | Q34: 0 | S34: 0 | T34: 0 | U34: 0 | V34: 0 | W34: 0 | X34: 0 | Y34: 0 | Z34: 0 | AA34: 0 | AB34: 0 | AC34: 0
B35: =Projektbudget!A42 -> 0 | C35: ='År 4'!C35 -> 1700 | D35: =Projektbudget!D42*$C35 -> 0 | E35: =Projektbudget!E42*$C35 -> 0 | F35: =Projektbudget!F42*$C35 -> 0 | G35: =Projektbudget!G42*$C35 -> 0 | H35: =Projektbudget!H42*$C35 -> 0 | I35: =Projektbudget!I42*$C35 -> 0 | J35: =Projektbudget!J42*$C35 -> 0 | K35: =Projektbudget!K42*$C35 -> 0 | L35: =Projektbudget!L42*$C35 -> 0 | M35: =Projektbudget!M42*$C35 -> 0 | N35: 0 | Q35: 0 | S35: 0 | T35: 0 | U35: 0 | V35: 0 | W35: 0 | X35: 0 | Y35: 0 | Z35: 0 | AA35: 0 | AB35: 0 | AC35: 0
B36: =Projektbudget!A43 -> 0 | C36: ='År 4'!C36 -> 1700 | D36: =Projektbudget!D43*$C36 -> 0 | E36: =Projektbudget!E43*$C36 -> 0 | F36: =Projektbudget!F43*$C36 -> 0 | G36: =Projektbudget!G43*$C36 -> 0 | H36: =Projektbudget!H43*$C36 -> 0 | I36: =Projektbudget!I43*$C36 -> 0 | J36: =Projektbudget!J43*$C36 -> 0 | K36: =Projektbudget!K43*$C36 -> 0 | L36: =Projektbudget!L43*$C36 -> 0 | M36: =Projektbudget!M43*$C36 -> 0 | N36: 0 | Q36: 0 | S36: 0 | T36: 0 | U36: 0 | V36: 0 | W36: 0 | X36: 0 | Y36: 0 | Z36: 0 | AA36: 0 | AB36: 0 | AC36: 0
B37: =Projektbudget!A44 -> 0 | C37: ='År 4'!C37 -> 1700 | D37: =Projektbudget!D44*$C37 -> 0 | E37: =Projektbudget!E44*$C37 -> 0 | F37: =Projektbudget!F44*$C37 -> 0 | G37: =Projektbudget!G44*$C37 -> 0 | H37: =Projektbudget!H44*$C37 -> 0 | I37: =Projektbudget!I44*$C37 -> 0 | J37: =Projektbudget!J44*$C37 -> 0 | K37: =Projektbudget!K44*$C37 -> 0 | L37: =Projektbudget!L44*$C37 -> 0 | M37: =Projektbudget!M44*$C37 -> 0 | N37: 0 | Q37: 0 | S37: 0 | T37: 0 | U37: 0 | V37: 0 | W37: 0 | X37: 0 | Y37: 0 | Z37: 0 | AA37: 0 | AB37: 0 | AC37: 0
B38: =Projektbudget!A45 -> 0 | C38: ='År 4'!C38 -> 1700 | D38: =Projektbudget!D45*$C38 -> 0 | E38: =Projektbudget!E45*$C38 -> 0 | F38: =Projektbudget!F45*$C38 -> 0 | G38: =Projektbudget!G45*$C38 -> 0 | H38: =Projektbudget!H45*$C38 -> 0 | I38: =Projektbudget!I45*$C38 -> 0 | J38: =Projektbudget!J45*$C38 -> 0 | K38: =Projektbudget!K45*$C38 -> 0 | L38: =Projektbudget!L45*$C38 -> 0 | M38: =Projektbudget!M45*$C38 -> 0 | N38: 0 | Q38: 0 | S38: 0 | T38: 0 | U38: 0 | V38: 0 | W38: 0 | X38: 0 | Y38: 0 | Z38: 0 | AA38: 0 | AB38: 0 | AC38: 0
B39: =Projektbudget!A46 -> 0 | C39: ='År 4'!C39 -> 1700 | D39: =Projektbudget!D46*$C39 -> 0 | E39: =Projektbudget!E46*$C39 -> 0 | F39: =Projektbudget!F46*$C39 -> 0 | G39: =Projektbudget!G46*$C39 -> 0 | H39: =Projektbudget!H46*$C39 -> 0 | I39: =Projektbudget!I46*$C39 -> 0 | J39: =Projektbudget!J46*$C39 -> 0 | K39: =Projektbudget!K46*$C39 -> 0 | L39: =Projektbudget!L46*$C39 -> 0 | M39: =Projektbudget!M46*$C39 -> 0 | N39: 0 | Q39: 0 | S39: 0 | T39: 0 | U39: 0 | V39: 0 | W39: 0 | X39: 0 | Y39: 0 | Z39: 0 | AA39: 0 | AB39: 0 | AC39: 0
B40: Totalt | C40: =SUM(D40:M40) -> 0 | D40: =SUM(D5:D39) -> 0 | E40: 0 | F40: 0 | G40: 0 | H40: 0 | I40: 0 | J40: 0 | K40: 0 | L40: 0 | M40: 0 | N40: 0 | Q40: Totalt | R40: =SUM(S40:AB40) -> 0 | S40: =SUM(S5:S39) -> 0 | T40: 0 | U40: 0 | V40: 0 | W40: 0 | X40: 0 | Y40: 0 | Z40: 0 | AA40: 0 | AB40: 0 | AC40: 0
D42: Utfall/Prognos timmar | S42: Omfattning %
D43: =D4 -> 2021 | E43: =E4 -> 2022 | F43: =F4 -> 2023 | G43: =G4 -> 2024 | H43: =H4 -> 2025 | I43: =I4 -> 2026 | J43: 2027 | K43: 2028 | L43: 2029 | M43: 2030 | N43: Kr/tim | S43: =D43 -> 2021 | T43: =E43 -> 2022 | U43: =F43 -> 2023 | V43: =G43 -> 2024 | W43: =H43 -> 2025 | X43: =I43 -> 2026 | Y43: 2027 | Z43: 2028 | AA43: 2029 | AB43: 2030 | AC43: Totalt
B44: =B5 -> Professor | D44: ='År 5'!D44 -> 0 | E44: ='År 5'!E44 -> 0 | F44: ='År 5'!F44 -> 0 | G44: ='År 5'!G44 -> 0 | H44: ='År 5'!H44 -> 0 | N44: =IFERROR(Projektbudget!B12*12*LönePåläggUppräkningÅr6/C5,0) -> 729.3225882 | Q44: =B44 -> Professor | S44: =IFERROR(D44/$C5,0) -> 0 | T44: 0 | U44: 0 | V44: 0 | W44: 0 | X44: 0 | Y44: 0 | Z44: 0 | AA44: 0 | AB44: 0 | AC44: =SUM(S44:AB44) -> 0
B45: Docent | D45: ='År 5'!D45 -> 0 | E45: ='År 5'!E45 -> 0 | F45: ='År 5'!F45 -> 0 | G45: ='År 5'!G45 -> 0 | H45: ='År 5'!H45 -> 0 | N45: =IFERROR(Projektbudget!B13*12*LönePåläggUppräkningÅr6/C6,0) -> 557.3330824 | Q45: =B45 -> Docent | S45: 0 | T45: 0 | U45: 0 | V45: 0 | W45: 0 | X45: 0 | Y45: 0 | Z45: 0 | AA45: 0 | AB45: 0 | AC45: 0
B46: Lektor | D46: ='År 5'!D46 -> 0 | E46: ='År 5'!E46 -> 0 | F46: ='År 5'!F46 -> 0 | G46: ='År 5'!G46 -> 0 | H46: ='År 5'!H46 -> 0 | N46: =IFERROR(Projektbudget!B14*12*LönePåläggUppräkningÅr6/C7,0) -> 507.2601882 | Q46: Lektor | S46: 0 | T46: 0 | U46: 0 | V46: 0 | W46: 0 | X46: 0 | Y46: 0 | Z46: 0 | AA46: 0 | AB46: 0 | AC46: 0
B47: Adjunkt | D47: ='År 5'!D47 -> 0 | E47: ='År 5'!E47 -> 0 | F47: ='År 5'!F47 -> 0 | G47: ='År 5'!G47 -> 0 | H47: ='År 5'!H47 -> 0 | N47: =IFERROR(Projektbudget!B15*12*LönePåläggUppräkningÅr6/C8,0) -> 434.3279294 | Q47: Adjunkt | S47: 0 | T47: 0 | U47: 0 | V47: 0 | W47: 0 | X47: 0 | Y47: 0 | Z47: 0 | AA47: 0 | AB47: 0 | AC47: 0
B48: Post dok | D48: ='År 5'!D48 -> 0 | E48: ='År 5'!E48 -> 0 | F48: ='År 5'!F48 -> 0 | G48: ='År 5'!G48 -> 0 | H48: ='År 5'!H48 -> 0 | N48: =IFERROR(Projektbudget!B16*12*LönePåläggUppräkningÅr6/C9,0) -> 379.9008706 | Q48: Post dok | S48: 0 | T48: 0 | U48: 0 | V48: 0 | W48: 0 | X48: 0 | Y48: 0 | Z48: 0 | AA48: 0 | AB48: 0 | AC48: 0
B49: Doktorand (Snittlön) | D49: ='År 5'!D49 -> 0 | E49: ='År 5'!E49 -> 0 | F49: ='År 5'!F49 -> 0 | G49: ='År 5'!G49 -> 0 | H49: ='År 5'!H49 -> 0 | N49: =IFERROR(Projektbudget!B17*12*LönePåläggUppräkningÅr6/C10,0) -> 310.5063706 | Q49: Doktorand (Snittlön) | S49: 0 | T49: 0 | U49: 0 | V49: 0 | W49: 0 | X49: 0 | Y49: 0 | Z49: 0 | AA49: 0 | AB49: 0 | AC49: 0
B50: Administratör | D50: ='År 5'!D50 -> 0 | E50: ='År 5'!E50 -> 0 | F50: ='År 5'!F50 -> 0 | G50: ='År 5'!G50 -> 0 | H50: ='År 5'!H50 -> 0 | N50: =IFERROR(Projektbudget!B18*12*LönePåläggUppräkningÅr6/C11,0) -> 390.7862824 | Q50: Administratör | S50: 0 | T50: 0 | U50: 0 | V50: 0 | W50: 0 | X50: 0 | Y50: 0 | Z50: 0 | AA50: 0 | AB50: 0 | AC50: 0
B51: Labbtekniker | D51: ='År 5'!D51 -> 0 | E51: ='År 5'!E51 -> 0 | F51: ='År 5'!F51 -> 0 | G51: ='År 5'!G51 -> 0 | H51: ='År 5'!H51 -> 0 | N51: =IFERROR(Projektbudget!B19*12*LönePåläggUppräkningÅr6/C12,0) -> 359.2185882 | Q51: Labbtekniker | S51: 0 | T51: 0 | U51: 0 | V51: 0 | W51: 0 | X51: 0 | Y51: 0 | Z51: 0 | AA51: 0 | AB51: 0 | AC51: 0
B52: Forskningsassistent | D52: ='År 5'!D52 -> 0 | E52: ='År 5'!E52 -> 0 | F52: ='År 5'!F52 -> 0 | G52: ='År 5'!G52 -> 0 | H52: ='År 5'!H52 -> 0 | N52: =IFERROR(Projektbudget!B20*12*LönePåläggUppräkningÅr6/C13,0) -> 271.0467529 | Q52: Forskningsassistent | S52: 0 | T52: 0 | U52: 0 | V52: 0 | W52: 0 | X52: 0 | Y52: 0 | Z52: 0 | AA52: 0 | AB52: 0 | AC52: 0
B53: Forskare/biträdande forskare | D53: ='År 5'!D53 -> 0 | E53: ='År 5'!E53 -> 0 | F53: ='År 5'!F53 -> 0 | G53: ='År 5'!G53 -> 0 | H53: ='År 5'!H53 -> 0 | N53: =IFERROR(Projektbudget!B21*12*LönePåläggUppräkningÅr6/C14,0) -> 404.9373176 | Q53: Forskare/biträdande forskare | S53: 0 | T53: 0 | U53: 0 | V53: 0 | W53: 0 | X53: 0 | Y53: 0 | Z53: 0 | AA53: 0 | AB53: 0 | AC53: 0
B54: 0 | D54: ='År 5'!D54 -> 0 | E54: ='År 5'!E54 -> 0 | F54: ='År 5'!F54 -> 0 | G54: ='År 5'!G54 -> 0 | H54: ='År 5'!H54 -> 0 | N54: =IFERROR(Projektbudget!B22*12*LönePåläggUppräkningÅr6/C15,0) -> 0 | Q54: 0 | S54: 0 | T54: 0 | U54: 0 | V54: 0 | W54: 0 | X54: 0 | Y54: 0 | Z54: 0 | AA54: 0 | AB54: 0 | AC54: 0
B55: 0 | D55: ='År 5'!D55 -> 0 | E55: ='År 5'!E55 -> 0 | F55: ='År 5'!F55 -> 0 | G55: ='År 5'!G55 -> 0 | H55: ='År 5'!H55 -> 0 | N55: =IFERROR(Projektbudget!B23*12*LönePåläggUppräkningÅr6/C16,0) -> 0 | Q55: 0 | S55: 0 | T55: 0 | U55: 0 | V55: 0 | W55: 0 | X55: 0 | Y55: 0 | Z55: 0 | AA55: 0 | AB55: 0 | AC55: 0
B56: 0 | D56: ='År 5'!D56 -> 0 | E56: ='År 5'!E56 -> 0 | F56: ='År 5'!F56 -> 0 | G56: ='År 5'!G56 -> 0 | H56: ='År 5'!H56 -> 0 | N56: =IFERROR(Projektbudget!B24*12*LönePåläggUppräkningÅr6/C17,0) -> 0 | Q56: 0 | S56: 0 | T56: 0 | U56: 0 | V56: 0 | W56: 0 | X56: 0 | Y56: 0 | Z56: 0 | AA56: 0 | AB56: 0 | AC56: 0
B57: 0 | D57: ='År 5'!D57 -> 0 | E57: ='År 5'!E57 -> 0 | F57: ='År 5'!F57 -> 0 | G57: ='År 5'!G57 -> 0 | H57: ='År 5'!H57 -> 0 | N57: =IFERROR(Projektbudget!B25*12*LönePåläggUppräkningÅr6/C18,0) -> 0 | Q57: 0 | S57: 0 | T57: 0 | U57: 0 | V57: 0 | W57: 0 | X57: 0 | Y57: 0 | Z57: 0 | AA57: 0 | AB57: 0 | AC57: 0
B58: 0 | D58: ='År 5'!D58 -> 0 | E58: ='År 5'!E58 -> 0 | F58: ='År 5'!F58 -> 0 | G58: ='År 5'!G58 -> 0 | H58: ='År 5'!H58 -> 0 | N58: =IFERROR(Projektbudget!B26*12*LönePåläggUppräkningÅr6/C19,0) -> 0 | Q58: 0 | S58: 0 | T58: 0 | U58: 0 | V58: 0 | W58: 0 | X58: 0 | Y58: 0 | Z58: 0 | AA58: 0 | AB58: 0 | AC58: 0
B59: 0 | D59: ='År 5'!D59 -> 0 | E59: ='År 5'!E59 -> 0 | F59: ='År 5'!F59 -> 0 | G59: ='År 5'!G59 -> 0 | H59: ='År 5'!H59 -> 0 | N59: =IFERROR(Projektbudget!B27*12*LönePåläggUppräkningÅr6/C20,0) -> 0 | Q59: 0 | S59: 0 | T59: 0 | U59: 0 | V59: 0 | W59: 0 | X59: 0 | Y59: 0 | Z59: 0 | AA59: 0 | AB59: 0 | AC59: 0
B60: 0 | D60: ='År 5'!D60 -> 0 | E60: ='År 5'!E60 -> 0 | F60: ='År 5'!F60 -> 0 | G60: ='År 5'!G60 -> 0 | H60: ='År 5'!H60 -> 0 | N60: =IFERROR(Projektbudget!B28*12*LönePåläggUppräkningÅr6/C21,0) -> 0 | Q60: 0 | S60: =IFERROR(D60/$C21,0) -> 0 | T60: 0 | U60: 0 | V60: 0 | W60: 0 | X60: 0 | Y60: 0 | Z60: 0 | AA60: 0 | AB60: 0 | AC60: 0
B61: 0 | D61: ='År 5'!D61 -> 0 | E61: ='År 5'!E61 -> 0 | F61: ='År 5'!F61 -> 0 | G61: ='År 5'!G61 -> 0 | H61: ='År 5'!H61 -> 0 | N61: =IFERROR(Projektbudget!B29*12*LönePåläggUppräkningÅr6/C22,0) -> 0 | Q61: 0 | S61: 0 | T61: 0 | U61: 0 | V61: 0 | W61: 0 | X61: 0 | Y61: 0 | Z61: 0 | AA61: 0 | AB61: 0 | AC61: 0
B62: 0 | D62: ='År 5'!D62 -> 0 | E62: ='År 5'!E62 -> 0 | F62: ='År 5'!F62 -> 0 | G62: ='År 5'!G62 -> 0 | H62: ='År 5'!H62 -> 0 | N62: =IFERROR(Projektbudget!B30*12*LönePåläggUppräkningÅr6/C23,0) -> 0 | Q62: 0 | S62: 0 | T62: 0 | U62: 0 | V62: 0 | W62: 0 | X62: 0 | Y62: 0 | Z62: 0 | AA62: 0 | AB62: 0 | AC62: 0
B63: 0 | D63: ='År 5'!D63 -> 0 | E63: ='År 5'!E63 -> 0 | F63: ='År 5'!F63 -> 0 | G63: ='År 5'!G63 -> 0 | H63: ='År 5'!H63 -> 0 | N63: =IFERROR(Projektbudget!B31*12*LönePåläggUppräkningÅr6/C24,0) -> 0 | Q63: 0 | S63: 0 | T63: 0 | U63: 0 | V63: 0 | W63: 0 | X63: 0 | Y63: 0 | Z63: 0 | AA63: 0 | AB63: 0 | AC63: 0
B64: 0 | D64: ='År 5'!D64 -> 0 | E64: ='År 5'!E64 -> 0 | F64: ='År 5'!F64 -> 0 | G64: ='År 5'!G64 -> 0 | H64: ='År 5'!H64 -> 0 | N64: =IFERROR(Projektbudget!B32*12*LönePåläggUppräkningÅr6/C25,0) -> 0 | Q64: 0 | S64: 0 | T64: 0 | U64: 0 | V64: 0 | W64: 0 | X64: 0 | Y64: 0 | Z64: 0 | AA64: 0 | AB64: 0 | AC64: 0
B65: 0 | D65: ='År 5'!D65 -> 0 | E65: ='År 5'!E65 -> 0 | F65: ='År 5'!F65 -> 0 | G65: ='År 5'!G65 -> 0 | H65: ='År 5'!H65 -> 0 | N65: =IFERROR(Projektbudget!B33*12*LönePåläggUppräkningÅr6/C26,0) -> 0 | Q65: 0 | S65: 0 | T65: 0 | U65: 0 | V65: 0 | W65: 0 | X65: 0 | Y65: 0 | Z65: 0 | AA65: 0 | AB65: 0 | AC65: 0
B66: 0 | D66: ='År 5'!D66 -> 0 | E66: ='År 5'!E66 -> 0 | F66: ='År 5'!F66 -> 0 | G66: ='År 5'!G66 -> 0 | H66: ='År 5'!H66 -> 0 | N66: =IFERROR(Projektbudget!B34*12*LönePåläggUppräkningÅr6/C27,0) -> 0 | Q66: 0 | S66: 0 | T66: 0 | U66: 0 | V66: 0 | W66: 0 | X66: 0 | Y66: 0 | Z66: 0 | AA66: 0 | AB66: 0 | AC66: 0
B67: 0 | D67: ='År 5'!D67 -> 0 | E67: ='År 5'!E67 -> 0 | F67: ='År 5'!F67 -> 0 | G67: ='År 5'!G67 -> 0 | H67: ='År 5'!H67 -> 0 | N67: =IFERROR(Projektbudget!B35*12*LönePåläggUppräkningÅr6/C28,0) -> 0 | Q67: 0 | S67: 0 | T67: 0 | U67: 0 | V67: 0 | W67: 0 | X67: 0 | Y67: 0 | Z67: 0 | AA67: 0 | AB67: 0 | AC67: 0
B68: 0 | D68: ='År 5'!D68 -> 0 | E68: ='År 5'!E68 -> 0 | F68: ='År 5'!F68 -> 0 | G68: ='År 5'!G68 -> 0 | H68: ='År 5'!H68 -> 0 | N68: =IFERROR(Projektbudget!B36*12*LönePåläggUppräkningÅr6/C29,0) -> 0 | Q68: 0 | S68: 0 | T68: 0 | U68: 0 | V68: 0 | W68: 0 | X68: 0 | Y68: 0 | Z68: 0 | AA68: 0 | AB68: 0 | AC68: 0
B69: 0 | D69: ='År 5'!D69 -> 0 | E69: ='År 5'!E69 -> 0 | F69: ='År 5'!F69 -> 0 | G69: ='År 5'!G69 -> 0 | H69: ='År 5'!H69 -> 0 | N69: =IFERROR(Projektbudget!B37*12*LönePåläggUppräkningÅr6/C30,0) -> 0 | Q69: 0 | S69: 0 | T69: 0 | U69: 0 | V69: 0 | W69: 0 | X69: 0 | Y69: 0 | Z69: 0 | AA69: 0 | AB69: 0 | AC69: 0
B70: 0 | D70: ='År 5'!D70 -> 0 | E70: ='År 5'!E70 -> 0 | F70: ='År 5'!F70 -> 0 | G70: ='År 5'!G70 -> 0 | H70: ='År 5'!H70 -> 0 | N70: =IFERROR(Projektbudget!B38*12*LönePåläggUppräkningÅr6/C31,0) -> 0 | Q70: 0 | S70: 0 | T70: 0 | U70: 0 | V70: 0 | W70: 0 | X70: 0 | Y70: 0 | Z70: 0 | AA70: 0 | AB70: 0 | AC70: 0
B71: 0 | D71: ='År 5'!D71 -> 0 | E71: ='År 5'!E71 -> 0 | F71: ='År 5'!F71 -> 0 | G71: ='År 5'!G71 -> 0 | H71: ='År 5'!H71 -> 0 | N71: =IFERROR(Projektbudget!B39*12*LönePåläggUppräkningÅr6/C32,0) -> 0 | Q71: 0 | S71: 0 | T71: 0 | U71: 0 | V71: 0 | W71: 0 | X71: 0 | Y71: 0 | Z71: 0 | AA71: 0 | AB71: 0 | AC71: 0
B72: 0 | D72: ='År 5'!D72 -> 0 | E72: ='År 5'!E72 -> 0 | F72: ='År 5'!F72 -> 0 | G72: ='År 5'!G72 -> 0 | H72: ='År 5'!H72 -> 0 | N72: =IFERROR(Projektbudget!B40*12*LönePåläggUppräkningÅr6/C33,0) -> 0 | Q72: 0 | S72: 0 | T72: 0 | U72: 0 | V72: 0 | W72: 0 | X72: 0 | Y72: 0 | Z72: 0 | AA72: 0 | AB72: 0 | AC72: 0
B73: 0 | D73: ='År 5'!D73 -> 0 | E73: ='År 5'!E73 -> 0 | F73: ='År 5'!F73 -> 0 | G73: ='År 5'!G73 -> 0 | H73: ='År 5'!H73 -> 0 | N73: =IFERROR(Projektbudget!B41*12*LönePåläggUppräkningÅr6/C34,0) -> 0 | Q73: 0 | S73: 0 | T73: 0 | U73: 0 | V73: 0 | W73: 0 | X73: 0 | Y73: 0 | Z73: 0 | AA73: 0 | AB73: 0 | AC73: 0
B74: 0 | D74: ='År 5'!D74 -> 0 | E74: ='År 5'!E74 -> 0 | F74: ='År 5'!F74 -> 0 | G74: ='År 5'!G74 -> 0 | H74: ='År 5'!H74 -> 0 | N74: =IFERROR(Projektbudget!B42*12*LönePåläggUppräkningÅr6/C35,0) -> 0 | Q74: 0 | S74: 0 | T74: 0 | U74: 0 | V74: 0 | W74: 0 | X74: 0 | Y74: 0 | Z74: 0 | AA74: 0 | AB74: 0 | AC74: 0
B75: 0 | D75: ='År 5'!D75 -> 0 | E75: ='År 5'!E75 -> 0 | F75: ='År 5'!F75 -> 0 | G75: ='År 5'!G75 -> 0 | H75: ='År 5'!H75 -> 0 | N75: =IFERROR(Projektbudget!B43*12*LönePåläggUppräkningÅr6/C36,0) -> 0 | Q75: 0 | S75: 0 | T75: 0 | U75: 0 | V75: 0 | W75: 0 | X75: 0 | Y75: 0 | Z75: 0 | AA75: 0 | AB75: 0 | AC75: 0
B76: 0 | D76: ='År 5'!D76 -> 0 | E76: ='År 5'!E76 -> 0 | F76: ='År 5'!F76 -> 0 | G76: ='År 5'!G76 -> 0 | H76: ='År 5'!H76 -> 0 | N76: =IFERROR(Projektbudget!B44*12*LönePåläggUppräkningÅr6/C37,0) -> 0 | Q76: 0 | S76: =IFERROR(D76/$C37,0) -> 0 | T76: 0 | U76: 0 | V76: 0 | W76: 0 | X76: 0 | Y76: 0 | Z76: 0 | AA76: 0 | AB76: 0 | AC76: 0
B77: 0 | D77: ='År 5'!D77 -> 0 | E77: ='År 5'!E77 -> 0 | F77: ='År 5'!F77 -> 0 | G77: ='År 5'!G77 -> 0 | H77: ='År 5'!H77 -> 0 | N77: =IFERROR(Projektbudget!B45*12*LönePåläggUppräkningÅr6/C38,0) -> 0 | Q77: 0 | S77: 0 | T77: 0 | U77: 0 | V77: 0 | W77: 0 | X77: 0 | Y77: 0 | Z77: 0 | AA77: 0 | AB77: 0 | AC77: 0
B78: 0 | D78: ='År 5'!D78 -> 0 | E78: ='År 5'!E78 -> 0 | F78: ='År 5'!F78 -> 0 | G78: ='År 5'!G78 -> 0 | H78: ='År 5'!H78 -> 0 | N78: =IFERROR(Projektbudget!B46*12*LönePåläggUppräkningÅr6/C39,0) -> 0 | Q78: 0 | S78: 0 | T78: 0 | U78: 0 | V78: 0 | W78: 0 | X78: 0 | Y78: 0 | Z78: 0 | AA78: 0 | AB78: 0 | AC78: 0
B79: =B40 -> Totalt | C79: =SUM(D79:M79) -> 0 | D79: =SUM(D44:D78) -> 0 | E79: =SUM(E44:E78) -> 0 | F79: =SUM(F44:F78) -> 0 | G79: =SUM(G44:G78) -> 0 | H79: =SUM(H44:H78) -> 0 | I79: =SUM(I44:I78) -> 0 | J79: 0 | K79: 0 | L79: 0 | M79: 0 | Q79: Totalt | R79: =SUM(S79:AB79) -> 0 | S79: =SUM(S44:S78) -> 0 | T79: 0 | U79: 0 | V79: 0 | W79: 0 | X79: 0 | Y79: 0 | Z79: 0 | AA79: 0 | AB79: 0 | AC79: 0

Sheet År 7 (hidden)
B1: ="Projekt: "&Projektbudget!$B$4 -> Projekt:
D3: Budget timmar (ev. reviderad) | O3: Godkännande | S3: Manmånader
C4: Åarb | D4: =Projektbudget!D52 -> 2021 | E4: =Projektbudget!E52 -> 2022 | F4: =Projektbudget!F52 -> 2023 | G4: =Projektbudget!G52 -> 2024 | H4: =Projektbudget!H52 -> 2025 | I4: =Projektbudget!I52 -> 2026 | J4: =Projektbudget!J52 -> 2027 | K4: =Projektbudget!K52 -> 2028 | L4: =Projektbudget!L52 -> 2029 | M4: =Projektbudget!M52 -> 2030 | N4: Totalt | O4: prefekt / SR | S4: =D4 -> 2021 | T4: =E4 -> 2022 | U4: =F4 -> 2023 | V4: =G4 -> 2024 | W4: =H4 -> 2025 | X4: =I4 -> 2026 | Y4: 2027 | Z4: 2028 | AA4: 2029 | AB4: 2030 | AC4: Totalt
B5: =Projektbudget!A12 -> Professor | C5: ='År 4'!C5 -> 1700 | D5: =Projektbudget!D12*$C5 -> 0 | E5: =Projektbudget!E12*$C5 -> 0 | F5: =Projektbudget!F12*$C5 -> 0 | G5: =Projektbudget!G12*$C5 -> 0 | H5: =Projektbudget!H12*$C5 -> 0 | I5: =Projektbudget!I12*$C5 -> 0 | J5: =Projektbudget!J12*$C5 -> 0 | K5: =Projektbudget!K12*$C5 -> 0 | L5: =Projektbudget!L12*$C5 -> 0 | M5: =Projektbudget!M12*$C5 -> 0 | N5: =SUM(D5:M5) -> 0 | Q5: =B5 -> Professor | S5: =IFERROR(D5/($C5/12),0) -> 0 | T5: =IFERROR(E5/($C5/12),0) -> 0 | U5: =IFERROR(F5/($C5/12),0) -> 0 | V5: =IFERROR(G5/($C5/12),0) -> 0 | W5: =IFERROR(H5/($C5/12),0) -> 0 | X5: =IFERROR(I5/($C5/12),0) -> 0 | Y5: 0 | Z5: 0 | AA5: 0 | AB5: 0 | AC5: =SUM(S5:AB5) -> 0
B6: =Projektbudget!A13 -> Docent | C6: ='År 4'!C6 -> 1700 | D6: =Projektbudget!D13*$C6 -> 0 | E6: =Projektbudget!E13*$C6 -> 0 | F6: =Projektbudget!F13*$C6 -> 0 | G6: =Projektbudget!G13*$C6 -> 0 | H6: =Projektbudget!H13*$C6 -> 0 | I6: =Projektbudget!I13*$C6 -> 0 | J6: =Projektbudget!J13*$C6 -> 0 | K6: =Projektbudget!K13*$C6 -> 0 | L6: =Projektbudget!L13*$C6 -> 0 | M6: =Projektbudget!M13*$C6 -> 0 | N6: =SUM(D6:M6) -> 0 | Q6: =B6 -> Docent | S6: =IFERROR(D6/($C6/12),0) -> 0 | T6: 0 | U6: 0 | V6: 0 | W6: 0 | X6: 0 | Y6: 0 | Z6: 0 | AA6: 0 | AB6: 0 | AC6: 0
B7: =Projektbudget!A14 -> Lektor | C7: ='År 4'!C7 -> 1700 | D7: =Projektbudget!D14*$C7 -> 0 | E7: =Projektbudget!E14*$C7 -> 0 | F7: =Projektbudget!F14*$C7 -> 0 | G7: =Projektbudget!G14*$C7 -> 0 | H7: =Projektbudget!H14*$C7 -> 0 | I7: =Projektbudget!I14*$C7 -> 0 | J7: =Projektbudget!J14*$C7 -> 0 | K7: =Projektbudget!K14*$C7 -> 0 | L7: =Projektbudget!L14*$C7 -> 0 | M7: =Projektbudget!M14*$C7 -> 0 | N7: 0 | Q7: Lektor | S7: 0 | T7: 0 | U7: 0 | V7: 0 | W7: 0 | X7: 0 | Y7: 0 | Z7: 0 | AA7: 0 | AB7: 0 | AC7: 0
B8: =Projektbudget!A15 -> Adjunkt | C8: ='År 4'!C8 -> 1700 | D8: =Projektbudget!D15*$C8 -> 0 | E8: =Projektbudget!E15*$C8 -> 0 | F8: =Projektbudget!F15*$C8 -> 0 | G8: =Projektbudget!G15*$C8 -> 0 | H8: =Projektbudget!H15*$C8 -> 0 | I8: =Projektbudget!I15*$C8 -> 0 | J8: =Projektbudget!J15*$C8 -> 0 | K8: =Projektbudget!K15*$C8 -> 0 | L8: =Projektbudget!L15*$C8 -> 0 | M8: =Projektbudget!M15*$C8 -> 0 | N8: 0 | Q8: Adjunkt | S8: 0 | T8: 0 | U8: 0 | V8: 0 | W8: 0 | X8: 0 | Y8: 0 | Z8: 0 | AA8: 0 | AB8: 0 | AC8: 0
B9: =Projektbudget!A16 -> Post dok | C9: ='År 4'!C9 -> 1700 | D9: =Projektbudget!D16*$C9 -> 0 | E9: =Projektbudget!E16*$C9 -> 0 | F9: =Projektbudget!F16*$C9 -> 0 | G9: =Projektbudget!G16*$C9 -> 0 | H9: =Projektbudget!H16*$C9 -> 0 | I9: =Projektbudget!I16*$C9 -> 0 | J9: =Projektbudget!J16*$C9 -> 0 | K9: =Projektbudget!K16*$C9 -> 0 | L9: =Projektbudget!L16*$C9 -> 0 | M9: =Projektbudget!M16*$C9 -> 0 | N9: 0 | Q9: Post dok | S9: 0 | T9: 0 | U9: 0 | V9: 0 | W9: 0 | X9: 0 | Y9: 0 | Z9: 0 | AA9: 0 | AB9: 0 | AC9: 0
B10: =Projektbudget!A17 -> Doktorand (Snittlön) | C10: ='År 4'!C10 -> 1700 | D10: =Projektbudget!D17*$C10 -> 0 | E10: =Projektbudget!E17*$C10 -> 0 | F10: =Projektbudget!F17*$C10 -> 0 | G10: =Projektbudget!G17*$C10 -> 0 | H10: =Projektbudget!H17*$C10 -> 0 | I10: =Projektbudget!I17*$C10 -> 0 | J10: =Projektbudget!J17*$C10 -> 0 | K10: =Projektbudget!K17*$C10 -> 0 | L10: =Projektbudget!L17*$C10 -> 0 | M10: =Projektbudget!M17*$C10 -> 0 | N10: 0 | Q10: Doktorand (Snittlön) | S10: 0 | T10: 0 | U10: 0 | V10: 0 | W10: 0 | X10: 0 | Y10: 0 | Z10: 0 | AA10: 0 | AB10: 0 | AC10: 0
B11: =Projektbudget!A18 -> Administratör | C11: ='År 4'!C11 -> 1700 | D11: =Projektbudget!D18*$C11 -> 0 | E11: =Projektbudget!E18*$C11 -> 0 | F11: =Projektbudget!F18*$C11 -> 0 | G11: =Projektbudget!G18*$C11 -> 0 | H11: =Projektbudget!H18*$C11 -> 0 | I11: =Projektbudget!I18*$C11 -> 0 | J11: =Projektbudget!J18*$C11 -> 0 | K11: =Projektbudget!K18*$C11 -> 0 | L11: =Projektbudget!L18*$C11 -> 0 | M11: =Projektbudget!M18*$C11 -> 0 | N11: 0 | Q11: Administratör | S11: 0 | T11: 0 | U11: 0 | V11: 0 | W11: 0 | X11: 0 | Y11: 0 | Z11: 0 | AA11: 0 | AB11: 0 | AC11: 0
B12: =Projektbudget!A19 -> Labbtekniker | C12: ='År 4'!C12 -> 1700 | D12: =Projektbudget!D19*$C12 -> 0 | E12: =Projektbudget!E19*$C12 -> 0 | F12: =Projektbudget!F19*$C12 -> 0 | G12: =Projektbudget!G19*$C12 -> 0 | H12: =Projektbudget!H19*$C12 -> 0 | I12: =Projektbudget!I19*$C12 -> 0 | J12: =Projektbudget!J19*$C12 -> 0 | K12: =Projektbudget!K19*$C12 -> 0 | L12: =Projektbudget!L19*$C12 -> 0 | M12: =Projektbudget!M19*$C12 -> 0 | N12: 0 | Q12: Labbtekniker | S12: 0 | T12: 0 | U12: 0 | V12: 0 | W12: 0 | X12: 0 | Y12: 0 | Z12: 0 | AA12: 0 | AB12: 0 | AC12: 0
B13: =Projektbudget!A20 -> Forskningsassistent | C13: ='År 4'!C13 -> 1700 | D13: =Projektbudget!D20*$C13 -> 0 | E13: =Projektbudget!E20*$C13 -> 0 | F13: =Projektbudget!F20*$C13 -> 0 | G13: =Projektbudget!G20*$C13 -> 0 | H13: =Projektbudget!H20*$C13 -> 0 | I13: =Projektbudget!I20*$C13 -> 0 | J13: =Projektbudget!J20*$C13 -> 0 | K13: =Projektbudget!K20*$C13 -> 0 | L13: =Projektbudget!L20*$C13 -> 0 | M13: =Projektbudget!M20*$C13 -> 0 | N13: 0 | Q13: Forskningsassistent | S13: 0 | T13: 0 | U13: 0 | V13: 0 | W13: 0 | X13: 0 | Y13: 0 | Z13: 0 | AA13: 0 | AB13: 0 | AC13: 0
B14: =Projektbudget!A21 -> Forskare/biträdande forskare | C14: ='År 4'!C14 -> 1700 | D14: =Projektbudget!D21*$C14 -> 0 | E14: =Projektbudget!E21*$C14 -> 0 | F14: =Projektbudget!F21*$C14 -> 0 | G14: =Projektbudget!G21*$C14 -> 0 | H14: =Projektbudget!H21*$C14 -> 0 | I14: =Projektbudget!I21*$C14 -> 0 | J14: =Projektbudget!J21*$C14 -> 0 | K14: =Projektbudget!K21*$C14 -> 0 | L14: =Projektbudget!L21*$C14 -> 0 | M14: =Projektbudget!M21*$C14 -> 0 | N14: 0 | Q14: Forskare/biträdande forskare | S14: 0 | T14: 0 | U14: 0 | V14: 0 | W14: 0 | X14: 0 | Y14: 0 | Z14: 0 | AA14: 0 | AB14: 0 | AC14: 0
B15: =Projektbudget!A22 -> 0 | C15: ='År 4'!C15 -> 1700 | D15: =Projektbudget!D22*$C15 -> 0 | E15: =Projektbudget!E22*$C15 -> 0 | F15: =Projektbudget!F22*$C15 -> 0 | G15: =Projektbudget!G22*$C15 -> 0 | H15: =Projektbudget!H22*$C15 -> 0 | I15: =Projektbudget!I22*$C15 -> 0 | J15: =Projektbudget!J22*$C15 -> 0 | K15: =Projektbudget!K22*$C15 -> 0 | L15: =Projektbudget!L22*$C15 -> 0 | M15: =Projektbudget!M22*$C15 -> 0 | N15: 0 | Q15: =B15 -> 0 | S15: =IFERROR(D15/($C15/12),0) -> 0 | T15: 0 | U15: 0 | V15: 0 | W15: 0 | X15: 0 | Y15: 0 | Z15: 0 | AA15: 0 | AB15: 0 | AC15: 0
B16: =Projektbudget!A23 -> 0 | C16: ='År 4'!C16 -> 1700 | D16: =Projektbudget!D23*$C16 -> 0 | E16: =Projektbudget!E23*$C16 -> 0 | F16: =Projektbudget!F23*$C16 -> 0 | G16: =Projektbudget!G23*$C16 -> 0 | H16: =Projektbudget!H23*$C16 -> 0 | I16: =Projektbudget!I23*$C16 -> 0 | J16: =Projektbudget!J23*$C16 -> 0 | K16: =Projektbudget!K23*$C16 -> 0 | L16: =Projektbudget!L23*$C16 -> 0 | M16: =Projektbudget!M23*$C16 -> 0 | N16: 0 | Q16: =B16 -> 0 | S16: =IFERROR(D16/($C16/12),0) -> 0 | T16: 0 | U16: 0 | V16: 0 | W16: 0 | X16: 0 | Y16: 0 | Z16: 0 | AA16: 0 | AB16: 0 | AC16: 0
B17: =Projektbudget!A24 -> 0 | C17: ='År 4'!C17 -> 1700 | D17: =Projektbudget!D24*$C17 -> 0 | E17: =Projektbudget!E24*$C17 -> 0 | F17: =Projektbudget!F24*$C17 -> 0 | G17: =Projektbudget!G24*$C17 -> 0 | H17: =Projektbudget!H24*$C17 -> 0 | I17: =Projektbudget!I24*$C17 -> 0 | J17: =Projektbudget!J24*$C17 -> 0 | K17: =Projektbudget!K24*$C17 -> 0 | L17: =Projektbudget!L24*$C17 -> 0 | M17: =Projektbudget!M24*$C17 -> 0 | N17: 0 | Q17: =B17 -> 0 | S17: =IFERROR(D17/($C17/12),0) -> 0 | T17: 0 | U17: 0 | V17: 0 | W17: 0 | X17: 0 | Y17: 0 | Z17: 0 | AA17: 0 | AB17: 0 | AC17: 0
B18: =Projektbudget!A25 -> 0 | C18: ='År 4'!C18 -> 1700 | D18: =Projektbudget!D25*$C18 -> 0 | E18: =Projektbudget!E25*$C18 -> 0 | F18: =Projektbudget!F25*$C18 -> 0 | G18: =Projektbudget!G25*$C18 -> 0 | H18: =Projektbudget!H25*$C18 -> 0 | I18: =Projektbudget!I25*$C18 -> 0 | J18: =Projektbudget!J25*$C18 -> 0 | K18: =Projektbudget!K25*$C18 -> 0 | L18: =Projektbudget!L25*$C18 -> 0 | M18: =Projektbudget!M25*$C18 -> 0 | N18: 0 | Q18: =B18 -> 0 | S18: =IFERROR(D18/($C18/12),0) -> 0 | T18: 0 | U18: 0 | V18: 0 | W18: 0 | X18: 0 | Y18: 0 | Z18: 0 | AA18: 0 | AB18: 0 | AC18: 0
B19: =Projektbudget!A26 -> 0 | C19: ='År 4'!C19 -> 1700 | D19: =Projektbudget!D26*$C19 -> 0 | E19: =Projektbudget!E26*$C19 -> 0 | F19: =Projektbudget!F26*$C19 -> 0 | G19: =Projektbudget!G26*$C19 -> 0 | H19: =Projektbudget!H26*$C19 -> 0 | I19: =Projektbudget!I26*$C19 -> 0 | J19: =Projektbudget!J26*$C19 -> 0 | K19: =Projektbudget!K26*$C19 -> 0 | L19: =Projektbudget!L26*$C19 -> 0 | M19: =Projektbudget!M26*$C19 -> 0 | N19: 0 | Q19: =B19 -> 0 | S19: =IFERROR(D19/($C19/12),0) -> 0 | T19: 0 | U19: 0 | V19: 0 | W19: 0 | X19: 0 | Y19: 0 | Z19: 0 | AA19: 0 | AB19: 0 | AC19: 0
B20: =Projektbudget!A27 -> 0 | C20: ='År 4'!C20 -> 1700 | D20: =Projektbudget!D27*$C20 -> 0 | E20: =Projektbudget!E27*$C20 -> 0 | F20: =Projektbudget!F27*$C20 -> 0 | G20: =Projektbudget!G27*$C20 -> 0 | H20: =Projektbudget!H27*$C20 -> 0 | I20: =Projektbudget!I27*$C20 -> 0 | J20: =Projektbudget!J27*$C20 -> 0 | K20: =Projektbudget!K27*$C20 -> 0 | L20: =Projektbudget!L27*$C20 -> 0 | M20: =Projektbudget!M27*$C20 -> 0 | N20: 0 | Q20: =B20 -> 0 | S20: =IFERROR(D20/($C20/12),0) -> 0 | T20: 0 | U20: 0 | V20: 0 | W20: 0 | X20: 0 | Y20: 0 | Z20: 0 | AA20: 0 | AB20: 0 | AC20: 0
B21: =Projektbudget!A28 -> 0 | C21: ='År 4'!C21 -> 1700 | D21: =Projektbudget!D28*$C21 -> 0 | E21: =Projektbudget!E28*$C21 -> 0 | F21: =Projektbudget!F28*$C21 -> 0 | G21: =Projektbudget!G28*$C21 -> 0 | H21: =Projektbudget!H28*$C21 -> 0 | I21: =Projektbudget!I28*$C21 -> 0 | J21: =Projektbudget!J28*$C21 -> 0 | K21: =Projektbudget!K28*$C21 -> 0 | L21: =Projektbudget!L28*$C21 -> 0 | M21: =Projektbudget!M28*$C21 -> 0 | N21: 0 | Q21: 0 | S21: 0 | T21: 0 | U21: 0 | V21: 0 | W21: 0 | X21: 0 | Y21: 0 | Z21: 0 | AA21: 0 | AB21: 0 | AC21: 0
B22: =Projektbudget!A29 -> 0 | C22: ='År 4'!C22 -> 1700 | D22: =Projektbudget!D29*$C22 -> 0 | E22: =Projektbudget!E29*$C22 -> 0 | F22: =Projektbudget!F29*$C22 -> 0 | G22: =Projektbudget!G29*$C22 -> 0 | H22: =Projektbudget!H29*$C22 -> 0 | I22: =Projektbudget!I29*$C22 -> 0 | J22: =Projektbudget!J29*$C22 -> 0 | K22: =Projektbudget!K29*$C22 -> 0 | L22: =Projektbudget!L29*$C22 -> 0 | M22: =Projektbudget!M29*$C22 -> 0 | N22: 0 | Q22: 0 | S22: 0 | T22: 0 | U22: 0 | V22: 0 | W22: 0 | X22: 0 | Y22: 0 | Z22: 0 | AA22: 0 | AB22: 0 | AC22: 0
